Workbook

Sheet navi
B2: Tool for the Regensburg Model (RM) | K2: Here you can show and hide sheets
B4: contents and navigation | D4: brief instruction
D5: dashboard | E5: imprint | F5: glossary
B6: global frame data and global paths
B7: input of global frame data | C7: input values | D7: base data | F7: → | G7: political to decide on basis of scientific findings
B8: determination of the free parameters RM 1 - 6 | C8: start values (RR_20) | D8: goal seek
B9: graphs world | C9: graphs global
B11: results for countries
B12: national emission paths and the resulting reference values for all scenarios | C12: a country can be selected | D12: graphs country (reference values) | G12: → | H12: the main results of this tool
B14: reference values for all countries | C14: a scenario can be selected | D14: output countries
B15: converging per capita emissions using Regensburg Formula is shown | D15: converging per capita emissions RM | G15: → | H15: main features of the Regensburg Model are shown
B17: implicit weighting of the population in the resulting national budgets is shown | D17: convergence period | F17: IWP
D18: 2020 - 2100 | F18: IWP-T
D19: 2021 - 2100 | F19: IWP-T_RM
B23: calculations
B24: global paths | D24: RM | G24: → | H24: calculations
B25: global path: free input | C25: free input | D25: FI
B26: national paths | D26: country
B28: data base | C28: data countries | D28: EDGAR | E28: EDGAR | F28: UN-P | G28: → | H28: data base
D29: emissions | E29: population
C31: Cells shaded in yellow in the following sheets are input fields, where you can enter data.
B33: Suggestions and feedback are welcome: | C33: save-the-climate@online.ms
E34: Simplified web app for the Regensburg Model:
B35: More information on our website: | C35: www.save-the-climate.info | E35: http://RM.climate-calculator.info
B37: version: | C37: 2023-05-04 | D37: 56.0 | E37: published on zenodo
B39: data status
B40: emissions EDGAR | C40: 2022-09-01
B41: population EDGAR
B42: population UN | C42: 2019
B44: version history
A46: 56.0 | B46: 56.0 | C46: Minor adjustments
B47: 55.0 | C47: VBA project (macros) signed with a certificate
B48: 54.0 | C48: Macro "goal seek" improved
B49: 53.0 | C49: Minor adjustments
B50: 52.0 | C50: Data EDGAR updated
B51: 51.0 | C51: Minor adjustments
B52: 50.0 | C52: Formula determination year emissions neutrality changed
B53: 49.0 | C53: Error in macro "Goal Seek" corrected (RM 5 was skipped if no solution was found in RM 4)
B54: 48.0 | C54: Minor adjustments
B55: 47.0 | C55: Sheets RM, country, IWP and IWP-T with extension "_20" replaced by "IWP-T_RM
B56: 46.0 | C56: Sheets RM, country, IWP and IWP-T with extension "_20" added to calculate the implicit weighting of the population without taking into account actual emissions after the base year 2019
B57: 45.0 | C57: Macro "goal seek" improved
B58: 44.0 | C58: Sheet "output countries": Reference year 2010 replaced by 2019
B59: 43.0 | C59: Minor adjustments
B60: 42.0 | C60: Use population figures from EDGAR in the "frozen population figures 2019" choice; IWP sheet: period 2021 - cy (as actual emissions are included in 2020)
B61: 41.0 | C61: Data EDGAR updated; actual emissions 2020 in the pathways; normalised actual value 2020 in the formulas.
B62: 40.0 | C62: Conversion from IPCC SR15 to IPCC AR6

Sheet instruction
K2: Detailed instruction to the tool:
K7: A mathematical description of the RM Scenario Types is published on Zenodo: | M7: Zenodo
K11: DOI | M11: 10.5281/zenodo.4540475
K13: A mathematical description of the Regensburg Formula is published on Zenodo: | M13: Zenodo
K17: DOI | M17: 10.5281/zenodo.4405448
K19: Simplified web app for the Regensburg Model:
K20: http://RM.climate-calculator.info
J53: In the sheet "convergence", convergence can be shown for any countries and scenario types.

Sheet base data
B2: base data
B4: input fields | I4: values from the sheet „EDGAR“
B6: I. Input of base data for the determination of global emission pathways 2020 - 2100 which are compatible with a given budget
B8: I. a) Global budget from 2020 to 2100
B10: CO2 budget from 2020 to 2100 in Gt | G10: Key findings on remaining CO2 budgets of the IPCC Sixth Assessment Report Working Group 1:
B11: 550 | D11: see separate paper
B13: I. b) Global emissions 2012 - 2019 (info) | P13: global emissions 2019
P14: EDGAR | R14: GCP
P15: fossile use excl. ISA | Q15: =L18 -> 36.6906755 | R15: fossile use | S15: =S19-S18 -> 37.0427168
E16: year: | J16: 2017 | K16: =J16+1 -> 2018 | L16: =K16+1 -> 2019 | M16: =L16+1 -> 2020 | N16: =M16+1 -> 2021 | P16: ISA | Q16: =('data countries'!O226+'data countries'!O227)/1000 -> 1.302606502
B18: CO2 emissions without LUC and int. shipping/aviation (ISA) | E18: Gt | J18: ='data countries'!M225/1000 -> 35.73007482 | K18: ='data countries'!N225/1000 -> 36.56682384 | L18: ='data countries'!O225/1000 -> 36.6906755 | M18: ='data countries'!P225/1000 -> 34.95549268 | N18: ='data countries'!Q225/1000 -> 36.76768733 | P18: LULUCF | Q18: 3.5 | R18: LUC | S18: 4.5572832
F19: annual rate of change: | K19: =K18/J18-1 -> 0.02341861922 | L19: =L18/K18-1 -> 0.003386995401 | M19: =M18/L18-1 -> -0.04729220164 | N19: =N18/M18-1 -> 0.05184291544 | P19: Totoal | Q19: =SUM(Q15:Q18) -> 41.493282 | S19: 41.6
P20: fossile use | Q20: =SUM(Q15:Q16) -> 37.993282
B21: I. c) Global CO2 budget 2020 - 2100 without LUC and ISA
B23: global CO2 budget 2020 - 2100 | D23: actual 2019 | L23: share | M23: =B11 -> 550 | N23: Gt | P23: * For the determination of the LUC budget and the potential for net negative emissions, see our separate paper:
A24: * | B24: LUC budget 2020 - 2100 | D24: =S18 -> 4.5572832 | F24: Enter the LUC budget 2020 - 2100 in Gt: | K24: 0 | L24: =K24/M23 -> 0 | M24: =-K24 -> 0 | N24: Gt | O24: *
B25: ISA budget 2020 - 2100 | D25: =Q16 -> 1.302606502 | F25: How much of the global budget should be reserved? | K25: 0.03 | M25: =-K25*M23 -> -16.5 | N25: Gt
B26: global CO2 budget 2020 - 2100 | M26: =SUM(M23:M25) -> 533.5 | N26: Gt
B27: global CO2 emissions 2020 - 2019 | N27: Gt
B28: global CO2 budget 2020 - 2100 (without LUC and ISA) | M28: =SUM(M26:M27) -> 533.5 | N28: Gt
B30: I. d) Global budget 2020 - 2100 to distribute here
B32: CO2 budget 2020 - 2100 in Gt (here calculated value) | L32: =M28 -> 533.5
B34: CO2 budget 2020 - 2100 in Gt; free input
B36: CO2 budget 2020 - 2100 in Gt (basis for this tool) | F36: here calculated value | L36: =IF(F36=B79,L32,L34) -> 533.5
B38: I. e) Emissions in the base year 2019 and minimum emissions
B40: CO2 emissions in the base year 2019 in Gt (see I. b) | M40: =L18 -> 36.6906755
A42: * | B42: Minimum annual CO2 emissions in Gt (a negative value stands for global net negative emissions, see notes right); Emin: | M42: =ROUND(N42*M40,2) -> -0.73 | N42: -0.02 | O42: *
B43: Share of total global emissions in 2019 | N43: =M42/S19 -> -0.01754807692
B45: II. Base date of the national emission paths calculated with the Regensburg Formula
B47: At what level of per capita emissions all countries should converge; convergence level (t / capita)? | M47: 0.5 | N47: =M47/M49 -> 0.1050207634
B49: For your information: global per capita emissions 2019 (without LUC and ISA) approx.: | M49: =country!K28 -> 4.760963299 | N49: t
B51: Which population size is to be used in the tool for the convergence year? | G51: frozen population size 2019
B53: III. Input values when global emissions are increasing in refer to the base year
B55: The Regensburg Formula does not yield reasonable results if global emissions are increasing. For years with increasing emissions with regard to the base year, the Regensburg Formula is not applied. Instead, the global increase is distributed according to the following rule: The share PC_t of this increase is distributed according to the country's population relative to the global population and the share (1-PC_t) of this increase is distributed according to the share of the country's emissions relative to global emissions in year t-1. PC_t can be escalated with an escalation rate. Here you can set the start value PC_20 for the year 2020 and the escalation rate ER_PC.
M61: PC20 | N61: 0.5
M62: ERPC | N62: 0.1
B77: Lists for the drop-down menus:
B79: here calculated value
B80: value of free input
B82: frozen population size 2019
B83: forecast values

Sheet _xltb_storage_ (hidden)
A1: XL Toolbox Settings
B2: export_preset | C2: <?xml version="1.0" encoding="utf-16"?> <Preset xmlns:xsi="http://www.w3.org/2001/XMLSchema-instance" xmlns:xsd="http://www.w3.org/2001/XMLSchema"> <Name>Png, 300 dpi, RGB, Transparente Leinwand</Name> <Dpi>300</Dpi> <FileType>Png</FileType> <ColorSpace>Rgb</ColorSpace> <Transparency>TransparentCanvas</Transparency> <UseColorProfile>false</UseColorProfile> <ColorProfile>sRGB Color Space Profile</ColorProfile> </Preset>
B3: export_path | C3: C:\Users\Andreas\WEB.DE Online-Speicher\Website\klima-retten.info\Bilder\Review\RV_EU28_RF.png

Sheet goal seek
A1: Determination of the parameters for the global RM scenarios 2020 - 2100
G2: target is not met
A3: input values | C3: determination via "goal seek" | E3: target value of "goal seek" | G3: target is met
A5: RM scenarios: | C5: =RM!$E$2 -> RM-1 const | D5: =RM!$K$2 -> RM-2 exp | E5: =RM!R2 -> RM-3 lin | F5: =RM!$Y$2 -> RM-4 quadr | G5: =RM!AF2 -> RM-5 rad | H5: =RM!AM2 -> RM-6 abs
A6: characteristics of the scenario | C6: RRt const | D6: RRt exp | E6: RRt lin | F6: RRt quadr | G6: RRt rad | H6: RAt const | I6: info
A7: A corona effect should not be considered here. | D7: only a negative RR_20 possible | E7: a positive RR_20 is also possible (= increasing emissions after 2019) | I7: average 2017 - 2019 | J7: change rate 2019 | K7: global budget
A9: change rate 2020 (RR20) | D9: -0.005 | E9: -0.005 | F9: -0.005 | G9: -0.005 | I9: =AVERAGE('base data'!J19:L19) -> 0.01340280731 | J9: ='base data'!L19 -> 0.003386995401 | K9: ='base data'!B11 -> 550 | L9: -0.005
A10: initial value (please enter in the grey cells if an error has occurred) | C10: -0.06 | D10: 0.1 | E10: -0.01 | F10: 0 | G10: 0 | H10: -4
C11: RRt constant | D11: a | E11: a | F11: a | G11: a | H11: RA
A12: Free parameters are determined by 'Goal Seek' in such a way as that the budget is adhered to. | C12: -0.07000030352 | D12: 0.2266730867 | E12: -0.005813587597 | F12: -8.244686486e+303 | G12: -8.244686486e+303 | H12: -8.244686486e+303
D13: -3.777870668e+16 | F13: -0.0004696535196 | G13: -0.02037779524 | H13: -1.30430877
A15: scenario ∑ 2020 - 2100 | B15: Gt | C15: =RM!I6 -> 534 | D15: =RM!$P$6 -> 534 | E15: =RM!$W$6 -> 534 | F15: =RM!$AD$6 -> 534 | G15: =RM!AK6 -> 534 | H15: =RM!AQ6 -> 534
A16: budget ∑ 2020 - 2100 | B16: Gt | C16: =ROUND('base data'!$L$36,0) -> 534 | D16: =ROUND('base data'!$L$36,0) -> 534 | E16: =ROUND('base data'!$L$36,0) -> 534 | F16: =ROUND('base data'!$L$36,0) -> 534 | G16: =ROUND('base data'!$L$36,0) -> 534 | H16: =ROUND('base data'!$L$36,0) -> 534
A18: emissions 2100 scenario | B18: Gt | C18: =RM!I8 -> -0.73 | D18: =RM!P8 -> -0.73 | E18: =RM!R95 -> -0.73 | F18: =RM!$AD$8 -> -0.73 | G18: =RM!AK8 -> -0.73 | H18: =RM!AQ8 -> -0.73
A19: minimum emissions 2100; Emin | B19: Gt | C19: =ROUND('base data'!$M$42,2) -> -0.73 | D19: =ROUND('base data'!$M$42,2) -> -0.73 | E19: =ROUND('base data'!$M$42,2) -> -0.73 | F19: =ROUND('base data'!$M$42,2) -> -0.73 | G19: =ROUND('base data'!$M$42,2) -> -0.73 | H19: =ROUND('base data'!$M$42,2) -> -0.73
A20: values from the scenarios | C20: =C5 -> RM-1 const | D20: RM-2 exp | E20: RM-3 lin | F20: RM-4 quadr | G20: RM-5 rad | H20: RM-6 abs
A21: year Emin is achieved | C21: =IF(ISNA(INDEX(RM!$C$15:$C$95,MATCH('goal seek'!C$19,RM!$E$15:$E$95,0))),"-",INDEX(RM!$C$15:$C$95,MATCH('goal seek'!C$19,RM!$E$15:$E$95,0))) -> 2084 | D21: =IF(ISNA(INDEX(RM!$C$15:$C$95,MATCH('goal seek'!D$19,RM!$K$15:$K$95,0))),"-",INDEX(RM!$C$15:$C$95,MATCH('goal seek'!D$19,RM!$K$15:$K$95,0))) -> 2045 | E21: =IF(ISNA(INDEX(RM!$C$15:$C$95,MATCH('goal seek'!E$19,RM!$R$15:$R$95,0))),"-",INDEX(RM!$C$15:$C$95,MATCH('goal seek'!E$19,RM!$R$15:$R$95,0))) -> 2059 | F21: =IF(ISNA(INDEX(RM!$C$15:$C$95,MATCH('goal seek'!F$19,RM!$Y$15:$Y$95,0))),"-",INDEX(RM!$C$15:$C$95,MATCH('goal seek'!F$19,RM!$Y$15:$Y$95,0))) -> 2050 | G21: =IF(ISNA(INDEX(RM!$C$15:$C$95,MATCH('goal seek'!G$19,RM!$AF$15:$AF$95,0))),"-",INDEX(RM!$C$15:$C$95,MATCH('goal seek'!G$19,RM!$AF$15:$AF$95,0))) -> 2068 | H21: =IF(ISNA(INDEX(RM!$C$15:$C$95,MATCH('goal seek'!H$19,RM!$AM$15:$AM$95,0))),"-",INDEX(RM!$C$15:$C$95,MATCH('goal seek'!H$19,RM!$AM$15:$AM$95,0))) -> 2050
A22: year emissions neutrality | C22: =INDEX(RM!$C$15:$C$95,MATCH(_xlfn.AGGREGATE(15,6,(RM!E15:E95)/(RM!E15:E95>=0),1),RM!$E$15:$E$95,0)) -> 2077 | D22: =INDEX(RM!$C$15:$C$95,MATCH(_xlfn.AGGREGATE(15,6,(RM!K15:K95)/(RM!K15:K95>=0),1),RM!$K$15:$K$95,0)) -> 2043 | E22: =INDEX(RM!$C$15:$C$95,MATCH(_xlfn.AGGREGATE(15,6,(RM!R15:R95)/(RM!R15:R95>=0),1),RM!$R$15:$R$95,0)) -> 2056 | F22: =INDEX(RM!$C$15:$C$95,MATCH(_xlfn.AGGREGATE(15,6,(RM!Y15:Y95)/(RM!Y15:Y95>=0),1),RM!$Y$15:$Y$95,0)) -> 2048 | G22: =INDEX(RM!$C$15:$C$95,MATCH(_xlfn.AGGREGATE(15,6,(RM!AF15:AF95)/(RM!AF15:AF95>=0),1),RM!$AF$15:$AF$95,0)) -> 2063 | H22: =INDEX(RM!$C$15:$C$95,MATCH(_xlfn.AGGREGATE(15,6,(RM!AM15:AM95)/(RM!AM15:AM95>=0),1),RM!$AM$15:$AM$95,0)) -> 2049
A23: At which level of emissions (threshold value; TV) shall the annual percentage reduction be change into a constant annual reduction? | D23: RM 2 - 5 | E23: =ROUND(G23*'base data'!$L$18,1) -> 1.3 | F23: Gt | G23: 0.035 | H23: of emissions in 2019
D24: RM-1 | E24: =ROUND(G24*'base data'!$L$18,1) -> 1.7 | F24: Gt | G24: 0.045

Sheet RM (hidden)
B2: calculation global scenarios | E2: RM-1 const | K2: RM-2 exp | R2: RM-3 lin | Y2: RM-4 quadr | AF2: RM-5 rad | AM2: RM-6 abs | AS2: calculation overshoot
E3: constant annual reduction rate | K3: exponential increase of annual reduction rates is assumed | R3: linear increase of annual reduction rates is assumed | Y3: quadratic formula for annual reduction rates (RR_t; see formula below) | AF3: radical formula for annual reduction rates (RR_t; see formula below) | AM3: constant annual reducktion amount | AS3: ='goal seek'!C5 -> RM-1 const | AT3: ='goal seek'!D5 -> RM-2 exp | AU3: ='goal seek'!E5 -> RM-3 lin | AV3: ='goal seek'!F5 -> RM-4 quadr | AW3: ='goal seek'!G5 -> RM-5 rad | AX3: ='goal seek'!H5 -> RM-6 abs | AY3: =FI!$A$2 -> FI | AZ3: =AS3 -> RM-1 const | BA3: RM-2 exp | BB3: RM-3 lin | BC3: RM-4 quadr | BD3: RM-5 rad | BE3: RM-6 abs | BF3: =AY3 -> FI
B4: formula | AF4: factor smooth transition 2020/2021 | AK4: 0.5
B5: input | C5: cumulative budget 2020 - 2100 in Gt | E5: =$C$5 -> cumulative budget 2020 - 2100 in Gt | I5: =ROUND('base data'!L36,0) -> 534 | K5: =$C$5 -> cumulative budget 2020 - 2100 in Gt | P5: =ROUND('base data'!L36,0) -> 534 | R5: =$C$5 -> cumulative budget 2020 - 2100 in Gt | W5: =ROUND('base data'!L36,0) -> 534 | Y5: =$C$5 -> cumulative budget 2020 - 2100 in Gt | AD5: =ROUND('base data'!$L$36,0) -> 534 | AF5: =$C$5 -> cumulative budget 2020 - 2100 in Gt | AK5: =ROUND('base data'!$L$36,0) -> 534 | AM5: =$C$5 -> cumulative budget 2020 - 2100 in Gt | AQ5: =ROUND('base data'!$L$36,0) -> 534 | AS5: global CO2 budget 2020 - 2100 in Gt
B6: free parameter | C6: scenario sum emissions 2020 - 2100 | E6: =$C$6 -> scenario sum emissions 2020 - 2100 | I6: =ROUND(E96,0) -> 534 | K6: =$C$6 -> scenario sum emissions 2020 - 2100 | P6: =ROUND(RM!K96,0) -> 534 | R6: =$C$6 -> scenario sum emissions 2020 - 2100 | W6: =ROUND(R96,0) -> 534 | Y6: =$C$6 -> scenario sum emissions 2020 - 2100 | AD6: =ROUND(Y96,0) -> 534 | AF6: =$C$6 -> scenario sum emissions 2020 - 2100 | AK6: =ROUND(AF96,0) -> 534 | AM6: =$C$6 -> scenario sum emissions 2020 - 2100 | AQ6: =ROUND(AM96,0) -> 534 | AS6: =ROUND('base data'!M28,0) -> 534
B7: sheet "goal seek" | C7: E_min in Gt | E7: =$C$7 -> E_min in Gt | I7: ='base data'!M42 -> -0.73 | K7: =$C$7 -> E_min in Gt | P7: ='base data'!M42 -> -0.73 | R7: =$C$7 -> E_min in Gt | W7: =ROUND('base data'!M42,2) -> -0.73 | Y7: =$C$7 -> E_min in Gt | AD7: =ROUND('base data'!$M$42,2) -> -0.73 | AF7: =$C$7 -> E_min in Gt | AK7: =ROUND('base data'!$M$42,2) -> -0.73 | AM7: =$C$7 -> E_min in Gt | AQ7: =ROUND('base data'!$M$42,2) -> -0.73
B8: actual | C8: scenario emissions in year 2100 in Gt | E8: =$C$8 -> scenario emissions in year 2100 in Gt | I8: =ROUND(E95,2) -> -0.73 | K8: =$C$8 -> scenario emissions in year 2100 in Gt | P8: =ROUND(RM!K95,2) -> -0.73 | R8: =$C$8 -> scenario emissions in year 2100 in Gt | W8: =ROUND(R95,2) -> -0.73 | Y8: =$C$8 -> scenario emissions in year 2100 in Gt | AD8: =Y95 -> -0.73 | AF8: =$C$8 -> scenario emissions in year 2100 in Gt | AK8: =AF95 -> -0.73 | AM8: =$C$8 -> scenario emissions in year 2100 in Gt | AQ8: =AM95 -> -0.73
K9: RR_20; input value sheet "goal seek" | P9: ='goal seek'!D9 -> -0.005 | R9: =K9 -> RR_20; input value sheet "goal seek" | W9: ='goal seek'!E9 -> -0.005 | Y9: =R9 -> RR_20; input value sheet "goal seek" | AD9: ='goal seek'!F9 -> -0.005 | AF9: =Y9 -> RR_20; input value sheet "goal seek" | AK9: ='goal seek'!G9 -> -0.005 | AS9: global cumulative CO2 emissions start 2020 | AZ9: overshoot
E10: free parameter "goal seek" | I10: ='goal seek'!C12 -> -0.07000030352 | K10: free parameter "goal seek" | P10: ='goal seek'!D12 -> 0.2266730867 | R10: =K10 -> free parameter "goal seek" | W10: ='goal seek'!E12 -> -0.005813587597 | Y10: =R10 -> free parameter "goal seek" | AD10: ='goal seek'!F13 -> -0.0004696535196 | AF10: =Y10 -> free parameter "goal seek" | AK10: ='goal seek'!G13 -> -0.02037779524 | AM10: =AF10 -> free parameter "goal seek" | AQ10: ='goal seek'!H13 -> -1.30430877
E11: TV in Gt | I11: ='goal seek'!E24 -> 1.7 | K11: =E11 -> TV in Gt | P11: ='goal seek'!$E$23 -> 1.3 | R11: =E11 -> TV in Gt | W11: ='goal seek'!$E$23 -> 1.3 | Y11: =E11 -> TV in Gt | AD11: ='goal seek'!$E$23 -> 1.3 | AF11: =Y11 -> TV in Gt | AK11: ='goal seek'!$E$23 -> 1.3 | AS11: Gt | AT11: Gt | AU11: Gt | AV11: Gt | AW11: Gt | AX11: Gt | AY11: Gt | AZ11: Gt | BA11: Gt | BB11: Gt | BC11: Gt | BD11: Gt | BE11: Gt | BF11: Gt
B12: world population in thousands | C12: year | E12: CO2 emissions in Gt | F12: absolute change vs. prev. year in Gt | G12: relative change vs. prev. year | I12: t / capita | K12: CO2 emissions in Gt | L12: absolute change vs. prev. year in Gt | M12: relative change vs. prev. year | P12: t / capita | R12: CO2 emissions in Gt | S12: absolute change vs. prev. year in Gt | T12: relative change vs. prev. year | W12: =P12 -> t / capita | Y12: CO2 emissions in Gt | Z12: absolute change vs. prev. year in Gt | AA12: relative change vs. prev. year | AD12: =I12 -> t / capita | AF12: CO2 emissions in Gt | AG12: absolute change vs. prev. year in Gt | AH12: relative change vs. prev. year | AK12: =P12 -> t / capita | AM12: CO2 emissions in Gt | AN12: absolute change vs. prev. year in Gt | AO12: relative change vs. prev. year | AQ12: =W12 -> t / capita
B13: source: UN | C13: t | E13: see formula below Et | F13: Et - Et-1 | G13: RRt const resp. actual | K13: see formula below Et | L13: Et - Et-1 | M13: see formal below | N13: actual RRt | R13: see formula below Et | S13: Et - Et-1 | T13: see formal below | U13: actual RRt | Y13: see formula below Et | Z13: Et - Et-1 | AA13: see formula below | AB13: actual RRt | AF13: see formula below Et | AG13: Et - Et-1 | AH13: see formula below | AI13: actual RRt | AM13: see formula below Et | AN13: Et - Et-1 | AO13: actual RRt | AS13: =AS3 -> RM-1 const | AT13: =AT3 -> RM-2 exp | AU13: RM-3 lin | AV13: RM-4 quadr | AW13: RM-5 rad | AX13: RM-6 abs | AY13: FI | AZ13: RM-1 const | BA13: RM-2 exp | BB13: RM-3 lin | BC13: RM-4 quadr | BD13: RM-5 rad | BE13: RM-6 abs | BF13: FI
A14: 1 | B14: =INDEX('UN-P'!$H$18:$CK$18,A14) -> 7713468.1 | C14: 2019 | E14: ='base data'!$M$40 -> 36.6906755 | I14: =E14*1000000/B14 -> 4.756702825 | K14: ='base data'!$M$40 -> 36.6906755 | P14: =K14*1000000/$B14 -> 4.756702825 | R14: ='base data'!$M$40 -> 36.6906755 | W14: =R14*1000000/$B14 -> 4.756702825 | Y14: ='base data'!$M$40 -> 36.6906755 | AD14: =Y14*1000000/$B14 -> 4.756702825 | AF14: ='base data'!$M$40 -> 36.6906755 | AK14: =AF14*1000000/$B14 -> 4.756702825 | AM14: ='base data'!$M$40 -> 36.6906755 | AQ14: =AM14*1000000/$B14 -> 4.756702825
A15: =A14+1 -> 2 | B15: =INDEX('UN-P'!$H$18:$CK$18,A15) -> 7794798.739 | C15: 2020 | E15: ='data countries'!P225/1000 -> 34.95549268 | F15: =E15-E14 -> -1.735182824 | G15: =IF(E15>0,E15/E14-1,"") -> -0.04729220164 | I15: 4.484463788 | K15: =$E$15 -> 34.95549268 | L15: =K15-K14 -> -1.735182824 | M15: =P9 -> -0.005 | N15: =IF(K15>0,K15/K14-1,"") -> -0.04729220164 | P15: 4.484463788 | R15: =$E$15 -> 34.95549268 | S15: =R15-R14 -> -1.735182824 | T15: =W9 -> -0.005 | U15: =IF(R15>0,R15/R14-1,"") -> -0.04729220164 | W15: 4.484463788 | Y15: =$E$15 -> 34.95549268 | Z15: =Y15-Y14 -> -1.735182824 | AA15: =$AD$10*(C15-2020)^2+$AD$9 -> -0.005 | AB15: =IF(Y15>0,Y15/Y14-1,"") -> -0.04729220164 | AD15: 4.484463788 | AF15: =$E$15 -> 34.95549268 | AG15: =AF15-AF14 -> -1.735182824 | AH15: =AK9 -> -0.005 | AI15: =IF(AF15>0,AF15/AF14-1,"") -> -0.04729220164 | AK15: 4.484463788 | AM15: =$E$15 -> 34.95549268 | AN15: =AM15-AM14 -> -1.735182824 | AO15: =IF(AM15>0,AM15/AM14-1,"") -> -0.04729220164 | AQ15: 4.484463788 | AS15: =AS14+E15 -> 34.95549268 | AT15: =AT14+K15 -> 34.95549268 | AU15: =AU14+R15 -> 34.95549268 | AV15: =AV14+Y15 -> 34.95549268 | AW15: =AW14+AF15 -> 34.95549268 | AX15: =AX14+AM15 -> 34.95549268 | AY15: =AY14+FI!B12 -> 34.95549268 | AZ15: =IF(AS15-$AS$6>0,AS15-$AS$6,"") ->  | BA15: =IF(AT15-$AS$6>0,AT15-$AS$6,"") -> 
A16: =A15+1 -> 3 | B16: =INDEX('UN-P'!$H$18:$CK$18,A16) -> 7874965.825 | C16: =C15+1 -> 2021 | E16: ='data countries'!$Q$225/1000 -> 36.76768733 | F16: 1.812194651 | G16: =IF(E16>0,E16/E15-1,"") -> 0.05184291544 | I16: 4.668932938 | K16: ='data countries'!$Q$225/1000 -> 36.76768733 | L16: 1.812194651 | M16: =MAX(-5,M15*(1+$P$10)) -> -0.006133365433 | N16: =IF(K16>0,K16/K15-1,"") -> 0.05184291544 | P16: 4.668932938 | R16: ='data countries'!$Q$225/1000 -> 36.76768733 | S16: 1.812194651 | T16: =T15+$W$10 -> -0.0108135876 | U16: =IF(R16>0,R16/R15-1,"") -> 0.05184291544 | W16: 4.668932938 | Y16: ='data countries'!$Q$225/1000 -> 36.76768733 | Z16: 1.812194651 | AA16: -0.00546965352 | AB16: =IF(Y16>0,Y16/Y15-1,"") -> 0.05184291544 | AD16: 4.668932938 | AF16: ='data countries'!$Q$225/1000 -> 36.76768733 | AG16: 1.812194651 | AH16: =$AK$10*(C16-$AK$4-2020)^(1/2)+$AK$9 -> -0.0194092772 | AI16: =IF(AF16>0,AF16/AF15-1,"") -> 0.05184291544 | AK16: 4.668932938 | AM16: ='data countries'!$Q$225/1000 -> 36.76768733 | AN16: 1.812194651 | AO16: 0.05184291544 | AQ16: 4.668932938 | AS16: 71.72318 | AT16: 71.72318 | AU16: 71.72318 | AV16: 71.72318 | AW16: 71.72318 | AX16: 71.72318 | AY16: =AY15+FI!B13 -> 71.72318 | AZ16: =IF(AS16-$AS$6>0,AS16-$AS$6,"") ->  | BA16: =IF(AT16-$AS$6>0,AT16-$AS$6,"") ->  | BB16: =IF(AU16-$AS$6>0,AU16-$AS$6,"") ->  | BC16: =IF(AV16-$AS$6>0,AV16-$AS$6,"") ->  | BD16: =IF(AW16-$AS$6>0,AW16-$AS$6,"") ->  | BE16: =IF(AX16-$AS$6>0,AX16-$AS$6,"") ->  | BF16: =IF(AY16-$AS$6>0,AY16-$AS$6,"") -> 
A17: 4 | B17: =INDEX('UN-P'!$H$18:$CK$18,A17) -> 7953952.567 | C17: 2022 | E17: =IF(E16>'goal seek'!$E$24,MAX($I$7,E16*(1+$I$10)),MAX($I$7,RM!E16+RM!F16)) -> 34.19393805 | F17: -2.573749273 | G17: -0.07000030352 | I17: 4.298986921 | K17: =IF(K16>'goal seek'!$E$23,MAX($P$7,K16*(1+M17)),MAX($P$7,K16+L16)) -> 36.49106069 | L17: -0.2766266338 | M17: -0.007523634308 | N17: -0.007523634308 | P17: 4.587789578 | R17: =IF(R16>'goal seek'!$E$23,MAX($W$7,R16*(1+T17)),MAX($W$7,R16+S16)) -> 36.15634455 | S17: -0.6113427787 | T17: -0.01662717519 | U17: -0.01662717519 | W17: 4.545707841 | Y17: =IF(Y16>'goal seek'!$E$23,MAX($AD$7,Y16*(1+AA17)),MAX($AD$7,Y16+Z16)) -> 36.5147766 | Z17: -0.2529107317 | AA17: -0.006878614078 | AB17: -0.006878614078 | AD17: 4.590771228 | AF17: =IF(AF16>'goal seek'!$E$23,MAX($AD$7,AF16*(1+AH17)),MAX($AD$7,AF16+AG16)) -> 35.66621565 | AG17: -1.101471677 | AH17: -0.02995760021 | AI17: -0.02995760021 | AK17: 4.484087043 | AM17: =MAX($AQ$7,AM16+$AQ$10) -> 35.46337856 | AN17: -1.30430877 | AO17: -0.03547432175 | AQ17: 4.458585622 | AS17: 105.9171181 | AT17: 108.2142407 | AU17: 107.8795246 | AV17: 108.2379566 | AW17: 107.3893957 | AX17: 107.1865586 | AY17: =AY16+FI!B14 -> 105.9171181
A18: 5 | B18: =INDEX('UN-P'!$H$18:$CK$18,A18) -> 8031800.429 | C18: 2023 | E18: =IF(E17>'goal seek'!$E$24,MAX($I$7,E17*(1+$I$10)),MAX($I$7,RM!E17+RM!F17)) -> 31.80035201 | F18: -2.393586042 | G18: -0.07000030352 | I18: 3.95930555 | K18: =IF(K17>'goal seek'!$E$23,MAX($P$7,K17*(1+M18)),MAX($P$7,K17+L17)) -> 36.15428324 | L18: -0.3367774486 | M18: -0.00922903972 | N18: -0.00922903972 | P18: 4.50139213 | R18: =IF(R17>'goal seek'!$E$23,MAX($W$7,R17*(1+T18)),MAX($W$7,R17+S17)) -> 35.3449686 | S18: -0.8113759514 | T18: -0.02244076279 | U18: -0.02244076279 | W18: 4.400628341 | Y18: =IF(Y17>'goal seek'!$E$23,MAX($AD$7,Y17*(1+AA18)),MAX($AD$7,Y17+Z17)) -> 36.17785907 | Z18: -0.3369175231 | AA18: -0.009226881676 | AB18: -0.009226881676 | AD18: 4.504327441 | AF18: =IF(AF17>'goal seek'!$E$23,MAX($AD$7,AF17*(1+AH18)),MAX($AD$7,AF17+AG17)) -> 34.3387147 | AG18: -1.327500945 | AH18: -0.03722012332 | AI18: -0.03722012332 | AK18: 4.275344614 | AM18: 34.15906979 | AN18: -1.30430877 | AO18: -0.036779033 | AQ18: 4.252977908 | AS18: 137.7174701 | AT18: 144.3685239 | AU18: 143.2244931 | AV18: 144.4158157 | AW18: 141.7281104 | AX18: 141.3456283 | AY18: =AY17+FI!B15 -> 137.7174701
A19: 6 | B19: =INDEX('UN-P'!$H$18:$CK$18,A19) -> 8108605.388 | C19: 2024 | E19: =IF(E18>'goal seek'!$E$24,MAX($I$7,E18*(1+$I$10)),MAX($I$7,RM!E18+RM!F18)) -> 29.57431772 | F19: -2.226034293 | G19: -0.07000030352 | I19: 3.647275494 | K19: =IF(K18>'goal seek'!$E$23,MAX($P$7,K18*(1+M19)),MAX($P$7,K18+L18)) -> 35.74498007 | L19: -0.4093031699 | M19: -0.01132101464 | N19: -0.01132101464 | P19: 4.408277178 | R19: =IF(R18>'goal seek'!$E$23,MAX($W$7,R18*(1+T19)),MAX($W$7,R18+S18)) -> 34.34631947 | S19: -0.9986491272 | T19: -0.02825435039 | U19: -0.02825435039 | W19: 4.235786282 | Y19: =IF(Y18>'goal seek'!$E$23,MAX($AD$7,Y18*(1+AA19)),MAX($AD$7,Y18+Z18)) -> 35.72511284 | Z19: -0.4527462369 | AA19: -0.01251445631 | AB19: -0.01251445631 | AD19: 4.405827035 | AF19: =IF(AF18>'goal seek'!$E$23,MAX($AD$7,AF18*(1+AH19)),MAX($AD$7,AF18+AG18)) -> 32.85791381 | AG19: -1.480800895 | AH19: -0.04312336404 | AI19: -0.04312336404 | AK19: 4.052227509 | AM19: 32.85476102 | AN19: -1.30430877 | AO19: -0.03818338082 | AQ19: 4.051838688 | AS19: 167.2917878 | AT19: 180.113504 | AU19: 177.5708126 | AV19: 180.1409285 | AW19: 174.5860242 | AX19: 174.2003894 | AY19: =AY18+FI!B16 -> 167.2917878
A20: 7 | B20: =INDEX('UN-P'!$H$18:$CK$18,A20) -> 8184437.46 | C20: 2025 | E20: =IF(E19>'goal seek'!$E$24,MAX($I$7,E19*(1+$I$10)),MAX($I$7,RM!E19+RM!F19)) -> 27.5041065 | F20: -2.070211217 | G20: -0.07000030352 | I20: 3.360537195 | K20: =IF(K19>'goal seek'!$E$23,MAX($P$7,K19*(1+M20)),MAX($P$7,K19+L19)) -> 35.24858296 | L20: -0.4963971144 | M20: -0.01388718397 | N20: -0.01388718397 | P20: 4.306781392 | R20: =IF(R19>'goal seek'!$E$23,MAX($W$7,R19*(1+T20)),MAX($W$7,R19+S19)) -> 33.17621119 | S20: -1.170108282 | T20: -0.03406793799 | U20: -0.03406793799 | W20: 4.05357257 | Y20: =IF(Y19>'goal seek'!$E$23,MAX($AD$7,Y19*(1+AA20)),MAX($AD$7,Y19+Z19)) -> 35.12702665 | Z20: -0.5980861887 | AA20: -0.01674133799 | AB20: -0.01674133799 | AD20: 4.291929264 | AF20: =IF(AF19>'goal seek'!$E$23,MAX($AD$7,AF19*(1+AH20)),MAX($AD$7,AF19+AG19)) -> 31.27324788 | AG20: -1.584665934 | AH20: -0.04822783159 | AI20: -0.04822783159 | AK20: 3.8210626 | AM20: 31.55045225 | AN20: -1.30430877 | AO20: -0.0396992317 | AQ20: 3.854932291 | AS20: 194.7958943 | AT20: 215.362087 | AU20: 210.7470238 | AV20: 215.2679552 | AW20: 205.859272 | AX20: 205.7508416 | AY20: =AY19+FI!B17 -> 194.7958943
A21: 8 | B21: =INDEX('UN-P'!$H$18:$CK$18,A21) -> 8259276.737 | C21: 2026 | E21: =IF(E20>'goal seek'!$E$24,MAX($I$7,E20*(1+$I$10)),MAX($I$7,RM!E20+RM!F20)) -> 25.5788107 | F21: -1.925295803 | G21: -0.07000030352 | I21: 3.096979495 | K21: =IF(K20>'goal seek'!$E$23,MAX($P$7,K20*(1+M21)),MAX($P$7,K20+L20)) -> 34.64812212 | L21: -0.6004608385 | M21: -0.01703503483 | N21: -0.01703503483 | P21: 4.195055236 | R21: =IF(R20>'goal seek'!$E$23,MAX($W$7,R20*(1+T21)),MAX($W$7,R20+S20)) -> 31.85309327 | S21: -1.323117915 | T21: -0.03988152558 | U21: -0.03988152558 | W21: 3.856644388 | Y21: =IF(Y20>'goal seek'!$E$23,MAX($AD$7,Y20*(1+AA21)),MAX($AD$7,Y20+Z20)) -> 34.35748037 | Z21: -0.7695462743 | AA21: -0.0219075267 | AB21: -0.0219075267 | AD21: 4.159865502 | AF21: =IF(AF20>'goal seek'!$E$23,MAX($AD$7,AF20*(1+AH21)),MAX($AD$7,AF20+AG20)) -> 29.62232793 | AG21: -1.650919946 | AH21: -0.05279016596 | AI21: -0.05279016596 | AK21: 3.586552294 | AM21: 30.24614348 | AN21: -1.30430877 | AO21: -0.04134041439 | AQ21: 3.662081371 | AS21: 220.374705 | AT21: 250.0102091 | AU21: 242.6001171 | AV21: 249.6254355 | AW21: 235.4816 | AX21: 235.9969851 | AY21: =AY20+FI!B18 -> 220.374705
A22: 9 | B22: =INDEX('UN-P'!$H$18:$CK$18,A22) -> 8333078.316 | C22: 2027 | E22: =IF(E21>'goal seek'!$E$24,MAX($I$7,E21*(1+$I$10)),MAX($I$7,RM!E21+RM!F21)) -> 23.78828619 | F22: -1.790524513 | G22: -0.07000030352 | I22: 2.854681702 | K22: =IF(K21>'goal seek'!$E$23,MAX($P$7,K21*(1+M22)),MAX($P$7,K21+L21)) -> 33.92410045 | L22: -0.724021669 | M22: -0.02089641876 | N22: -0.02089641876 | P22: 4.071016636 | R22: =IF(R21>'goal seek'!$E$23,MAX($W$7,R21*(1+T22)),MAX($W$7,R21+S21)) -> 30.39756257 | S22: -1.455530702 | T22: -0.04569511318 | U22: -0.04569511318 | W22: 3.647819139 | Y22: =IF(Y21>'goal seek'!$E$23,MAX($AD$7,Y21*(1+AA22)),MAX($AD$7,Y21+Z21)) -> 33.3950235 | Z22: -0.9624568693 | AA22: -0.02801302246 | AB22: -0.02801302246 | AD22: 4.007525459 | AF22: =IF(AF21>'goal seek'!$E$23,MAX($AD$7,AF21*(1+AH22)),MAX($AD$7,AF21+AG21)) -> 27.935236 | AG22: -1.687091929 | AH22: -0.05695338778 | AI22: -0.05695338778 | AK22: 3.352330908 | AM22: 28.94183471 | AN22: -1.30430877 | AO22: -0.04312314299 | AQ22: 3.47312645 | AS22: 244.1629912 | AT22: 283.9343096 | AU22: 272.9976797 | AV22: 283.020459 | AW22: 263.416836 | AX22: 264.9388198 | AY22: =AY21+FI!B19 -> 244.1629912
A23: 10 | B23: =INDEX('UN-P'!$H$18:$CK$18,A23) -> 8405863.295 | C23: 2028 | E23: =IF(E22>'goal seek'!$E$24,MAX($I$7,E22*(1+$I$10)),MAX($I$7,RM!E22+RM!F22)) -> 22.12309893 | F23: -1.665187253 | G23: -0.07000030352 | I23: 2.631865182 | K23: =IF(K22>'goal seek'!$E$23,MAX($P$7,K22*(1+M23)),MAX($P$7,K22+L22)) -> 33.05452146 | L23: -0.8695789942 | M23: -0.0256330745 | N23: -0.0256330745 | P23: 3.932317276 | R23: =IF(R22>'goal seek'!$E$23,MAX($W$7,R22*(1+T23)),MAX($W$7,R22+S22)) -> 28.83182362 | S23: -1.565738955 | T23: -0.05150870078 | U23: -0.05150870078 | W23: 3.429965799 | Y23: =IF(Y22>'goal seek'!$E$23,MAX($AD$7,Y22*(1+AA23)),MAX($AD$7,Y22+Z22)) -> 32.2242666 | Z23: -1.170756898 | AA23: -0.03505782525 | AB23: -0.03505782525 | AD23: 3.833546356 | AF23: =IF(AF22>'goal seek'!$E$23,MAX($AD$7,AF22*(1+AH23)),MAX($AD$7,AF22+AG22)) -> 26.23658116 | AG23: -1.69865484 | AH23: -0.06080689061 | AI23: -0.06080689061 | AK23: 3.12122387 | AM23: 27.63752594 | AN23: -1.30430877 | AO23: -0.04506655446 | AQ23: 3.287886677 | AS23: 266.2860901 | AT23: 316.988831 | AU23: 301.8295033 | AV23: 315.2447256 | AW23: 289.6534171 | AX23: 292.5763457 | AY23: =AY22+FI!B20 -> 266.2860901
A24: 11 | B24: =INDEX('UN-P'!$H$18:$CK$18,A24) -> 8477660.693 | C24: 2029 | E24: =IF(E23>'goal seek'!$E$24,MAX($I$7,E23*(1+$I$10)),MAX($I$7,RM!E23+RM!F23)) -> 20.57447529 | F24: -1.54862364 | G24: -0.07000030352 | I24: 2.426904784 | K24: =IF(K23>'goal seek'!$E$23,MAX($P$7,K23*(1+M24)),MAX($P$7,K23+L23)) -> 32.01517483 | L24: -1.039346627 | M24: -0.03144340262 | N24: -0.03144340262 | P24: 3.776416159 | R24: =IF(R23>'goal seek'!$E$23,MAX($W$7,R23*(1+T24)),MAX($W$7,R23+S23)) -> 27.17911751 | S24: -1.652706108 | T24: -0.05732228837 | U24: -0.05732228837 | W24: 3.205969016 | Y24: =IF(Y23>'goal seek'!$E$23,MAX($AD$7,Y23*(1+AA24)),MAX($AD$7,Y23+Z23)) -> 30.83727181 | Z24: -1.386994791 | AA24: -0.04304193509 | AB24: -0.04304193509 | AD24: 3.637474172 | AF24: =IF(AF23>'goal seek'!$E$23,MAX($AD$7,AF23*(1+AH24)),MAX($AD$7,AF23+AG23)) -> 24.54665747 | AG24: -1.689923691 | AH24: -0.06441097187 | AI24: -0.06441097187 | AK24: 2.895451748 | AM24: 26.33321717 | AN24: -1.30430877 | AO24: -0.04719339832 | AQ24: 3.106189092 | AS24: 286.8605654 | AT24: 349.0040058 | AU24: 329.0086208 | AV24: 346.0819974 | AW24: 314.2000746 | AX24: 318.9095629 | AY24: =AY23+FI!B21 -> 286.8605654
A25: 12 | B25: =INDEX('UN-P'!$H$18:$CK$18,A25) -> 8548487.4 | C25: 2030 | E25: =IF(E24>'goal seek'!$E$24,MAX($I$7,E24*(1+$I$10)),MAX($I$7,RM!E24+RM!F24)) -> 19.13425578 | F25: -1.440219515 | G25: -0.07000030352 | I25: 2.238320639 | K25: =IF(K24>'goal seek'!$E$23,MAX($P$7,K24*(1+M25)),MAX($P$7,K24+L24)) -> 30.7803247 | L25: -1.234850129 | M25: -0.03857077574 | N25: -0.03857077574 | P25: 3.600674981 | R25: =IF(R24>'goal seek'!$E$23,MAX($W$7,R24*(1+T25)),MAX($W$7,R24+S24)) -> 25.46314012 | S25: -1.715977392 | T25: -0.06313587597 | U25: -0.06313587597 | W25: 2.978672006 | Y25: =IF(Y24>'goal seek'!$E$23,MAX($AD$7,Y24*(1+AA25)),MAX($AD$7,Y24+Z24)) -> 29.23480213 | Z25: -1.602469683 | AA25: -0.05196535196 | AB25: -0.05196535196 | AD25: 3.419880122 | AF25: =IF(AF24>'goal seek'!$E$23,MAX($AD$7,AF24*(1+AH25)),MAX($AD$7,AF24+AG24)) -> 22.88218341 | AG25: -1.664474064 | AH25: -0.06780858315 | AI25: -0.06780858315 | AK25: 2.676752311 | AM25: 25.0289084 | AN25: -1.30430877 | AO25: -0.04953093129 | AQ25: 2.927875684 | AS25: 305.9948212 | AT25: 379.7843305 | AU25: 354.4717609 | AV25: 375.3167996 | AW25: 337.082258 | AX25: 343.9384713 | AY25: =AY24+FI!B22 -> 305.9948212
A26: 13 | B26: =INDEX('UN-P'!$H$18:$CK$18,A26) -> 8618349.489 | C26: 2031 | E26: =IF(E25>'goal seek'!$E$24,MAX($I$7,E25*(1+$I$10)),MAX($I$7,RM!E25+RM!F25)) -> 17.79485207 | F26: -1.339403712 | G26: -0.07000030352 | I26: 2.064763339 | K26: =IF(K25>'goal seek'!$E$23,MAX($P$7,K25*(1+M26)),MAX($P$7,K25+L25)) -> 29.32399265 | L26: -1.45633205 | M26: -0.04731373254 | N26: -0.04731373254 | P26: 3.40250679 | R26: =IF(R25>'goal seek'!$E$23,MAX($W$7,R25*(1+T26)),MAX($W$7,R25+S25)) -> 23.70747026 | S26: -1.755669852 | T26: -0.06894946357 | U26: -0.06894946357 | W26: 2.750813284 | Y26: =IF(Y25>'goal seek'!$E$23,MAX($AD$7,Y25*(1+AA26)),MAX($AD$7,Y25+Z25)) -> 27.42727057 | Z26: -1.807531564 | AA26: -0.06182807587 | AB26: -0.06182807587 | AD26: 3.182427285 | AF26: =IF(AF25>'goal seek'!$E$23,MAX($AD$7,AF25*(1+AH26)),MAX($AD$7,AF25+AG25)) -> 21.25682523 | AG26: -1.625358178 | AH26: -0.07103160346 | AI26: -0.07103160346 | AK26: 2.46646127 | AM26: 23.72459963 | AN26: -1.30430877 | AO26: -0.05211209172 | AQ26: 2.75280083 | AS26: 323.7896733 | AT26: 409.1083232 | AU26: 378.1792312 | AV26: 402.7440701 | AW26: 358.3390832 | AX26: 367.6630709 | AY26: =AY25+FI!B23 -> 323.7896733
A27: 14 | B27: =INDEX('UN-P'!$H$18:$CK$18,A27) -> 8687227.85 | C27: 2032 | E27: =IF(E26>'goal seek'!$E$24,MAX($I$7,E26*(1+$I$10)),MAX($I$7,RM!E26+RM!F26)) -> 16.54920702 | F27: -1.245645046 | G27: -0.07000030352 | I27: 1.90500437 | K27: =IF(K26>'goal seek'!$E$23,MAX($P$7,K26*(1+M27)),MAX($P$7,K26+L26)) -> 27.62207262 | L27: -1.70192003 | M27: -0.05803848234 | N27: -0.05803848234 | P27: 3.179618758 | R27: =IF(R26>'goal seek'!$E$23,MAX($W$7,R26*(1+T27)),MAX($W$7,R26+S26)) -> 21.93502745 | S27: -1.772442812 | T27: -0.07476305117 | U27: -0.07476305117 | W27: 2.524974345 | Y27: =IF(Y26>'goal seek'!$E$23,MAX($AD$7,Y26*(1+AA27)),MAX($AD$7,Y26+Z26)) -> 25.43522498 | Z27: -1.992045591 | AA27: -0.07263010682 | AB27: -0.07263010682 | AD27: 2.927887401 | AF27: =IF(AF26>'goal seek'!$E$23,MAX($AD$7,AF26*(1+AH27)),MAX($AD$7,AF26+AG26)) -> 19.68159955 | AG27: -1.575225678 | AH27: -0.07410446581 | AI27: -0.07410446581 | AK27: 2.265578835 | AM27: 22.42029086 | AN27: -1.30430877 | AO27: -0.05497706139 | AQ27: 2.580833753 | AS27: 340.3388803 | AT27: 436.7303958 | AU27: 400.1142586 | AV27: 428.1792951 | AW27: 378.0206828 | AX27: 390.0833618 | AY27: =AY26+FI!B24 -> 340.3388803
A28: 15 | B28: =INDEX('UN-P'!$H$18:$CK$18,A28) -> 8755083.431 | C28: 2033 | E28: =IF(E27>'goal seek'!$E$24,MAX($I$7,E27*(1+$I$10)),MAX($I$7,RM!E27+RM!F27)) -> 15.39075751 | F28: -1.158449514 | G28: -0.07000030352 | I28: 1.757922426 | K28: =IF(K27>'goal seek'!$E$23,MAX($P$7,K27*(1+M28)),MAX($P$7,K27+L27)) -> 25.65554004 | L28: -1.966532586 | M28: -0.07119424427 | N28: -0.07119424427 | P28: 2.930359287 | R28: =IF(R27>'goal seek'!$E$23,MAX($W$7,R27*(1+T28)),MAX($W$7,R27+S27)) -> 20.16757667 | S28: -1.767450783 | T28: -0.08057663876 | U28: -0.08057663876 | W28: 2.303527639 | Y28: =IF(Y27>'goal seek'!$E$23,MAX($AD$7,Y27*(1+AA28)),MAX($AD$7,Y27+Z27)) -> 23.2892183 | Z28: -2.14600668 | AA28: -0.08437144481 | AB28: -0.08437144481 | AD28: 2.660079539 | AF28: =IF(AF27>'goal seek'!$E$23,MAX($AD$7,AF27*(1+AH28)),MAX($AD$7,AF27+AG27)) -> 18.16520343 | AG28: -1.516396116 | AH28: -0.07704638598 | AI28: -0.07704638598 | AK28: 2.074817856 | AM28: 21.11598209 | AN28: -1.30430877 | AO28: -0.05817537241 | AQ28: 2.411853896 | AS28: 355.7296378 | AT28: 462.3859359 | AU28: 420.2818353 | AV28: 451.4685134 | AW28: 396.1858862 | AX28: 411.1993439 | AY28: =AY27+FI!B25 -> 355.7296378
A29: 16 | B29: =INDEX('UN-P'!$H$18:$CK$18,A29) -> 8821862.661 | C29: 2034 | E29: =IF(E28>'goal seek'!$E$24,MAX($I$7,E28*(1+$I$10)),MAX($I$7,RM!E28+RM!F28)) -> 14.31339981 | F29: -1.077357697 | G29: -0.07000030352 | I29: 1.622491798 | K29: =IF(K28>'goal seek'!$E$23,MAX($P$7,K28*(1+M29)),MAX($P$7,K28+L28)) -> 23.41498879 | L29: -2.240551249 | M29: -0.08733206338 | N29: -0.08733206338 | P29: 2.654200104 | R29: =IF(R28>'goal seek'!$E$23,MAX($W$7,R28*(1+T29)),MAX($W$7,R28+S28)) -> 18.42529516 | S29: -1.742281514 | T29: -0.08639022636 | U29: -0.08639022636 | W29: 2.08859465 | Y29: =IF(Y28>'goal seek'!$E$23,MAX($AD$7,Y28*(1+AA29)),MAX($AD$7,Y28+Z28)) -> 21.02895099 | Z29: -2.260267306 | AA29: -0.09705208984 | AB29: -0.09705208984 | AD29: 2.383731395 | AF29: =IF(AF28>'goal seek'!$E$23,MAX($AD$7,AF28*(1+AH29)),MAX($AD$7,AF28+AG28)) -> 16.71429776 | AG29: -1.450905672 | AH29: -0.07987280062 | AI29: -0.07987280062 | AK29: 1.894644975 | AM29: 19.81167332 | AN29: -1.30430877 | AO29: -0.06176879506 | AQ29: 2.245747194 | AS29: 370.0430376 | AT29: 485.8009246 | AU29: 438.7071304 | AV29: 472.4974644 | AW29: 412.900184 | AX29: 431.0110172 | AY29: =AY28+FI!B26 -> 370.0430376
A30: 17 | B30: =INDEX('UN-P'!$H$18:$CK$18,A30) -> 8887524.213 | C30: 2035 | E30: =IF(E29>'goal seek'!$E$24,MAX($I$7,E29*(1+$I$10)),MAX($I$7,RM!E29+RM!F29)) -> 13.31145748 | F30: -1.001942331 | G30: -0.07000030352 | I30: 1.497768913 | K30: =IF(K29>'goal seek'!$E$23,MAX($P$7,K29*(1+M30)),MAX($P$7,K29+L29)) -> 20.9065904 | L30: -2.508398384 | M30: -0.1071278918 | N30: -0.1071278918 | P30: 2.352352568 | R30: =IF(R29>'goal seek'!$E$23,MAX($W$7,R29*(1+T30)),MAX($W$7,R29+S29)) -> 16.72641267 | S30: -1.698882487 | T30: -0.09220381396 | U30: -0.09220381396 | W30: 1.882010363 | Y30: =IF(Y29>'goal seek'!$E$23,MAX($AD$7,Y29*(1+AA30)),MAX($AD$7,Y29+Z29)) -> 18.70163404 | Z30: -2.327316945 | AA30: -0.1106720419 | AB30: -0.1106720419 | AD30: 2.104256888 | AF30: =IF(AF29>'goal seek'!$E$23,MAX($AD$7,AF29*(1+AH30)),MAX($AD$7,AF29+AG29)) -> 15.33375807 | AG30: -1.380539695 | AH30: -0.08259633246 | AI30: -0.08259633246 | AK30: 1.725312663 | AM30: 18.50736455 | AN30: -1.30430877 | AO30: -0.06583536631 | AQ30: 2.082398214 | AS30: 383.3544951 | AT30: 506.7075151 | AU30: 455.4335431 | AV30: 491.1990984 | AW30: 428.2339421 | AX30: 449.5183817 | AY30: =AY29+FI!B27 -> 383.3544951
A31: 18 | B31: =INDEX('UN-P'!$H$18:$CK$18,A31) -> 8952048.94 | C31: 2036 | E31: =IF(E30>'goal seek'!$E$24,MAX($I$7,E30*(1+$I$10)),MAX($I$7,RM!E30+RM!F30)) -> 12.37965141 | F31: -0.9318060637 | G31: -0.07000030352 | I31: 1.382884689 | K31: =IF(K30>'goal seek'!$E$23,MAX($P$7,K30*(1+M31)),MAX($P$7,K30+L30)) -> 18.15923651 | L31: -2.747353895 | M31: -0.1314109016 | N31: -0.1314109016 | P31: 2.028500585 | R31: =IF(R30>'goal seek'!$E$23,MAX($W$7,R30*(1+T31)),MAX($W$7,R30+S30)) -> 15.08693316 | S31: -1.639479507 | T31: -0.09801740155 | U31: -0.09801740155 | W31: 1.685305036 | Y31: =IF(Y30>'goal seek'!$E$23,MAX($AD$7,Y30*(1+AA31)),MAX($AD$7,Y30+Z30)) -> 16.35960408 | Z31: -2.342029962 | AA31: -0.125231301 | AB31: -0.125231301 | AD31: 1.827470358 | AF31: =IF(AF30>'goal seek'!$E$23,MAX($AD$7,AF30*(1+AH31)),MAX($AD$7,AF30+AG30)) -> 14.02690081 | AG31: -1.306857253 | AH31: -0.08522746007 | AI31: -0.08522746007 | AK31: 1.566892776 | AM31: 17.20305578 | AN31: -1.30430877 | AO31: -0.07047512177 | AQ31: 1.921689201 | AS31: 395.7341465 | AT31: 524.8667516 | AU31: 470.5204763 | AV31: 507.5587025 | AW31: 442.2608429 | AX31: 466.7214375 | AY31: =AY30+FI!B28 -> 395.7341465
A32: 19 | B32: =INDEX('UN-P'!$H$18:$CK$18,A32) -> 9015437.653 | C32: 2037 | E32: =IF(E31>'goal seek'!$E$24,MAX($I$7,E31*(1+$I$10)),MAX($I$7,RM!E31+RM!F31)) -> 11.51307206 | F32: -0.8665793565 | G32: -0.07000030352 | I32: 1.277039729 | K32: =IF(K31>'goal seek'!$E$23,MAX($P$7,K31*(1+M32)),MAX($P$7,K31+L31)) -> 15.23199997 | L32: -2.927236536 | M32: -0.1611982164 | N32: -0.1611982164 | P32: 1.689546371 | R32: =IF(R31>'goal seek'!$E$23,MAX($W$7,R31*(1+T32)),MAX($W$7,R31+S31)) -> 13.52044197 | S32: -1.566491193 | T32: -0.1038309892 | U32: -0.1038309892 | W32: 1.499698904 | Y32: =IF(Y31>'goal seek'!$E$23,MAX($AD$7,Y31*(1+AA32)),MAX($AD$7,Y31+Z31)) -> 14.05731917 | Z32: -2.302284909 | AA32: -0.1407298672 | AB32: -0.1407298672 | AD32: 1.559249779 | AF32: =IF(AF31>'goal seek'!$E$23,MAX($AD$7,AF31*(1+AH32)),MAX($AD$7,AF31+AG31)) -> 12.79568966 | AG32: -1.231211157 | AH32: -0.08777499555 | AI32: -0.08777499555 | AK32: 1.419308762 | AM32: 15.89874701 | AN32: -1.30430877 | AO32: -0.07581843523 | AQ32: 1.763502518 | AS32: 407.2472185 | AT32: 540.0987515 | AU32: 484.0409182 | AV32: 521.6160217 | AW32: 455.0565325 | AX32: 482.6201845 | AY32: =AY31+FI!B29 -> 407.2472185 | BA32: 6.098751535
A33: 20 | B33: =INDEX('UN-P'!$H$18:$CK$18,A33) -> 9077693.676 | C33: 2038 | E33: =IF(E32>'goal seek'!$E$24,MAX($I$7,E32*(1+$I$10)),MAX($I$7,RM!E32+RM!F32)) -> 10.70715352 | F33: -0.8059185385 | G33: -0.07000030352 | I33: 1.179501523 | K33: =IF(K32>'goal seek'!$E$23,MAX($P$7,K32*(1+M33)),MAX($P$7,K32+L32)) -> 12.22006217 | L33: -3.011937802 | M33: -0.1977375136 | N33: -0.1977375136 | P33: 1.346163751 | R33: =IF(R32>'goal seek'!$E$23,MAX($W$7,R32*(1+T33)),MAX($W$7,R32+S32)) -> 12.03799883 | S33: -1.482443137 | T33: -0.1096445767 | U33: -0.1096445767 | W33: 1.326107628 | Y33: =IF(Y32>'goal seek'!$E$23,MAX($AD$7,Y32*(1+AA33)),MAX($AD$7,Y32+Z32)) -> 11.84796208 | Z33: -2.20935709 | AA33: -0.1571677403 | AB33: -0.1571677403 | AD33: 1.305173154 | AF33: =IF(AF32>'goal seek'!$E$23,MAX($AD$7,AF32*(1+AH33)),MAX($AD$7,AF32+AG32)) -> 11.6409243 | AG33: -1.154765356 | AH33: -0.09024643351 | AI33: -0.09024643351 | AK33: 1.282365843 | AM33: 14.59443824 | AN33: -1.30430877 | AO33: -0.08203846313 | AQ33: 1.607725349 | AS33: 417.9543721 | AT33: 552.3188137 | AU33: 496.0789171 | AV33: 533.4639838 | AW33: 466.6974568 | AX33: 497.2146227 | AY33: =AY32+FI!B30 -> 417.9543721 | BA33: 18.31881371
A34: 21 | B34: =INDEX('UN-P'!$H$18:$CK$18,A34) -> 9138828.468 | C34: 2039 | E34: =IF(E33>'goal seek'!$E$24,MAX($I$7,E33*(1+$I$10)),MAX($I$7,RM!E33+RM!F33)) -> 9.957649523 | F34: -0.7495039962 | G34: -0.07000030352 | I34: 1.089598033 | K34: =IF(K33>'goal seek'!$E$23,MAX($P$7,K33*(1+M34)),MAX($P$7,K33+L33)) -> 9.255972614 | L34: -2.964089557 | M34: -0.2425592862 | N34: -0.2425592862 | P34: 1.012818289 | R34: =IF(R33>'goal seek'!$E$23,MAX($W$7,R33*(1+T34)),MAX($W$7,R33+S33)) -> 10.64811358 | S34: -1.389885247 | T34: -0.1154581643 | U34: -0.1154581643 | W34: 1.165150831 | Y34: =IF(Y33>'goal seek'!$E$23,MAX($AD$7,Y33*(1+AA34)),MAX($AD$7,Y33+Z33)) -> 9.779960482 | Z34: -2.068001601 | AA34: -0.1745449206 | AB34: -0.1745449206 | AD34: 1.070154727 | AF34: =IF(AF33>'goal seek'!$E$23,MAX($AD$7,AF33*(1+AH34)),MAX($AD$7,AF33+AG33)) -> 10.56241349 | AG34: -1.078510816 | AH34: -0.09264821142 | AI34: -0.09264821142 | AK34: 1.155773251 | AM34: 13.29012947 | AN34: -1.30430877 | AO34: -0.08937026208 | AQ34: 1.454248705 | AS34: 427.9120216 | AT34: 561.5747863 | AU34: 506.7270306 | AV34: 543.2439443 | AW34: 477.2598703 | AX34: 510.5047522 | AY34: =AY33+FI!B31 -> 427.9120216 | BA34: 27.57478632 | BC34: 9.243944265
A35: 22 | B35: =INDEX('UN-P'!$H$18:$CK$18,A35) -> 9198847.24 | C35: 2040 | E35: =IF(E34>'goal seek'!$E$24,MAX($I$7,E34*(1+$I$10)),MAX($I$7,RM!E34+RM!F34)) -> 9.260611034 | F35: -0.697038489 | G35: -0.07000030352 | I35: 1.006714297 | K35: =IF(K34>'goal seek'!$E$23,MAX($P$7,K34*(1+M35)),MAX($P$7,K34+L34)) -> 6.501941745 | L35: -2.754030869 | M35: -0.2975409483 | N35: -0.2975409483 | P35: 0.7068213631 | R35: =IF(R34>'goal seek'!$E$23,MAX($W$7,R34*(1+T35)),MAX($W$7,R34+S34)) -> 9.356798194 | S35: -1.291315389 | T35: -0.1212717519 | U35: -0.1212717519 | W35: 1.017170733 | Y35: =IF(Y34>'goal seek'!$E$23,MAX($AD$7,Y34*(1+AA35)),MAX($AD$7,Y34+Z34)) -> 7.893783535 | Z35: -1.886176947 | AA35: -0.1928614078 | AB35: -0.1928614078 | AD35: 0.8581274728 | AF35: =IF(AF34>'goal seek'!$E$23,MAX($AD$7,AF34*(1+AH35)),MAX($AD$7,AF34+AG34)) -> 9.559133058 | AG35: -1.003280428 | AH35: -0.09498590725 | AI35: -0.09498590725 | AK35: 1.039166409 | AM35: 11.9858207 | AN35: -1.30430877 | AO35: -0.09814116359 | AQ35: 1.302969859 | AS35: 437.1726326 | AT35: 568.0767281 | AU35: 516.0838288 | AV35: 551.1377278 | AW35: 486.8190034 | AX35: 522.4905729 | AY35: =AY34+FI!B32 -> 437.1726326 | BA35: 34.07672807 | BC35: 17.1377278
A36: 23 | B36: =INDEX('UN-P'!$H$18:$CK$18,A36) -> 9257745.535 | C36: 2041 | E36: =IF(E35>'goal seek'!$E$24,MAX($I$7,E35*(1+$I$10)),MAX($I$7,RM!E35+RM!F35)) -> 8.612365451 | F36: -0.6482455832 | G36: -0.07000030352 | I36: 0.9302875542 | K36: =IF(K35>'goal seek'!$E$23,MAX($P$7,K35*(1+M36)),MAX($P$7,K35+L35)) -> 4.128827459 | L36: -2.373114286 | M36: -0.3649854735 | N36: -0.3649854735 | P36: 0.4459862764 | R36: =IF(R35>'goal seek'!$E$23,MAX($W$7,R35*(1+T36)),MAX($W$7,R35+S35)) -> 8.167686319 | S36: -1.189111876 | T36: -0.1270853395 | U36: -0.1270853395 | W36: 0.8822543553 | Y36: =IF(Y35>'goal seek'!$E$23,MAX($AD$7,Y35*(1+AA36)),MAX($AD$7,Y35+Z35)) -> 6.219376257 | Z36: -1.674407278 | AA36: -0.2121172021 | AB36: -0.2121172021 | AD36: 0.6718024636 | AF36: =IF(AF35>'goal seek'!$E$23,MAX($AD$7,AF35*(1+AH36)),MAX($AD$7,AF35+AG35)) -> 8.629369792 | AG36: -0.9297632655 | AH36: -0.09726439206 | AI36: -0.09726439206 | AK36: 0.9321243233 | AM36: 10.68151193 | AN36: -1.30430877 | AO36: -0.1088209813 | AQ36: 1.153791912 | AS36: 445.7849981 | AT36: 572.2055555 | AU36: 524.2515152 | AV36: 557.3571041 | AW36: 495.4483732 | AX36: 533.1720848 | AY36: =AY35+FI!B33 -> 445.7849981 | BA36: 38.20555552 | BC36: 23.35710406
A37: 24 | B37: =INDEX('UN-P'!$H$18:$CK$18,A37) -> 9315508.05 | C37: 2042 | E37: =IF(E36>'goal seek'!$E$24,MAX($I$7,E36*(1+$I$10)),MAX($I$7,RM!E36+RM!F36)) -> 8.009497256 | F37: -0.6028681956 | G37: -0.07000030352 | I37: 0.8598025156 | K37: =IF(K36>'goal seek'!$E$23,MAX($P$7,K36*(1+M37)),MAX($P$7,K36+L36)) -> 2.280277676 | L37: -1.848549783 | M37: -0.4477178573 | N37: -0.4477178573 | P37: 0.2447829644 | R37: =IF(R36>'goal seek'!$E$23,MAX($W$7,R36*(1+T37)),MAX($W$7,R36+S36)) -> 7.08220957 | S37: -1.085476749 | T37: -0.1328989271 | U37: -0.1328989271 | W37: 0.7602601524 | Y37: =IF(Y36>'goal seek'!$E$23,MAX($AD$7,Y36*(1+AA37)),MAX($AD$7,Y36+Z36)) -> 4.774538633 | Z37: -1.444837625 | AA37: -0.2323123035 | AB37: -0.2323123035 | AD37: 0.5125365796 | AF37: =IF(AF36>'goal seek'!$E$23,MAX($AD$7,AF36*(1+AH37)),MAX($AD$7,AF36+AG36)) -> 7.770851487 | AG37: -0.8585183052 | AH37: -0.0994879494 | AI37: -0.0994879494 | AK37: 0.8341843993 | AM37: 9.377203156 | AN37: -1.30430877 | AO37: -0.1221090028 | AQ37: 1.006622839 | AS37: 453.7944953 | AT37: 574.4858332 | AU37: 531.3337247 | AV37: 562.1316427 | AW37: 503.2192247 | AX37: 542.549288 | AY37: =AY36+FI!B34 -> 453.7944953 | BA37: 40.4858332 | BC37: 28.13164269 | BE37: 8.549287987
A38: 25 | B38: =INDEX('UN-P'!$H$18:$CK$18,A38) -> 9372118.186 | C38: 2043 | E38: =IF(E37>'goal seek'!$E$24,MAX($I$7,E37*(1+$I$10)),MAX($I$7,RM!E37+RM!F37)) -> 7.448830017 | F38: -0.5606672389 | G38: -0.07000030352 | I38: 0.7947861805 | K38: =IF(K37>'goal seek'!$E$23,MAX($P$7,K37*(1+M38)),MAX($P$7,K37+L37)) -> 1.027941318 | L38: -1.252336357 | M38: -0.549203446 | N38: -0.549203446 | P38: 0.1096807891 | R38: =IF(R37>'goal seek'!$E$23,MAX($W$7,R37*(1+T38)),MAX($W$7,R37+S37)) -> 6.099818471 | S38: -0.9823910993 | T38: -0.1387125147 | U38: -0.1387125147 | W38: 0.6508473698 | Y38: =IF(Y37>'goal seek'!$E$23,MAX($AD$7,Y37*(1+AA38)),MAX($AD$7,Y37+Z37)) -> 3.564447516 | Z38: -1.210091117 | AA38: -0.2534467119 | AB38: -0.2534467119 | AD38: 0.3803246443 | AF38: =IF(AF37>'goal seek'!$E$23,MAX($AD$7,AF37*(1+AH38)),MAX($AD$7,AF37+AG37)) -> 6.98086385 | AG38: -0.7899876371 | AH38: -0.10166037 | AI38: -0.10166037 | AK38: 0.7448544407 | AM38: 8.072894386 | AN38: -1.30430877 | AO38: -0.1390935814 | AQ38: 0.8613735151 | AS38: 461.2433253 | AT38: 575.5137745 | AU38: 537.4335432 | AV38: 565.6960902 | AW38: 510.2000885 | AX38: 550.6221824 | AY38: =AY37+FI!B35 -> 461.2433253 | BA38: 41.51377452 | BB38: 3.433543197 | BC38: 31.69609021 | BE38: 16.62218237
A39: 26 | B39: =INDEX('UN-P'!$H$18:$CK$18,A39) -> 9427555.367 | C39: 2044 | E39: =IF(E38>'goal seek'!$E$24,MAX($I$7,E38*(1+$I$10)),MAX($I$7,RM!E38+RM!F38)) -> 6.927409655 | F39: -0.521420362 | G39: -0.07000030352 | I39: 0.7348044519 | K39: =IF(K38>'goal seek'!$E$23,MAX($P$7,K38*(1+M39)),MAX($P$7,K38+L38)) -> -0.2243950391 | L39: -1.252336357 | M39: -0.6736930864 | P39: -0.02380203885 | R39: =IF(R38>'goal seek'!$E$23,MAX($W$7,R38*(1+T39)),MAX($W$7,R38+S38)) -> 5.218235482 | S39: -0.8815829885 | T39: -0.1445261023 | U39: -0.1445261023 | W39: 0.5535088662 | Y39: =IF(Y38>'goal seek'!$E$23,MAX($AD$7,Y38*(1+AA39)),MAX($AD$7,Y38+Z38)) -> 2.582369413 | Z39: -0.9820781025 | AA39: -0.2755204273 | AB39: -0.2755204273 | AD39: 0.2739171835 | AF39: =IF(AF38>'goal seek'!$E$23,MAX($AD$7,AF38*(1+AH39)),MAX($AD$7,AF38+AG38)) -> 6.256354703 | AG39: -0.7245091467 | AH39: -0.1037850275 | AI39: -0.1037850275 | AK39: 0.6636242864 | AM39: 6.768585616 | AN39: -1.30430877 | AO39: -0.1615664355 | AQ39: 0.7179576626 | AS39: 468.170735 | AT39: 575.2893795 | AU39: 542.6517787 | AV39: 568.2784596 | AW39: 516.4564432 | AX39: 557.390768 | AY39: =AY38+FI!B36 -> 468.170735 | BA39: 41.28937948 | BB39: 8.651778679 | BC39: 34.27845962 | BE39: 23.39076799
A40: 27 | B40: =INDEX('UN-P'!$H$18:$CK$18,A40) -> 9481803.274 | C40: 2045 | E40: =IF(E39>'goal seek'!$E$24,MAX($I$7,E39*(1+$I$10)),MAX($I$7,RM!E39+RM!F39)) -> 6.442488876 | F40: -0.4849207784 | G40: -0.07000030352 | I40: 0.6794581885 | K40: =IF(K39>'goal seek'!$E$23,MAX($P$7,K39*(1+M40)),MAX($P$7,K39+L39)) -> -0.73 | L40: -0.5056049609 | M40: -0.8264011777 | P40: -0.07698957455 | R40: =IF(R39>'goal seek'!$E$23,MAX($W$7,R39*(1+T40)),MAX($W$7,R39+S39)) -> 4.433727578 | S40: -0.7845079044 | T40: -0.1503396899 | U40: -0.1503396899 | W40: 0.4676038354 | Y40: =IF(Y39>'goal seek'!$E$23,MAX($AD$7,Y39*(1+AA40)),MAX($AD$7,Y39+Z39)) -> 1.811445764 | Z40: -0.7709236494 | AA40: -0.2985334497 | AB40: -0.2985334497 | AD40: 0.1910444365 | AF40: =IF(AF39>'goal seek'!$E$23,MAX($AD$7,AF39*(1+AH40)),MAX($AD$7,AF39+AG39)) -> 5.594026086 | AG40: -0.6623286177 | AH40: -0.1058649404 | AI40: -0.1058649404 | AK40: 0.5899749155 | AM40: 5.464276845 | AN40: -1.30430877 | AO40: -0.192700343 | AQ40: 0.5762908898 | AS40: 474.6132239 | AT40: 574.5593795 | AU40: 547.0855063 | AV40: 570.0899054 | AW40: 522.0504693 | AX40: 562.8550448 | AY40: =AY39+FI!B37 -> 474.6132239 | BA40: 40.55937948 | BB40: 13.08550626 | BC40: 36.08990538 | BE40: 28.85504483
A41: 28 | B41: =INDEX('UN-P'!$H$18:$CK$18,A41) -> 9534854.828 | C41: 2046 | E41: =IF(E40>'goal seek'!$E$24,MAX($I$7,E40*(1+$I$10)),MAX($I$7,RM!E40+RM!F40)) -> 5.991512699 | F41: -0.4509761767 | G41: -0.07000030352 | I41: 0.6283800653 | K41: =IF(K40>'goal seek'!$E$23,MAX($P$7,K40*(1+M41)),MAX($P$7,K40+L40)) -> -0.73 | L41: 0 | M41: -1.013724084 | P41: -0.07656120761 | R41: =IF(R40>'goal seek'!$E$23,MAX($W$7,R40*(1+T41)),MAX($W$7,R40+S40)) -> 3.741386485 | S41: -0.6923410929 | T41: -0.1561532775 | U41: -0.1561532775 | W41: 0.3923905033 | Y41: =IF(Y40>'goal seek'!$E$23,MAX($AD$7,Y40*(1+AA41)),MAX($AD$7,Y40+Z40)) -> 1.227280265 | Z41: -0.5841654987 | AA41: -0.3224857792 | AB41: -0.3224857792 | AD41: 0.1287151495 | AF41: =IF(AF40>'goal seek'!$E$23,MAX($AD$7,AF40*(1+AH41)),MAX($AD$7,AF40+AG40)) -> 4.990414886 | AG41: -0.6036111999 | AH41: -0.1079028218 | AI41: -0.1079028218 | AK41: 0.5233865618 | AM41: 4.159968075 | AN41: -1.30430877 | AO41: -0.2386974172 | AQ41: 0.4362906568 | AS41: 480.6047366 | AT41: 573.8293795 | AU41: 550.8268927 | AV41: 571.3171856 | AW41: 527.0408842 | AX41: 567.0150129 | AY41: =AY40+FI!B38 -> 480.6047366 | BA41: 39.82937948 | BB41: 16.82689274 | BC41: 37.31718565 | BE41: 33.01501291
A42: 29 | B42: =INDEX('UN-P'!$H$18:$CK$18,A42) -> 9586707.986 | C42: 2047 | E42: =IF(E41>'goal seek'!$E$24,MAX($I$7,E41*(1+$I$10)),MAX($I$7,RM!E41+RM!F41)) -> 5.572104992 | F42: -0.4194077075 | G42: -0.07000030352 | I42: 0.5812323688 | K42: =IF(K41>'goal seek'!$E$23,MAX($P$7,K41*(1+M42)),MAX($P$7,K41+L41)) -> -0.73 | L42: 0 | M42: -1.243508051 | P42: -0.07614709878 | R42: =IF(R41>'goal seek'!$E$23,MAX($W$7,R41*(1+T42)),MAX($W$7,R41+S41)) -> 3.135405845 | S42: -0.6059806402 | T42: -0.1619668651 | U42: -0.1619668651 | W42: 0.3270576145 | Y42: =IF(Y41>'goal seek'!$E$23,MAX($AD$7,Y41*(1+AA42)),MAX($AD$7,Y41+Z41)) -> 0.6431147664 | Z42: -0.5841654987 | AA42: -0.3473774158 | AB42: -0.4759837792 | AD42: 0.067084005 | AF42: =IF(AF41>'goal seek'!$E$23,MAX($AD$7,AF41*(1+AH42)),MAX($AD$7,AF41+AG41)) -> 4.441962693 | AG42: -0.5484521923 | AH42: -0.1099011214 | AI42: -0.1099011214 | AK42: 0.463345989 | AM42: 2.855659305 | AN42: -1.30430877 | AO42: -0.3135381682 | AQ42: 0.2978769469 | AS42: 486.1768416 | AT42: 573.0993795 | AU42: 553.9622986 | AV42: 571.9603004 | AW42: 531.4828469 | AX42: 569.8706722 | AY42: =AY41+FI!B39 -> 486.1768416 | BA42: 39.09937948 | BB42: 19.96229859 | BC42: 37.96030041 | BE42: 35.87067221
A43: 30 | B43: =INDEX('UN-P'!$H$18:$CK$18,A43) -> 9637357.637 | C43: 2048 | E43: =IF(E42>'goal seek'!$E$24,MAX($I$7,E42*(1+$I$10)),MAX($I$7,RM!E42+RM!F42)) -> 5.182055951 | F43: -0.3900490407 | G43: -0.07000030352 | I43: 0.5377050584 | K43: =IF(K42>'goal seek'!$E$23,MAX($P$7,K42*(1+M43)),MAX($P$7,K42+L42)) -> -0.73 | L43: 0 | M43: -1.525377859 | P43: -0.07574690361 | R43: =IF(R42>'goal seek'!$E$23,MAX($W$7,R42*(1+T43)),MAX($W$7,R42+S42)) -> 2.609346033 | S43: -0.5260598121 | T43: -0.1677804527 | U43: -0.1677804527 | W43: 0.2707532636 | Y43: =IF(Y42>'goal seek'!$E$23,MAX($AD$7,Y42*(1+AA43)),MAX($AD$7,Y42+Z42)) -> 0.05894926777 | Z43: -0.5841654987 | AA43: -0.3732083593 | AB43: -0.9083378724 | AD43: 0.006116745896 | AF43: =IF(AF42>'goal seek'!$E$23,MAX($AD$7,AF42*(1+AH43)),MAX($AD$7,AF42+AG42)) -> 3.945075597 | AG43: -0.4968870962 | AH43: -0.1118620597 | AI43: -0.1118620597 | AK43: 0.4093524123 | AM43: 1.551350535 | AN43: -1.30430877 | AO43: -0.4567452314 | AQ43: 0.160972602 | AS43: 491.3588975 | AT43: 572.3693795 | AU43: 556.5716446 | AV43: 572.0192497 | AW43: 535.4279225 | AX43: 571.4220227 | AY43: =AY42+FI!B40 -> 491.3588975 | BA43: 38.36937948 | BB43: 22.57164462 | BC43: 38.01924968 | BD43: 1.427922467 | BE43: 37.42202275
A44: 31 | B44: =INDEX('UN-P'!$H$18:$CK$18,A44) -> 9686800.357 | C44: 2049 | E44: =IF(E43>'goal seek'!$E$24,MAX($I$7,E43*(1+$I$10)),MAX($I$7,RM!E43+RM!F43)) -> 4.819310462 | F44: -0.3627454894 | G44: -0.07000030352 | I44: 0.49751314 | K44: =IF(K43>'goal seek'!$E$23,MAX($P$7,K43*(1+M44)),MAX($P$7,K43+L43)) -> -0.73 | L44: 0 | M44: -1.871139966 | P44: -0.07536028132 | R44: =IF(R43>'goal seek'!$E$23,MAX($W$7,R43*(1+T44)),MAX($W$7,R43+S43)) -> 2.156379112 | S44: -0.4529669204 | T44: -0.1735940403 | U44: -0.1735940403 | W44: 0.22261005 | Y44: =IF(Y43>'goal seek'!$E$23,MAX($AD$7,Y43*(1+AA44)),MAX($AD$7,Y43+Z43)) -> -0.5252162309 | Z44: -0.5841654987 | AA44: -0.39997861 | AD44: -0.05421978481 | AF44: =IF(AF43>'goal seek'!$E$23,MAX($AD$7,AF43*(1+AH44)),MAX($AD$7,AF43+AG43)) -> 3.496174688 | AG44: -0.4489009096 | AH44: -0.1137876572 | AI44: -0.1137876572 | AK44: 0.3609215178 | AM44: 0.2470417652 | AN44: -1.30430877 | AO44: -0.8407569665 | AQ44: 0.02550292729 | AS44: 496.178208 | AT44: 571.6393795 | AU44: 558.7280237 | AV44: 571.4940335 | AW44: 538.9240972 | AX44: 571.6690645 | AY44: =AY43+FI!B41 -> 496.178208 | BA44: 37.63937948 | BB44: 24.72802373 | BC44: 37.49403345 | BD44: 4.924097155 | BE44: 37.66906451
A45: 32 | B45: =INDEX('UN-P'!$H$18:$CK$18,A45) -> 9735033.99 | C45: 2050 | E45: =IF(E44>'goal seek'!$E$24,MAX($I$7,E44*(1+$I$10)),MAX($I$7,RM!E44+RM!F44)) -> 4.481957267 | F45: -0.3373531951 | G45: -0.07000030352 | I45: 0.4603946192 | K45: =IF(K44>'goal seek'!$E$23,MAX($P$7,K44*(1+M45)),MAX($P$7,K44+L44)) -> -0.73 | L45: 0 | M45: -2.295277038 | P45: -0.07498689791 | R45: =IF(R44>'goal seek'!$E$23,MAX($W$7,R44*(1+T45)),MAX($W$7,R44+S44)) -> 1.769508251 | S45: -0.3868708614 | T45: -0.1794076279 | U45: -0.1794076279 | W45: 0.1817670336 | Y45: =IF(Y44>'goal seek'!$E$23,MAX($AD$7,Y44*(1+AA45)),MAX($AD$7,Y44+Z44)) -> -0.73 | Z45: -0.2047837691 | AA45: -0.4276881676 | AD45: -0.07498689791 | AF45: =IF(AF44>'goal seek'!$E$23,MAX($AD$7,AF44*(1+AH45)),MAX($AD$7,AF44+AG44)) -> 3.091738045 | AG45: -0.4044366427 | AH45: -0.1156797583 | AI45: -0.1156797583 | AK45: 0.317588829 | AM45: -0.73 | AN45: -0.9770417652 | AQ45: -0.07498689791 | AS45: 500.6601652 | AT45: 570.9093795 | AU45: 560.497532 | AV45: 570.7640335 | AW45: 542.0158352 | AX45: 570.9390645 | AY45: =AY44+FI!B42 -> 500.6601652 | BA45: 36.90937948 | BB45: 26.49753198 | BC45: 36.76403345 | BD45: 8.0158352 | BE45: 36.93906451
A46: 33 | B46: =INDEX('UN-P'!$H$18:$CK$18,A46) -> 9782061.551 | C46: 2051 | E46: =IF(E45>'goal seek'!$E$24,MAX($I$7,E45*(1+$I$10)),MAX($I$7,RM!E45+RM!F45)) -> 4.168218898 | F46: -0.313738369 | G46: -0.07000030352 | I46: =E46*1000000/B46 -> 0.4261084308 | K46: =IF(K45>'goal seek'!$E$23,MAX($P$7,K45*(1+M46)),MAX($P$7,K45+L45)) -> -0.73 | L46: 0 | M46: -2.815554569 | P46: =K46*1000000/$B46 -> -0.0746263961 | R46: =IF(R45>'goal seek'!$E$23,MAX($W$7,R45*(1+T46)),MAX($W$7,R45+S45)) -> 1.441757782 | S46: -0.3277504691 | T46: -0.1852212155 | U46: -0.1852212155 | W46: =R46*1000000/$B46 -> 0.1473879278 | Y46: =IF(Y45>'goal seek'!$E$23,MAX($AD$7,Y45*(1+AA46)),MAX($AD$7,Y45+Z45)) -> -0.73 | Z46: =Y46-Y45 -> 0 | AA46: -0.4563370323 | AD46: =Y46*1000000/$B46 -> -0.0746263961 | AF46: =IF(AF45>'goal seek'!$E$23,MAX($AD$7,AF45*(1+AH46)),MAX($AD$7,AF45+AG45)) -> 2.728334993 | AG46: -0.3634030523 | AH46: -0.1175400526 | AI46: -0.1175400526 | AK46: =AF46*1000000/$B46 -> 0.2789120656 | AM46: -0.73 | AN46: 0 | AQ46: =AM46*1000000/$B46 -> -0.0746263961 | AS46: 504.8283841 | AT46: 570.1793795 | AU46: 561.9392898 | AV46: 570.0340335 | AW46: 544.7441702 | AX46: 570.2090645 | AY46: =AY45+FI!B43 -> 504.8283841 | BA46: 36.17937948 | BB46: 27.93928976 | BC46: 36.03403345 | BD46: 10.74417019 | BE46: 36.20906451
A47: 34 | B47: =INDEX('UN-P'!$H$18:$CK$18,A47) -> 9827884.64 | C47: 2052 | E47: =IF(E46>'goal seek'!$E$24,MAX($I$7,E46*(1+$I$10)),MAX($I$7,RM!E46+RM!F46)) -> 3.87644231 | F47: =E47-E46 -> -0.291776588 | G47: -0.07000030352 | I47: 0.3944330293 | K47: =IF(K46>'goal seek'!$E$23,MAX($P$7,K46*(1+M47)),MAX($P$7,K46+L46)) -> -0.73 | L47: =K47-K46 -> 0 | M47: -3.453765014 | P47: -0.07427844615 | R47: =IF(R46>'goal seek'!$E$23,MAX($W$7,R46*(1+T47)),MAX($W$7,R46+S46)) -> 1.166331868 | S47: =R47-R46 -> -0.275425914 | T47: -0.1910348031 | U47: -0.1910348031 | W47: 0.1186757792 | Y47: =IF(Y46>'goal seek'!$E$23,MAX($AD$7,Y46*(1+AA47)),MAX($AD$7,Y46+Z46)) -> -0.73 | Z47: 0 | AA47: =$AD$10*(C47-2020)^2+$AD$9 -> -0.485925204 | AD47: -0.07427844615 | AF47: =IF(AF46>'goal seek'!$E$23,MAX($AD$7,AF46*(1+AH47)),MAX($AD$7,AF46+AG46)) -> 2.402653393 | AG47: -0.3256815994 | AH47: -0.1193700921 | AI47: -0.1193700921 | AK47: 0.2444730968 | AM47: =MAX($AQ$7,AM46+$AQ$10) -> -0.73 | AN47: 0 | AO47: =IF(AM47>0,AM47/AM46-1,"") ->  | AQ47: -0.07427844615 | AS47: =AS46+E47 -> 508.7048264 | AT47: =AT46+K47 -> 569.4493795 | AU47: =AU46+R47 -> 563.1056216 | AV47: =AV46+Y47 -> 569.3040335 | AW47: =AW46+AF47 -> 547.1468236 | AX47: =AX46+AM47 -> 569.4790645 | AY47: =AY46+FI!B44 -> 508.7048264 | BA47: 35.44937948 | BB47: 29.10562163 | BC47: 35.30403345 | BD47: 13.14682359 | BE47: 35.47906451
A48: 35 | B48: =INDEX('UN-P'!$H$18:$CK$18,A48) -> 9872499.765 | C48: 2053 | E48: =IF(E47>'goal seek'!$E$24,MAX($I$7,E47*(1+$I$10)),MAX($I$7,RM!E47+RM!F47)) -> 3.605090172 | F48: -0.2713521383 | G48: -0.07000030352 | I48: 0.3651648779 | K48: =IF(K47>'goal seek'!$E$23,MAX($P$7,K47*(1+M48)),MAX($P$7,K47+L47)) -> -0.73 | L48: 0 | M48: =MAX(-5,M47*(1+$P$10)) -> -4.236640591 | P48: -0.07394277208 | R48: =IF(R47>'goal seek'!$E$23,MAX($W$7,R47*(1+T48)),MAX($W$7,R47+S47)) -> 0.8909059538 | S48: -0.275425914 | T48: =T47+$W$10 -> -0.1968483907 | U48: -0.2361471221 | W48: 0.09024117245 | Y48: =IF(Y47>'goal seek'!$E$23,MAX($AD$7,Y47*(1+AA48)),MAX($AD$7,Y47+Z47)) -> -0.73 | Z48: 0 | AA48: -0.5164526828 | AD48: -0.07394277208 | AF48: =IF(AF47>'goal seek'!$E$23,MAX($AD$7,AF47*(1+AH48)),MAX($AD$7,AF47+AG47)) -> 2.111520742 | AG48: -0.2911326513 | AH48: =$AK$10*(C48-$AK$4-2020)^(1/2)+$AK$9 -> -0.1211713067 | AI48: -0.1211713067 | AK48: 0.2138790369 | AM48: -0.73 | AN48: 0 | AQ48: -0.07394277208 | AS48: 512.3099166 | AT48: 568.7193795 | AU48: 563.9965276 | AV48: 568.5740335 | AW48: 549.2583443 | AX48: 568.7490645 | AY48: =AY47+FI!B45 -> 512.3099166 | BA48: 34.71937948 | BB48: 29.99652758 | BC48: 34.57403345 | BD48: 15.25834433 | BE48: 34.74906451
A49: 36 | B49: =INDEX('UN-P'!$H$18:$CK$18,A49) -> 9915902.218 | C49: 2054 | E49: =IF(E48>'goal seek'!$E$24,MAX($I$7,E48*(1+$I$10)),MAX($I$7,RM!E48+RM!F48)) -> 3.352732765 | F49: -0.2523574062 | G49: -0.07000030352 | I49: 0.3381167635 | K49: =IF(K48>'goal seek'!$E$23,MAX($P$7,K48*(1+M49)),MAX($P$7,K48+L48)) -> -0.73 | L49: 0 | M49: -5 | P49: -0.07361912047 | R49: =IF(R48>'goal seek'!$E$23,MAX($W$7,R48*(1+T49)),MAX($W$7,R48+S48)) -> 0.6154800398 | S49: -0.275425914 | T49: -0.2026619783 | U49: -0.3091526247 | W49: 0.06206999891 | Y49: =IF(Y48>'goal seek'!$E$23,MAX($AD$7,Y48*(1+AA49)),MAX($AD$7,Y48+Z48)) -> -0.73 | Z49: 0 | AA49: -0.5479194686 | AD49: -0.07361912047 | AF49: =IF(AF48>'goal seek'!$E$23,MAX($AD$7,AF48*(1+AH49)),MAX($AD$7,AF48+AG48)) -> 1.851919788 | AG49: -0.2596009536 | AH49: -0.122945017 | AI49: -0.122945017 | AK49: 0.186762611 | AM49: -0.73 | AN49: 0 | AQ49: -0.07361912047 | AS49: 515.6626494 | AT49: 567.9893795 | AU49: 564.6120076 | AV49: 567.8440335 | AW49: 551.1102641 | AX49: 568.0190645 | AY49: =AY48+FI!B46 -> 515.6626494 | BA49: 33.98937948 | BB49: 30.61200762 | BC49: 33.84403345 | BD49: 17.11026412 | BE49: 34.01906451
A50: 37 | B50: =INDEX('UN-P'!$H$18:$CK$18,A50) -> 9958094.074 | C50: 2055 | E50: =IF(E49>'goal seek'!$E$24,MAX($I$7,E49*(1+$I$10)),MAX($I$7,RM!E49+RM!F49)) -> 3.118040454 | F50: -0.2346923112 | G50: -0.07000030352 | I50: 0.3131161878 | K50: =IF(K49>'goal seek'!$E$23,MAX($P$7,K49*(1+M50)),MAX($P$7,K49+L49)) -> -0.73 | L50: 0 | M50: -5 | P50: -0.07330720061 | R50: =IF(R49>'goal seek'!$E$23,MAX($W$7,R49*(1+T50)),MAX($W$7,R49+S49)) -> 0.3400541259 | S50: -0.275425914 | T50: -0.2084755659 | U50: -0.4474977191 | W50: 0.0341485151 | Y50: =IF(Y49>'goal seek'!$E$23,MAX($AD$7,Y49*(1+AA50)),MAX($AD$7,Y49+Z49)) -> -0.73 | Z50: 0 | AA50: -0.5803255615 | AD50: -0.07330720061 | AF50: =IF(AF49>'goal seek'!$E$23,MAX($AD$7,AF49*(1+AH50)),MAX($AD$7,AF49+AG49)) -> 1.620999381 | AG50: -0.2309204079 | AH50: -0.1246924458 | AI50: -0.1246924458 | AK50: 0.1627820915 | AM50: -0.73 | AN50: 0 | AQ50: -0.07330720061 | AS50: 518.7806898 | AT50: 567.2593795 | AU50: 564.9520618 | AV50: 567.1140335 | AW50: 552.7312635 | AX50: 567.2890645 | AY50: =AY49+FI!B47 -> 518.7806898 | BA50: 33.25937948 | BB50: 30.95206175 | BC50: 33.11403345 | BD50: 18.7312635 | BE50: 33.28906451
A51: 38 | B51: =INDEX('UN-P'!$H$18:$CK$18,A51) -> 9999078.316 | C51: 2056 | E51: =IF(E50>'goal seek'!$E$24,MAX($I$7,E50*(1+$I$10)),MAX($I$7,RM!E50+RM!F50)) -> 2.899776676 | F51: -0.2182637782 | G51: -0.07000030352 | I51: 0.2900043968 | K51: =IF(K50>'goal seek'!$E$23,MAX($P$7,K50*(1+M51)),MAX($P$7,K50+L50)) -> -0.73 | L51: 0 | M51: -5 | P51: -0.07300672891 | R51: =IF(R50>'goal seek'!$E$23,MAX($W$7,R50*(1+T51)),MAX($W$7,R50+S50)) -> 0.06462821191 | S51: -0.275425914 | T51: -0.2142891535 | U51: -0.809947279 | W51: 0.006463416914 | Y51: =IF(Y50>'goal seek'!$E$23,MAX($AD$7,Y50*(1+AA51)),MAX($AD$7,Y50+Z50)) -> -0.73 | Z51: 0 | AA51: -0.6136709614 | AD51: -0.07300672891 | AF51: =IF(AF50>'goal seek'!$E$23,MAX($AD$7,AF50*(1+AH51)),MAX($AD$7,AF50+AG50)) -> 1.416081185 | AG51: -0.2049181954 | AH51: -0.1264147278 | AI51: -0.1264147278 | AK51: 0.1416211715 | AM51: -0.73 | AN51: 0 | AQ51: -0.07300672891 | AS51: 521.6804665 | AT51: 566.5293795 | AU51: 565.01669 | AV51: 566.3840335 | AW51: 554.1473447 | AX51: 566.5590645 | AY51: =AY50+FI!B48 -> 521.6804665 | BA51: 32.52937948 | BB51: 31.01668996 | BC51: 32.38403345 | BD51: 20.14734468 | BE51: 32.55906451
A52: 39 | B52: =INDEX('UN-P'!$H$18:$CK$18,A52) -> 10038871.46 | C52: 2057 | E52: =IF(E51>'goal seek'!$E$24,MAX($I$7,E51*(1+$I$10)),MAX($I$7,RM!E51+RM!F51)) -> 2.696791428 | F52: -0.2029852475 | G52: -0.07000030352 | I52: 0.2686349198 | K52: =IF(K51>'goal seek'!$E$23,MAX($P$7,K51*(1+M52)),MAX($P$7,K51+L51)) -> -0.73 | L52: 0 | M52: -5 | P52: -0.07271733713 | R52: =IF(R51>'goal seek'!$E$23,MAX($W$7,R51*(1+T52)),MAX($W$7,R51+S51)) -> -0.210797702 | S52: -0.275425914 | T52: -0.2201027411 | W52: -0.02099814735 | Y52: =IF(Y51>'goal seek'!$E$23,MAX($AD$7,Y51*(1+AA52)),MAX($AD$7,Y51+Z51)) -> -0.73 | Z52: 0 | AA52: -0.6479556683 | AD52: -0.07271733713 | AF52: =IF(AF51>'goal seek'!$E$23,MAX($AD$7,AF51*(1+AH52)),MAX($AD$7,AF51+AG51)) -> 1.234662892 | AG52: -0.1814182932 | AH52: -0.1281129183 | AI52: -0.1281129183 | AK52: 0.1229882161 | AM52: -0.73 | AN52: 0 | AQ52: -0.07271733713 | AS52: 524.3772579 | AT52: 565.7993795 | AU52: 564.8058923 | AV52: 565.6540335 | AW52: 555.3820076 | AX52: 565.8290645 | AY52: =AY51+FI!B49 -> 524.3772579 | BA52: 31.79937948 | BB52: 30.80589226 | BC52: 31.65403345 | BD52: 21.38200757 | BE52: 31.82906451
A53: 40 | B53: =INDEX('UN-P'!$H$18:$CK$18,A53) -> 10077505.22 | C53: 2058 | E53: =IF(E52>'goal seek'!$E$24,MAX($I$7,E52*(1+$I$10)),MAX($I$7,RM!E52+RM!F52)) -> 2.50801521 | F53: -0.1887762185 | G53: -0.07000030352 | I53: 0.2488726283 | K53: =IF(K52>'goal seek'!$E$23,MAX($P$7,K52*(1+M53)),MAX($P$7,K52+L52)) -> -0.73 | L53: 0 | M53: -5 | P53: -0.07243856334 | R53: =IF(R52>'goal seek'!$E$23,MAX($W$7,R52*(1+T53)),MAX($W$7,R52+S52)) -> -0.486223616 | S53: -0.275425914 | T53: -0.2259163287 | W53: -0.04824841124 | Y53: =IF(Y52>'goal seek'!$E$23,MAX($AD$7,Y52*(1+AA53)),MAX($AD$7,Y52+Z52)) -> -0.73 | Z53: 0 | AA53: -0.6831796823 | AD53: -0.07243856334 | AF53: =IF(AF52>'goal seek'!$E$23,MAX($AD$7,AF52*(1+AH53)),MAX($AD$7,AF52+AG52)) -> 1.053244599 | AG53: -0.1814182932 | AH53: -0.129788001 | AI53: -0.1469375118 | AK53: 0.1045144186 | AM53: -0.73 | AN53: 0 | AQ53: -0.07243856334 | AS53: 526.8852732 | AT53: 565.0693795 | AU53: 564.3196686 | AV53: 564.9240335 | AW53: 556.4352522 | AX53: 565.0990645 | AY53: =AY52+FI!B50 -> 526.8852732 | BA53: 31.06937948 | BB53: 30.31966864 | BC53: 30.92403345 | BD53: 22.43525217 | BE53: 31.09906451
A54: 41 | B54: =INDEX('UN-P'!$H$18:$CK$18,A54) -> 10115019.65 | C54: 2059 | E54: =IF(E53>'goal seek'!$E$24,MAX($I$7,E53*(1+$I$10)),MAX($I$7,RM!E53+RM!F53)) -> 2.332453384 | F54: -0.1755618259 | G54: -0.07000030352 | I54: 0.2305930651 | K54: =IF(K53>'goal seek'!$E$23,MAX($P$7,K53*(1+M54)),MAX($P$7,K53+L53)) -> -0.73 | L54: 0 | M54: -5 | P54: -0.07216990429 | R54: =IF(R53>'goal seek'!$E$23,MAX($W$7,R53*(1+T54)),MAX($W$7,R53+S53)) -> -0.73 | S54: -0.243776384 | T54: -0.2317299163 | W54: -0.07216990429 | Y54: =IF(Y53>'goal seek'!$E$23,MAX($AD$7,Y53*(1+AA54)),MAX($AD$7,Y53+Z53)) -> -0.73 | Z54: 0 | AA54: -0.7193430033 | AD54: -0.07216990429 | AF54: =IF(AF53>'goal seek'!$E$23,MAX($AD$7,AF53*(1+AH54)),MAX($AD$7,AF53+AG53)) -> 0.8718263054 | AG54: -0.1814182932 | AH54: -0.1314408943 | AI54: -0.1722470673 | AK54: 0.08619126168 | AM54: -0.73 | AN54: 0 | AQ54: -0.07216990429 | AS54: 529.2177265 | AT54: 564.3393795 | AU54: 563.5896686 | AV54: 564.1940335 | AW54: 557.3070785 | AX54: 564.3690645 | AY54: =AY53+FI!B51 -> 529.2177265 | BA54: 30.33937948 | BB54: 29.58966864 | BC54: 30.19403345 | BD54: 23.30707848 | BE54: 30.36906451
A55: 42 | B55: =INDEX('UN-P'!$H$18:$CK$18,A55) -> 10151448.76 | C55: 2060 | E55: =IF(E54>'goal seek'!$E$24,MAX($I$7,E54*(1+$I$10)),MAX($I$7,RM!E54+RM!F54)) -> 2.169180939 | F55: -0.1632724448 | G55: -0.07000030352 | I55: 0.2136819079 | K55: =IF(K54>'goal seek'!$E$23,MAX($P$7,K54*(1+M55)),MAX($P$7,K54+L54)) -> -0.73 | L55: 0 | M55: -5 | P55: -0.07191091806 | R55: =IF(R54>'goal seek'!$E$23,MAX($W$7,R54*(1+T55)),MAX($W$7,R54+S54)) -> -0.73 | S55: 0 | T55: -0.2375435039 | W55: -0.07191091806 | Y55: =IF(Y54>'goal seek'!$E$23,MAX($AD$7,Y54*(1+AA55)),MAX($AD$7,Y54+Z54)) -> -0.73 | Z55: 0 | AA55: -0.7564456313 | AD55: -0.07191091806 | AF55: =IF(AF54>'goal seek'!$E$23,MAX($AD$7,AF54*(1+AH55)),MAX($AD$7,AF54+AG54)) -> 0.6904080122 | AG55: -0.1814182932 | AH55: -0.1330724571 | AI55: -0.2080899511 | AK55: 0.06801078629 | AM55: -0.73 | AN55: 0 | AQ55: -0.07191091806 | AS55: 531.3869075 | AT55: 563.6093795 | AU55: 562.8596686 | AV55: 563.4640335 | AW55: 557.9974865 | AX55: 563.6390645 | AY55: =AY54+FI!B52 -> 531.3869075 | BA55: 29.60937948 | BB55: 28.85966864 | BC55: 29.46403345 | BD55: 23.99748649 | BE55: 29.63906451
A56: 43 | B56: =INDEX('UN-P'!$H$18:$CK$18,A56) -> 10186811.59 | C56: 2061 | E56: =IF(E55>'goal seek'!$E$24,MAX($I$7,E55*(1+$I$10)),MAX($I$7,RM!E55+RM!F55)) -> 2.017337615 | F56: -0.1518433241 | G56: -0.07000030352 | I56: 0.1980342522 | K56: =IF(K55>'goal seek'!$E$23,MAX($P$7,K55*(1+M56)),MAX($P$7,K55+L55)) -> -0.73 | L56: 0 | M56: -5 | P56: -0.07166128417 | R56: =IF(R55>'goal seek'!$E$23,MAX($W$7,R55*(1+T56)),MAX($W$7,R55+S55)) -> -0.73 | S56: 0 | T56: -0.2433570915 | W56: -0.07166128417 | Y56: =IF(Y55>'goal seek'!$E$23,MAX($AD$7,Y55*(1+AA56)),MAX($AD$7,Y55+Z55)) -> -0.73 | Z56: 0 | AA56: -0.7944875664 | AD56: -0.07166128417 | AF56: =IF(AF55>'goal seek'!$E$23,MAX($AD$7,AF55*(1+AH56)),MAX($AD$7,AF55+AG55)) -> 0.508989719 | AG56: -0.1814182932 | AH56: -0.1346834948 | AI56: -0.2627696812 | AK56: 0.04996555738 | AM56: -0.73 | AN56: 0 | AQ56: -0.07166128417 | AS56: 533.4042451 | AT56: 562.8793795 | AU56: 562.1296686 | AV56: 562.7340335 | AW56: 558.5064762 | AX56: 562.9090645 | AY56: =AY55+FI!B53 -> 533.4042451 | BA56: 28.87937948 | BB56: 28.12966864 | BC56: 28.73403345 | BD56: 24.50647621 | BE56: 28.90906451
A57: 44 | B57: =INDEX('UN-P'!$H$18:$CK$18,A57) -> 10221118.37 | C57: 2062 | E57: =IF(E56>'goal seek'!$E$24,MAX($I$7,E56*(1+$I$10)),MAX($I$7,RM!E56+RM!F56)) -> 1.87612337 | F57: -0.1412142454 | G57: -0.07000030352 | I57: 0.183553629 | K57: =IF(K56>'goal seek'!$E$23,MAX($P$7,K56*(1+M57)),MAX($P$7,K56+L56)) -> -0.73 | L57: 0 | M57: -5 | P57: -0.07142075587 | R57: =IF(R56>'goal seek'!$E$23,MAX($W$7,R56*(1+T57)),MAX($W$7,R56+S56)) -> -0.73 | S57: 0 | T57: -0.2491706791 | W57: -0.07142075587 | Y57: =IF(Y56>'goal seek'!$E$23,MAX($AD$7,Y56*(1+AA57)),MAX($AD$7,Y56+Z56)) -> -0.73 | Z57: 0 | AA57: -0.8334688085 | AD57: -0.07142075587 | AF57: =IF(AF56>'goal seek'!$E$23,MAX($AD$7,AF56*(1+AH57)),MAX($AD$7,AF56+AG56)) -> 0.3275714257 | AG57: -0.1814182932 | AH57: -0.1362747628 | AI57: -0.3564282076 | AK57: 0.03204849155 | AM57: -0.73 | AN57: 0 | AQ57: -0.07142075587 | AS57: 535.2803685 | AT57: 562.1493795 | AU57: 561.3996686 | AV57: 562.0040335 | AW57: 558.8340476 | AX57: 562.1790645 | AY57: =AY56+FI!B54 -> 535.2803685 | AZ57: 1.28036846 | BA57: 28.14937948 | BB57: 27.39966864 | BC57: 28.00403345 | BD57: 24.83404763 | BE57: 28.17906451 | BF57: 1.28036846
A58: 45 | B58: =INDEX('UN-P'!$H$18:$CK$18,A58) -> 10254382.51 | C58: 2063 | E58: =IF(E57>'goal seek'!$E$24,MAX($I$7,E57*(1+$I$10)),MAX($I$7,RM!E57+RM!F57)) -> 1.744794164 | F58: -0.1313292053 | G58: -0.07000030352 | I58: 0.1701510709 | K58: =IF(K57>'goal seek'!$E$23,MAX($P$7,K57*(1+M58)),MAX($P$7,K57+L57)) -> -0.73 | L58: 0 | M58: -5 | P58: -0.07118907449 | R58: =IF(R57>'goal seek'!$E$23,MAX($W$7,R57*(1+T58)),MAX($W$7,R57+S57)) -> -0.73 | S58: 0 | T58: -0.2549842667 | W58: -0.07118907449 | Y58: =IF(Y57>'goal seek'!$E$23,MAX($AD$7,Y57*(1+AA58)),MAX($AD$7,Y57+Z57)) -> -0.73 | Z58: 0 | AA58: -0.8733893577 | AD58: -0.07118907449 | AF58: =IF(AF57>'goal seek'!$E$23,MAX($AD$7,AF57*(1+AH58)),MAX($AD$7,AF57+AG57)) -> 0.1461531325 | AG58: -0.1814182932 | AH58: -0.1378469717 | AI58: -0.5538282004 | AK58: 0.01425274827 | AM58: -0.73 | AN58: 0 | AQ58: -0.07118907449 | AS58: 537.0251626 | AT58: 561.4193795 | AU58: 560.6696686 | AV58: 561.2740335 | AW58: 558.9802008 | AX58: 561.4490645 | AY58: =AY57+FI!B55 -> 537.0251626 | AZ58: 3.025162625 | BA58: 27.41937948 | BB58: 26.66966864 | BC58: 27.27403345 | BD58: 24.98020077 | BE58: 27.44906451 | BF58: 3.025162625
A59: 46 | B59: =INDEX('UN-P'!$H$18:$CK$18,A59) -> 10286615.75 | C59: 2064 | E59: =IF(E58>'goal seek'!$E$24,MAX($I$7,E58*(1+$I$10)),MAX($I$7,RM!E58+RM!F58)) -> 1.622658043 | F59: -0.1221361211 | G59: -0.07000030352 | I59: 0.1577445958 | K59: =IF(K58>'goal seek'!$E$23,MAX($P$7,K58*(1+M59)),MAX($P$7,K58+L58)) -> -0.73 | L59: 0 | M59: -5 | P59: -0.07096600262 | R59: =IF(R58>'goal seek'!$E$23,MAX($W$7,R58*(1+T59)),MAX($W$7,R58+S58)) -> -0.73 | S59: 0 | T59: -0.2607978543 | W59: -0.07096600262 | Y59: =IF(Y58>'goal seek'!$E$23,MAX($AD$7,Y58*(1+AA59)),MAX($AD$7,Y58+Z58)) -> -0.73 | Z59: 0 | AA59: -0.9142492139 | AD59: -0.07096600262 | AF59: =IF(AF58>'goal seek'!$E$23,MAX($AD$7,AF58*(1+AH59)),MAX($AD$7,AF58+AG58)) -> -0.03526516072 | AG59: -0.1814182932 | AH59: -0.1394007903 | AK59: -0.003428256833 | AM59: -0.73 | AN59: 0 | AQ59: -0.07096600262 | AS59: 538.6478207 | AT59: 560.6893795 | AU59: 559.9396686 | AV59: 560.5440335 | AW59: 558.9449356 | AX59: 560.7190645 | AY59: =AY58+FI!B56 -> 538.6478207 | AZ59: 4.647820668 | BA59: 26.68937948 | BB59: 25.93966864 | BC59: 26.54403345 | BD59: 24.94493561 | BE59: 26.71906451 | BF59: 4.647820668
A60: 47 | B60: =INDEX('UN-P'!$H$18:$CK$18,A60) -> 10317830.21 | C60: 2065 | E60: =IF(E59>'goal seek'!$E$24,MAX($I$7,E59*(1+$I$10)),MAX($I$7,RM!E59+RM!F59)) -> 1.500521922 | F60: -0.1221361211 | G60: -0.07526916813 | I60: 0.1454299879 | K60: =IF(K59>'goal seek'!$E$23,MAX($P$7,K59*(1+M60)),MAX($P$7,K59+L59)) -> -0.73 | L60: 0 | M60: -5 | P60: -0.07075130967 | R60: =IF(R59>'goal seek'!$E$23,MAX($W$7,R59*(1+T60)),MAX($W$7,R59+S59)) -> -0.73 | S60: 0 | T60: -0.2666114419 | W60: -0.07075130967 | Y60: =IF(Y59>'goal seek'!$E$23,MAX($AD$7,Y59*(1+AA60)),MAX($AD$7,Y59+Z59)) -> -0.73 | Z60: 0 | AA60: -0.9560483771 | AD60: -0.07075130967 | AF60: =IF(AF59>'goal seek'!$E$23,MAX($AD$7,AF59*(1+AH60)),MAX($AD$7,AF59+AG59)) -> -0.2166834539 | AG60: -0.1814182932 | AH60: -0.1409368492 | AK60: -0.02100087418 | AM60: -0.73 | AN60: 0 | AQ60: -0.07075130967 | AS60: 540.1483426 | AT60: 559.9593795 | AU60: 559.2096686 | AV60: 559.8140335 | AW60: 558.7282522 | AX60: 559.9890645 | AY60: =AY59+FI!B57 -> 540.1483426 | AZ60: 6.14834259 | BA60: 25.95937948 | BB60: 25.20966864 | BC60: 25.81403345 | BD60: 24.72825215 | BE60: 25.98906451 | BF60: 6.14834259
A61: 48 | B61: =INDEX('UN-P'!$H$18:$CK$18,A61) -> 10348042.08 | C61: 2066 | E61: =IF(E60>'goal seek'!$E$24,MAX($I$7,E60*(1+$I$10)),MAX($I$7,RM!E60+RM!F60)) -> 1.378385801 | F61: -0.1221361211 | G61: -0.08139575922 | I61: 0.1332025701 | K61: =IF(K60>'goal seek'!$E$23,MAX($P$7,K60*(1+M61)),MAX($P$7,K60+L60)) -> -0.73 | L61: 0 | M61: -5 | P61: -0.07054474598 | R61: =IF(R60>'goal seek'!$E$23,MAX($W$7,R60*(1+T61)),MAX($W$7,R60+S60)) -> -0.73 | S61: 0 | T61: -0.2724250295 | W61: -0.07054474598 | Y61: =IF(Y60>'goal seek'!$E$23,MAX($AD$7,Y60*(1+AA61)),MAX($AD$7,Y60+Z60)) -> -0.73 | Z61: 0 | AA61: -0.9987868474 | AD61: -0.07054474598 | AF61: =IF(AF60>'goal seek'!$E$23,MAX($AD$7,AF60*(1+AH61)),MAX($AD$7,AF60+AG60)) -> -0.3981017472 | AG61: -0.1814182932 | AH61: -0.1424557438 | AK61: -0.03847121456 | AM61: -0.73 | AN61: 0 | AQ61: -0.07054474598 | AS61: 541.5267284 | AT61: 559.2293795 | AU61: 558.4796686 | AV61: 559.0840335 | AW61: 558.3301504 | AX61: 559.2590645 | AY61: =AY60+FI!B58 -> 541.5267284 | AZ61: 7.526728391 | BA61: 25.22937948 | BB61: 24.47966864 | BC61: 25.08403345 | BD61: 24.33015041 | BE61: 25.25906451 | BF61: 7.526728391
A62: 49 | B62: =INDEX('UN-P'!$H$18:$CK$18,A62) -> 10377267.71 | C62: 2067 | E62: =IF(E61>'goal seek'!$E$24,MAX($I$7,E61*(1+$I$10)),MAX($I$7,RM!E61+RM!F61)) -> 1.25624968 | F62: -0.1221361211 | G62: -0.08860808127 | I62: 0.1210578463 | K62: =IF(K61>'goal seek'!$E$23,MAX($P$7,K61*(1+M62)),MAX($P$7,K61+L61)) -> -0.73 | L62: 0 | M62: -5 | P62: -0.0703460699 | R62: =IF(R61>'goal seek'!$E$23,MAX($W$7,R61*(1+T62)),MAX($W$7,R61+S61)) -> -0.73 | S62: 0 | T62: -0.2782386171 | W62: -0.0703460699 | Y62: =IF(Y61>'goal seek'!$E$23,MAX($AD$7,Y61*(1+AA62)),MAX($AD$7,Y61+Z61)) -> -0.73 | Z62: 0 | AA62: -1.042464625 | AD62: -0.0703460699 | AF62: =IF(AF61>'goal seek'!$E$23,MAX($AD$7,AF61*(1+AH62)),MAX($AD$7,AF61+AG61)) -> -0.5795200404 | AG62: -0.1814182932 | AH62: -0.143958037 | AK62: -0.05584514695 | AM62: -0.73 | AN62: 0 | AQ62: -0.0703460699 | AS62: 542.7829781 | AT62: 558.4993795 | AU62: 557.7496686 | AV62: 558.3540335 | AW62: 557.7506304 | AX62: 558.5290645 | AY62: =AY61+FI!B59 -> 542.7829781 | AZ62: 8.782978072 | BA62: 24.49937948 | BB62: 23.74966864 | BC62: 24.35403345 | BD62: 23.75063036 | BE62: 24.52906451 | BF62: 8.782978072
A63: 50 | B63: =INDEX('UN-P'!$H$18:$CK$18,A63) -> 10405519.68 | C63: 2068 | E63: =IF(E62>'goal seek'!$E$24,MAX($I$7,E62*(1+$I$10)),MAX($I$7,RM!E62+RM!F62)) -> 1.134113559 | F63: -0.1221361211 | G63: -0.09722280771 | I63: 0.1089915347 | K63: =IF(K62>'goal seek'!$E$23,MAX($P$7,K62*(1+M63)),MAX($P$7,K62+L62)) -> -0.73 | L63: 0 | M63: -5 | P63: -0.07015507368 | R63: =IF(R62>'goal seek'!$E$23,MAX($W$7,R62*(1+T63)),MAX($W$7,R62+S62)) -> -0.73 | S63: 0 | T63: -0.2840522047 | W63: -0.07015507368 | Y63: =IF(Y62>'goal seek'!$E$23,MAX($AD$7,Y62*(1+AA63)),MAX($AD$7,Y62+Z62)) -> -0.73 | Z63: 0 | AA63: -1.087081709 | AD63: -0.07015507368 | AF63: =IF(AF62>'goal seek'!$E$23,MAX($AD$7,AF62*(1+AH63)),MAX($AD$7,AF62+AG62)) -> -0.73 | AG63: -0.1504799596 | AH63: -0.1454442615 | AK63: -0.07015507368 | AM63: -0.73 | AN63: 0 | AQ63: -0.07015507368 | AS63: 543.9170916 | AT63: 557.7693795 | AU63: 557.0196686 | AV63: 557.6240335 | AW63: 557.0206304 | AX63: 557.7990645 | AY63: =AY62+FI!B60 -> 543.9170916 | AZ63: 9.917091631 | BA63: 23.76937948 | BB63: 23.01966864 | BC63: 23.62403345 | BD63: 23.02063036 | BE63: 23.79906451 | BF63: 9.917091631
A64: 51 | B64: =INDEX('UN-P'!$H$18:$CK$18,A64) -> 10432810.41 | C64: 2069 | E64: =IF(E63>'goal seek'!$E$24,MAX($I$7,E63*(1+$I$10)),MAX($I$7,RM!E63+RM!F63)) -> 1.011977438 | F64: -0.1221361211 | G64: -0.1076930261 | I64: 0.09699950428 | K64: =IF(K63>'goal seek'!$E$23,MAX($P$7,K63*(1+M64)),MAX($P$7,K63+L63)) -> -0.73 | L64: 0 | M64: -5 | P64: -0.06997155813 | R64: =IF(R63>'goal seek'!$E$23,MAX($W$7,R63*(1+T64)),MAX($W$7,R63+S63)) -> -0.73 | S64: 0 | T64: -0.2898657923 | W64: -0.06997155813 | Y64: =IF(Y63>'goal seek'!$E$23,MAX($AD$7,Y63*(1+AA64)),MAX($AD$7,Y63+Z63)) -> -0.73 | Z64: 0 | AA64: -1.1326381 | AD64: -0.06997155813 | AF64: =IF(AF63>'goal seek'!$E$23,MAX($AD$7,AF63*(1+AH64)),MAX($AD$7,AF63+AG63)) -> -0.73 | AG64: 0 | AH64: -0.1469149221 | AK64: -0.06997155813 | AM64: -0.73 | AN64: 0 | AQ64: -0.06997155813 | AS64: 544.9290691 | AT64: 557.0393795 | AU64: 556.2896686 | AV64: 556.8940335 | AW64: 556.2906304 | AX64: 557.0690645 | AY64: =AY63+FI!B61 -> 544.9290691 | AZ64: 10.92906907 | BA64: 23.03937948 | BB64: 22.28966864 | BC64: 22.89403345 | BD64: 22.29063036 | BE64: 23.06906451 | BF64: 10.92906907
A65: 52 | B65: =INDEX('UN-P'!$H$18:$CK$18,A65) -> 10459152.51 | C65: 2070 | E65: =IF(E64>'goal seek'!$E$24,MAX($I$7,E64*(1+$I$10)),MAX($I$7,RM!E64+RM!F64)) -> 0.8898413168 | F65: -0.1221361211 | G65: -0.1206905574 | I65: 0.08507776478 | K65: =IF(K64>'goal seek'!$E$23,MAX($P$7,K64*(1+M65)),MAX($P$7,K64+L64)) -> -0.73 | L65: 0 | M65: -5 | P65: -0.06979532993 | R65: =IF(R64>'goal seek'!$E$23,MAX($W$7,R64*(1+T65)),MAX($W$7,R64+S64)) -> -0.73 | S65: 0 | T65: -0.2956793799 | W65: -0.06979532993 | Y65: =IF(Y64>'goal seek'!$E$23,MAX($AD$7,Y64*(1+AA65)),MAX($AD$7,Y64+Z64)) -> -0.73 | Z65: 0 | AA65: -1.179133799 | AD65: -0.06979532993 | AF65: =IF(AF64>'goal seek'!$E$23,MAX($AD$7,AF64*(1+AH65)),MAX($AD$7,AF64+AG64)) -> -0.73 | AG65: 0 | AH65: -0.1483704979 | AK65: -0.06979532993 | AM65: -0.73 | AN65: 0 | AQ65: -0.06979532993 | AS65: 545.8189104 | AT65: 556.3093795 | AU65: 555.5596686 | AV65: 556.1640335 | AW65: 555.5606304 | AX65: 556.3390645 | AY65: =AY64+FI!B62 -> 545.8189104 | AZ65: 11.81891039 | BA65: 22.30937948 | BB65: 21.55966864 | BC65: 22.16403345 | BD65: 21.56063036 | BE65: 22.33906451 | BF65: 11.81891039
A66: 53 | B66: =INDEX('UN-P'!$H$18:$CK$18,A66) -> 10484559.38 | C66: 2071 | E66: =IF(E65>'goal seek'!$E$24,MAX($I$7,E65*(1+$I$10)),MAX($I$7,RM!E65+RM!F65)) -> 0.7677051957 | F66: -0.1221361211 | G66: -0.1372560689 | I66: 0.07322245673 | K66: =IF(K65>'goal seek'!$E$23,MAX($P$7,K65*(1+M66)),MAX($P$7,K65+L65)) -> -0.73 | L66: 0 | M66: -5 | P66: -0.06962619729 | R66: =IF(R65>'goal seek'!$E$23,MAX($W$7,R65*(1+T66)),MAX($W$7,R65+S65)) -> -0.73 | S66: 0 | T66: -0.3014929675 | W66: -0.06962619729 | Y66: =IF(Y65>'goal seek'!$E$23,MAX($AD$7,Y65*(1+AA66)),MAX($AD$7,Y65+Z65)) -> -0.73 | Z66: 0 | AA66: -1.226568804 | AD66: -0.06962619729 | AF66: =IF(AF65>'goal seek'!$E$23,MAX($AD$7,AF65*(1+AH66)),MAX($AD$7,AF65+AG65)) -> -0.73 | AG66: 0 | AH66: -0.1498114436 | AK66: -0.06962619729 | AM66: -0.73 | AN66: 0 | AQ66: -0.06962619729 | AS66: 546.5866156 | AT66: 555.5793795 | AU66: 554.8296686 | AV66: 555.4340335 | AW66: 554.8306304 | AX66: 555.6090645 | AY66: =AY65+FI!B63 -> 546.5866156 | AZ66: 12.58661558 | BA66: 21.57937948 | BB66: 20.82966864 | BC66: 21.43403345 | BD66: 20.83063036 | BE66: 21.60906451 | BF66: 12.58661558
A67: 54 | B67: =INDEX('UN-P'!$H$18:$CK$18,A67) -> 10509046.18 | C67: 2072 | E67: =IF(E66>'goal seek'!$E$24,MAX($I$7,E66*(1+$I$10)),MAX($I$7,RM!E66+RM!F66)) -> 0.6455690746 | F67: -0.1221361211 | G67: -0.1590924769 | I67: 0.06142984467 | K67: =IF(K66>'goal seek'!$E$23,MAX($P$7,K66*(1+M67)),MAX($P$7,K66+L66)) -> -0.73 | L67: 0 | M67: -5 | P67: -0.06946396346 | R67: =IF(R66>'goal seek'!$E$23,MAX($W$7,R66*(1+T67)),MAX($W$7,R66+S66)) -> -0.73 | S67: 0 | T67: -0.3073065551 | W67: -0.06946396346 | Y67: =IF(Y66>'goal seek'!$E$23,MAX($AD$7,Y66*(1+AA67)),MAX($AD$7,Y66+Z66)) -> -0.73 | Z67: 0 | AA67: -1.274943117 | AD67: -0.06946396346 | AF67: =IF(AF66>'goal seek'!$E$23,MAX($AD$7,AF66*(1+AH67)),MAX($AD$7,AF66+AG66)) -> -0.73 | AG67: 0 | AH67: -0.1512381918 | AK67: -0.06946396346 | AM67: -0.73 | AN67: 0 | AQ67: -0.06946396346 | AS67: 547.2321847 | AT67: 554.8493795 | AU67: 554.0996686 | AV67: 554.7040335 | AW67: 554.1006304 | AX67: 554.8790645 | AY67: =AY66+FI!B64 -> 547.2321847 | AZ67: 13.23218466 | BA67: 20.84937948 | BB67: 20.09966864 | BC67: 20.70403345 | BD67: 20.10063036 | BE67: 20.87906451 | BF67: 13.23218466
A68: 55 | B68: =INDEX('UN-P'!$H$18:$CK$18,A68) -> 10532629.59 | C68: 2073 | E68: =IF(E67>'goal seek'!$E$24,MAX($I$7,E67*(1+$I$10)),MAX($I$7,RM!E67+RM!F67)) -> 0.5234329536 | F68: -0.1221361211 | G68: -0.1891914063 | I68: 0.04969632217 | K68: =IF(K67>'goal seek'!$E$23,MAX($P$7,K67*(1+M68)),MAX($P$7,K67+L67)) -> -0.73 | L68: 0 | M68: -5 | P68: -0.06930842803 | R68: =IF(R67>'goal seek'!$E$23,MAX($W$7,R67*(1+T68)),MAX($W$7,R67+S67)) -> -0.73 | S68: 0 | T68: -0.3131201426 | W68: -0.06930842803 | Y68: =IF(Y67>'goal seek'!$E$23,MAX($AD$7,Y67*(1+AA68)),MAX($AD$7,Y67+Z67)) -> -0.73 | Z68: 0 | AA68: -1.324256736 | AD68: -0.06930842803 | AF68: =IF(AF67>'goal seek'!$E$23,MAX($AD$7,AF67*(1+AH68)),MAX($AD$7,AF67+AG67)) -> -0.73 | AG68: 0 | AH68: -0.152651154 | AK68: -0.06930842803 | AM68: -0.73 | AN68: 0 | AQ68: -0.06930842803 | AS68: 547.7556176 | AT68: 554.1193795 | AU68: 553.3696686 | AV68: 553.9740335 | AW68: 553.3706304 | AX68: 554.1490645 | AY68: =AY67+FI!B65 -> 547.7556176 | AZ68: 13.75561761 | BA68: 20.11937948 | BB68: 19.36966864 | BC68: 19.97403345 | BD68: 19.37063036 | BE68: 20.14906451 | BF68: 13.75561761
A69: 56 | B69: =INDEX('UN-P'!$H$18:$CK$18,A69) -> 10555327.28 | C69: 2074 | E69: =IF(E68>'goal seek'!$E$24,MAX($I$7,E68*(1+$I$10)),MAX($I$7,RM!E68+RM!F68)) -> 0.4012968325 | F69: -0.1221361211 | G69: -0.2333367058 | I69: 0.03801841686 | K69: =IF(K68>'goal seek'!$E$23,MAX($P$7,K68*(1+M69)),MAX($P$7,K68+L68)) -> -0.73 | L69: 0 | M69: -5 | P69: -0.0691593904 | R69: =IF(R68>'goal seek'!$E$23,MAX($W$7,R68*(1+T69)),MAX($W$7,R68+S68)) -> -0.73 | S69: 0 | T69: -0.3189337302 | W69: -0.0691593904 | Y69: =IF(Y68>'goal seek'!$E$23,MAX($AD$7,Y68*(1+AA69)),MAX($AD$7,Y68+Z68)) -> -0.73 | Z69: 0 | AA69: -1.374509663 | AD69: -0.0691593904 | AF69: =IF(AF68>'goal seek'!$E$23,MAX($AD$7,AF68*(1+AH69)),MAX($AD$7,AF68+AG68)) -> -0.73 | AG69: 0 | AH69: -0.1540507223 | AK69: -0.0691593904 | AM69: -0.73 | AN69: 0 | AQ69: -0.0691593904 | AS69: 548.1569144 | AT69: 553.3893795 | AU69: 552.6396686 | AV69: 553.2440335 | AW69: 552.6406304 | AX69: 553.4190645 | AY69: =AY68+FI!B66 -> 548.1569144 | AZ69: 14.15691444 | BA69: 19.38937948 | BB69: 18.63966864 | BC69: 19.24403345 | BD69: 18.64063036 | BE69: 19.41906451 | BF69: 14.15691444
A70: 57 | B70: =INDEX('UN-P'!$H$18:$CK$18,A70) -> 10577155.89 | C70: 2075 | E70: =IF(E69>'goal seek'!$E$24,MAX($I$7,E69*(1+$I$10)),MAX($I$7,RM!E69+RM!F69)) -> 0.2791607114 | F70: -0.1221361211 | G70: -0.3043535638 | I70: 0.02639279541 | K70: =IF(K69>'goal seek'!$E$23,MAX($P$7,K69*(1+M70)),MAX($P$7,K69+L69)) -> -0.73 | L70: 0 | M70: -5 | P70: -0.06901666267 | R70: =IF(R69>'goal seek'!$E$23,MAX($W$7,R69*(1+T70)),MAX($W$7,R69+S69)) -> -0.73 | S70: 0 | T70: -0.3247473178 | W70: -0.06901666267 | Y70: =IF(Y69>'goal seek'!$E$23,MAX($AD$7,Y69*(1+AA70)),MAX($AD$7,Y69+Z69)) -> -0.73 | Z70: 0 | AA70: -1.425701897 | AD70: -0.06901666267 | AF70: =IF(AF69>'goal seek'!$E$23,MAX($AD$7,AF69*(1+AH70)),MAX($AD$7,AF69+AG69)) -> -0.73 | AG70: 0 | AH70: -0.1554372705 | AK70: -0.06901666267 | AM70: -0.73 | AN70: 0 | AQ70: -0.06901666267 | AS70: 548.4360752 | AT70: 552.6593795 | AU70: 551.9096686 | AV70: 552.5140335 | AW70: 551.9106304 | AX70: 552.6890645 | AY70: =AY69+FI!B67 -> 548.4360752 | AZ70: 14.43607515 | BA70: 18.65937948 | BB70: 17.90966864 | BC70: 18.51403345 | BD70: 17.91063036 | BE70: 18.68906451 | BF70: 14.43607515
A71: 58 | B71: =INDEX('UN-P'!$H$18:$CK$18,A71) -> 10598131.96 | C71: 2076 | E71: =IF(E70>'goal seek'!$E$24,MAX($I$7,E70*(1+$I$10)),MAX($I$7,RM!E70+RM!F70)) -> 0.1570245903 | F71: -0.1221361211 | G71: -0.4375118565 | I71: 0.01481625167 | K71: =IF(K70>'goal seek'!$E$23,MAX($P$7,K70*(1+M71)),MAX($P$7,K70+L70)) -> -0.73 | L71: 0 | M71: -5 | P71: -0.06888006329 | R71: =IF(R70>'goal seek'!$E$23,MAX($W$7,R70*(1+T71)),MAX($W$7,R70+S70)) -> -0.73 | S71: 0 | T71: -0.3305609054 | W71: -0.06888006329 | Y71: =IF(Y70>'goal seek'!$E$23,MAX($AD$7,Y70*(1+AA71)),MAX($AD$7,Y70+Z70)) -> -0.73 | Z71: 0 | AA71: -1.477833437 | AD71: -0.06888006329 | AF71: =IF(AF70>'goal seek'!$E$23,MAX($AD$7,AF70*(1+AH71)),MAX($AD$7,AF70+AG70)) -> -0.73 | AG71: 0 | AH71: -0.1568111554 | AK71: -0.06888006329 | AM71: -0.73 | AN71: 0 | AQ71: -0.06888006329 | AS71: 548.5930997 | AT71: 551.9293795 | AU71: 551.1796686 | AV71: 551.7840335 | AW71: 551.1806304 | AX71: 551.9590645 | AY71: =AY70+FI!B68 -> 548.5930997 | AZ71: 14.59309974 | BA71: 17.92937948 | BB71: 17.17966864 | BC71: 17.78403345 | BD71: 17.18063036 | BE71: 17.95906451 | BF71: 14.59309974
A72: 59 | B72: =INDEX('UN-P'!$H$18:$CK$18,A72) -> 10618268.33 | C72: 2077 | E72: =IF(E71>'goal seek'!$E$24,MAX($I$7,E71*(1+$I$10)),MAX($I$7,RM!E71+RM!F71)) -> 0.03488846921 | F72: -0.1221361211 | G72: -0.7778152508 | I72: 0.003285702349 | K72: =IF(K71>'goal seek'!$E$23,MAX($P$7,K71*(1+M72)),MAX($P$7,K71+L71)) -> -0.73 | L72: 0 | M72: -5 | P72: -0.06874943984 | R72: =IF(R71>'goal seek'!$E$23,MAX($W$7,R71*(1+T72)),MAX($W$7,R71+S71)) -> -0.73 | S72: 0 | T72: -0.336374493 | W72: -0.06874943984 | Y72: =IF(Y71>'goal seek'!$E$23,MAX($AD$7,Y71*(1+AA72)),MAX($AD$7,Y71+Z71)) -> -0.73 | Z72: 0 | AA72: -1.530904285 | AD72: -0.06874943984 | AF72: =IF(AF71>'goal seek'!$E$23,MAX($AD$7,AF71*(1+AH72)),MAX($AD$7,AF71+AG71)) -> -0.73 | AG72: 0 | AH72: -0.1581727177 | AK72: -0.06874943984 | AM72: -0.73 | AN72: 0 | AQ72: -0.06874943984 | AS72: 548.6279882 | AT72: 551.1993795 | AU72: 550.4496686 | AV72: 551.0540335 | AW72: 550.4506304 | AX72: 551.2290645 | AY72: =AY71+FI!B69 -> 548.6279882 | AZ72: 14.62798821 | BA72: 17.19937948 | BB72: 16.44966864 | BC72: 17.05403345 | BD72: 16.45063036 | BE72: 17.22906451 | BF72: 14.62798821
A73: 60 | B73: =INDEX('UN-P'!$H$18:$CK$18,A73) -> 10637573.9 | C73: 2078 | E73: =IF(E72>'goal seek'!$E$24,MAX($I$7,E72*(1+$I$10)),MAX($I$7,RM!E72+RM!F72)) -> -0.08724765188 | F73: -0.1221361211 | I73: -0.008201837437 | K73: =IF(K72>'goal seek'!$E$23,MAX($P$7,K72*(1+M73)),MAX($P$7,K72+L72)) -> -0.73 | L73: 0 | M73: -5 | P73: -0.06862467012 | R73: =IF(R72>'goal seek'!$E$23,MAX($W$7,R72*(1+T73)),MAX($W$7,R72+S72)) -> -0.73 | S73: 0 | T73: -0.3421880806 | W73: -0.06862467012 | Y73: =IF(Y72>'goal seek'!$E$23,MAX($AD$7,Y72*(1+AA73)),MAX($AD$7,Y72+Z72)) -> -0.73 | Z73: 0 | AA73: -1.58491444 | AD73: -0.06862467012 | AF73: =IF(AF72>'goal seek'!$E$23,MAX($AD$7,AF72*(1+AH73)),MAX($AD$7,AF72+AG72)) -> -0.73 | AG73: 0 | AH73: -0.1595222831 | AK73: -0.06862467012 | AM73: -0.73 | AN73: 0 | AQ73: -0.06862467012 | AS73: 548.5407406 | AT73: 550.4693795 | AU73: 549.7196686 | AV73: 550.3240335 | AW73: 549.7206304 | AX73: 550.4990645 | AY73: =AY72+FI!B70 -> 548.5407406 | AZ73: 14.54074056 | BA73: 16.46937948 | BB73: 15.71966864 | BC73: 16.32403345 | BD73: 15.72063036 | BE73: 16.49906451 | BF73: 14.54074056
A74: 61 | B74: =INDEX('UN-P'!$H$18:$CK$18,A74) -> 10656054.44 | C74: 2079 | E74: =IF(E73>'goal seek'!$E$24,MAX($I$7,E73*(1+$I$10)),MAX($I$7,RM!E73+RM!F73)) -> -0.209383773 | F74: -0.1221361211 | I74: -0.0196492777 | K74: =IF(K73>'goal seek'!$E$23,MAX($P$7,K73*(1+M74)),MAX($P$7,K73+L73)) -> -0.73 | L74: 0 | M74: -5 | P74: -0.068505656 | R74: =IF(R73>'goal seek'!$E$23,MAX($W$7,R73*(1+T74)),MAX($W$7,R73+S73)) -> -0.73 | S74: 0 | T74: -0.3480016682 | W74: -0.068505656 | Y74: =IF(Y73>'goal seek'!$E$23,MAX($AD$7,Y73*(1+AA74)),MAX($AD$7,Y73+Z73)) -> -0.73 | Z74: 0 | AA74: -1.639863902 | AD74: -0.068505656 | AF74: =IF(AF73>'goal seek'!$E$23,MAX($AD$7,AF73*(1+AH74)),MAX($AD$7,AF73+AG73)) -> -0.73 | AG74: 0 | AH74: -0.1608601633 | AK74: -0.068505656 | AM74: -0.73 | AN74: 0 | AQ74: -0.068505656 | AS74: 548.3313568 | AT74: 549.7393795 | AU74: 548.9896686 | AV74: 549.5940335 | AW74: 548.9906304 | AX74: 549.7690645 | AY74: =AY73+FI!B71 -> 548.3313568 | AZ74: 14.33135679 | BA74: 15.73937948 | BB74: 14.98966864 | BC74: 15.59403345 | BD74: 14.99063036 | BE74: 15.76906451 | BF74: 14.33135679
A75: 62 | B75: =INDEX('UN-P'!$H$18:$CK$18,A75) -> 10673719.47 | C75: 2080 | E75: =IF(E74>'goal seek'!$E$24,MAX($I$7,E74*(1+$I$10)),MAX($I$7,RM!E74+RM!F74)) -> -0.331519894 | F75: -0.1221361211 | I75: -0.03105945354 | K75: =IF(K74>'goal seek'!$E$23,MAX($P$7,K74*(1+M75)),MAX($P$7,K74+L74)) -> -0.73 | L75: 0 | M75: -5 | P75: -0.06839227898 | R75: =IF(R74>'goal seek'!$E$23,MAX($W$7,R74*(1+T75)),MAX($W$7,R74+S74)) -> -0.73 | S75: 0 | T75: -0.3538152558 | W75: -0.06839227898 | Y75: =IF(Y74>'goal seek'!$E$23,MAX($AD$7,Y74*(1+AA75)),MAX($AD$7,Y74+Z74)) -> -0.73 | Z75: 0 | AA75: -1.69575267 | AD75: -0.06839227898 | AF75: =IF(AF74>'goal seek'!$E$23,MAX($AD$7,AF74*(1+AH75)),MAX($AD$7,AF74+AG74)) -> -0.73 | AG75: 0 | AH75: -0.1621866567 | AK75: -0.06839227898 | AM75: -0.73 | AN75: 0 | AQ75: -0.06839227898 | AS75: 547.9998369 | AT75: 549.0093795 | AU75: 548.2596686 | AV75: 548.8640335 | AW75: 548.2606304 | AX75: 549.0390645 | AY75: =AY74+FI!B72 -> 547.9998369 | AZ75: 13.99983689 | BA75: 15.00937948 | BB75: 14.25966864 | BC75: 14.86403345 | BD75: 14.26063036 | BE75: 15.03906451 | BF75: 13.99983689
A76: 63 | B76: =INDEX('UN-P'!$H$18:$CK$18,A76) -> 10690576.97 | C76: 2081 | E76: =IF(E75>'goal seek'!$E$24,MAX($I$7,E75*(1+$I$10)),MAX($I$7,RM!E75+RM!F75)) -> -0.4536560151 | F76: -0.1221361211 | I76: -0.04243512923 | K76: =IF(K75>'goal seek'!$E$23,MAX($P$7,K75*(1+M76)),MAX($P$7,K75+L75)) -> -0.73 | L76: 0 | M76: -5 | P76: -0.06828443425 | R76: =IF(R75>'goal seek'!$E$23,MAX($W$7,R75*(1+T76)),MAX($W$7,R75+S75)) -> -0.73 | S76: 0 | T76: -0.3596288434 | W76: -0.06828443425 | Y76: =IF(Y75>'goal seek'!$E$23,MAX($AD$7,Y75*(1+AA76)),MAX($AD$7,Y75+Z75)) -> -0.73 | Z76: 0 | AA76: -1.752580746 | AD76: -0.06828443425 | AF76: =IF(AF75>'goal seek'!$E$23,MAX($AD$7,AF75*(1+AH76)),MAX($AD$7,AF75+AG75)) -> -0.73 | AG76: 0 | AH76: -0.1635020492 | AK76: -0.06828443425 | AM76: -0.73 | AN76: 0 | AQ76: -0.06828443425 | AS76: 547.5461809 | AT76: 548.2793795 | AU76: 547.5296686 | AV76: 548.1340335 | AW76: 547.5306304 | AX76: 548.3090645 | AY76: =AY75+FI!B73 -> 547.5461809 | AZ76: 13.54618088 | BA76: 14.27937948 | BB76: 13.52966864 | BC76: 14.13403345 | BD76: 13.53063036 | BE76: 14.30906451 | BF76: 13.54618088
A77: 64 | B77: =INDEX('UN-P'!$H$18:$CK$18,A77) -> 10706644.43 | C77: 2082 | E77: =IF(E76>'goal seek'!$E$24,MAX($I$7,E76*(1+$I$10)),MAX($I$7,RM!E76+RM!F76)) -> -0.5757921362 | F77: -0.1221361211 | I77: -0.05377895383 | K77: =IF(K76>'goal seek'!$E$23,MAX($P$7,K76*(1+M77)),MAX($P$7,K76+L76)) -> -0.73 | L77: 0 | M77: -5 | P77: -0.06818195982 | R77: =IF(R76>'goal seek'!$E$23,MAX($W$7,R76*(1+T77)),MAX($W$7,R76+S76)) -> -0.73 | S77: 0 | T77: -0.365442431 | W77: -0.06818195982 | Y77: =IF(Y76>'goal seek'!$E$23,MAX($AD$7,Y76*(1+AA77)),MAX($AD$7,Y76+Z76)) -> -0.73 | Z77: 0 | AA77: -1.810348129 | AD77: -0.06818195982 | AF77: =IF(AF76>'goal seek'!$E$23,MAX($AD$7,AF76*(1+AH77)),MAX($AD$7,AF76+AG76)) -> -0.73 | AG77: 0 | AH77: -0.1648066148 | AK77: -0.06818195982 | AM77: -0.73 | AN77: 0 | AQ77: -0.06818195982 | AS77: 546.9703887 | AT77: 547.5493795 | AU77: 546.7996686 | AV77: 547.4040335 | AW77: 546.8006304 | AX77: 547.5790645 | AY77: =AY76+FI!B74 -> 546.9703887 | AZ77: 12.97038874 | BA77: 13.54937948 | BB77: 12.79966864 | BC77: 13.40403345 | BD77: 12.80063036 | BE77: 13.57906451 | BF77: 12.97038874
A78: 65 | B78: =INDEX('UN-P'!$H$18:$CK$18,A78) -> 10721951.21 | C78: 2083 | E78: =IF(E77>'goal seek'!$E$24,MAX($I$7,E77*(1+$I$10)),MAX($I$7,RM!E77+RM!F77)) -> -0.6979282573 | F78: -0.1221361211 | I78: =E78*1000000/B78 -> -0.06509339986 | K78: =IF(K77>'goal seek'!$E$23,MAX($P$7,K77*(1+M78)),MAX($P$7,K77+L77)) -> -0.73 | L78: 0 | M78: -5 | P78: =K78*1000000/$B78 -> -0.06808462246 | R78: =IF(R77>'goal seek'!$E$23,MAX($W$7,R77*(1+T78)),MAX($W$7,R77+S77)) -> -0.73 | S78: 0 | T78: -0.3712560186 | W78: =R78*1000000/$B78 -> -0.06808462246 | Y78: =IF(Y77>'goal seek'!$E$23,MAX($AD$7,Y77*(1+AA78)),MAX($AD$7,Y77+Z77)) -> -0.73 | Z78: 0 | AA78: -1.869054819 | AD78: =Y78*1000000/$B78 -> -0.06808462246 | AF78: =IF(AF77>'goal seek'!$E$23,MAX($AD$7,AF77*(1+AH78)),MAX($AD$7,AF77+AG77)) -> -0.73 | AG78: 0 | AH78: -0.1661006166 | AK78: =AF78*1000000/$B78 -> -0.06808462246 | AM78: -0.73 | AN78: 0 | AQ78: =AM78*1000000/$B78 -> -0.06808462246 | AS78: 546.2724605 | AT78: 546.8193795 | AU78: 546.0696686 | AV78: 546.6740335 | AW78: 546.0706304 | AX78: 546.8490645 | AY78: =AY77+FI!B75 -> 546.2724605 | AZ78: 12.27246048 | BA78: 12.81937948 | BB78: 12.06966864 | BC78: 12.67403345 | BD78: 12.07063036 | BE78: 12.84906451 | BF78: 12.27246048
A79: 66 | B79: =INDEX('UN-P'!$H$18:$CK$18,A79) -> 10736532.84 | C79: 2084 | E79: =IF(E78>'goal seek'!$E$24,MAX($I$7,E78*(1+$I$10)),MAX($I$7,RM!E78+RM!F78)) -> -0.73 | F79: =E79-E78 -> -0.03207174269 | I79: -0.06799215452 | K79: =IF(K78>'goal seek'!$E$23,MAX($P$7,K78*(1+M79)),MAX($P$7,K78+L78)) -> -0.73 | L79: =K79-K78 -> 0 | M79: -5 | P79: -0.06799215452 | R79: =IF(R78>'goal seek'!$E$23,MAX($W$7,R78*(1+T79)),MAX($W$7,R78+S78)) -> -0.73 | S79: =R79-R78 -> 0 | T79: -0.3770696062 | W79: -0.06799215452 | Y79: =IF(Y78>'goal seek'!$E$23,MAX($AD$7,Y78*(1+AA79)),MAX($AD$7,Y78+Z78)) -> -0.73 | Z79: 0 | AA79: =$AD$10*(C79-2020)^2+$AD$9 -> -1.928700816 | AD79: -0.06799215452 | AF79: =IF(AF78>'goal seek'!$E$23,MAX($AD$7,AF78*(1+AH79)),MAX($AD$7,AF78+AG78)) -> -0.73 | AG79: =AF79-AF78 -> 0 | AH79: -0.1673843071 | AK79: -0.06799215452 | AM79: =MAX($AQ$7,AM78+$AQ$10) -> -0.73 | AN79: =AM79-AM78 -> 0 | AO79: =IF(AM79>0,AM79/AM78-1,"") ->  | AQ79: -0.06799215452 | AS79: =AS78+E79 -> 545.5424605 | AT79: =AT78+K79 -> 546.0893795 | AU79: =AU78+R79 -> 545.3396686 | AV79: =AV78+Y79 -> 545.9440335 | AW79: =AW78+AF79 -> 545.3406304 | AX79: =AX78+AM79 -> 546.1190645 | AY79: =AY78+FI!B76 -> 545.5424605 | AZ79: 11.54246048 | BA79: 12.08937948 | BB79: 11.33966864 | BC79: 11.94403345 | BD79: 11.34063036 | BE79: 12.11906451 | BF79: 11.54246048
A80: =A79+1 -> 67 | B80: =INDEX('UN-P'!$H$18:$CK$18,A80) -> 10750416.74 | C80: =C79+1 -> 2085 | E80: =IF(E79>'goal seek'!$E$24,MAX($I$7,E79*(1+$I$10)),MAX($I$7,RM!E79+RM!F79)) -> -0.73 | F80: 0 | G80: =IF(E80>0,E80/E79-1,"") ->  | I80: -0.06790434434 | K80: =IF(K79>'goal seek'!$E$23,MAX($P$7,K79*(1+M80)),MAX($P$7,K79+L79)) -> -0.73 | L80: 0 | M80: =MAX(-5,M79*(1+$P$10)) -> -5 | N80: =IF(K80>0,K80/K79-1,"") ->  | P80: -0.06790434434 | R80: =IF(R79>'goal seek'!$E$23,MAX($W$7,R79*(1+T80)),MAX($W$7,R79+S79)) -> -0.73 | S80: 0 | T80: =T79+$W$10 -> -0.3828831938 | U80: =IF(R80>0,R80/R79-1,"") ->  | W80: -0.06790434434 | Y80: =IF(Y79>'goal seek'!$E$23,MAX($AD$7,Y79*(1+AA80)),MAX($AD$7,Y79+Z79)) -> -0.73 | Z80: 0 | AA80: -1.98928612 | AB80: =IF(Y80>0,Y80/Y79-1,"") ->  | AD80: -0.06790434434 | AF80: =IF(AF79>'goal seek'!$E$23,MAX($AD$7,AF79*(1+AH80)),MAX($AD$7,AF79+AG79)) -> -0.73 | AG80: 0 | AH80: =$AK$10*(C80-$AK$4-2020)^(1/2)+$AK$9 -> -0.1686579291 | AI80: =IF(AF80>0,AF80/AF79-1,"") ->  | AK80: -0.06790434434 | AM80: -0.73 | AN80: 0 | AQ80: -0.06790434434 | AS80: 544.8124605 | AT80: 545.3593795 | AU80: 544.6096686 | AV80: 545.2140335 | AW80: 544.6106304 | AX80: 545.3890645 | AY80: =AY79+FI!B77 -> 544.8124605 | AZ80: =IF(AS80-$AS$6>0,AS80-$AS$6,"") -> 10.81246048 | BA80: =IF(AT80-$AS$6>0,AT80-$AS$6,"") -> 11.35937948 | BB80: =IF(AU80-$AS$6>0,AU80-$AS$6,"") -> 10.60966864 | BC80: =IF(AV80-$AS$6>0,AV80-$AS$6,"") -> 11.21403345 | BD80: =IF(AW80-$AS$6>0,AW80-$AS$6,"") -> 10.61063036 | BE80: =IF(AX80-$AS$6>0,AX80-$AS$6,"") -> 11.38906451 | BF80: =IF(AY80-$AS$6>0,AY80-$AS$6,"") -> 10.81246048
A81: 68 | B81: =INDEX('UN-P'!$H$18:$CK$18,A81) -> 10763615.21 | C81: 2086 | E81: =IF(E80>'goal seek'!$E$24,MAX($I$7,E80*(1+$I$10)),MAX($I$7,RM!E80+RM!F80)) -> -0.73 | F81: 0 | I81: -0.06782107921 | K81: =IF(K80>'goal seek'!$E$23,MAX($P$7,K80*(1+M81)),MAX($P$7,K80+L80)) -> -0.73 | L81: 0 | M81: -5 | P81: -0.06782107921 | R81: =IF(R80>'goal seek'!$E$23,MAX($W$7,R80*(1+T81)),MAX($W$7,R80+S80)) -> -0.73 | S81: 0 | T81: -0.3886967814 | W81: -0.06782107921 | Y81: =IF(Y80>'goal seek'!$E$23,MAX($AD$7,Y80*(1+AA81)),MAX($AD$7,Y80+Z80)) -> -0.73 | Z81: 0 | AA81: -2.050810731 | AD81: -0.06782107921 | AF81: =IF(AF80>'goal seek'!$E$23,MAX($AD$7,AF80*(1+AH81)),MAX($AD$7,AF80+AG80)) -> -0.73 | AG81: 0 | AH81: -0.1699217156 | AK81: -0.06782107921 | AM81: -0.73 | AN81: 0 | AQ81: -0.06782107921 | AS81: 544.0824605 | AT81: 544.6293795 | AU81: 543.8796686 | AV81: 544.4840335 | AW81: 543.8806304 | AX81: 544.6590645 | AY81: =AY80+FI!B78 -> 544.0824605 | AZ81: 10.08246048 | BA81: 10.62937948 | BB81: 9.879668644 | BC81: 10.48403345 | BD81: 9.880630365 | BE81: 10.65906451 | BF81: 10.08246048
A82: 69 | B82: =INDEX('UN-P'!$H$18:$CK$18,A82) -> 10776129.37 | C82: 2087 | E82: =IF(E81>'goal seek'!$E$24,MAX($I$7,E81*(1+$I$10)),MAX($I$7,RM!E81+RM!F81)) -> -0.73 | F82: 0 | I82: -0.0677423196 | K82: =IF(K81>'goal seek'!$E$23,MAX($P$7,K81*(1+M82)),MAX($P$7,K81+L81)) -> -0.73 | L82: 0 | M82: -5 | P82: -0.0677423196 | R82: =IF(R81>'goal seek'!$E$23,MAX($W$7,R81*(1+T82)),MAX($W$7,R81+S81)) -> -0.73 | S82: 0 | T82: -0.394510369 | W82: -0.0677423196 | Y82: =IF(Y81>'goal seek'!$E$23,MAX($AD$7,Y81*(1+AA82)),MAX($AD$7,Y81+Z81)) -> -0.73 | Z82: 0 | AA82: -2.113274649 | AD82: -0.0677423196 | AF82: =IF(AF81>'goal seek'!$E$23,MAX($AD$7,AF81*(1+AH82)),MAX($AD$7,AF81+AG81)) -> -0.73 | AG82: 0 | AH82: -0.1711758912 | AK82: -0.0677423196 | AM82: -0.73 | AN82: 0 | AQ82: -0.0677423196 | AS82: 543.3524605 | AT82: 543.8993795 | AU82: 543.1496686 | AV82: 543.7540335 | AW82: 543.1506304 | AX82: 543.9290645 | AY82: =AY81+FI!B79 -> 543.3524605 | AZ82: 9.352460485 | BA82: 9.899379478 | BB82: 9.149668644 | BC82: 9.754033452 | BD82: 9.150630365 | BE82: 9.929064514 | BF82: 9.352460485
A83: 70 | B83: =INDEX('UN-P'!$H$18:$CK$18,A83) -> 10787962.32 | C83: 2088 | E83: =IF(E82>'goal seek'!$E$24,MAX($I$7,E82*(1+$I$10)),MAX($I$7,RM!E82+RM!F82)) -> -0.73 | F83: 0 | I83: -0.06766801537 | K83: =IF(K82>'goal seek'!$E$23,MAX($P$7,K82*(1+M83)),MAX($P$7,K82+L82)) -> -0.73 | L83: 0 | M83: -5 | P83: -0.06766801537 | R83: =IF(R82>'goal seek'!$E$23,MAX($W$7,R82*(1+T83)),MAX($W$7,R82+S82)) -> -0.73 | S83: 0 | T83: -0.4003239566 | W83: -0.06766801537 | Y83: =IF(Y82>'goal seek'!$E$23,MAX($AD$7,Y82*(1+AA83)),MAX($AD$7,Y82+Z82)) -> -0.73 | Z83: 0 | AA83: -2.176677875 | AD83: -0.06766801537 | AF83: =IF(AF82>'goal seek'!$E$23,MAX($AD$7,AF82*(1+AH83)),MAX($AD$7,AF82+AG82)) -> -0.73 | AG83: 0 | AH83: -0.1724206718 | AK83: -0.06766801537 | AM83: -0.73 | AN83: 0 | AQ83: -0.06766801537 | AS83: 542.6224605 | AT83: 543.1693795 | AU83: 542.4196686 | AV83: 543.0240335 | AW83: 542.4206304 | AX83: 543.1990645 | AY83: =AY82+FI!B80 -> 542.6224605 | AZ83: 8.622460485 | BA83: 9.169379478 | BB83: 8.419668644 | BC83: 9.024033452 | BD83: 8.420630365 | BE83: 9.199064514 | BF83: 8.622460485
A84: 71 | B84: =INDEX('UN-P'!$H$18:$CK$18,A84) -> 10799112.05 | C84: 2089 | E84: =IF(E83>'goal seek'!$E$24,MAX($I$7,E83*(1+$I$10)),MAX($I$7,RM!E83+RM!F83)) -> -0.73 | F84: 0 | I84: -0.06759815036 | K84: =IF(K83>'goal seek'!$E$23,MAX($P$7,K83*(1+M84)),MAX($P$7,K83+L83)) -> -0.73 | L84: 0 | M84: -5 | P84: -0.06759815036 | R84: =IF(R83>'goal seek'!$E$23,MAX($W$7,R83*(1+T84)),MAX($W$7,R83+S83)) -> -0.73 | S84: 0 | T84: -0.4061375442 | W84: -0.06759815036 | Y84: =IF(Y83>'goal seek'!$E$23,MAX($AD$7,Y83*(1+AA84)),MAX($AD$7,Y83+Z83)) -> -0.73 | Z84: 0 | AA84: -2.241020407 | AD84: -0.06759815036 | AF84: =IF(AF83>'goal seek'!$E$23,MAX($AD$7,AF83*(1+AH84)),MAX($AD$7,AF83+AG83)) -> -0.73 | AG84: 0 | AH84: -0.1736562655 | AK84: -0.06759815036 | AM84: -0.73 | AN84: 0 | AQ84: -0.06759815036 | AS84: 541.8924605 | AT84: 542.4393795 | AU84: 541.6896686 | AV84: 542.2940335 | AW84: 541.6906304 | AX84: 542.4690645 | AY84: =AY83+FI!B81 -> 541.8924605 | AZ84: 7.892460485 | BA84: 8.439379478 | BB84: 7.689668644 | BC84: 8.294033452 | BD84: 7.690630365 | BE84: 8.469064514 | BF84: 7.892460485
A85: 72 | B85: =INDEX('UN-P'!$H$18:$CK$18,A85) -> 10809575.8 | C85: 2090 | E85: =IF(E84>'goal seek'!$E$24,MAX($I$7,E84*(1+$I$10)),MAX($I$7,RM!E84+RM!F84)) -> -0.73 | F85: 0 | I85: -0.06753271482 | K85: =IF(K84>'goal seek'!$E$23,MAX($P$7,K84*(1+M85)),MAX($P$7,K84+L84)) -> -0.73 | L85: 0 | M85: -5 | P85: -0.06753271482 | R85: =IF(R84>'goal seek'!$E$23,MAX($W$7,R84*(1+T85)),MAX($W$7,R84+S84)) -> -0.73 | S85: 0 | T85: -0.4119511318 | W85: -0.06753271482 | Y85: =IF(Y84>'goal seek'!$E$23,MAX($AD$7,Y84*(1+AA85)),MAX($AD$7,Y84+Z84)) -> -0.73 | Z85: 0 | AA85: -2.306302246 | AD85: -0.06753271482 | AF85: =IF(AF84>'goal seek'!$E$23,MAX($AD$7,AF84*(1+AH85)),MAX($AD$7,AF84+AG84)) -> -0.73 | AG85: 0 | AH85: -0.1748828727 | AK85: -0.06753271482 | AM85: -0.73 | AN85: 0 | AQ85: -0.06753271482 | AS85: 541.1624605 | AT85: 541.7093795 | AU85: 540.9596686 | AV85: 541.5640335 | AW85: 540.9606304 | AX85: 541.7390645 | AY85: =AY84+FI!B82 -> 541.1624605 | AZ85: 7.162460485 | BA85: 7.709379478 | BB85: 6.959668644 | BC85: 7.564033452 | BD85: 6.960630365 | BE85: 7.739064514 | BF85: 7.162460485
A86: 73 | B86: =INDEX('UN-P'!$H$18:$CK$18,A86) -> 10819350.48 | C86: 2091 | E86: =IF(E85>'goal seek'!$E$24,MAX($I$7,E85*(1+$I$10)),MAX($I$7,RM!E85+RM!F85)) -> -0.73 | F86: 0 | I86: -0.06747170277 | K86: =IF(K85>'goal seek'!$E$23,MAX($P$7,K85*(1+M86)),MAX($P$7,K85+L85)) -> -0.73 | L86: 0 | M86: -5 | P86: -0.06747170277 | R86: =IF(R85>'goal seek'!$E$23,MAX($W$7,R85*(1+T86)),MAX($W$7,R85+S85)) -> -0.73 | S86: =R86-R85 -> 0 | T86: -0.4177647194 | W86: -0.06747170277 | Y86: =IF(Y85>'goal seek'!$E$23,MAX($AD$7,Y85*(1+AA86)),MAX($AD$7,Y85+Z85)) -> -0.73 | Z86: 0 | AA86: -2.372523392 | AD86: -0.06747170277 | AF86: =IF(AF85>'goal seek'!$E$23,MAX($AD$7,AF85*(1+AH86)),MAX($AD$7,AF85+AG85)) -> -0.73 | AG86: 0 | AH86: -0.1761006867 | AK86: -0.06747170277 | AM86: -0.73 | AN86: 0 | AQ86: -0.06747170277 | AS86: 540.4324605 | AT86: 540.9793795 | AU86: 540.2296686 | AV86: 540.8340335 | AW86: 540.2306304 | AX86: 541.0090645 | AY86: =AY85+FI!B83 -> 540.4324605 | AZ86: 6.432460485 | BA86: 6.979379478 | BB86: 6.229668644 | BC86: 6.834033452 | BD86: 6.230630365 | BE86: 7.009064514 | BF86: 6.432460485
A87: 74 | B87: =INDEX('UN-P'!$H$18:$CK$18,A87) -> 10828432.71 | C87: 2092 | E87: =IF(E86>'goal seek'!$E$24,MAX($I$7,E86*(1+$I$10)),MAX($I$7,RM!E86+RM!F86)) -> -0.73 | F87: 0 | I87: -0.06741511165 | K87: =IF(K86>'goal seek'!$E$23,MAX($P$7,K86*(1+M87)),MAX($P$7,K86+L86)) -> -0.73 | L87: 0 | M87: -5 | P87: -0.06741511165 | R87: =IF(R86>'goal seek'!$E$23,MAX($W$7,R86*(1+T87)),MAX($W$7,R86+S86)) -> -0.73 | S87: 0 | T87: -0.423578307 | W87: -0.06741511165 | Y87: =IF(Y86>'goal seek'!$E$23,MAX($AD$7,Y86*(1+AA87)),MAX($AD$7,Y86+Z86)) -> -0.73 | Z87: 0 | AA87: -2.439683845 | AD87: -0.06741511165 | AF87: =IF(AF86>'goal seek'!$E$23,MAX($AD$7,AF86*(1+AH87)),MAX($AD$7,AF86+AG86)) -> -0.73 | AG87: 0 | AH87: -0.1773098938 | AK87: -0.06741511165 | AM87: -0.73 | AN87: 0 | AQ87: -0.06741511165 | AS87: 539.7024605 | AT87: 540.2493795 | AU87: 539.4996686 | AV87: 540.1040335 | AW87: 539.5006304 | AX87: 540.2790645 | AY87: =AY86+FI!B84 -> 539.7024605 | AZ87: 5.702460485 | BA87: 6.249379478 | BB87: 5.499668644 | BC87: 6.104033452 | BD87: 5.500630365 | BE87: 6.279064514 | BF87: 5.702460485
A88: 75 | B88: =INDEX('UN-P'!$H$18:$CK$18,A88) -> 10836817.18 | C88: 2093 | E88: =IF(E87>'goal seek'!$E$24,MAX($I$7,E87*(1+$I$10)),MAX($I$7,RM!E87+RM!F87)) -> -0.73 | F88: 0 | I88: -0.06736295244 | K88: =IF(K87>'goal seek'!$E$23,MAX($P$7,K87*(1+M88)),MAX($P$7,K87+L87)) -> -0.73 | L88: 0 | M88: -5 | P88: -0.06736295244 | R88: =IF(R87>'goal seek'!$E$23,MAX($W$7,R87*(1+T88)),MAX($W$7,R87+S87)) -> -0.73 | S88: 0 | T88: -0.4293918946 | W88: -0.06736295244 | Y88: =IF(Y87>'goal seek'!$E$23,MAX($AD$7,Y87*(1+AA88)),MAX($AD$7,Y87+Z87)) -> -0.73 | Z88: 0 | AA88: -2.507783606 | AD88: -0.06736295244 | AF88: =IF(AF87>'goal seek'!$E$23,MAX($AD$7,AF87*(1+AH88)),MAX($AD$7,AF87+AG87)) -> -0.73 | AG88: 0 | AH88: -0.1785106742 | AK88: -0.06736295244 | AM88: -0.73 | AN88: 0 | AQ88: -0.06736295244 | AS88: 538.9724605 | AT88: 539.5193795 | AU88: 538.7696686 | AV88: 539.3740335 | AW88: 538.7706304 | AX88: 539.5490645 | AY88: =AY87+FI!B85 -> 538.9724605 | AZ88: 4.972460485 | BA88: 5.519379478 | BB88: 4.769668644 | BC88: 5.374033452 | BD88: 4.770630365 | BE88: 5.549064514 | BF88: 4.972460485
A89: 76 | B89: =INDEX('UN-P'!$H$18:$CK$18,A89) -> 10844496.73 | C89: 2094 | E89: =IF(E88>'goal seek'!$E$24,MAX($I$7,E88*(1+$I$10)),MAX($I$7,RM!E88+RM!F88)) -> -0.73 | F89: 0 | I89: -0.06731524924 | K89: =IF(K88>'goal seek'!$E$23,MAX($P$7,K88*(1+M89)),MAX($P$7,K88+L88)) -> -0.73 | L89: 0 | M89: -5 | P89: -0.06731524924 | R89: =IF(R88>'goal seek'!$E$23,MAX($W$7,R88*(1+T89)),MAX($W$7,R88+S88)) -> -0.73 | S89: 0 | T89: -0.4352054822 | W89: -0.06731524924 | Y89: =IF(Y88>'goal seek'!$E$23,MAX($AD$7,Y88*(1+AA89)),MAX($AD$7,Y88+Z88)) -> -0.73 | Z89: 0 | AA89: -2.576822673 | AD89: -0.06731524924 | AF89: =IF(AF88>'goal seek'!$E$23,MAX($AD$7,AF88*(1+AH89)),MAX($AD$7,AF88+AG88)) -> -0.73 | AG89: 0 | AH89: -0.1797032014 | AK89: -0.06731524924 | AM89: -0.73 | AN89: 0 | AQ89: -0.06731524924 | AS89: 538.2424605 | AT89: 538.7893795 | AU89: 538.0396686 | AV89: 538.6440335 | AW89: 538.0406304 | AX89: 538.8190645 | AY89: =AY88+FI!B86 -> 538.2424605 | AZ89: 4.242460485 | BA89: 4.789379478 | BB89: 4.039668644 | BC89: 4.644033452 | BD89: 4.040630365 | BE89: 4.819064514 | BF89: 4.242460485
A90: 77 | B90: =INDEX('UN-P'!$H$18:$CK$18,A90) -> 10851460.6 | C90: 2095 | E90: =IF(E89>'goal seek'!$E$24,MAX($I$7,E89*(1+$I$10)),MAX($I$7,RM!E89+RM!F89)) -> -0.73 | F90: 0 | I90: -0.06727205001 | K90: =IF(K89>'goal seek'!$E$23,MAX($P$7,K89*(1+M90)),MAX($P$7,K89+L89)) -> -0.73 | L90: 0 | M90: -5 | P90: -0.06727205001 | R90: =IF(R89>'goal seek'!$E$23,MAX($W$7,R89*(1+T90)),MAX($W$7,R89+S89)) -> -0.73 | S90: 0 | T90: -0.4410190698 | W90: -0.06727205001 | Y90: =IF(Y89>'goal seek'!$E$23,MAX($AD$7,Y89*(1+AA90)),MAX($AD$7,Y89+Z89)) -> -0.73 | Z90: 0 | AA90: -2.646801048 | AD90: -0.06727205001 | AF90: =IF(AF89>'goal seek'!$E$23,MAX($AD$7,AF89*(1+AH90)),MAX($AD$7,AF89+AG89)) -> -0.73 | AG90: 0 | AH90: -0.1808876435 | AK90: -0.06727205001 | AM90: -0.73 | AN90: 0 | AQ90: -0.06727205001 | AS90: 537.5124605 | AT90: 538.0593795 | AU90: 537.3096686 | AV90: 537.9140335 | AW90: 537.3106304 | AX90: 538.0890645 | AY90: =AY89+FI!B87 -> 537.5124605 | AZ90: 3.512460485 | BA90: 4.059379478 | BB90: 3.309668644 | BC90: 3.914033452 | BD90: 3.310630365 | BE90: 4.089064514 | BF90: 3.512460485
A91: 78 | B91: =INDEX('UN-P'!$H$18:$CK$18,A91) -> 10857694.25 | C91: 2096 | E91: =IF(E90>'goal seek'!$E$24,MAX($I$7,E90*(1+$I$10)),MAX($I$7,RM!E90+RM!F90)) -> -0.73 | F91: 0 | I91: -0.06723342758 | K91: =IF(K90>'goal seek'!$E$23,MAX($P$7,K90*(1+M91)),MAX($P$7,K90+L90)) -> -0.73 | L91: 0 | M91: -5 | P91: -0.06723342758 | R91: =IF(R90>'goal seek'!$E$23,MAX($W$7,R90*(1+T91)),MAX($W$7,R90+S90)) -> -0.73 | S91: 0 | T91: -0.4468326574 | W91: -0.06723342758 | Y91: =IF(Y90>'goal seek'!$E$23,MAX($AD$7,Y90*(1+AA91)),MAX($AD$7,Y90+Z90)) -> -0.73 | Z91: 0 | AA91: -2.717718729 | AD91: -0.06723342758 | AF91: =IF(AF90>'goal seek'!$E$23,MAX($AD$7,AF90*(1+AH91)),MAX($AD$7,AF90+AG90)) -> -0.73 | AG91: 0 | AH91: -0.1820641626 | AK91: -0.06723342758 | AM91: -0.73 | AN91: 0 | AQ91: -0.06723342758 | AS91: 536.7824605 | AT91: 537.3293795 | AU91: 536.5796686 | AV91: 537.1840335 | AW91: 536.5806304 | AX91: 537.3590645 | AY91: =AY90+FI!B88 -> 536.7824605 | AZ91: 2.782460485 | BA91: 3.329379478 | BB91: 2.579668644 | BC91: 3.184033452 | BD91: 2.580630365 | BE91: 3.359064514 | BF91: 2.782460485
A92: 79 | B92: =INDEX('UN-P'!$H$18:$CK$18,A92) -> 10863179.44 | C92: 2097 | E92: =IF(E91>'goal seek'!$E$24,MAX($I$7,E91*(1+$I$10)),MAX($I$7,RM!E91+RM!F91)) -> -0.73 | F92: 0 | I92: -0.06719947914 | K92: =IF(K91>'goal seek'!$E$23,MAX($P$7,K91*(1+M92)),MAX($P$7,K91+L91)) -> -0.73 | L92: 0 | M92: -5 | P92: -0.06719947914 | R92: =IF(R91>'goal seek'!$E$23,MAX($W$7,R91*(1+T92)),MAX($W$7,R91+S91)) -> -0.73 | S92: 0 | T92: -0.452646245 | W92: -0.06719947914 | Y92: =IF(Y91>'goal seek'!$E$23,MAX($AD$7,Y91*(1+AA92)),MAX($AD$7,Y91+Z91)) -> -0.73 | Z92: 0 | AA92: -2.789575718 | AD92: -0.06719947914 | AF92: =IF(AF91>'goal seek'!$E$23,MAX($AD$7,AF91*(1+AH92)),MAX($AD$7,AF91+AG91)) -> -0.73 | AG92: 0 | AH92: -0.1832329156 | AK92: -0.06719947914 | AM92: -0.73 | AN92: 0 | AQ92: -0.06719947914 | AS92: 536.0524605 | AT92: 536.5993795 | AU92: 535.8496686 | AV92: 536.4540335 | AW92: 535.8506304 | AX92: 536.6290645 | AY92: =AY91+FI!B89 -> 536.0524605 | AZ92: 2.052460485 | BA92: 2.599379478 | BB92: 1.849668644 | BC92: 2.454033452 | BD92: 1.850630365 | BE92: 2.629064514 | BF92: 2.052460485
A93: 80 | B93: =INDEX('UN-P'!$H$18:$CK$18,A93) -> 10867893.85 | C93: 2098 | E93: =IF(E92>'goal seek'!$E$24,MAX($I$7,E92*(1+$I$10)),MAX($I$7,RM!E92+RM!F92)) -> -0.73 | F93: 0 | I93: -0.06717032851 | K93: =IF(K92>'goal seek'!$E$23,MAX($P$7,K92*(1+M93)),MAX($P$7,K92+L92)) -> -0.73 | L93: 0 | M93: -5 | P93: -0.06717032851 | R93: =IF(R92>'goal seek'!$E$23,MAX($W$7,R92*(1+T93)),MAX($W$7,R92+S92)) -> -0.73 | S93: 0 | T93: -0.4584598326 | W93: -0.06717032851 | Y93: =IF(Y92>'goal seek'!$E$23,MAX($AD$7,Y92*(1+AA93)),MAX($AD$7,Y92+Z92)) -> -0.73 | Z93: 0 | AA93: -2.862372013 | AD93: -0.06717032851 | AF93: =IF(AF92>'goal seek'!$E$23,MAX($AD$7,AF92*(1+AH93)),MAX($AD$7,AF92+AG92)) -> -0.73 | AG93: 0 | AH93: -0.1843940544 | AK93: -0.06717032851 | AM93: -0.73 | AN93: 0 | AQ93: -0.06717032851 | AS93: 535.3224605 | AT93: 535.8693795 | AU93: 535.1196686 | AV93: 535.7240335 | AW93: 535.1206304 | AX93: 535.8990645 | AY93: =AY92+FI!B90 -> 535.3224605 | AZ93: 1.322460485 | BA93: 1.869379478 | BB93: 1.119668644 | BC93: 1.724033452 | BD93: 1.120630365 | BE93: 1.899064514 | BF93: 1.322460485
A94: 81 | B94: =INDEX('UN-P'!$H$18:$CK$18,A94) -> 10871811.48 | C94: 2099 | E94: =IF(E93>'goal seek'!$E$24,MAX($I$7,E93*(1+$I$10)),MAX($I$7,RM!E93+RM!F93)) -> -0.73 | F94: 0 | I94: -0.06714612385 | K94: =IF(K93>'goal seek'!$E$23,MAX($P$7,K93*(1+M94)),MAX($P$7,K93+L93)) -> -0.73 | L94: 0 | M94: -5 | P94: -0.06714612385 | R94: =IF(R93>'goal seek'!$E$23,MAX($W$7,R93*(1+T94)),MAX($W$7,R93+S93)) -> -0.73 | S94: 0 | T94: -0.4642734202 | W94: -0.06714612385 | Y94: =IF(Y93>'goal seek'!$E$23,MAX($AD$7,Y93*(1+AA94)),MAX($AD$7,Y93+Z93)) -> -0.73 | Z94: 0 | AA94: -2.936107616 | AD94: -0.06714612385 | AF94: =IF(AF93>'goal seek'!$E$23,MAX($AD$7,AF93*(1+AH94)),MAX($AD$7,AF93+AG93)) -> -0.73 | AG94: 0 | AH94: -0.1855477258 | AK94: -0.06714612385 | AM94: -0.73 | AN94: 0 | AQ94: -0.06714612385 | AS94: 534.5924605 | AT94: 535.1393795 | AU94: 534.3896686 | AV94: 534.9940335 | AW94: 534.3906304 | AX94: 535.1690645 | AY94: =AY93+FI!B91 -> 534.5924605 | AZ94: 0.592460485 | BA94: 1.139379478 | BB94: 0.3896686444 | BC94: 0.9940334518 | BD94: 0.3906303648 | BE94: 1.169064514 | BF94: 0.592460485
A95: 82 | B95: =INDEX('UN-P'!$H$18:$CK$18,A95) -> 10874902.32 | C95: 2100 | E95: =IF(E94>'goal seek'!$E$24,MAX($I$7,E94*(1+$I$10)),MAX($I$7,RM!E94+RM!F94)) -> -0.73 | F95: 0 | I95: -0.06712703973 | K95: =IF(K94>'goal seek'!$E$23,MAX($P$7,K94*(1+M95)),MAX($P$7,K94+L94)) -> -0.73 | L95: 0 | M95: -5 | P95: -0.06712703973 | R95: =IF(R94>'goal seek'!$E$23,MAX($W$7,R94*(1+T95)),MAX($W$7,R94+S94)) -> -0.73 | S95: 0 | T95: -0.4700870078 | W95: -0.06712703973 | Y95: =IF(Y94>'goal seek'!$E$23,MAX($AD$7,Y94*(1+AA95)),MAX($AD$7,Y94+Z94)) -> -0.73 | Z95: 0 | AA95: -3.010782525 | AD95: -0.06712703973 | AF95: =IF(AF94>'goal seek'!$E$23,MAX($AD$7,AF94*(1+AH95)),MAX($AD$7,AF94+AG94)) -> -0.73 | AG95: 0 | AH95: -0.1866940721 | AK95: -0.06712703973 | AM95: -0.73 | AN95: 0 | AQ95: -0.06712703973 | AS95: 533.8624605 | AT95: 534.4093795 | AU95: 533.6596686 | AV95: 534.2640335 | AW95: 533.6606304 | AX95: 534.4390645 | AY95: =AY94+FI!B92 -> 533.8624605 | BA95: 0.4093794784 | BC95: 0.2640334518 | BE95: 0.4390645145
E96: =SUM(E15:E95) -> 533.8624605 | K96: =SUM(K15:K95) -> 534.4093795 | R96: =SUM(R15:R95) -> 533.6596686 | Y96: =SUM(Y15:Y95) -> 534.2640335 | AF96: =SUM(AF15:AF95) -> 533.6606304 | AM96: =SUM(AM15:AM95) -> 534.4390645 | AU96: maximum overshoot | AZ96: =MAX(AZ14:AZ95) -> 14.62798821 | BA96: 41.51377452 | BB96: 31.01668996 | BC96: 38.01924968 | BD96: 24.98020077 | BE96: =MAX(BE14:BE95) -> 37.66906451 | BF96: 14.62798821
E97: =SUMIF(E15:E95,"<0") -> -14.76552773 | F97: global negative emissions in Gt | K97: =SUMIF(K15:K95,"<0") -> -41.10439504 | L97: =F97 -> global negative emissions in Gt | R97: =SUMIF(R15:R95,"<0") -> -31.35702132 | S97: =L97 -> global negative emissions in Gt | Y97: =SUMIF(Y15:Y95,"<0") -> -37.75521623 | Z97: =S97 -> global negative emissions in Gt | AF97: =SUMIF(AF15:AF95,"<0") -> -25.3195704 | AG97: =Z97 -> global negative emissions in Gt | AM97: =SUMIF(AM15:AM95,"<0") -> -37.23 | AN97: =AG97 -> global negative emissions in Gt | AU97: average overshoot | AZ97: =IF(ISERROR(AVERAGE(AZ14:AZ95)),0,AVERAGE(AZ14:AZ95)) -> 8.952771037 | BA97: 21.79201364 | BB97: 17.38739287 | BC97: 20.56357015 | BD97: 14.37082221 | BE97: =IF(ISERROR(AVERAGE(BE14:BE95)),0,AVERAGE(BE14:BE95)) -> 19.90739569 | BF97: 8.952771037
AU98: overshoot in the scenaios left | AY98: in the scenario | AZ98: =E97 -> -14.76552773 | BA98: =K97 -> -41.10439504 | BB98: =R97 -> -31.35702132 | BC98: =Y97 -> -37.75521623 | BD98: =AF97 -> -25.3195704 | BE98: =AM97 -> -37.23 | BF98: =FI!B94 -> -14.76552773
AU99: difference | AZ99: =AZ98+AZ96 -> -0.137539515 | BA99: 0.4093794784 | BB99: -0.3403313556 | BC99: 0.2640334518 | BD99: -0.3393696352 | BE99: 0.4390645145 | BF99: -0.137539515
E102: =E86*1E+100 -> -7.3e+99 | V102: Detailed mathematical description of the RM Scenario Types: | X102: Zenodo
AS120: =#REF!+1 ->  | AT120: =AS120+1 ->  | AU120: =AT120+1 ->  | AV120: =AU120+1 ->  | AY120: =AV120+1 ->  | AZ120: =AY120+1 ->  | BA120: =AZ120+1 ->  | BB120: =BA120+1 ->  | BC120: =BB120+1 ->  | BF120: =BC120+1 ->  | BG120: =#REF!+1 -> 

Sheet graphs global
B2: Global paths | M2: goal seek | N2: RM
B4: budget 2020 - 2100 in total: | C4: ='base data'!B11 -> 550 | D4: Gt | F4: global scenarios: | J4: ='goal seek'!C5 -> RM-1 const | K4: ='goal seek'!D5 -> RM-2 exp | L4: ='goal seek'!E5 -> RM-3 lin | M4: ='goal seek'!F5 -> RM-4 quadr | N4: ='goal seek'!G5 -> RM-5 rad | O4: ='goal seek'!H5 -> RM-6 abs | P4: FI | AV4: A | AW4: B
B5: budget 2020 - 2100 to distribute: | C5: ='base data'!$L$36 -> 533.5 | D5: Gt | F5: =dashboard!B18 -> Is the budget 2020 - 2100 complied with? | J5: =dashboard!C18 -> yes | K5: =dashboard!D18 -> yes | L5: =dashboard!E18 -> yes | M5: =dashboard!F18 -> yes | N5: =dashboard!G18 -> yes | O5: =dashboard!H18 -> yes | P5: =IF(FI!F4=FI!F5,"yes","no") -> yes
AX6: Et | AY6: ='goal seek'!C6 -> RRt const | AZ6: ='goal seek'!D6 -> RRt exp | BA6: ='goal seek'!E6 -> RRt lin | BB6: ='goal seek'!F6 -> RRt quadr | BC6: ='goal seek'!G6 -> RRt rad | BD6: ='goal seek'!H6 -> RAt const | BG6: without period with absolute reduction | BO6: t / capita | BP6: =AY6 -> RRt const | BQ6: RRt exp | BR6: RRt lin | BS6: RRt quadr | BT6: RRt rad | BU6: RAt const | BY6: formula
AY7: =RM!E2 -> RM-1 const | AZ7: =RM!K2 -> RM-2 exp | BA7: =RM!R2 -> RM-3 lin | BB7: =RM!Y2 -> RM-4 quadr | BC7: ='goal seek'!G5 -> RM-5 rad | BD7: ='goal seek'!H5 -> RM-6 abs | BE7: =FI!A2 -> FI | BF7: RR_t | BG7: =AY6 -> RRt const | BH7: RRt exp | BI7: RRt lin | BJ7: RRt quadr | BK7: RRt rad | BL7: RAt const | BP7: RM-1 const | BQ7: RM-2 exp | BR7: RM-3 lin | BS7: RM-4 quadr | BT7: RM-5 rad | BU7: RM-6 abs | BV7: =BE7 -> FI | BX7: RR_t | BY7: =BG8 -> RM-1 const | BZ7: =BH8 -> RM-2 exp | CA7: RM-3 lin | CB7: RM-4 quadr | CC7: RM-5 rad | CD7: RM-6 abs
AW8: 2019 | AX8: 2019 | AY8: =RM!E14 -> 36.6906755 | AZ8: =RM!K14 -> 36.6906755 | BA8: =RM!R14 -> 36.6906755 | BB8: =RM!Y14 -> 36.6906755 | BC8: =RM!AF14 -> 36.6906755 | BD8: =RM!AM14 -> 36.6906755 | BE8: =FI!B11 -> 36.6906755 | BG8: ='graphs global'!AY7 -> RM-1 const | BH8: ='graphs global'!AZ7 -> RM-2 exp | BI8: ='graphs global'!BA7 -> RM-3 lin | BJ8: ='graphs global'!BB7 -> RM-4 quadr | BK8: ='graphs global'!BC7 -> RM-5 rad | BL8: ='graphs global'!BD7 -> RM-6 abs | BM8: ='graphs global'!BE7 -> FI | BO8: =AX8 -> 2019 | BP8: =RM!I14 -> 4.756702825 | BQ8: =RM!P14 -> 4.756702825 | BR8: =RM!W14 -> 4.756702825 | BS8: =RM!AD14 -> 4.756702825 | BT8: =RM!AK14 -> 4.756702825 | BU8: =RM!AQ14 -> 4.756702825 | BV8: =FI!F11 -> 4.756702825
AV9: 2020 | AX9: =AX8+1 -> 2020 | AY9: =RM!E15 -> 34.95549268 | AZ9: =RM!K15 -> 34.95549268 | BA9: =RM!R15 -> 34.95549268 | BB9: =RM!Y15 -> 34.95549268 | BC9: =RM!AF15 -> 34.95549268 | BD9: =RM!AM15 -> 34.95549268 | BE9: =FI!B12 -> 34.95549268 | BF9: 2020 | BG9: =IF(AY8>'goal seek'!$E$24,AY9/AY8-1,#N/A) -> -0.04729220164 | BH9: =IF(AZ8>'goal seek'!$E$23,AZ9/AZ8-1,#N/A) -> -0.04729220164 | BI9: =IF(BA8>'goal seek'!$E$23,BA9/BA8-1,#N/A) -> -0.04729220164 | BJ9: =IF(BB8>'goal seek'!$E$23,BB9/BB8-1,#N/A) -> -0.04729220164 | BK9: =IF(BC8>'goal seek'!$E$23,BC9/BC8-1,#N/A) -> -0.04729220164 | BL9: =IF(BD8>'goal seek'!$E$23,BD9/BD8-1,#N/A) -> -0.04729220164 | BM9: =IF(BE8>'goal seek'!$E$23,BE9/BE8-1,#N/A) -> -0.04729220164 | BO9: 2020 | BP9: =RM!I15 -> 4.484463788 | BQ9: =RM!P15 -> 4.484463788 | BR9: =RM!W15 -> 4.484463788 | BS9: =RM!AD15 -> 4.484463788 | BT9: =RM!AK15 -> 4.484463788 | BU9: =RM!AQ15 -> 4.484463788 | BV9: =FI!F12 -> 4.484463788 | BX9: =BF9 -> 2020 | BY9: =IF(BG9<>"#NV",RM!$I$10,#N/A) -> -0.07000030352 | BZ9: =IF(BH9<>"#NV",RM!M15,#N/A) -> -0.005 | CA9: =IF(BI9<>"#NV",RM!T15,#N/A) -> -0.005 | CB9: =IF(BJ9<>"#NV",RM!AA15,#N/A) -> -0.005 | CC9: =IF(BK9<>"#NV",RM!AH15,#N/A) -> -0.005
AX10: =AX9+1 -> 2021 | AY10: =RM!E16 -> 36.76768733 | AZ10: =RM!K16 -> 36.76768733 | BA10: =RM!R16 -> 36.76768733 | BB10: =RM!Y16 -> 36.76768733 | BC10: =RM!AF16 -> 36.76768733 | BD10: =RM!AM16 -> 36.76768733 | BE10: =FI!B13 -> 36.76768733 | BF10: =BF9+1 -> 2021 | BG10: =IF(AY9>'goal seek'!$E$24,AY10/AY9-1,#N/A) -> 0.05184291544 | BH10: =IF(AZ9>'goal seek'!$E$23,AZ10/AZ9-1,#N/A) -> 0.05184291544 | BI10: =IF(BA9>'goal seek'!$E$23,BA10/BA9-1,#N/A) -> 0.05184291544 | BJ10: =IF(BB9>'goal seek'!$E$23,BB10/BB9-1,#N/A) -> 0.05184291544 | BK10: =IF(BC9>'goal seek'!$E$23,BC10/BC9-1,#N/A) -> 0.05184291544 | BL10: =IF(BD9>'goal seek'!$E$23,BD10/BD9-1,#N/A) -> 0.05184291544 | BM10: =IF(BE9>'goal seek'!$E$23,BE10/BE9-1,#N/A) -> 0.05184291544 | BO10: 2021 | BP10: =RM!I16 -> 4.668932938 | BQ10: =RM!P16 -> 4.668932938 | BR10: =RM!W16 -> 4.668932938 | BS10: =RM!AD16 -> 4.668932938 | BT10: =RM!AK16 -> 4.668932938 | BU10: =RM!AQ16 -> 4.668932938 | BV10: =FI!F13 -> 4.668932938 | BX10: =BF10 -> 2021 | BY10: =IF(BG10<>"#NV",RM!$I$10,#N/A) -> -0.07000030352 | BZ10: =IF(BH10<>"#NV",RM!M16,#N/A) -> -0.006133365433 | CA10: =IF(BI10<>"#NV",RM!T16,#N/A) -> -0.0108135876 | CB10: =IF(BJ10<>"#NV",RM!AA16,#N/A) -> -0.00546965352 | CC10: =IF(BK10<>"#NV",RM!AH16,#N/A) -> -0.0194092772
AX11: 2022 | AY11: =RM!E17 -> 34.19393805 | AZ11: =RM!K17 -> 36.49106069 | BA11: =RM!R17 -> 36.15634455 | BB11: =RM!Y17 -> 36.5147766 | BC11: =RM!AF17 -> 35.66621565 | BD11: =RM!AM17 -> 35.46337856 | BE11: =FI!B14 -> 34.19393805 | BF11: 2022 | BG11: =IF(AY10>'goal seek'!$E$24,AY11/AY10-1,#N/A) -> -0.07000030352 | BH11: =IF(AZ10>'goal seek'!$E$23,AZ11/AZ10-1,#N/A) -> -0.007523634308 | BI11: =IF(BA10>'goal seek'!$E$23,BA11/BA10-1,#N/A) -> -0.01662717519 | BJ11: =IF(BB10>'goal seek'!$E$23,BB11/BB10-1,#N/A) -> -0.006878614078 | BK11: =IF(BC10>'goal seek'!$E$23,BC11/BC10-1,#N/A) -> -0.02995760021 | BL11: =IF(BD10>'goal seek'!$E$23,BD11/BD10-1,#N/A) -> -0.03547432175 | BM11: =IF(BE10>'goal seek'!$E$23,BE11/BE10-1,#N/A) -> -0.07000030352 | BO11: 2022 | BP11: =RM!I17 -> 4.298986921 | BQ11: =RM!P17 -> 4.587789578 | BR11: =RM!W17 -> 4.545707841 | BS11: =RM!AD17 -> 4.590771228 | BT11: =RM!AK17 -> 4.484087043 | BU11: =RM!AQ17 -> 4.458585622 | BV11: =FI!F14 -> 4.298986921 | BX11: 2022 | BY11: =IF(BG11<>"#NV",RM!$I$10,#N/A) -> -0.07000030352 | BZ11: =IF(BH11<>"#NV",RM!M17,#N/A) -> -0.007523634308 | CA11: =IF(BI11<>"#NV",RM!T17,#N/A) -> -0.01662717519 | CB11: =IF(BJ11<>"#NV",RM!AA17,#N/A) -> -0.006878614078 | CC11: =IF(BK11<>"#NV",RM!AH17,#N/A) -> -0.02995760021
AX12: 2023 | AY12: =RM!E18 -> 31.80035201 | AZ12: =RM!K18 -> 36.15428324 | BA12: =RM!R18 -> 35.3449686 | BB12: =RM!Y18 -> 36.17785907 | BC12: =RM!AF18 -> 34.3387147 | BD12: =RM!AM18 -> 34.15906979 | BE12: =FI!B15 -> 31.80035201 | BF12: 2023 | BG12: =IF(AY11>'goal seek'!$E$24,AY12/AY11-1,#N/A) -> -0.07000030352 | BH12: =IF(AZ11>'goal seek'!$E$23,AZ12/AZ11-1,#N/A) -> -0.00922903972 | BI12: =IF(BA11>'goal seek'!$E$23,BA12/BA11-1,#N/A) -> -0.02244076279 | BJ12: =IF(BB11>'goal seek'!$E$23,BB12/BB11-1,#N/A) -> -0.009226881676 | BK12: =IF(BC11>'goal seek'!$E$23,BC12/BC11-1,#N/A) -> -0.03722012332 | BL12: =IF(BD11>'goal seek'!$E$23,BD12/BD11-1,#N/A) -> -0.036779033 | BM12: =IF(BE11>'goal seek'!$E$23,BE12/BE11-1,#N/A) -> -0.07000030352 | BO12: 2023 | BP12: =RM!I18 -> 3.95930555 | BQ12: =RM!P18 -> 4.50139213 | BR12: =RM!W18 -> 4.400628341 | BS12: =RM!AD18 -> 4.504327441 | BT12: =RM!AK18 -> 4.275344614 | BU12: =RM!AQ18 -> 4.252977908 | BV12: =FI!F15 -> 3.95930555 | BX12: 2023 | BY12: =IF(BG12<>"#NV",RM!$I$10,#N/A) -> -0.07000030352 | BZ12: =IF(BH12<>"#NV",RM!M18,#N/A) -> -0.00922903972 | CA12: =IF(BI12<>"#NV",RM!T18,#N/A) -> -0.02244076279 | CB12: =IF(BJ12<>"#NV",RM!AA18,#N/A) -> -0.009226881676 | CC12: =IF(BK12<>"#NV",RM!AH18,#N/A) -> -0.03722012332
AX13: 2024 | AY13: =RM!E19 -> 29.57431772 | AZ13: =RM!K19 -> 35.74498007 | BA13: =RM!R19 -> 34.34631947 | BB13: =RM!Y19 -> 35.72511284 | BC13: =RM!AF19 -> 32.85791381 | BD13: =RM!AM19 -> 32.85476102 | BE13: =FI!B16 -> 29.57431772 | BF13: 2024 | BG13: =IF(AY12>'goal seek'!$E$24,AY13/AY12-1,#N/A) -> -0.07000030352 | BH13: =IF(AZ12>'goal seek'!$E$23,AZ13/AZ12-1,#N/A) -> -0.01132101464 | BI13: =IF(BA12>'goal seek'!$E$23,BA13/BA12-1,#N/A) -> -0.02825435039 | BJ13: =IF(BB12>'goal seek'!$E$23,BB13/BB12-1,#N/A) -> -0.01251445631 | BK13: =IF(BC12>'goal seek'!$E$23,BC13/BC12-1,#N/A) -> -0.04312336404 | BL13: =IF(BD12>'goal seek'!$E$23,BD13/BD12-1,#N/A) -> -0.03818338082 | BM13: =IF(BE12>'goal seek'!$E$23,BE13/BE12-1,#N/A) -> -0.07000030352 | BO13: 2024 | BP13: =RM!I19 -> 3.647275494 | BQ13: =RM!P19 -> 4.408277178 | BR13: =RM!W19 -> 4.235786282 | BS13: =RM!AD19 -> 4.405827035 | BT13: =RM!AK19 -> 4.052227509 | BU13: =RM!AQ19 -> 4.051838688 | BV13: =FI!F16 -> 3.647275494 | BX13: 2024 | BY13: =IF(BG13<>"#NV",RM!$I$10,#N/A) -> -0.07000030352 | BZ13: =IF(BH13<>"#NV",RM!M19,#N/A) -> -0.01132101464 | CA13: =IF(BI13<>"#NV",RM!T19,#N/A) -> -0.02825435039 | CB13: =IF(BJ13<>"#NV",RM!AA19,#N/A) -> -0.01251445631 | CC13: =IF(BK13<>"#NV",RM!AH19,#N/A) -> -0.04312336404
AV14: 2025 | AX14: 2025 | AY14: =RM!E20 -> 27.5041065 | AZ14: =RM!K20 -> 35.24858296 | BA14: =RM!R20 -> 33.17621119 | BB14: =RM!Y20 -> 35.12702665 | BC14: =RM!AF20 -> 31.27324788 | BD14: =RM!AM20 -> 31.55045225 | BE14: =FI!B17 -> 27.5041065 | BF14: 2025 | BG14: =IF(AY13>'goal seek'!$E$24,AY14/AY13-1,#N/A) -> -0.07000030352 | BH14: =IF(AZ13>'goal seek'!$E$23,AZ14/AZ13-1,#N/A) -> -0.01388718397 | BI14: =IF(BA13>'goal seek'!$E$23,BA14/BA13-1,#N/A) -> -0.03406793799 | BJ14: =IF(BB13>'goal seek'!$E$23,BB14/BB13-1,#N/A) -> -0.01674133799 | BK14: =IF(BC13>'goal seek'!$E$23,BC14/BC13-1,#N/A) -> -0.04822783159 | BL14: =IF(BD13>'goal seek'!$E$23,BD14/BD13-1,#N/A) -> -0.0396992317 | BM14: =IF(BE13>'goal seek'!$E$23,BE14/BE13-1,#N/A) -> -0.07000030352 | BO14: 2025 | BP14: =RM!I20 -> 3.360537195 | BQ14: =RM!P20 -> 4.306781392 | BR14: =RM!W20 -> 4.05357257 | BS14: =RM!AD20 -> 4.291929264 | BT14: =RM!AK20 -> 3.8210626 | BU14: =RM!AQ20 -> 3.854932291 | BV14: =FI!F17 -> 3.360537195 | BX14: 2025 | BY14: =IF(BG14<>"#NV",RM!$I$10,#N/A) -> -0.07000030352 | BZ14: =IF(BH14<>"#NV",RM!M20,#N/A) -> -0.01388718397 | CA14: =IF(BI14<>"#NV",RM!T20,#N/A) -> -0.03406793799 | CB14: =IF(BJ14<>"#NV",RM!AA20,#N/A) -> -0.01674133799 | CC14: =IF(BK14<>"#NV",RM!AH20,#N/A) -> -0.04822783159
AX15: 2026 | AY15: =RM!E21 -> 25.5788107 | AZ15: =RM!K21 -> 34.64812212 | BA15: =RM!R21 -> 31.85309327 | BB15: =RM!Y21 -> 34.35748037 | BC15: =RM!AF21 -> 29.62232793 | BD15: =RM!AM21 -> 30.24614348 | BE15: =FI!B18 -> 25.5788107 | BF15: 2026 | BG15: =IF(AY14>'goal seek'!$E$24,AY15/AY14-1,#N/A) -> -0.07000030352 | BH15: =IF(AZ14>'goal seek'!$E$23,AZ15/AZ14-1,#N/A) -> -0.01703503483 | BI15: =IF(BA14>'goal seek'!$E$23,BA15/BA14-1,#N/A) -> -0.03988152558 | BJ15: =IF(BB14>'goal seek'!$E$23,BB15/BB14-1,#N/A) -> -0.0219075267 | BK15: =IF(BC14>'goal seek'!$E$23,BC15/BC14-1,#N/A) -> -0.05279016596 | BL15: =IF(BD14>'goal seek'!$E$23,BD15/BD14-1,#N/A) -> -0.04134041439 | BM15: =IF(BE14>'goal seek'!$E$23,BE15/BE14-1,#N/A) -> -0.07000030352 | BO15: 2026 | BP15: =RM!I21 -> 3.096979495 | BQ15: =RM!P21 -> 4.195055236 | BR15: =RM!W21 -> 3.856644388 | BS15: =RM!AD21 -> 4.159865502 | BT15: =RM!AK21 -> 3.586552294 | BU15: =RM!AQ21 -> 3.662081371 | BV15: =FI!F18 -> 3.096979495 | BX15: 2026 | BY15: =IF(BG15<>"#NV",RM!$I$10,#N/A) -> -0.07000030352 | BZ15: =IF(BH15<>"#NV",RM!M21,#N/A) -> -0.01703503483 | CA15: =IF(BI15<>"#NV",RM!T21,#N/A) -> -0.03988152558 | CB15: =IF(BJ15<>"#NV",RM!AA21,#N/A) -> -0.0219075267 | CC15: =IF(BK15<>"#NV",RM!AH21,#N/A) -> -0.05279016596
AX16: 2027 | AY16: =RM!E22 -> 23.78828619 | AZ16: =RM!K22 -> 33.92410045 | BA16: =RM!R22 -> 30.39756257 | BB16: =RM!Y22 -> 33.3950235 | BC16: =RM!AF22 -> 27.935236 | BD16: =RM!AM22 -> 28.94183471 | BE16: =FI!B19 -> 23.78828619 | BF16: 2027 | BG16: =IF(AY15>'goal seek'!$E$24,AY16/AY15-1,#N/A) -> -0.07000030352 | BH16: =IF(AZ15>'goal seek'!$E$23,AZ16/AZ15-1,#N/A) -> -0.02089641876 | BI16: =IF(BA15>'goal seek'!$E$23,BA16/BA15-1,#N/A) -> -0.04569511318 | BJ16: =IF(BB15>'goal seek'!$E$23,BB16/BB15-1,#N/A) -> -0.02801302246 | BK16: =IF(BC15>'goal seek'!$E$23,BC16/BC15-1,#N/A) -> -0.05695338778 | BL16: =IF(BD15>'goal seek'!$E$23,BD16/BD15-1,#N/A) -> -0.04312314299 | BM16: =IF(BE15>'goal seek'!$E$23,BE16/BE15-1,#N/A) -> -0.07000030352 | BO16: 2027 | BP16: =RM!I22 -> 2.854681702 | BQ16: =RM!P22 -> 4.071016636 | BR16: =RM!W22 -> 3.647819139 | BS16: =RM!AD22 -> 4.007525459 | BT16: =RM!AK22 -> 3.352330908 | BU16: =RM!AQ22 -> 3.47312645 | BV16: =FI!F19 -> 2.854681702 | BX16: 2027 | BY16: =IF(BG16<>"#NV",RM!$I$10,#N/A) -> -0.07000030352 | BZ16: =IF(BH16<>"#NV",RM!M22,#N/A) -> -0.02089641876 | CA16: =IF(BI16<>"#NV",RM!T22,#N/A) -> -0.04569511318 | CB16: =IF(BJ16<>"#NV",RM!AA22,#N/A) -> -0.02801302246 | CC16: =IF(BK16<>"#NV",RM!AH22,#N/A) -> -0.05695338778
AX17: 2028 | AY17: =RM!E23 -> 22.12309893 | AZ17: =RM!K23 -> 33.05452146 | BA17: =RM!R23 -> 28.83182362 | BB17: =RM!Y23 -> 32.2242666 | BC17: =RM!AF23 -> 26.23658116 | BD17: =RM!AM23 -> 27.63752594 | BE17: =FI!B20 -> 22.12309893 | BF17: 2028 | BG17: =IF(AY16>'goal seek'!$E$24,AY17/AY16-1,#N/A) -> -0.07000030352 | BH17: =IF(AZ16>'goal seek'!$E$23,AZ17/AZ16-1,#N/A) -> -0.0256330745 | BI17: =IF(BA16>'goal seek'!$E$23,BA17/BA16-1,#N/A) -> -0.05150870078 | BJ17: =IF(BB16>'goal seek'!$E$23,BB17/BB16-1,#N/A) -> -0.03505782525 | BK17: =IF(BC16>'goal seek'!$E$23,BC17/BC16-1,#N/A) -> -0.06080689061 | BL17: =IF(BD16>'goal seek'!$E$23,BD17/BD16-1,#N/A) -> -0.04506655446 | BM17: =IF(BE16>'goal seek'!$E$23,BE17/BE16-1,#N/A) -> -0.07000030352 | BO17: 2028 | BP17: =RM!I23 -> 2.631865182 | BQ17: =RM!P23 -> 3.932317276 | BR17: =RM!W23 -> 3.429965799 | BS17: =RM!AD23 -> 3.833546356 | BT17: =RM!AK23 -> 3.12122387 | BU17: =RM!AQ23 -> 3.287886677 | BV17: =FI!F20 -> 2.631865182 | BX17: 2028 | BY17: =IF(BG17<>"#NV",RM!$I$10,#N/A) -> -0.07000030352 | BZ17: =IF(BH17<>"#NV",RM!M23,#N/A) -> -0.0256330745 | CA17: =IF(BI17<>"#NV",RM!T23,#N/A) -> -0.05150870078 | CB17: =IF(BJ17<>"#NV",RM!AA23,#N/A) -> -0.03505782525 | CC17: =IF(BK17<>"#NV",RM!AH23,#N/A) -> -0.06080689061
AX18: 2029 | AY18: =RM!E24 -> 20.57447529 | AZ18: =RM!K24 -> 32.01517483 | BA18: =RM!R24 -> 27.17911751 | BB18: =RM!Y24 -> 30.83727181 | BC18: =RM!AF24 -> 24.54665747 | BD18: =RM!AM24 -> 26.33321717 | BE18: =FI!B21 -> 20.57447529 | BF18: 2029 | BG18: =IF(AY17>'goal seek'!$E$24,AY18/AY17-1,#N/A) -> -0.07000030352 | BH18: =IF(AZ17>'goal seek'!$E$23,AZ18/AZ17-1,#N/A) -> -0.03144340262 | BI18: =IF(BA17>'goal seek'!$E$23,BA18/BA17-1,#N/A) -> -0.05732228837 | BJ18: =IF(BB17>'goal seek'!$E$23,BB18/BB17-1,#N/A) -> -0.04304193509 | BK18: =IF(BC17>'goal seek'!$E$23,BC18/BC17-1,#N/A) -> -0.06441097187 | BL18: =IF(BD17>'goal seek'!$E$23,BD18/BD17-1,#N/A) -> -0.04719339832 | BM18: =IF(BE17>'goal seek'!$E$23,BE18/BE17-1,#N/A) -> -0.07000030352 | BO18: 2029 | BP18: =RM!I24 -> 2.426904784 | BQ18: =RM!P24 -> 3.776416159 | BR18: =RM!W24 -> 3.205969016 | BS18: =RM!AD24 -> 3.637474172 | BT18: =RM!AK24 -> 2.895451748 | BU18: =RM!AQ24 -> 3.106189092 | BV18: =FI!F21 -> 2.426904784 | BX18: 2029 | BY18: =IF(BG18<>"#NV",RM!$I$10,#N/A) -> -0.07000030352 | BZ18: =IF(BH18<>"#NV",RM!M24,#N/A) -> -0.03144340262 | CA18: =IF(BI18<>"#NV",RM!T24,#N/A) -> -0.05732228837 | CB18: =IF(BJ18<>"#NV",RM!AA24,#N/A) -> -0.04304193509 | CC18: =IF(BK18<>"#NV",RM!AH24,#N/A) -> -0.06441097187
AV19: 2030 | AW19: 2030 | AX19: 2030 | AY19: =RM!E25 -> 19.13425578 | AZ19: =RM!K25 -> 30.7803247 | BA19: =RM!R25 -> 25.46314012 | BB19: =RM!Y25 -> 29.23480213 | BC19: =RM!AF25 -> 22.88218341 | BD19: =RM!AM25 -> 25.0289084 | BE19: =FI!B22 -> 19.13425578 | BF19: 2030 | BG19: =IF(AY18>'goal seek'!$E$24,AY19/AY18-1,#N/A) -> -0.07000030352 | BH19: =IF(AZ18>'goal seek'!$E$23,AZ19/AZ18-1,#N/A) -> -0.03857077574 | BI19: =IF(BA18>'goal seek'!$E$23,BA19/BA18-1,#N/A) -> -0.06313587597 | BJ19: =IF(BB18>'goal seek'!$E$23,BB19/BB18-1,#N/A) -> -0.05196535196 | BK19: =IF(BC18>'goal seek'!$E$23,BC19/BC18-1,#N/A) -> -0.06780858315 | BL19: =IF(BD18>'goal seek'!$E$23,BD19/BD18-1,#N/A) -> -0.04953093129 | BM19: =IF(BE18>'goal seek'!$E$23,BE19/BE18-1,#N/A) -> -0.07000030352 | BO19: 2030 | BP19: =RM!I25 -> 2.238320639 | BQ19: =RM!P25 -> 3.600674981 | BR19: =RM!W25 -> 2.978672006 | BS19: =RM!AD25 -> 3.419880122 | BT19: =RM!AK25 -> 2.676752311 | BU19: =RM!AQ25 -> 2.927875684 | BV19: =FI!F22 -> 2.238320639 | BX19: 2030 | BY19: =IF(BG19<>"#NV",RM!$I$10,#N/A) -> -0.07000030352 | BZ19: =IF(BH19<>"#NV",RM!M25,#N/A) -> -0.03857077574 | CA19: =IF(BI19<>"#NV",RM!T25,#N/A) -> -0.06313587597 | CB19: =IF(BJ19<>"#NV",RM!AA25,#N/A) -> -0.05196535196 | CC19: =IF(BK19<>"#NV",RM!AH25,#N/A) -> -0.06780858315
AX20: 2031 | AY20: =RM!E26 -> 17.79485207 | AZ20: =RM!K26 -> 29.32399265 | BA20: =RM!R26 -> 23.70747026 | BB20: =RM!Y26 -> 27.42727057 | BC20: =RM!AF26 -> 21.25682523 | BD20: =RM!AM26 -> 23.72459963 | BE20: =FI!B23 -> 17.79485207 | BF20: 2031 | BG20: =IF(AY19>'goal seek'!$E$24,AY20/AY19-1,#N/A) -> -0.07000030352 | BH20: =IF(AZ19>'goal seek'!$E$23,AZ20/AZ19-1,#N/A) -> -0.04731373254 | BI20: =IF(BA19>'goal seek'!$E$23,BA20/BA19-1,#N/A) -> -0.06894946357 | BJ20: =IF(BB19>'goal seek'!$E$23,BB20/BB19-1,#N/A) -> -0.06182807587 | BK20: =IF(BC19>'goal seek'!$E$23,BC20/BC19-1,#N/A) -> -0.07103160346 | BL20: =IF(BD19>'goal seek'!$E$23,BD20/BD19-1,#N/A) -> -0.05211209172 | BM20: =IF(BE19>'goal seek'!$E$23,BE20/BE19-1,#N/A) -> -0.07000030352 | BO20: 2031 | BP20: =RM!I26 -> 2.064763339 | BQ20: =RM!P26 -> 3.40250679 | BR20: =RM!W26 -> 2.750813284 | BS20: =RM!AD26 -> 3.182427285 | BT20: =RM!AK26 -> 2.46646127 | BU20: =RM!AQ26 -> 2.75280083 | BV20: =FI!F23 -> 2.064763339 | BX20: 2031 | BY20: =IF(BG20<>"#NV",RM!$I$10,#N/A) -> -0.07000030352 | BZ20: =IF(BH20<>"#NV",RM!M26,#N/A) -> -0.04731373254 | CA20: =IF(BI20<>"#NV",RM!T26,#N/A) -> -0.06894946357 | CB20: =IF(BJ20<>"#NV",RM!AA26,#N/A) -> -0.06182807587 | CC20: =IF(BK20<>"#NV",RM!AH26,#N/A) -> -0.07103160346
AX21: 2032 | AY21: =RM!E27 -> 16.54920702 | AZ21: =RM!K27 -> 27.62207262 | BA21: =RM!R27 -> 21.93502745 | BB21: =RM!Y27 -> 25.43522498 | BC21: =RM!AF27 -> 19.68159955 | BD21: =RM!AM27 -> 22.42029086 | BE21: =FI!B24 -> 16.54920702 | BF21: 2032 | BG21: =IF(AY20>'goal seek'!$E$24,AY21/AY20-1,#N/A) -> -0.07000030352 | BH21: =IF(AZ20>'goal seek'!$E$23,AZ21/AZ20-1,#N/A) -> -0.05803848234 | BI21: =IF(BA20>'goal seek'!$E$23,BA21/BA20-1,#N/A) -> -0.07476305117 | BJ21: =IF(BB20>'goal seek'!$E$23,BB21/BB20-1,#N/A) -> -0.07263010682 | BK21: =IF(BC20>'goal seek'!$E$23,BC21/BC20-1,#N/A) -> -0.07410446581 | BL21: =IF(BD20>'goal seek'!$E$23,BD21/BD20-1,#N/A) -> -0.05497706139 | BM21: =IF(BE20>'goal seek'!$E$23,BE21/BE20-1,#N/A) -> -0.07000030352 | BO21: 2032 | BP21: =RM!I27 -> 1.90500437 | BQ21: =RM!P27 -> 3.179618758 | BR21: =RM!W27 -> 2.524974345 | BS21: =RM!AD27 -> 2.927887401 | BT21: =RM!AK27 -> 2.265578835 | BU21: =RM!AQ27 -> 2.580833753 | BV21: =FI!F24 -> 1.90500437 | BX21: 2032 | BY21: =IF(BG21<>"#NV",RM!$I$10,#N/A) -> -0.07000030352 | BZ21: =IF(BH21<>"#NV",RM!M27,#N/A) -> -0.05803848234 | CA21: =IF(BI21<>"#NV",RM!T27,#N/A) -> -0.07476305117 | CB21: =IF(BJ21<>"#NV",RM!AA27,#N/A) -> -0.07263010682 | CC21: =IF(BK21<>"#NV",RM!AH27,#N/A) -> -0.07410446581
AX22: 2033 | AY22: =RM!E28 -> 15.39075751 | AZ22: =RM!K28 -> 25.65554004 | BA22: =RM!R28 -> 20.16757667 | BB22: =RM!Y28 -> 23.2892183 | BC22: =RM!AF28 -> 18.16520343 | BD22: =RM!AM28 -> 21.11598209 | BE22: =FI!B25 -> 15.39075751 | BF22: 2033 | BG22: =IF(AY21>'goal seek'!$E$24,AY22/AY21-1,#N/A) -> -0.07000030352 | BH22: =IF(AZ21>'goal seek'!$E$23,AZ22/AZ21-1,#N/A) -> -0.07119424427 | BI22: =IF(BA21>'goal seek'!$E$23,BA22/BA21-1,#N/A) -> -0.08057663876 | BJ22: =IF(BB21>'goal seek'!$E$23,BB22/BB21-1,#N/A) -> -0.08437144481 | BK22: =IF(BC21>'goal seek'!$E$23,BC22/BC21-1,#N/A) -> -0.07704638598 | BL22: =IF(BD21>'goal seek'!$E$23,BD22/BD21-1,#N/A) -> -0.05817537241 | BM22: =IF(BE21>'goal seek'!$E$23,BE22/BE21-1,#N/A) -> -0.07000030352 | BO22: 2033 | BP22: =RM!I28 -> 1.757922426 | BQ22: =RM!P28 -> 2.930359287 | BR22: =RM!W28 -> 2.303527639 | BS22: =RM!AD28 -> 2.660079539 | BT22: =RM!AK28 -> 2.074817856 | BU22: =RM!AQ28 -> 2.411853896 | BV22: =FI!F25 -> 1.757922426 | BX22: 2033 | BY22: =IF(BG22<>"#NV",RM!$I$10,#N/A) -> -0.07000030352 | BZ22: =IF(BH22<>"#NV",RM!M28,#N/A) -> -0.07119424427 | CA22: =IF(BI22<>"#NV",RM!T28,#N/A) -> -0.08057663876 | CB22: =IF(BJ22<>"#NV",RM!AA28,#N/A) -> -0.08437144481 | CC22: =IF(BK22<>"#NV",RM!AH28,#N/A) -> -0.07704638598
AX23: 2034 | AY23: =RM!E29 -> 14.31339981 | AZ23: =RM!K29 -> 23.41498879 | BA23: =RM!R29 -> 18.42529516 | BB23: =RM!Y29 -> 21.02895099 | BC23: =RM!AF29 -> 16.71429776 | BD23: =RM!AM29 -> 19.81167332 | BE23: =FI!B26 -> 14.31339981 | BF23: 2034 | BG23: =IF(AY22>'goal seek'!$E$24,AY23/AY22-1,#N/A) -> -0.07000030352 | BH23: =IF(AZ22>'goal seek'!$E$23,AZ23/AZ22-1,#N/A) -> -0.08733206338 | BI23: =IF(BA22>'goal seek'!$E$23,BA23/BA22-1,#N/A) -> -0.08639022636 | BJ23: =IF(BB22>'goal seek'!$E$23,BB23/BB22-1,#N/A) -> -0.09705208984 | BK23: =IF(BC22>'goal seek'!$E$23,BC23/BC22-1,#N/A) -> -0.07987280062 | BL23: =IF(BD22>'goal seek'!$E$23,BD23/BD22-1,#N/A) -> -0.06176879506 | BM23: =IF(BE22>'goal seek'!$E$23,BE23/BE22-1,#N/A) -> -0.07000030352 | BO23: 2034 | BP23: =RM!I29 -> 1.622491798 | BQ23: =RM!P29 -> 2.654200104 | BR23: =RM!W29 -> 2.08859465 | BS23: =RM!AD29 -> 2.383731395 | BT23: =RM!AK29 -> 1.894644975 | BU23: =RM!AQ29 -> 2.245747194 | BV23: =FI!F26 -> 1.622491798 | BX23: 2034 | BY23: =IF(BG23<>"#NV",RM!$I$10,#N/A) -> -0.07000030352 | BZ23: =IF(BH23<>"#NV",RM!M29,#N/A) -> -0.08733206338 | CA23: =IF(BI23<>"#NV",RM!T29,#N/A) -> -0.08639022636 | CB23: =IF(BJ23<>"#NV",RM!AA29,#N/A) -> -0.09705208984 | CC23: =IF(BK23<>"#NV",RM!AH29,#N/A) -> -0.07987280062
AV24: 2035 | AX24: 2035 | AY24: =RM!E30 -> 13.31145748 | AZ24: =RM!K30 -> 20.9065904 | BA24: =RM!R30 -> 16.72641267 | BB24: =RM!Y30 -> 18.70163404 | BC24: =RM!AF30 -> 15.33375807 | BD24: =RM!AM30 -> 18.50736455 | BE24: =FI!B27 -> 13.31145748 | BF24: 2035 | BG24: =IF(AY23>'goal seek'!$E$24,AY24/AY23-1,#N/A) -> -0.07000030352 | BH24: =IF(AZ23>'goal seek'!$E$23,AZ24/AZ23-1,#N/A) -> -0.1071278918 | BI24: =IF(BA23>'goal seek'!$E$23,BA24/BA23-1,#N/A) -> -0.09220381396 | BJ24: =IF(BB23>'goal seek'!$E$23,BB24/BB23-1,#N/A) -> -0.1106720419 | BK24: =IF(BC23>'goal seek'!$E$23,BC24/BC23-1,#N/A) -> -0.08259633246 | BL24: =IF(BD23>'goal seek'!$E$23,BD24/BD23-1,#N/A) -> -0.06583536631 | BM24: =IF(BE23>'goal seek'!$E$23,BE24/BE23-1,#N/A) -> -0.07000030352 | BO24: 2035 | BP24: =RM!I30 -> 1.497768913 | BQ24: =RM!P30 -> 2.352352568 | BR24: =RM!W30 -> 1.882010363 | BS24: =RM!AD30 -> 2.104256888 | BT24: =RM!AK30 -> 1.725312663 | BU24: =RM!AQ30 -> 2.082398214 | BV24: =FI!F27 -> 1.497768913 | BX24: 2035 | BY24: =IF(BG24<>"#NV",RM!$I$10,#N/A) -> -0.07000030352 | BZ24: =IF(BH24<>"#NV",RM!M30,#N/A) -> -0.1071278918 | CA24: =IF(BI24<>"#NV",RM!T30,#N/A) -> -0.09220381396 | CB24: =IF(BJ24<>"#NV",RM!AA30,#N/A) -> -0.1106720419 | CC24: =IF(BK24<>"#NV",RM!AH30,#N/A) -> -0.08259633246
AX25: 2036 | AY25: =RM!E31 -> 12.37965141 | AZ25: =RM!K31 -> 18.15923651 | BA25: =RM!R31 -> 15.08693316 | BB25: =RM!Y31 -> 16.35960408 | BC25: =RM!AF31 -> 14.02690081 | BD25: =RM!AM31 -> 17.20305578 | BE25: =FI!B28 -> 12.37965141 | BF25: 2036 | BG25: =IF(AY24>'goal seek'!$E$24,AY25/AY24-1,#N/A) -> -0.07000030352 | BH25: =IF(AZ24>'goal seek'!$E$23,AZ25/AZ24-1,#N/A) -> -0.1314109016 | BI25: =IF(BA24>'goal seek'!$E$23,BA25/BA24-1,#N/A) -> -0.09801740155 | BJ25: =IF(BB24>'goal seek'!$E$23,BB25/BB24-1,#N/A) -> -0.125231301 | BK25: =IF(BC24>'goal seek'!$E$23,BC25/BC24-1,#N/A) -> -0.08522746007 | BL25: =IF(BD24>'goal seek'!$E$23,BD25/BD24-1,#N/A) -> -0.07047512177 | BM25: =IF(BE24>'goal seek'!$E$23,BE25/BE24-1,#N/A) -> -0.07000030352 | BO25: 2036 | BP25: =RM!I31 -> 1.382884689 | BQ25: =RM!P31 -> 2.028500585 | BR25: =RM!W31 -> 1.685305036 | BS25: =RM!AD31 -> 1.827470358 | BT25: =RM!AK31 -> 1.566892776 | BU25: =RM!AQ31 -> 1.921689201 | BV25: =FI!F28 -> 1.382884689 | BX25: 2036 | BY25: =IF(BG25<>"#NV",RM!$I$10,#N/A) -> -0.07000030352 | BZ25: =IF(BH25<>"#NV",RM!M31,#N/A) -> -0.1314109016 | CA25: =IF(BI25<>"#NV",RM!T31,#N/A) -> -0.09801740155 | CB25: =IF(BJ25<>"#NV",RM!AA31,#N/A) -> -0.125231301 | CC25: =IF(BK25<>"#NV",RM!AH31,#N/A) -> -0.08522746007
AX26: 2037 | AY26: =RM!E32 -> 11.51307206 | AZ26: =RM!K32 -> 15.23199997 | BA26: =RM!R32 -> 13.52044197 | BB26: =RM!Y32 -> 14.05731917 | BC26: =RM!AF32 -> 12.79568966 | BD26: =RM!AM32 -> 15.89874701 | BE26: =FI!B29 -> 11.51307206 | BF26: 2037 | BG26: =IF(AY25>'goal seek'!$E$24,AY26/AY25-1,#N/A) -> -0.07000030352 | BH26: =IF(AZ25>'goal seek'!$E$23,AZ26/AZ25-1,#N/A) -> -0.1611982164 | BI26: =IF(BA25>'goal seek'!$E$23,BA26/BA25-1,#N/A) -> -0.1038309892 | BJ26: =IF(BB25>'goal seek'!$E$23,BB26/BB25-1,#N/A) -> -0.1407298672 | BK26: =IF(BC25>'goal seek'!$E$23,BC26/BC25-1,#N/A) -> -0.08777499555 | BL26: =IF(BD25>'goal seek'!$E$23,BD26/BD25-1,#N/A) -> -0.07581843523 | BM26: =IF(BE25>'goal seek'!$E$23,BE26/BE25-1,#N/A) -> -0.07000030352 | BO26: 2037 | BP26: =RM!I32 -> 1.277039729 | BQ26: =RM!P32 -> 1.689546371 | BR26: =RM!W32 -> 1.499698904 | BS26: =RM!AD32 -> 1.559249779 | BT26: =RM!AK32 -> 1.419308762 | BU26: =RM!AQ32 -> 1.763502518 | BV26: =FI!F29 -> 1.277039729 | BX26: 2037 | BY26: =IF(BG26<>"#NV",RM!$I$10,#N/A) -> -0.07000030352 | BZ26: =IF(BH26<>"#NV",RM!M32,#N/A) -> -0.1611982164 | CA26: =IF(BI26<>"#NV",RM!T32,#N/A) -> -0.1038309892 | CB26: =IF(BJ26<>"#NV",RM!AA32,#N/A) -> -0.1407298672 | CC26: =IF(BK26<>"#NV",RM!AH32,#N/A) -> -0.08777499555
AX27: 2038 | AY27: =RM!E33 -> 10.70715352 | AZ27: =RM!K33 -> 12.22006217 | BA27: =RM!R33 -> 12.03799883 | BB27: =RM!Y33 -> 11.84796208 | BC27: =RM!AF33 -> 11.6409243 | BD27: =RM!AM33 -> 14.59443824 | BE27: =FI!B30 -> 10.70715352 | BF27: 2038 | BG27: =IF(AY26>'goal seek'!$E$24,AY27/AY26-1,#N/A) -> -0.07000030352 | BH27: =IF(AZ26>'goal seek'!$E$23,AZ27/AZ26-1,#N/A) -> -0.1977375136 | BI27: =IF(BA26>'goal seek'!$E$23,BA27/BA26-1,#N/A) -> -0.1096445767 | BJ27: =IF(BB26>'goal seek'!$E$23,BB27/BB26-1,#N/A) -> -0.1571677403 | BK27: =IF(BC26>'goal seek'!$E$23,BC27/BC26-1,#N/A) -> -0.09024643351 | BL27: =IF(BD26>'goal seek'!$E$23,BD27/BD26-1,#N/A) -> -0.08203846313 | BM27: =IF(BE26>'goal seek'!$E$23,BE27/BE26-1,#N/A) -> -0.07000030352 | BO27: 2038 | BP27: =RM!I33 -> 1.179501523 | BQ27: =RM!P33 -> 1.346163751 | BR27: =RM!W33 -> 1.326107628 | BS27: =RM!AD33 -> 1.305173154 | BT27: =RM!AK33 -> 1.282365843 | BU27: =RM!AQ33 -> 1.607725349 | BV27: =FI!F30 -> 1.179501523 | BX27: 2038 | BY27: =IF(BG27<>"#NV",RM!$I$10,#N/A) -> -0.07000030352 | BZ27: =IF(BH27<>"#NV",RM!M33,#N/A) -> -0.1977375136 | CA27: =IF(BI27<>"#NV",RM!T33,#N/A) -> -0.1096445767 | CB27: =IF(BJ27<>"#NV",RM!AA33,#N/A) -> -0.1571677403 | CC27: =IF(BK27<>"#NV",RM!AH33,#N/A) -> -0.09024643351
AX28: 2039 | AY28: =RM!E34 -> 9.957649523 | AZ28: =RM!K34 -> 9.255972614 | BA28: =RM!R34 -> 10.64811358 | BB28: =RM!Y34 -> 9.779960482 | BC28: =RM!AF34 -> 10.56241349 | BD28: =RM!AM34 -> 13.29012947 | BE28: =FI!B31 -> 9.957649523 | BF28: 2039 | BG28: =IF(AY27>'goal seek'!$E$24,AY28/AY27-1,#N/A) -> -0.07000030352 | BH28: =IF(AZ27>'goal seek'!$E$23,AZ28/AZ27-1,#N/A) -> -0.2425592862 | BI28: =IF(BA27>'goal seek'!$E$23,BA28/BA27-1,#N/A) -> -0.1154581643 | BJ28: =IF(BB27>'goal seek'!$E$23,BB28/BB27-1,#N/A) -> -0.1745449206 | BK28: =IF(BC27>'goal seek'!$E$23,BC28/BC27-1,#N/A) -> -0.09264821142 | BL28: =IF(BD27>'goal seek'!$E$23,BD28/BD27-1,#N/A) -> -0.08937026208 | BM28: =IF(BE27>'goal seek'!$E$23,BE28/BE27-1,#N/A) -> -0.07000030352 | BO28: 2039 | BP28: =RM!I34 -> 1.089598033 | BQ28: =RM!P34 -> 1.012818289 | BR28: =RM!W34 -> 1.165150831 | BS28: =RM!AD34 -> 1.070154727 | BT28: =RM!AK34 -> 1.155773251 | BU28: =RM!AQ34 -> 1.454248705 | BV28: =FI!F31 -> 1.089598033 | BX28: 2039 | BY28: =IF(BG28<>"#NV",RM!$I$10,#N/A) -> -0.07000030352 | BZ28: =IF(BH28<>"#NV",RM!M34,#N/A) -> -0.2425592862 | CA28: =IF(BI28<>"#NV",RM!T34,#N/A) -> -0.1154581643 | CB28: =IF(BJ28<>"#NV",RM!AA34,#N/A) -> -0.1745449206 | CC28: =IF(BK28<>"#NV",RM!AH34,#N/A) -> -0.09264821142
AV29: 2040 | AW29: 2040 | AX29: 2040 | AY29: =RM!E35 -> 9.260611034 | AZ29: =RM!K35 -> 6.501941745 | BA29: =RM!R35 -> 9.356798194 | BB29: =RM!Y35 -> 7.893783535 | BC29: =RM!AF35 -> 9.559133058 | BD29: =RM!AM35 -> 11.9858207 | BE29: =FI!B32 -> 9.260611034 | BF29: 2040 | BG29: =IF(AY28>'goal seek'!$E$24,AY29/AY28-1,#N/A) -> -0.07000030352 | BH29: =IF(AZ28>'goal seek'!$E$23,AZ29/AZ28-1,#N/A) -> -0.2975409483 | BI29: =IF(BA28>'goal seek'!$E$23,BA29/BA28-1,#N/A) -> -0.1212717519 | BJ29: =IF(BB28>'goal seek'!$E$23,BB29/BB28-1,#N/A) -> -0.1928614078 | BK29: =IF(BC28>'goal seek'!$E$23,BC29/BC28-1,#N/A) -> -0.09498590725 | BL29: =IF(BD28>'goal seek'!$E$23,BD29/BD28-1,#N/A) -> -0.09814116359 | BM29: =IF(BE28>'goal seek'!$E$23,BE29/BE28-1,#N/A) -> -0.07000030352 | BO29: 2040 | BP29: =RM!I35 -> 1.006714297 | BQ29: =RM!P35 -> 0.7068213631 | BR29: =RM!W35 -> 1.017170733 | BS29: =RM!AD35 -> 0.8581274728 | BT29: =RM!AK35 -> 1.039166409 | BU29: =RM!AQ35 -> 1.302969859 | BV29: =FI!F32 -> 1.006714297 | BX29: 2040 | BY29: =IF(BG29<>"#NV",RM!$I$10,#N/A) -> -0.07000030352 | BZ29: =IF(BH29<>"#NV",RM!M35,#N/A) -> -0.2975409483 | CA29: =IF(BI29<>"#NV",RM!T35,#N/A) -> -0.1212717519 | CB29: =IF(BJ29<>"#NV",RM!AA35,#N/A) -> -0.1928614078 | CC29: =IF(BK29<>"#NV",RM!AH35,#N/A) -> -0.09498590725
AX30: 2041 | AY30: =RM!E36 -> 8.612365451 | AZ30: =RM!K36 -> 4.128827459 | BA30: =RM!R36 -> 8.167686319 | BB30: =RM!Y36 -> 6.219376257 | BC30: =RM!AF36 -> 8.629369792 | BD30: =RM!AM36 -> 10.68151193 | BE30: =FI!B33 -> 8.612365451 | BF30: 2041 | BG30: =IF(AY29>'goal seek'!$E$24,AY30/AY29-1,#N/A) -> -0.07000030352 | BH30: =IF(AZ29>'goal seek'!$E$23,AZ30/AZ29-1,#N/A) -> -0.3649854735 | BI30: =IF(BA29>'goal seek'!$E$23,BA30/BA29-1,#N/A) -> -0.1270853395 | BJ30: =IF(BB29>'goal seek'!$E$23,BB30/BB29-1,#N/A) -> -0.2121172021 | BK30: =IF(BC29>'goal seek'!$E$23,BC30/BC29-1,#N/A) -> -0.09726439206 | BL30: =IF(BD29>'goal seek'!$E$23,BD30/BD29-1,#N/A) -> -0.1088209813 | BM30: =IF(BE29>'goal seek'!$E$23,BE30/BE29-1,#N/A) -> -0.07000030352 | BO30: 2041 | BP30: =RM!I36 -> 0.9302875542 | BQ30: =RM!P36 -> 0.4459862764 | BR30: =RM!W36 -> 0.8822543553 | BS30: =RM!AD36 -> 0.6718024636 | BT30: =RM!AK36 -> 0.9321243233 | BU30: =RM!AQ36 -> 1.153791912 | BV30: =FI!F33 -> 0.9302875542 | BX30: 2041 | BY30: =IF(BG30<>"#NV",RM!$I$10,#N/A) -> -0.07000030352 | BZ30: =IF(BH30<>"#NV",RM!M36,#N/A) -> -0.3649854735 | CA30: =IF(BI30<>"#NV",RM!T36,#N/A) -> -0.1270853395 | CB30: =IF(BJ30<>"#NV",RM!AA36,#N/A) -> -0.2121172021 | CC30: =IF(BK30<>"#NV",RM!AH36,#N/A) -> -0.09726439206
AX31: 2042 | AY31: =RM!E37 -> 8.009497256 | AZ31: =RM!K37 -> 2.280277676 | BA31: =RM!R37 -> 7.08220957 | BB31: =RM!Y37 -> 4.774538633 | BC31: =RM!AF37 -> 7.770851487 | BD31: =RM!AM37 -> 9.377203156 | BE31: =FI!B34 -> 8.009497256 | BF31: 2042 | BG31: =IF(AY30>'goal seek'!$E$24,AY31/AY30-1,#N/A) -> -0.07000030352 | BH31: =IF(AZ30>'goal seek'!$E$23,AZ31/AZ30-1,#N/A) -> -0.4477178573 | BI31: =IF(BA30>'goal seek'!$E$23,BA31/BA30-1,#N/A) -> -0.1328989271 | BJ31: =IF(BB30>'goal seek'!$E$23,BB31/BB30-1,#N/A) -> -0.2323123035 | BK31: =IF(BC30>'goal seek'!$E$23,BC31/BC30-1,#N/A) -> -0.0994879494 | BL31: =IF(BD30>'goal seek'!$E$23,BD31/BD30-1,#N/A) -> -0.1221090028 | BM31: =IF(BE30>'goal seek'!$E$23,BE31/BE30-1,#N/A) -> -0.07000030352 | BO31: 2042 | BP31: =RM!I37 -> 0.8598025156 | BQ31: =RM!P37 -> 0.2447829644 | BR31: =RM!W37 -> 0.7602601524 | BS31: =RM!AD37 -> 0.5125365796 | BT31: =RM!AK37 -> 0.8341843993 | BU31: =RM!AQ37 -> 1.006622839 | BV31: =FI!F34 -> 0.8598025156 | BX31: 2042 | BY31: =IF(BG31<>"#NV",RM!$I$10,#N/A) -> -0.07000030352 | BZ31: =IF(BH31<>"#NV",RM!M37,#N/A) -> -0.4477178573 | CA31: =IF(BI31<>"#NV",RM!T37,#N/A) -> -0.1328989271 | CB31: =IF(BJ31<>"#NV",RM!AA37,#N/A) -> -0.2323123035 | CC31: =IF(BK31<>"#NV",RM!AH37,#N/A) -> -0.0994879494
AX32: 2043 | AY32: =RM!E38 -> 7.448830017 | AZ32: =RM!K38 -> 1.027941318 | BA32: =RM!R38 -> 6.099818471 | BB32: =RM!Y38 -> 3.564447516 | BC32: =RM!AF38 -> 6.98086385 | BD32: =RM!AM38 -> 8.072894386 | BE32: =FI!B35 -> 7.448830017 | BF32: 2043 | BG32: =IF(AY31>'goal seek'!$E$24,AY32/AY31-1,#N/A) -> -0.07000030352 | BH32: =IF(AZ31>'goal seek'!$E$23,AZ32/AZ31-1,#N/A) -> -0.549203446 | BI32: =IF(BA31>'goal seek'!$E$23,BA32/BA31-1,#N/A) -> -0.1387125147 | BJ32: =IF(BB31>'goal seek'!$E$23,BB32/BB31-1,#N/A) -> -0.2534467119 | BK32: =IF(BC31>'goal seek'!$E$23,BC32/BC31-1,#N/A) -> -0.10166037 | BL32: =IF(BD31>'goal seek'!$E$23,BD32/BD31-1,#N/A) -> -0.1390935814 | BM32: =IF(BE31>'goal seek'!$E$23,BE32/BE31-1,#N/A) -> -0.07000030352 | BO32: 2043 | BP32: =RM!I38 -> 0.7947861805 | BQ32: =RM!P38 -> 0.1096807891 | BR32: =RM!W38 -> 0.6508473698 | BS32: =RM!AD38 -> 0.3803246443 | BT32: =RM!AK38 -> 0.7448544407 | BU32: =RM!AQ38 -> 0.8613735151 | BV32: =FI!F35 -> 0.7947861805 | BX32: 2043 | BY32: =IF(BG32<>"#NV",RM!$I$10,#N/A) -> -0.07000030352 | BZ32: =IF(BH32<>"#NV",RM!M38,#N/A) -> -0.549203446 | CA32: =IF(BI32<>"#NV",RM!T38,#N/A) -> -0.1387125147 | CB32: =IF(BJ32<>"#NV",RM!AA38,#N/A) -> -0.2534467119 | CC32: =IF(BK32<>"#NV",RM!AH38,#N/A) -> -0.10166037
AX33: 2044 | AY33: =RM!E39 -> 6.927409655 | AZ33: =RM!K39 -> -0.2243950391 | BA33: =RM!R39 -> 5.218235482 | BB33: =RM!Y39 -> 2.582369413 | BC33: =RM!AF39 -> 6.256354703 | BD33: =RM!AM39 -> 6.768585616 | BE33: =FI!B36 -> 6.927409655 | BF33: 2044 | BG33: =IF(AY32>'goal seek'!$E$24,AY33/AY32-1,#N/A) -> -0.07000030352 | BH33: =IF(AZ32>'goal seek'!$E$23,AZ33/AZ32-1,#N/A) ->  | BI33: =IF(BA32>'goal seek'!$E$23,BA33/BA32-1,#N/A) -> -0.1445261023 | BJ33: =IF(BB32>'goal seek'!$E$23,BB33/BB32-1,#N/A) -> -0.2755204273 | BK33: =IF(BC32>'goal seek'!$E$23,BC33/BC32-1,#N/A) -> -0.1037850275 | BL33: =IF(BD32>'goal seek'!$E$23,BD33/BD32-1,#N/A) -> -0.1615664355 | BM33: =IF(BE32>'goal seek'!$E$23,BE33/BE32-1,#N/A) -> -0.07000030352 | BO33: 2044 | BP33: =RM!I39 -> 0.7348044519 | BQ33: =RM!P39 -> -0.02380203885 | BR33: =RM!W39 -> 0.5535088662 | BS33: =RM!AD39 -> 0.2739171835 | BT33: =RM!AK39 -> 0.6636242864 | BU33: =RM!AQ39 -> 0.7179576626 | BV33: =FI!F36 -> 0.7348044519 | BX33: 2044 | BY33: =IF(BG33<>"#NV",RM!$I$10,#N/A) -> -0.07000030352 | BZ33: =IF(BH33<>"#NV",RM!M39,#N/A) ->  | CA33: =IF(BI33<>"#NV",RM!T39,#N/A) -> -0.1445261023 | CB33: =IF(BJ33<>"#NV",RM!AA39,#N/A) -> -0.2755204273 | CC33: =IF(BK33<>"#NV",RM!AH39,#N/A) -> -0.1037850275
AV34: 2045 | AX34: 2045 | AY34: =RM!E40 -> 6.442488876 | AZ34: =RM!K40 -> -0.73 | BA34: =RM!R40 -> 4.433727578 | BB34: =RM!Y40 -> 1.811445764 | BC34: =RM!AF40 -> 5.594026086 | BD34: =RM!AM40 -> 5.464276845 | BE34: =FI!B37 -> 6.442488876 | BF34: 2045 | BG34: =IF(AY33>'goal seek'!$E$24,AY34/AY33-1,#N/A) -> -0.07000030352 | BH34: =IF(AZ33>'goal seek'!$E$23,AZ34/AZ33-1,#N/A) ->  | BI34: =IF(BA33>'goal seek'!$E$23,BA34/BA33-1,#N/A) -> -0.1503396899 | BJ34: =IF(BB33>'goal seek'!$E$23,BB34/BB33-1,#N/A) -> -0.2985334497 | BK34: =IF(BC33>'goal seek'!$E$23,BC34/BC33-1,#N/A) -> -0.1058649404 | BL34: =IF(BD33>'goal seek'!$E$23,BD34/BD33-1,#N/A) -> -0.192700343 | BM34: =IF(BE33>'goal seek'!$E$23,BE34/BE33-1,#N/A) -> -0.07000030352 | BO34: 2045 | BP34: =RM!I40 -> 0.6794581885 | BQ34: =RM!P40 -> -0.07698957455 | BR34: =RM!W40 -> 0.4676038354 | BS34: =RM!AD40 -> 0.1910444365 | BT34: =RM!AK40 -> 0.5899749155 | BU34: =RM!AQ40 -> 0.5762908898 | BV34: =FI!F37 -> 0.6794581885 | BX34: 2045 | BY34: =IF(BG34<>"#NV",RM!$I$10,#N/A) -> -0.07000030352 | BZ34: =IF(BH34<>"#NV",RM!M40,#N/A) ->  | CA34: =IF(BI34<>"#NV",RM!T40,#N/A) -> -0.1503396899 | CB34: =IF(BJ34<>"#NV",RM!AA40,#N/A) -> -0.2985334497 | CC34: =IF(BK34<>"#NV",RM!AH40,#N/A) -> -0.1058649404
AX35: 2046 | AY35: =RM!E41 -> 5.991512699 | AZ35: =RM!K41 -> -0.73 | BA35: =RM!R41 -> 3.741386485 | BB35: =RM!Y41 -> 1.227280265 | BC35: =RM!AF41 -> 4.990414886 | BD35: =RM!AM41 -> 4.159968075 | BE35: =FI!B38 -> 5.991512699 | BF35: 2046 | BG35: =IF(AY34>'goal seek'!$E$24,AY35/AY34-1,#N/A) -> -0.07000030352 | BH35: =IF(AZ34>'goal seek'!$E$23,AZ35/AZ34-1,#N/A) ->  | BI35: =IF(BA34>'goal seek'!$E$23,BA35/BA34-1,#N/A) -> -0.1561532775 | BJ35: =IF(BB34>'goal seek'!$E$23,BB35/BB34-1,#N/A) -> -0.3224857792 | BK35: =IF(BC34>'goal seek'!$E$23,BC35/BC34-1,#N/A) -> -0.1079028218 | BL35: =IF(BD34>'goal seek'!$E$23,BD35/BD34-1,#N/A) -> -0.2386974172 | BM35: =IF(BE34>'goal seek'!$E$23,BE35/BE34-1,#N/A) -> -0.07000030352 | BO35: 2046 | BP35: =RM!I41 -> 0.6283800653 | BQ35: =RM!P41 -> -0.07656120761 | BR35: =RM!W41 -> 0.3923905033 | BS35: =RM!AD41 -> 0.1287151495 | BT35: =RM!AK41 -> 0.5233865618 | BU35: =RM!AQ41 -> 0.4362906568 | BV35: =FI!F38 -> 0.6283800653 | BX35: 2046 | BY35: =IF(BG35<>"#NV",RM!$I$10,#N/A) -> -0.07000030352 | BZ35: =IF(BH35<>"#NV",RM!M41,#N/A) ->  | CA35: =IF(BI35<>"#NV",RM!T41,#N/A) -> -0.1561532775 | CB35: =IF(BJ35<>"#NV",RM!AA41,#N/A) -> -0.3224857792 | CC35: =IF(BK35<>"#NV",RM!AH41,#N/A) -> -0.1079028218
AX36: 2047 | AY36: =RM!E42 -> 5.572104992 | AZ36: =RM!K42 -> -0.73 | BA36: =RM!R42 -> 3.135405845 | BB36: =RM!Y42 -> 0.6431147664 | BC36: =RM!AF42 -> 4.441962693 | BD36: =RM!AM42 -> 2.855659305 | BE36: =FI!B39 -> 5.572104992 | BF36: 2047 | BG36: =IF(AY35>'goal seek'!$E$24,AY36/AY35-1,#N/A) -> -0.07000030352 | BH36: =IF(AZ35>'goal seek'!$E$23,AZ36/AZ35-1,#N/A) ->  | BI36: =IF(BA35>'goal seek'!$E$23,BA36/BA35-1,#N/A) -> -0.1619668651 | BJ36: =IF(BB35>'goal seek'!$E$23,BB36/BB35-1,#N/A) ->  | BK36: =IF(BC35>'goal seek'!$E$23,BC36/BC35-1,#N/A) -> -0.1099011214 | BL36: =IF(BD35>'goal seek'!$E$23,BD36/BD35-1,#N/A) -> -0.3135381682 | BM36: =IF(BE35>'goal seek'!$E$23,BE36/BE35-1,#N/A) -> -0.07000030352 | BO36: 2047 | BP36: =RM!I42 -> 0.5812323688 | BQ36: =RM!P42 -> -0.07614709878 | BR36: =RM!W42 -> 0.3270576145 | BS36: =RM!AD42 -> 0.067084005 | BT36: =RM!AK42 -> 0.463345989 | BU36: =RM!AQ42 -> 0.2978769469 | BV36: =FI!F39 -> 0.5812323688 | BX36: 2047 | BY36: =IF(BG36<>"#NV",RM!$I$10,#N/A) -> -0.07000030352 | BZ36: =IF(BH36<>"#NV",RM!M42,#N/A) ->  | CA36: =IF(BI36<>"#NV",RM!T42,#N/A) -> -0.1619668651 | CB36: =IF(BJ36<>"#NV",RM!AA42,#N/A) ->  | CC36: =IF(BK36<>"#NV",RM!AH42,#N/A) -> -0.1099011214
AX37: 2048 | AY37: =RM!E43 -> 5.182055951 | AZ37: =RM!K43 -> -0.73 | BA37: =RM!R43 -> 2.609346033 | BB37: =RM!Y43 -> 0.05894926777 | BC37: =RM!AF43 -> 3.945075597 | BD37: =RM!AM43 -> 1.551350535 | BE37: =FI!B40 -> 5.182055951 | BF37: 2048 | BG37: =IF(AY36>'goal seek'!$E$24,AY37/AY36-1,#N/A) -> -0.07000030352 | BH37: =IF(AZ36>'goal seek'!$E$23,AZ37/AZ36-1,#N/A) ->  | BI37: =IF(BA36>'goal seek'!$E$23,BA37/BA36-1,#N/A) -> -0.1677804527 | BJ37: =IF(BB36>'goal seek'!$E$23,BB37/BB36-1,#N/A) ->  | BK37: =IF(BC36>'goal seek'!$E$23,BC37/BC36-1,#N/A) -> -0.1118620597 | BL37: =IF(BD36>'goal seek'!$E$23,BD37/BD36-1,#N/A) -> -0.4567452314 | BM37: =IF(BE36>'goal seek'!$E$23,BE37/BE36-1,#N/A) -> -0.07000030352 | BO37: 2048 | BP37: =RM!I43 -> 0.5377050584 | BQ37: =RM!P43 -> -0.07574690361 | BR37: =RM!W43 -> 0.2707532636 | BS37: =RM!AD43 -> 0.006116745896 | BT37: =RM!AK43 -> 0.4093524123 | BU37: =RM!AQ43 -> 0.160972602 | BV37: =FI!F40 -> 0.5377050584 | BX37: 2048 | BY37: =IF(BG37<>"#NV",RM!$I$10,#N/A) -> -0.07000030352 | BZ37: =IF(BH37<>"#NV",RM!M43,#N/A) ->  | CA37: =IF(BI37<>"#NV",RM!T43,#N/A) -> -0.1677804527 | CB37: =IF(BJ37<>"#NV",RM!AA43,#N/A) ->  | CC37: =IF(BK37<>"#NV",RM!AH43,#N/A) -> -0.1118620597
AX38: 2049 | AY38: =RM!E44 -> 4.819310462 | AZ38: =RM!K44 -> -0.73 | BA38: =RM!R44 -> 2.156379112 | BB38: =RM!Y44 -> -0.5252162309 | BC38: =RM!AF44 -> 3.496174688 | BD38: =RM!AM44 -> 0.2470417652 | BE38: =FI!B41 -> 4.819310462 | BF38: 2049 | BG38: =IF(AY37>'goal seek'!$E$24,AY38/AY37-1,#N/A) -> -0.07000030352 | BH38: =IF(AZ37>'goal seek'!$E$23,AZ38/AZ37-1,#N/A) ->  | BI38: =IF(BA37>'goal seek'!$E$23,BA38/BA37-1,#N/A) -> -0.1735940403 | BJ38: =IF(BB37>'goal seek'!$E$23,BB38/BB37-1,#N/A) ->  | BK38: =IF(BC37>'goal seek'!$E$23,BC38/BC37-1,#N/A) -> -0.1137876572 | BL38: =IF(BD37>'goal seek'!$E$23,BD38/BD37-1,#N/A) -> -0.8407569665 | BM38: =IF(BE37>'goal seek'!$E$23,BE38/BE37-1,#N/A) -> -0.07000030352 | BO38: 2049 | BP38: =RM!I44 -> 0.49751314 | BQ38: =RM!P44 -> -0.07536028132 | BR38: =RM!W44 -> 0.22261005 | BS38: =RM!AD44 -> -0.05421978481 | BT38: =RM!AK44 -> 0.3609215178 | BU38: =RM!AQ44 -> 0.02550292729 | BV38: =FI!F41 -> 0.49751314 | BX38: 2049 | BY38: =IF(BG38<>"#NV",RM!$I$10,#N/A) -> -0.07000030352 | BZ38: =IF(BH38<>"#NV",RM!M44,#N/A) ->  | CA38: =IF(BI38<>"#NV",RM!T44,#N/A) -> -0.1735940403 | CB38: =IF(BJ38<>"#NV",RM!AA44,#N/A) ->  | CC38: =IF(BK38<>"#NV",RM!AH44,#N/A) -> -0.1137876572
AV39: 2050 | AW39: 2050 | AX39: 2050 | AY39: =RM!E45 -> 4.481957267 | AZ39: =RM!K45 -> -0.73 | BA39: =RM!R45 -> 1.769508251 | BB39: =RM!Y45 -> -0.73 | BC39: =RM!AF45 -> 3.091738045 | BD39: =RM!AM45 -> -0.73 | BE39: =FI!B42 -> 4.481957267 | BF39: 2050 | BG39: =IF(AY38>'goal seek'!$E$24,AY39/AY38-1,#N/A) -> -0.07000030352 | BH39: =IF(AZ38>'goal seek'!$E$23,AZ39/AZ38-1,#N/A) ->  | BI39: =IF(BA38>'goal seek'!$E$23,BA39/BA38-1,#N/A) -> -0.1794076279 | BJ39: =IF(BB38>'goal seek'!$E$23,BB39/BB38-1,#N/A) ->  | BK39: =IF(BC38>'goal seek'!$E$23,BC39/BC38-1,#N/A) -> -0.1156797583 | BL39: =IF(BD38>'goal seek'!$E$23,BD39/BD38-1,#N/A) ->  | BM39: =IF(BE38>'goal seek'!$E$23,BE39/BE38-1,#N/A) -> -0.07000030352 | BO39: 2050 | BP39: =RM!I45 -> 0.4603946192 | BQ39: =RM!P45 -> -0.07498689791 | BR39: =RM!W45 -> 0.1817670336 | BS39: =RM!AD45 -> -0.07498689791 | BT39: =RM!AK45 -> 0.317588829 | BU39: =RM!AQ45 -> -0.07498689791 | BV39: =FI!F42 -> 0.4603946192 | BX39: 2050 | BY39: =IF(BG39<>"#NV",RM!$I$10,#N/A) -> -0.07000030352 | BZ39: =IF(BH39<>"#NV",RM!M45,#N/A) ->  | CA39: =IF(BI39<>"#NV",RM!T45,#N/A) -> -0.1794076279 | CB39: =IF(BJ39<>"#NV",RM!AA45,#N/A) ->  | CC39: =IF(BK39<>"#NV",RM!AH45,#N/A) -> -0.1156797583
AX40: 2051 | AY40: =RM!E46 -> 4.168218898 | AZ40: =RM!K46 -> -0.73 | BA40: =RM!R46 -> 1.441757782 | BB40: =RM!Y46 -> -0.73 | BC40: =RM!AF46 -> 2.728334993 | BD40: =RM!AM46 -> -0.73 | BE40: =FI!B43 -> 4.168218898 | BF40: 2051 | BG40: =IF(AY39>'goal seek'!$E$24,AY40/AY39-1,#N/A) -> -0.07000030352 | BH40: =IF(AZ39>'goal seek'!$E$23,AZ40/AZ39-1,#N/A) ->  | BI40: =IF(BA39>'goal seek'!$E$23,BA40/BA39-1,#N/A) -> -0.1852212155 | BJ40: =IF(BB39>'goal seek'!$E$23,BB40/BB39-1,#N/A) ->  | BK40: =IF(BC39>'goal seek'!$E$23,BC40/BC39-1,#N/A) -> -0.1175400526 | BL40: =IF(BD39>'goal seek'!$E$23,BD40/BD39-1,#N/A) ->  | BM40: =IF(BE39>'goal seek'!$E$23,BE40/BE39-1,#N/A) -> -0.07000030352 | BO40: =AX40 -> 2051 | BP40: =RM!I46 -> 0.4261084308 | BQ40: =RM!P46 -> -0.0746263961 | BR40: =RM!W46 -> 0.1473879278 | BS40: =RM!AD46 -> -0.0746263961 | BT40: =RM!AK46 -> 0.2789120656 | BU40: =RM!AQ46 -> -0.0746263961 | BV40: =FI!F43 -> 0.4261084308 | BX40: 2051 | BY40: =IF(BG40<>"#NV",RM!$I$10,#N/A) -> -0.07000030352 | BZ40: =IF(BH40<>"#NV",RM!M46,#N/A) ->  | CA40: =IF(BI40<>"#NV",RM!T46,#N/A) -> -0.1852212155 | CB40: =IF(BJ40<>"#NV",RM!AA46,#N/A) ->  | CC40: =IF(BK40<>"#NV",RM!AH46,#N/A) -> -0.1175400526
AX41: 2052 | AY41: =RM!E47 -> 3.87644231 | AZ41: =RM!K47 -> -0.73 | BA41: =RM!R47 -> 1.166331868 | BB41: =RM!Y47 -> -0.73 | BC41: =RM!AF47 -> 2.402653393 | BD41: =RM!AM47 -> -0.73 | BE41: =FI!B44 -> 3.87644231 | BF41: 2052 | BG41: =IF(AY40>'goal seek'!$E$24,AY41/AY40-1,#N/A) -> -0.07000030352 | BH41: =IF(AZ40>'goal seek'!$E$23,AZ41/AZ40-1,#N/A) ->  | BI41: =IF(BA40>'goal seek'!$E$23,BA41/BA40-1,#N/A) -> -0.1910348031 | BJ41: =IF(BB40>'goal seek'!$E$23,BB41/BB40-1,#N/A) ->  | BK41: =IF(BC40>'goal seek'!$E$23,BC41/BC40-1,#N/A) -> -0.1193700921 | BL41: =IF(BD40>'goal seek'!$E$23,BD41/BD40-1,#N/A) ->  | BM41: =IF(BE40>'goal seek'!$E$23,BE41/BE40-1,#N/A) -> -0.07000030352 | BO41: 2052 | BP41: =RM!I47 -> 0.3944330293 | BQ41: =RM!P47 -> -0.07427844615 | BR41: =RM!W47 -> 0.1186757792 | BS41: =RM!AD47 -> -0.07427844615 | BT41: =RM!AK47 -> 0.2444730968 | BU41: =RM!AQ47 -> -0.07427844615 | BV41: =FI!F44 -> 0.3944330293 | BX41: 2052 | BY41: =IF(BG41<>"#NV",RM!$I$10,#N/A) -> -0.07000030352 | BZ41: =IF(BH41<>"#NV",RM!M47,#N/A) ->  | CA41: =IF(BI41<>"#NV",RM!T47,#N/A) -> -0.1910348031 | CB41: =IF(BJ41<>"#NV",RM!AA47,#N/A) ->  | CC41: =IF(BK41<>"#NV",RM!AH47,#N/A) -> -0.1193700921
AX42: 2053 | AY42: =RM!E48 -> 3.605090172 | AZ42: =RM!K48 -> -0.73 | BA42: =RM!R48 -> 0.8909059538 | BB42: =RM!Y48 -> -0.73 | BC42: =RM!AF48 -> 2.111520742 | BD42: =RM!AM48 -> -0.73 | BE42: =FI!B45 -> 3.605090172 | BF42: =BF41+1 -> 2053 | BG42: =IF(AY41>'goal seek'!$E$24,AY42/AY41-1,#N/A) -> -0.07000030352 | BH42: =IF(AZ41>'goal seek'!$E$23,AZ42/AZ41-1,#N/A) ->  | BI42: =IF(BA41>'goal seek'!$E$23,BA42/BA41-1,#N/A) ->  | BJ42: =IF(BB41>'goal seek'!$E$23,BB42/BB41-1,#N/A) ->  | BK42: =IF(BC41>'goal seek'!$E$23,BC42/BC41-1,#N/A) -> -0.1211713067 | BL42: =IF(BD41>'goal seek'!$E$23,BD42/BD41-1,#N/A) ->  | BM42: =IF(BE41>'goal seek'!$E$23,BE42/BE41-1,#N/A) -> -0.07000030352 | BO42: 2053 | BP42: =RM!I48 -> 0.3651648779 | BQ42: =RM!P48 -> -0.07394277208 | BR42: =RM!W48 -> 0.09024117245 | BS42: =RM!AD48 -> -0.07394277208 | BT42: =RM!AK48 -> 0.2138790369 | BU42: =RM!AQ48 -> -0.07394277208 | BV42: =FI!F45 -> 0.3651648779 | BX42: 2053 | BY42: =IF(BG42<>"#NV",RM!$I$10,#N/A) -> -0.07000030352 | BZ42: =IF(BH42<>"#NV",RM!M48,#N/A) ->  | CA42: =IF(BI42<>"#NV",RM!T48,#N/A) ->  | CB42: =IF(BJ42<>"#NV",RM!AA48,#N/A) ->  | CC42: =IF(BK42<>"#NV",RM!AH48,#N/A) -> -0.1211713067
AX43: 2054 | AY43: =RM!E49 -> 3.352732765 | AZ43: =RM!K49 -> -0.73 | BA43: =RM!R49 -> 0.6154800398 | BB43: =RM!Y49 -> -0.73 | BC43: =RM!AF49 -> 1.851919788 | BD43: =RM!AM49 -> -0.73 | BE43: =FI!B46 -> 3.352732765 | BF43: 2054 | BG43: =IF(AY42>'goal seek'!$E$24,AY43/AY42-1,#N/A) -> -0.07000030352 | BH43: =IF(AZ42>'goal seek'!$E$23,AZ43/AZ42-1,#N/A) ->  | BI43: =IF(BA42>'goal seek'!$E$23,BA43/BA42-1,#N/A) ->  | BJ43: =IF(BB42>'goal seek'!$E$23,BB43/BB42-1,#N/A) ->  | BK43: =IF(BC42>'goal seek'!$E$23,BC43/BC42-1,#N/A) -> -0.122945017 | BL43: =IF(BD42>'goal seek'!$E$23,BD43/BD42-1,#N/A) ->  | BM43: =IF(BE42>'goal seek'!$E$23,BE43/BE42-1,#N/A) -> -0.07000030352 | BO43: 2054 | BP43: =RM!I49 -> 0.3381167635 | BQ43: =RM!P49 -> -0.07361912047 | BR43: =RM!W49 -> 0.06206999891 | BS43: =RM!AD49 -> -0.07361912047 | BT43: =RM!AK49 -> 0.186762611 | BU43: =RM!AQ49 -> -0.07361912047 | BV43: =FI!F46 -> 0.3381167635 | BX43: 2054 | BY43: =IF(BG43<>"#NV",RM!$I$10,#N/A) -> -0.07000030352 | BZ43: =IF(BH43<>"#NV",RM!M49,#N/A) ->  | CA43: =IF(BI43<>"#NV",RM!T49,#N/A) ->  | CB43: =IF(BJ43<>"#NV",RM!AA49,#N/A) ->  | CC43: =IF(BK43<>"#NV",RM!AH49,#N/A) -> -0.122945017
AX44: 2055 | AY44: =RM!E50 -> 3.118040454 | AZ44: =RM!K50 -> -0.73 | BA44: =RM!R50 -> 0.3400541259 | BB44: =RM!Y50 -> -0.73 | BC44: =RM!AF50 -> 1.620999381 | BD44: =RM!AM50 -> -0.73 | BE44: =FI!B47 -> 3.118040454 | BF44: 2055 | BG44: =IF(AY43>'goal seek'!$E$24,AY44/AY43-1,#N/A) -> -0.07000030352 | BH44: =IF(AZ43>'goal seek'!$E$23,AZ44/AZ43-1,#N/A) ->  | BI44: =IF(BA43>'goal seek'!$E$23,BA44/BA43-1,#N/A) ->  | BJ44: =IF(BB43>'goal seek'!$E$23,BB44/BB43-1,#N/A) ->  | BK44: =IF(BC43>'goal seek'!$E$23,BC44/BC43-1,#N/A) -> -0.1246924458 | BL44: =IF(BD43>'goal seek'!$E$23,BD44/BD43-1,#N/A) ->  | BM44: =IF(BE43>'goal seek'!$E$23,BE44/BE43-1,#N/A) -> -0.07000030352 | BO44: 2055 | BP44: =RM!I50 -> 0.3131161878 | BQ44: =RM!P50 -> -0.07330720061 | BR44: =RM!W50 -> 0.0341485151 | BS44: =RM!AD50 -> -0.07330720061 | BT44: =RM!AK50 -> 0.1627820915 | BU44: =RM!AQ50 -> -0.07330720061 | BV44: =FI!F47 -> 0.3131161878 | BX44: 2055 | BY44: =IF(BG44<>"#NV",RM!$I$10,#N/A) -> -0.07000030352 | BZ44: =IF(BH44<>"#NV",RM!M50,#N/A) ->  | CA44: =IF(BI44<>"#NV",RM!T50,#N/A) ->  | CB44: =IF(BJ44<>"#NV",RM!AA50,#N/A) ->  | CC44: =IF(BK44<>"#NV",RM!AH50,#N/A) -> -0.1246924458
AX45: 2056 | AY45: =RM!E51 -> 2.899776676 | AZ45: =RM!K51 -> -0.73 | BA45: =RM!R51 -> 0.06462821191 | BB45: =RM!Y51 -> -0.73 | BC45: =RM!AF51 -> 1.416081185 | BD45: =RM!AM51 -> -0.73 | BE45: =FI!B48 -> 2.899776676 | BF45: 2056 | BG45: =IF(AY44>'goal seek'!$E$24,AY45/AY44-1,#N/A) -> -0.07000030352 | BH45: =IF(AZ44>'goal seek'!$E$23,AZ45/AZ44-1,#N/A) ->  | BI45: =IF(BA44>'goal seek'!$E$23,BA45/BA44-1,#N/A) ->  | BJ45: =IF(BB44>'goal seek'!$E$23,BB45/BB44-1,#N/A) ->  | BK45: =IF(BC44>'goal seek'!$E$23,BC45/BC44-1,#N/A) -> -0.1264147278 | BL45: =IF(BD44>'goal seek'!$E$23,BD45/BD44-1,#N/A) ->  | BM45: =IF(BE44>'goal seek'!$E$23,BE45/BE44-1,#N/A) -> -0.07000030352 | BO45: 2056 | BP45: =RM!I51 -> 0.2900043968 | BQ45: =RM!P51 -> -0.07300672891 | BR45: =RM!W51 -> 0.006463416914 | BS45: =RM!AD51 -> -0.07300672891 | BT45: =RM!AK51 -> 0.1416211715 | BU45: =RM!AQ51 -> -0.07300672891 | BV45: =FI!F48 -> 0.2900043968 | BX45: 2056 | BY45: =IF(BG45<>"#NV",RM!$I$10,#N/A) -> -0.07000030352 | BZ45: =IF(BH45<>"#NV",RM!M51,#N/A) ->  | CA45: =IF(BI45<>"#NV",RM!T51,#N/A) ->  | CB45: =IF(BJ45<>"#NV",RM!AA51,#N/A) ->  | CC45: =IF(BK45<>"#NV",RM!AH51,#N/A) -> -0.1264147278
AX46: 2057 | AY46: =RM!E52 -> 2.696791428 | AZ46: =RM!K52 -> -0.73 | BA46: =RM!R52 -> -0.210797702 | BB46: =RM!Y52 -> -0.73 | BC46: =RM!AF52 -> 1.234662892 | BD46: =RM!AM52 -> -0.73 | BE46: =FI!B49 -> 2.696791428 | BF46: 2057 | BG46: =IF(AY45>'goal seek'!$E$24,AY46/AY45-1,#N/A) -> -0.07000030352 | BH46: =IF(AZ45>'goal seek'!$E$23,AZ46/AZ45-1,#N/A) ->  | BI46: =IF(BA45>'goal seek'!$E$23,BA46/BA45-1,#N/A) ->  | BJ46: =IF(BB45>'goal seek'!$E$23,BB46/BB45-1,#N/A) ->  | BK46: =IF(BC45>'goal seek'!$E$23,BC46/BC45-1,#N/A) -> -0.1281129183 | BL46: =IF(BD45>'goal seek'!$E$23,BD46/BD45-1,#N/A) ->  | BM46: =IF(BE45>'goal seek'!$E$23,BE46/BE45-1,#N/A) -> -0.07000030352 | BO46: 2057 | BP46: =RM!I52 -> 0.2686349198 | BQ46: =RM!P52 -> -0.07271733713 | BR46: =RM!W52 -> -0.02099814735 | BS46: =RM!AD52 -> -0.07271733713 | BT46: =RM!AK52 -> 0.1229882161 | BU46: =RM!AQ52 -> -0.07271733713 | BV46: =FI!F49 -> 0.2686349198 | BX46: 2057 | BY46: =IF(BG46<>"#NV",RM!$I$10,#N/A) -> -0.07000030352 | BZ46: =IF(BH46<>"#NV",RM!M52,#N/A) ->  | CA46: =IF(BI46<>"#NV",RM!T52,#N/A) ->  | CB46: =IF(BJ46<>"#NV",RM!AA52,#N/A) ->  | CC46: =IF(BK46<>"#NV",RM!AH52,#N/A) -> -0.1281129183
AX47: 2058 | AY47: =RM!E53 -> 2.50801521 | AZ47: =RM!K53 -> -0.73 | BA47: =RM!R53 -> -0.486223616 | BB47: =RM!Y53 -> -0.73 | BC47: =RM!AF53 -> 1.053244599 | BD47: =RM!AM53 -> -0.73 | BE47: =FI!B50 -> 2.50801521 | BF47: 2058 | BG47: =IF(AY46>'goal seek'!$E$24,AY47/AY46-1,#N/A) -> -0.07000030352 | BH47: =IF(AZ46>'goal seek'!$E$23,AZ47/AZ46-1,#N/A) ->  | BI47: =IF(BA46>'goal seek'!$E$23,BA47/BA46-1,#N/A) ->  | BJ47: =IF(BB46>'goal seek'!$E$23,BB47/BB46-1,#N/A) ->  | BK47: =IF(BC46>'goal seek'!$E$23,BC47/BC46-1,#N/A) ->  | BL47: =IF(BD46>'goal seek'!$E$23,BD47/BD46-1,#N/A) ->  | BM47: =IF(BE46>'goal seek'!$E$23,BE47/BE46-1,#N/A) -> -0.07000030352 | BO47: 2058 | BP47: =RM!I53 -> 0.2488726283 | BQ47: =RM!P53 -> -0.07243856334 | BR47: =RM!W53 -> -0.04824841124 | BS47: =RM!AD53 -> -0.07243856334 | BT47: =RM!AK53 -> 0.1045144186 | BU47: =RM!AQ53 -> -0.07243856334 | BV47: =FI!F50 -> 0.2488726283 | BX47: 2058 | BY47: =IF(BG47<>"#NV",RM!$I$10,#N/A) -> -0.07000030352 | BZ47: =IF(BH47<>"#NV",RM!M53,#N/A) ->  | CA47: =IF(BI47<>"#NV",RM!T53,#N/A) ->  | CB47: =IF(BJ47<>"#NV",RM!AA53,#N/A) ->  | CC47: =IF(BK47<>"#NV",RM!AH53,#N/A) -> 
AX48: 2059 | AY48: =RM!E54 -> 2.332453384 | AZ48: =RM!K54 -> -0.73 | BA48: =RM!R54 -> -0.73 | BB48: =RM!Y54 -> -0.73 | BC48: =RM!AF54 -> 0.8718263054 | BD48: =RM!AM54 -> -0.73 | BE48: =FI!B51 -> 2.332453384 | BF48: 2059 | BG48: =IF(AY47>'goal seek'!$E$24,AY48/AY47-1,#N/A) -> -0.07000030352 | BH48: =IF(AZ47>'goal seek'!$E$23,AZ48/AZ47-1,#N/A) ->  | BI48: =IF(BA47>'goal seek'!$E$23,BA48/BA47-1,#N/A) ->  | BJ48: =IF(BB47>'goal seek'!$E$23,BB48/BB47-1,#N/A) ->  | BK48: =IF(BC47>'goal seek'!$E$23,BC48/BC47-1,#N/A) ->  | BL48: =IF(BD47>'goal seek'!$E$23,BD48/BD47-1,#N/A) ->  | BM48: =IF(BE47>'goal seek'!$E$23,BE48/BE47-1,#N/A) -> -0.07000030352 | BO48: 2059 | BP48: =RM!I54 -> 0.2305930651 | BQ48: =RM!P54 -> -0.07216990429 | BR48: =RM!W54 -> -0.07216990429 | BS48: =RM!AD54 -> -0.07216990429 | BT48: =RM!AK54 -> 0.08619126168 | BU48: =RM!AQ54 -> -0.07216990429 | BV48: =FI!F51 -> 0.2305930651 | BX48: 2059 | BY48: =IF(BG48<>"#NV",RM!$I$10,#N/A) -> -0.07000030352 | BZ48: =IF(BH48<>"#NV",RM!M54,#N/A) ->  | CA48: =IF(BI48<>"#NV",RM!T54,#N/A) ->  | CB48: =IF(BJ48<>"#NV",RM!AA54,#N/A) ->  | CC48: =IF(BK48<>"#NV",RM!AH54,#N/A) -> 
AW49: 2060 | AX49: 2060 | AY49: =RM!E55 -> 2.169180939 | AZ49: =RM!K55 -> -0.73 | BA49: =RM!R55 -> -0.73 | BB49: =RM!Y55 -> -0.73 | BC49: =RM!AF55 -> 0.6904080122 | BD49: =RM!AM55 -> -0.73 | BE49: =FI!B52 -> 2.169180939 | BF49: 2060 | BG49: =IF(AY48>'goal seek'!$E$24,AY49/AY48-1,#N/A) -> -0.07000030352 | BH49: =IF(AZ48>'goal seek'!$E$23,AZ49/AZ48-1,#N/A) ->  | BI49: =IF(BA48>'goal seek'!$E$23,BA49/BA48-1,#N/A) ->  | BJ49: =IF(BB48>'goal seek'!$E$23,BB49/BB48-1,#N/A) ->  | BK49: =IF(BC48>'goal seek'!$E$23,BC49/BC48-1,#N/A) ->  | BL49: =IF(BD48>'goal seek'!$E$23,BD49/BD48-1,#N/A) ->  | BM49: =IF(BE48>'goal seek'!$E$23,BE49/BE48-1,#N/A) -> -0.07000030352 | BO49: 2060 | BP49: =RM!I55 -> 0.2136819079 | BQ49: =RM!P55 -> -0.07191091806 | BR49: =RM!W55 -> -0.07191091806 | BS49: =RM!AD55 -> -0.07191091806 | BT49: =RM!AK55 -> 0.06801078629 | BU49: =RM!AQ55 -> -0.07191091806 | BV49: =FI!F52 -> 0.2136819079 | BX49: 2060 | BY49: =IF(BG49<>"#NV",RM!$I$10,#N/A) -> -0.07000030352 | BZ49: =IF(BH49<>"#NV",RM!M55,#N/A) ->  | CA49: =IF(BI49<>"#NV",RM!T55,#N/A) ->  | CB49: =IF(BJ49<>"#NV",RM!AA55,#N/A) ->  | CC49: =IF(BK49<>"#NV",RM!AH55,#N/A) -> 
AX50: 2061 | AY50: =RM!E56 -> 2.017337615 | AZ50: =RM!K56 -> -0.73 | BA50: =RM!R56 -> -0.73 | BB50: =RM!Y56 -> -0.73 | BC50: =RM!AF56 -> 0.508989719 | BD50: =RM!AM56 -> -0.73 | BE50: =FI!B53 -> 2.017337615 | BF50: 2061 | BG50: =IF(AY49>'goal seek'!$E$24,AY50/AY49-1,#N/A) -> -0.07000030352 | BH50: =IF(AZ49>'goal seek'!$E$23,AZ50/AZ49-1,#N/A) ->  | BI50: =IF(BA49>'goal seek'!$E$23,BA50/BA49-1,#N/A) ->  | BJ50: =IF(BB49>'goal seek'!$E$23,BB50/BB49-1,#N/A) ->  | BK50: =IF(BC49>'goal seek'!$E$23,BC50/BC49-1,#N/A) ->  | BL50: =IF(BD49>'goal seek'!$E$23,BD50/BD49-1,#N/A) ->  | BM50: =IF(BE49>'goal seek'!$E$23,BE50/BE49-1,#N/A) -> -0.07000030352 | BO50: 2061 | BP50: =RM!I56 -> 0.1980342522 | BQ50: =RM!P56 -> -0.07166128417 | BR50: =RM!W56 -> -0.07166128417 | BS50: =RM!AD56 -> -0.07166128417 | BT50: =RM!AK56 -> 0.04996555738 | BU50: =RM!AQ56 -> -0.07166128417 | BV50: =FI!F53 -> 0.1980342522 | BX50: 2061 | BY50: =IF(BG50<>"#NV",RM!$I$10,#N/A) -> -0.07000030352 | BZ50: =IF(BH50<>"#NV",RM!M56,#N/A) ->  | CA50: =IF(BI50<>"#NV",RM!T56,#N/A) ->  | CB50: =IF(BJ50<>"#NV",RM!AA56,#N/A) ->  | CC50: =IF(BK50<>"#NV",RM!AH56,#N/A) -> 
AX51: 2062 | AY51: =RM!E57 -> 1.87612337 | AZ51: =RM!K57 -> -0.73 | BA51: =RM!R57 -> -0.73 | BB51: =RM!Y57 -> -0.73 | BC51: =RM!AF57 -> 0.3275714257 | BD51: =RM!AM57 -> -0.73 | BE51: =FI!B54 -> 1.87612337 | BF51: 2062 | BG51: =IF(AY50>'goal seek'!$E$24,AY51/AY50-1,#N/A) -> -0.07000030352 | BH51: =IF(AZ50>'goal seek'!$E$23,AZ51/AZ50-1,#N/A) ->  | BI51: =IF(BA50>'goal seek'!$E$23,BA51/BA50-1,#N/A) ->  | BJ51: =IF(BB50>'goal seek'!$E$23,BB51/BB50-1,#N/A) ->  | BK51: =IF(BC50>'goal seek'!$E$23,BC51/BC50-1,#N/A) ->  | BL51: =IF(BD50>'goal seek'!$E$23,BD51/BD50-1,#N/A) ->  | BM51: =IF(BE50>'goal seek'!$E$23,BE51/BE50-1,#N/A) -> -0.07000030352 | BO51: 2062 | BP51: =RM!I57 -> 0.183553629 | BQ51: =RM!P57 -> -0.07142075587 | BR51: =RM!W57 -> -0.07142075587 | BS51: =RM!AD57 -> -0.07142075587 | BT51: =RM!AK57 -> 0.03204849155 | BU51: =RM!AQ57 -> -0.07142075587 | BV51: =FI!F54 -> 0.183553629 | BX51: 2062 | BY51: =IF(BG51<>"#NV",RM!$I$10,#N/A) -> -0.07000030352 | BZ51: =IF(BH51<>"#NV",RM!M57,#N/A) ->  | CA51: =IF(BI51<>"#NV",RM!T57,#N/A) ->  | CB51: =IF(BJ51<>"#NV",RM!AA57,#N/A) ->  | CC51: =IF(BK51<>"#NV",RM!AH57,#N/A) -> 
AX52: =AX51+1 -> 2063 | AY52: =RM!E58 -> 1.744794164 | AZ52: =RM!K58 -> -0.73 | BA52: =RM!R58 -> -0.73 | BB52: =RM!Y58 -> -0.73 | BC52: =RM!AF58 -> 0.1461531325 | BD52: =RM!AM58 -> -0.73 | BE52: =FI!B55 -> 1.744794164 | BF52: 2063 | BG52: =IF(AY51>'goal seek'!$E$24,AY52/AY51-1,#N/A) -> -0.07000030352 | BH52: =IF(AZ51>'goal seek'!$E$23,AZ52/AZ51-1,#N/A) ->  | BI52: =IF(BA51>'goal seek'!$E$23,BA52/BA51-1,#N/A) ->  | BJ52: =IF(BB51>'goal seek'!$E$23,BB52/BB51-1,#N/A) ->  | BK52: =IF(BC51>'goal seek'!$E$23,BC52/BC51-1,#N/A) ->  | BL52: =IF(BD51>'goal seek'!$E$23,BD52/BD51-1,#N/A) ->  | BM52: =IF(BE51>'goal seek'!$E$23,BE52/BE51-1,#N/A) -> -0.07000030352 | BO52: 2063 | BP52: =RM!I58 -> 0.1701510709 | BQ52: =RM!P58 -> -0.07118907449 | BR52: =RM!W58 -> -0.07118907449 | BS52: =RM!AD58 -> -0.07118907449 | BT52: =RM!AK58 -> 0.01425274827 | BU52: =RM!AQ58 -> -0.07118907449 | BV52: =FI!F55 -> 0.1701510709 | BX52: 2063 | BY52: =IF(BG52<>"#NV",RM!$I$10,#N/A) -> -0.07000030352 | BZ52: =IF(BH52<>"#NV",RM!M58,#N/A) ->  | CA52: =IF(BI52<>"#NV",RM!T58,#N/A) ->  | CB52: =IF(BJ52<>"#NV",RM!AA58,#N/A) ->  | CC52: =IF(BK52<>"#NV",RM!AH58,#N/A) -> 
AX53: 2064 | AY53: =RM!E59 -> 1.622658043 | AZ53: =RM!K59 -> -0.73 | BA53: =RM!R59 -> -0.73 | BB53: =RM!Y59 -> -0.73 | BC53: =RM!AF59 -> -0.03526516072 | BD53: =RM!AM59 -> -0.73 | BE53: =FI!B56 -> 1.622658043 | BF53: 2064 | BG53: =IF(AY52>'goal seek'!$E$24,AY53/AY52-1,#N/A) -> -0.07000030352 | BH53: =IF(AZ52>'goal seek'!$E$23,AZ53/AZ52-1,#N/A) ->  | BI53: =IF(BA52>'goal seek'!$E$23,BA53/BA52-1,#N/A) ->  | BJ53: =IF(BB52>'goal seek'!$E$23,BB53/BB52-1,#N/A) ->  | BK53: =IF(BC52>'goal seek'!$E$23,BC53/BC52-1,#N/A) ->  | BL53: =IF(BD52>'goal seek'!$E$23,BD53/BD52-1,#N/A) ->  | BM53: =IF(BE52>'goal seek'!$E$23,BE53/BE52-1,#N/A) -> -0.07000030352 | BO53: 2064 | BP53: =RM!I59 -> 0.1577445958 | BQ53: =RM!P59 -> -0.07096600262 | BR53: =RM!W59 -> -0.07096600262 | BS53: =RM!AD59 -> -0.07096600262 | BT53: =RM!AK59 -> -0.003428256833 | BU53: =RM!AQ59 -> -0.07096600262 | BV53: =FI!F56 -> 0.1577445958 | BX53: 2064 | BY53: =IF(BG53<>"#NV",RM!$I$10,#N/A) -> -0.07000030352 | BZ53: =IF(BH53<>"#NV",RM!M59,#N/A) ->  | CA53: =IF(BI53<>"#NV",RM!T59,#N/A) ->  | CB53: =IF(BJ53<>"#NV",RM!AA59,#N/A) ->  | CC53: =IF(BK53<>"#NV",RM!AH59,#N/A) -> 
AX54: 2065 | AY54: =RM!E60 -> 1.500521922 | AZ54: =RM!K60 -> -0.73 | BA54: =RM!R60 -> -0.73 | BB54: =RM!Y60 -> -0.73 | BC54: =RM!AF60 -> -0.2166834539 | BD54: =RM!AM60 -> -0.73 | BE54: =FI!B57 -> 1.500521922 | BF54: 2065 | BG54: =IF(AY53>'goal seek'!$E$24,AY54/AY53-1,#N/A) ->  | BH54: =IF(AZ53>'goal seek'!$E$23,AZ54/AZ53-1,#N/A) ->  | BI54: =IF(BA53>'goal seek'!$E$23,BA54/BA53-1,#N/A) ->  | BJ54: =IF(BB53>'goal seek'!$E$23,BB54/BB53-1,#N/A) ->  | BK54: =IF(BC53>'goal seek'!$E$23,BC54/BC53-1,#N/A) ->  | BL54: =IF(BD53>'goal seek'!$E$23,BD54/BD53-1,#N/A) ->  | BM54: =IF(BE53>'goal seek'!$E$23,BE54/BE53-1,#N/A) -> -0.07526916813 | BO54: 2065 | BP54: =RM!I60 -> 0.1454299879 | BQ54: =RM!P60 -> -0.07075130967 | BR54: =RM!W60 -> -0.07075130967 | BS54: =RM!AD60 -> -0.07075130967 | BT54: =RM!AK60 -> -0.02100087418 | BU54: =RM!AQ60 -> -0.07075130967 | BV54: =FI!F57 -> 0.1454299879 | BX54: 2065 | BY54: =IF(BG54<>"#NV",RM!$I$10,#N/A) ->  | BZ54: =IF(BH54<>"#NV",RM!M60,#N/A) ->  | CA54: =IF(BI54<>"#NV",RM!T60,#N/A) ->  | CB54: =IF(BJ54<>"#NV",RM!AA60,#N/A) ->  | CC54: =IF(BK54<>"#NV",RM!AH60,#N/A) -> 
AX55: 2066 | AY55: =RM!E61 -> 1.378385801 | AZ55: =RM!K61 -> -0.73 | BA55: =RM!R61 -> -0.73 | BB55: =RM!Y61 -> -0.73 | BC55: =RM!AF61 -> -0.3981017472 | BD55: =RM!AM61 -> -0.73 | BE55: =FI!B58 -> 1.378385801 | BF55: 2066 | BG55: =IF(AY54>'goal seek'!$E$24,AY55/AY54-1,#N/A) ->  | BH55: =IF(AZ54>'goal seek'!$E$23,AZ55/AZ54-1,#N/A) ->  | BI55: =IF(BA54>'goal seek'!$E$23,BA55/BA54-1,#N/A) ->  | BJ55: =IF(BB54>'goal seek'!$E$23,BB55/BB54-1,#N/A) ->  | BK55: =IF(BC54>'goal seek'!$E$23,BC55/BC54-1,#N/A) ->  | BL55: =IF(BD54>'goal seek'!$E$23,BD55/BD54-1,#N/A) ->  | BM55: =IF(BE54>'goal seek'!$E$23,BE55/BE54-1,#N/A) -> -0.08139575922 | BO55: 2066 | BP55: =RM!I61 -> 0.1332025701 | BQ55: =RM!P61 -> -0.07054474598 | BR55: =RM!W61 -> -0.07054474598 | BS55: =RM!AD61 -> -0.07054474598 | BT55: =RM!AK61 -> -0.03847121456 | BU55: =RM!AQ61 -> -0.07054474598 | BV55: =FI!F58 -> 0.1332025701 | BX55: 2066 | BY55: =IF(BG55<>"#NV",RM!$I$10,#N/A) ->  | BZ55: =IF(BH55<>"#NV",RM!M61,#N/A) ->  | CA55: =IF(BI55<>"#NV",RM!T61,#N/A) ->  | CB55: =IF(BJ55<>"#NV",RM!AA61,#N/A) ->  | CC55: =IF(BK55<>"#NV",RM!AH61,#N/A) -> 
AX56: 2067 | AY56: =RM!E62 -> 1.25624968 | AZ56: =RM!K62 -> -0.73 | BA56: =RM!R62 -> -0.73 | BB56: =RM!Y62 -> -0.73 | BC56: =RM!AF62 -> -0.5795200404 | BD56: =RM!AM62 -> -0.73 | BE56: =FI!B59 -> 1.25624968 | BF56: 2067 | BG56: =IF(AY55>'goal seek'!$E$24,AY56/AY55-1,#N/A) ->  | BH56: =IF(AZ55>'goal seek'!$E$23,AZ56/AZ55-1,#N/A) ->  | BI56: =IF(BA55>'goal seek'!$E$23,BA56/BA55-1,#N/A) ->  | BJ56: =IF(BB55>'goal seek'!$E$23,BB56/BB55-1,#N/A) ->  | BK56: =IF(BC55>'goal seek'!$E$23,BC56/BC55-1,#N/A) ->  | BL56: =IF(BD55>'goal seek'!$E$23,BD56/BD55-1,#N/A) ->  | BM56: =IF(BE55>'goal seek'!$E$23,BE56/BE55-1,#N/A) -> -0.08860808127 | BO56: 2067 | BP56: =RM!I62 -> 0.1210578463 | BQ56: =RM!P62 -> -0.0703460699 | BR56: =RM!W62 -> -0.0703460699 | BS56: =RM!AD62 -> -0.0703460699 | BT56: =RM!AK62 -> -0.05584514695 | BU56: =RM!AQ62 -> -0.0703460699 | BV56: =FI!F59 -> 0.1210578463 | BX56: 2067 | BY56: =IF(BG56<>"#NV",RM!$I$10,#N/A) ->  | BZ56: =IF(BH56<>"#NV",RM!M62,#N/A) ->  | CA56: =IF(BI56<>"#NV",RM!T62,#N/A) ->  | CB56: =IF(BJ56<>"#NV",RM!AA62,#N/A) ->  | CC56: =IF(BK56<>"#NV",RM!AH62,#N/A) -> 
AX57: 2068 | AY57: =RM!E63 -> 1.134113559 | AZ57: =RM!K63 -> -0.73 | BA57: =RM!R63 -> -0.73 | BB57: =RM!Y63 -> -0.73 | BC57: =RM!AF63 -> -0.73 | BD57: =RM!AM63 -> -0.73 | BE57: =FI!B60 -> 1.134113559 | BF57: 2068 | BG57: =IF(AY56>'goal seek'!$E$24,AY57/AY56-1,#N/A) ->  | BH57: =IF(AZ56>'goal seek'!$E$23,AZ57/AZ56-1,#N/A) ->  | BI57: =IF(BA56>'goal seek'!$E$23,BA57/BA56-1,#N/A) ->  | BJ57: =IF(BB56>'goal seek'!$E$23,BB57/BB56-1,#N/A) ->  | BK57: =IF(BC56>'goal seek'!$E$23,BC57/BC56-1,#N/A) ->  | BL57: =IF(BD56>'goal seek'!$E$23,BD57/BD56-1,#N/A) ->  | BM57: =IF(BE56>'goal seek'!$E$23,BE57/BE56-1,#N/A) ->  | BO57: 2068 | BP57: =RM!I63 -> 0.1089915347 | BQ57: =RM!P63 -> -0.07015507368 | BR57: =RM!W63 -> -0.07015507368 | BS57: =RM!AD63 -> -0.07015507368 | BT57: =RM!AK63 -> -0.07015507368 | BU57: =RM!AQ63 -> -0.07015507368 | BV57: =FI!F60 -> 0.1089915347 | BX57: 2068 | BY57: =IF(BG57<>"#NV",RM!$I$10,#N/A) ->  | BZ57: =IF(BH57<>"#NV",RM!M63,#N/A) ->  | CA57: =IF(BI57<>"#NV",RM!T63,#N/A) ->  | CB57: =IF(BJ57<>"#NV",RM!AA63,#N/A) ->  | CC57: =IF(BK57<>"#NV",RM!AH63,#N/A) -> 
AX58: =AX57+1 -> 2069 | AY58: =RM!E64 -> 1.011977438 | AZ58: =RM!K64 -> -0.73 | BA58: =RM!R64 -> -0.73 | BB58: =RM!Y64 -> -0.73 | BC58: =RM!AF64 -> -0.73 | BD58: =RM!AM64 -> -0.73 | BE58: =FI!B61 -> 1.011977438 | BF58: =BF57+1 -> 2069 | BG58: =IF(AY57>'goal seek'!$E$24,AY58/AY57-1,#N/A) ->  | BH58: =IF(AZ57>'goal seek'!$E$23,AZ58/AZ57-1,#N/A) ->  | BI58: =IF(BA57>'goal seek'!$E$23,BA58/BA57-1,#N/A) ->  | BJ58: =IF(BB57>'goal seek'!$E$23,BB58/BB57-1,#N/A) ->  | BK58: =IF(BC57>'goal seek'!$E$23,BC58/BC57-1,#N/A) ->  | BL58: =IF(BD57>'goal seek'!$E$23,BD58/BD57-1,#N/A) ->  | BM58: =IF(BE57>'goal seek'!$E$23,BE58/BE57-1,#N/A) ->  | BO58: 2069 | BP58: =RM!I64 -> 0.09699950428 | BQ58: =RM!P64 -> -0.06997155813 | BR58: =RM!W64 -> -0.06997155813 | BS58: =RM!AD64 -> -0.06997155813 | BT58: =RM!AK64 -> -0.06997155813 | BU58: =RM!AQ64 -> -0.06997155813 | BV58: =FI!F61 -> 0.09699950428 | BX58: 2069 | BY58: =IF(BG58<>"#NV",RM!$I$10,#N/A) ->  | BZ58: =IF(BH58<>"#NV",RM!M64,#N/A) ->  | CA58: =IF(BI58<>"#NV",RM!T64,#N/A) ->  | CB58: =IF(BJ58<>"#NV",RM!AA64,#N/A) ->  | CC58: =IF(BK58<>"#NV",RM!AH64,#N/A) -> 
AW59: 2070 | AX59: 2070 | AY59: =RM!E65 -> 0.8898413168 | AZ59: =RM!K65 -> -0.73 | BA59: =RM!R65 -> -0.73 | BB59: =RM!Y65 -> -0.73 | BC59: =RM!AF65 -> -0.73 | BD59: =RM!AM65 -> -0.73 | BE59: =FI!B62 -> 0.8898413168 | BF59: 2070 | BG59: =IF(AY58>'goal seek'!$E$24,AY59/AY58-1,#N/A) ->  | BH59: =IF(AZ58>'goal seek'!$E$23,AZ59/AZ58-1,#N/A) ->  | BI59: =IF(BA58>'goal seek'!$E$23,BA59/BA58-1,#N/A) ->  | BJ59: =IF(BB58>'goal seek'!$E$23,BB59/BB58-1,#N/A) ->  | BK59: =IF(BC58>'goal seek'!$E$23,BC59/BC58-1,#N/A) ->  | BL59: =IF(BD58>'goal seek'!$E$23,BD59/BD58-1,#N/A) ->  | BM59: =IF(BE58>'goal seek'!$E$23,BE59/BE58-1,#N/A) ->  | BO59: 2070 | BP59: =RM!I65 -> 0.08507776478 | BQ59: =RM!P65 -> -0.06979532993 | BR59: =RM!W65 -> -0.06979532993 | BS59: =RM!AD65 -> -0.06979532993 | BT59: =RM!AK65 -> -0.06979532993 | BU59: =RM!AQ65 -> -0.06979532993 | BV59: =FI!F62 -> 0.08507776478 | BX59: 2070 | BY59: =IF(BG59<>"#NV",RM!$I$10,#N/A) ->  | BZ59: =IF(BH59<>"#NV",RM!M65,#N/A) ->  | CA59: =IF(BI59<>"#NV",RM!T65,#N/A) ->  | CB59: =IF(BJ59<>"#NV",RM!AA65,#N/A) ->  | CC59: =IF(BK59<>"#NV",RM!AH65,#N/A) -> 
AX60: 2071 | AY60: =RM!E66 -> 0.7677051957 | AZ60: =RM!K66 -> -0.73 | BA60: =RM!R66 -> -0.73 | BB60: =RM!Y66 -> -0.73 | BC60: =RM!AF66 -> -0.73 | BD60: =RM!AM66 -> -0.73 | BE60: =FI!B63 -> 0.7677051957 | BF60: 2071 | BG60: =IF(AY59>'goal seek'!$E$24,AY60/AY59-1,#N/A) ->  | BH60: =IF(AZ59>'goal seek'!$E$23,AZ60/AZ59-1,#N/A) ->  | BI60: =IF(BA59>'goal seek'!$E$23,BA60/BA59-1,#N/A) ->  | BJ60: =IF(BB59>'goal seek'!$E$23,BB60/BB59-1,#N/A) ->  | BK60: =IF(BC59>'goal seek'!$E$23,BC60/BC59-1,#N/A) ->  | BL60: =IF(BD59>'goal seek'!$E$23,BD60/BD59-1,#N/A) ->  | BM60: =IF(BE59>'goal seek'!$E$23,BE60/BE59-1,#N/A) ->  | BO60: 2071 | BP60: =RM!I66 -> 0.07322245673 | BQ60: =RM!P66 -> -0.06962619729 | BR60: =RM!W66 -> -0.06962619729 | BS60: =RM!AD66 -> -0.06962619729 | BT60: =RM!AK66 -> -0.06962619729 | BU60: =RM!AQ66 -> -0.06962619729 | BV60: =FI!F63 -> 0.07322245673 | BX60: 2071 | BY60: =IF(BG60<>"#NV",RM!$I$10,#N/A) ->  | BZ60: =IF(BH60<>"#NV",RM!M66,#N/A) ->  | CA60: =IF(BI60<>"#NV",RM!T66,#N/A) ->  | CB60: =IF(BJ60<>"#NV",RM!AA66,#N/A) ->  | CC60: =IF(BK60<>"#NV",RM!AH66,#N/A) -> 
AX61: =AX60+1 -> 2072 | AY61: =RM!E67 -> 0.6455690746 | AZ61: =RM!K67 -> -0.73 | BA61: =RM!R67 -> -0.73 | BB61: =RM!Y67 -> -0.73 | BC61: =RM!AF67 -> -0.73 | BD61: =RM!AM67 -> -0.73 | BE61: =FI!B64 -> 0.6455690746 | BF61: 2072 | BG61: =IF(AY60>'goal seek'!$E$24,AY61/AY60-1,#N/A) ->  | BH61: =IF(AZ60>'goal seek'!$E$23,AZ61/AZ60-1,#N/A) ->  | BI61: =IF(BA60>'goal seek'!$E$23,BA61/BA60-1,#N/A) ->  | BJ61: =IF(BB60>'goal seek'!$E$23,BB61/BB60-1,#N/A) ->  | BK61: =IF(BC60>'goal seek'!$E$23,BC61/BC60-1,#N/A) ->  | BL61: =IF(BD60>'goal seek'!$E$23,BD61/BD60-1,#N/A) ->  | BM61: =IF(BE60>'goal seek'!$E$23,BE61/BE60-1,#N/A) ->  | BO61: 2072 | BP61: =RM!I67 -> 0.06142984467 | BQ61: =RM!P67 -> -0.06946396346 | BR61: =RM!W67 -> -0.06946396346 | BS61: =RM!AD67 -> -0.06946396346 | BT61: =RM!AK67 -> -0.06946396346 | BU61: =RM!AQ67 -> -0.06946396346 | BV61: =FI!F64 -> 0.06142984467 | BX61: 2072 | BY61: =IF(BG61<>"#NV",RM!$I$10,#N/A) ->  | BZ61: =IF(BH61<>"#NV",RM!M67,#N/A) ->  | CA61: =IF(BI61<>"#NV",RM!T67,#N/A) ->  | CB61: =IF(BJ61<>"#NV",RM!AA67,#N/A) ->  | CC61: =IF(BK61<>"#NV",RM!AH67,#N/A) -> 
AX62: =AX61+1 -> 2073 | AY62: =RM!E68 -> 0.5234329536 | AZ62: =RM!K68 -> -0.73 | BA62: =RM!R68 -> -0.73 | BB62: =RM!Y68 -> -0.73 | BC62: =RM!AF68 -> -0.73 | BD62: =RM!AM68 -> -0.73 | BE62: =FI!B65 -> 0.5234329536 | BF62: =BF61+1 -> 2073 | BG62: =IF(AY61>'goal seek'!$E$24,AY62/AY61-1,#N/A) ->  | BH62: =IF(AZ61>'goal seek'!$E$23,AZ62/AZ61-1,#N/A) ->  | BI62: =IF(BA61>'goal seek'!$E$23,BA62/BA61-1,#N/A) ->  | BJ62: =IF(BB61>'goal seek'!$E$23,BB62/BB61-1,#N/A) ->  | BK62: =IF(BC61>'goal seek'!$E$23,BC62/BC61-1,#N/A) ->  | BL62: =IF(BD61>'goal seek'!$E$23,BD62/BD61-1,#N/A) ->  | BM62: =IF(BE61>'goal seek'!$E$23,BE62/BE61-1,#N/A) ->  | BO62: 2073 | BP62: =RM!I68 -> 0.04969632217 | BQ62: =RM!P68 -> -0.06930842803 | BR62: =RM!W68 -> -0.06930842803 | BS62: =RM!AD68 -> -0.06930842803 | BT62: =RM!AK68 -> -0.06930842803 | BU62: =RM!AQ68 -> -0.06930842803 | BV62: =FI!F65 -> 0.04969632217 | BX62: 2073 | BY62: =IF(BG62<>"#NV",RM!$I$10,#N/A) ->  | BZ62: =IF(BH62<>"#NV",RM!M68,#N/A) ->  | CA62: =IF(BI62<>"#NV",RM!T68,#N/A) ->  | CB62: =IF(BJ62<>"#NV",RM!AA68,#N/A) ->  | CC62: =IF(BK62<>"#NV",RM!AH68,#N/A) -> 
AX63: 2074 | AY63: =RM!E69 -> 0.4012968325 | AZ63: =RM!K69 -> -0.73 | BA63: =RM!R69 -> -0.73 | BB63: =RM!Y69 -> -0.73 | BC63: =RM!AF69 -> -0.73 | BD63: =RM!AM69 -> -0.73 | BE63: =FI!B66 -> 0.4012968325 | BF63: 2074 | BG63: =IF(AY62>'goal seek'!$E$24,AY63/AY62-1,#N/A) ->  | BH63: =IF(AZ62>'goal seek'!$E$23,AZ63/AZ62-1,#N/A) ->  | BI63: =IF(BA62>'goal seek'!$E$23,BA63/BA62-1,#N/A) ->  | BJ63: =IF(BB62>'goal seek'!$E$23,BB63/BB62-1,#N/A) ->  | BK63: =IF(BC62>'goal seek'!$E$23,BC63/BC62-1,#N/A) ->  | BL63: =IF(BD62>'goal seek'!$E$23,BD63/BD62-1,#N/A) ->  | BM63: =IF(BE62>'goal seek'!$E$23,BE63/BE62-1,#N/A) ->  | BO63: 2074 | BP63: =RM!I69 -> 0.03801841686 | BQ63: =RM!P69 -> -0.0691593904 | BR63: =RM!W69 -> -0.0691593904 | BS63: =RM!AD69 -> -0.0691593904 | BT63: =RM!AK69 -> -0.0691593904 | BU63: =RM!AQ69 -> -0.0691593904 | BV63: =FI!F66 -> 0.03801841686 | BX63: 2074 | BY63: =IF(BG63<>"#NV",RM!$I$10,#N/A) ->  | BZ63: =IF(BH63<>"#NV",RM!M69,#N/A) ->  | CA63: =IF(BI63<>"#NV",RM!T69,#N/A) ->  | CB63: =IF(BJ63<>"#NV",RM!AA69,#N/A) ->  | CC63: =IF(BK63<>"#NV",RM!AH69,#N/A) -> 
AX64: 2075 | AY64: =RM!E70 -> 0.2791607114 | AZ64: =RM!K70 -> -0.73 | BA64: =RM!R70 -> -0.73 | BB64: =RM!Y70 -> -0.73 | BC64: =RM!AF70 -> -0.73 | BD64: =RM!AM70 -> -0.73 | BE64: =FI!B67 -> 0.2791607114 | BF64: 2075 | BG64: =IF(AY63>'goal seek'!$E$24,AY64/AY63-1,#N/A) ->  | BH64: =IF(AZ63>'goal seek'!$E$23,AZ64/AZ63-1,#N/A) ->  | BI64: =IF(BA63>'goal seek'!$E$23,BA64/BA63-1,#N/A) ->  | BJ64: =IF(BB63>'goal seek'!$E$23,BB64/BB63-1,#N/A) ->  | BK64: =IF(BC63>'goal seek'!$E$23,BC64/BC63-1,#N/A) ->  | BL64: =IF(BD63>'goal seek'!$E$23,BD64/BD63-1,#N/A) ->  | BM64: =IF(BE63>'goal seek'!$E$23,BE64/BE63-1,#N/A) ->  | BO64: 2075 | BP64: =RM!I70 -> 0.02639279541 | BQ64: =RM!P70 -> -0.06901666267 | BR64: =RM!W70 -> -0.06901666267 | BS64: =RM!AD70 -> -0.06901666267 | BT64: =RM!AK70 -> -0.06901666267 | BU64: =RM!AQ70 -> -0.06901666267 | BV64: =FI!F67 -> 0.02639279541 | BX64: 2075 | BY64: =IF(BG64<>"#NV",RM!$I$10,#N/A) ->  | BZ64: =IF(BH64<>"#NV",RM!M70,#N/A) ->  | CA64: =IF(BI64<>"#NV",RM!T70,#N/A) ->  | CB64: =IF(BJ64<>"#NV",RM!AA70,#N/A) ->  | CC64: =IF(BK64<>"#NV",RM!AH70,#N/A) -> 
AX65: 2076 | AY65: =RM!E71 -> 0.1570245903 | AZ65: =RM!K71 -> -0.73 | BA65: =RM!R71 -> -0.73 | BB65: =RM!Y71 -> -0.73 | BC65: =RM!AF71 -> -0.73 | BD65: =RM!AM71 -> -0.73 | BE65: =FI!B68 -> 0.1570245903 | BF65: 2076 | BG65: =IF(AY64>'goal seek'!$E$24,AY65/AY64-1,#N/A) ->  | BH65: =IF(AZ64>'goal seek'!$E$23,AZ65/AZ64-1,#N/A) ->  | BI65: =IF(BA64>'goal seek'!$E$23,BA65/BA64-1,#N/A) ->  | BJ65: =IF(BB64>'goal seek'!$E$23,BB65/BB64-1,#N/A) ->  | BK65: =IF(BC64>'goal seek'!$E$23,BC65/BC64-1,#N/A) ->  | BL65: =IF(BD64>'goal seek'!$E$23,BD65/BD64-1,#N/A) ->  | BM65: =IF(BE64>'goal seek'!$E$23,BE65/BE64-1,#N/A) ->  | BO65: 2076 | BP65: =RM!I71 -> 0.01481625167 | BQ65: =RM!P71 -> -0.06888006329 | BR65: =RM!W71 -> -0.06888006329 | BS65: =RM!AD71 -> -0.06888006329 | BT65: =RM!AK71 -> -0.06888006329 | BU65: =RM!AQ71 -> -0.06888006329 | BV65: =FI!F68 -> 0.01481625167 | BX65: 2076 | BY65: =IF(BG65<>"#NV",RM!$I$10,#N/A) ->  | BZ65: =IF(BH65<>"#NV",RM!M71,#N/A) ->  | CA65: =IF(BI65<>"#NV",RM!T71,#N/A) ->  | CB65: =IF(BJ65<>"#NV",RM!AA71,#N/A) ->  | CC65: =IF(BK65<>"#NV",RM!AH71,#N/A) -> 
AX66: 2077 | AY66: =RM!E72 -> 0.03488846921 | AZ66: =RM!K72 -> -0.73 | BA66: =RM!R72 -> -0.73 | BB66: =RM!Y72 -> -0.73 | BC66: =RM!AF72 -> -0.73 | BD66: =RM!AM72 -> -0.73 | BE66: =FI!B69 -> 0.03488846921 | BF66: 2077 | BG66: =IF(AY65>'goal seek'!$E$24,AY66/AY65-1,#N/A) ->  | BH66: =IF(AZ65>'goal seek'!$E$23,AZ66/AZ65-1,#N/A) ->  | BI66: =IF(BA65>'goal seek'!$E$23,BA66/BA65-1,#N/A) ->  | BJ66: =IF(BB65>'goal seek'!$E$23,BB66/BB65-1,#N/A) ->  | BK66: =IF(BC65>'goal seek'!$E$23,BC66/BC65-1,#N/A) ->  | BL66: =IF(BD65>'goal seek'!$E$23,BD66/BD65-1,#N/A) ->  | BM66: =IF(BE65>'goal seek'!$E$23,BE66/BE65-1,#N/A) ->  | BO66: 2077 | BP66: =RM!I72 -> 0.003285702349 | BQ66: =RM!P72 -> -0.06874943984 | BR66: =RM!W72 -> -0.06874943984 | BS66: =RM!AD72 -> -0.06874943984 | BT66: =RM!AK72 -> -0.06874943984 | BU66: =RM!AQ72 -> -0.06874943984 | BV66: =FI!F69 -> 0.003285702349 | BX66: 2077 | BY66: =IF(BG66<>"#NV",RM!$I$10,#N/A) ->  | BZ66: =IF(BH66<>"#NV",RM!M72,#N/A) ->  | CA66: =IF(BI66<>"#NV",RM!T72,#N/A) ->  | CB66: =IF(BJ66<>"#NV",RM!AA72,#N/A) ->  | CC66: =IF(BK66<>"#NV",RM!AH72,#N/A) -> 
AX67: 2078 | AY67: =RM!E73 -> -0.08724765188 | AZ67: =RM!K73 -> -0.73 | BA67: =RM!R73 -> -0.73 | BB67: =RM!Y73 -> -0.73 | BC67: =RM!AF73 -> -0.73 | BD67: =RM!AM73 -> -0.73 | BE67: =FI!B70 -> -0.08724765188 | BF67: 2078 | BG67: =IF(AY66>'goal seek'!$E$24,AY67/AY66-1,#N/A) ->  | BH67: =IF(AZ66>'goal seek'!$E$23,AZ67/AZ66-1,#N/A) ->  | BI67: =IF(BA66>'goal seek'!$E$23,BA67/BA66-1,#N/A) ->  | BJ67: =IF(BB66>'goal seek'!$E$23,BB67/BB66-1,#N/A) ->  | BK67: =IF(BC66>'goal seek'!$E$23,BC67/BC66-1,#N/A) ->  | BL67: =IF(BD66>'goal seek'!$E$23,BD67/BD66-1,#N/A) ->  | BM67: =IF(BE66>'goal seek'!$E$23,BE67/BE66-1,#N/A) ->  | BO67: 2078 | BP67: =RM!I73 -> -0.008201837437 | BQ67: =RM!P73 -> -0.06862467012 | BR67: =RM!W73 -> -0.06862467012 | BS67: =RM!AD73 -> -0.06862467012 | BT67: =RM!AK73 -> -0.06862467012 | BU67: =RM!AQ73 -> -0.06862467012 | BV67: =FI!F70 -> -0.008201837437 | BX67: 2078 | BY67: =IF(BG67<>"#NV",RM!$I$10,#N/A) ->  | BZ67: =IF(BH67<>"#NV",RM!M73,#N/A) ->  | CA67: =IF(BI67<>"#NV",RM!T73,#N/A) ->  | CB67: =IF(BJ67<>"#NV",RM!AA73,#N/A) ->  | CC67: =IF(BK67<>"#NV",RM!AH73,#N/A) -> 
AX68: 2079 | AY68: =RM!E74 -> -0.209383773 | AZ68: =RM!K74 -> -0.73 | BA68: =RM!R74 -> -0.73 | BB68: =RM!Y74 -> -0.73 | BC68: =RM!AF74 -> -0.73 | BD68: =RM!AM74 -> -0.73 | BE68: =FI!B71 -> -0.209383773 | BF68: 2079 | BG68: =IF(AY67>'goal seek'!$E$24,AY68/AY67-1,#N/A) ->  | BH68: =IF(AZ67>'goal seek'!$E$23,AZ68/AZ67-1,#N/A) ->  | BI68: =IF(BA67>'goal seek'!$E$23,BA68/BA67-1,#N/A) ->  | BJ68: =IF(BB67>'goal seek'!$E$23,BB68/BB67-1,#N/A) ->  | BK68: =IF(BC67>'goal seek'!$E$23,BC68/BC67-1,#N/A) ->  | BL68: =IF(BD67>'goal seek'!$E$23,BD68/BD67-1,#N/A) ->  | BM68: =IF(BE67>'goal seek'!$E$23,BE68/BE67-1,#N/A) ->  | BO68: 2079 | BP68: =RM!I74 -> -0.0196492777 | BQ68: =RM!P74 -> -0.068505656 | BR68: =RM!W74 -> -0.068505656 | BS68: =RM!AD74 -> -0.068505656 | BT68: =RM!AK74 -> -0.068505656 | BU68: =RM!AQ74 -> -0.068505656 | BV68: =FI!F71 -> -0.0196492777 | BX68: 2079 | BY68: =IF(BG68<>"#NV",RM!$I$10,#N/A) ->  | BZ68: =IF(BH68<>"#NV",RM!M74,#N/A) ->  | CA68: =IF(BI68<>"#NV",RM!T74,#N/A) ->  | CB68: =IF(BJ68<>"#NV",RM!AA74,#N/A) ->  | CC68: =IF(BK68<>"#NV",RM!AH74,#N/A) -> 
AW69: 2080 | AX69: 2080 | AY69: =RM!E75 -> -0.331519894 | AZ69: =RM!K75 -> -0.73 | BA69: =RM!R75 -> -0.73 | BB69: =RM!Y75 -> -0.73 | BC69: =RM!AF75 -> -0.73 | BD69: =RM!AM75 -> -0.73 | BE69: =FI!B72 -> -0.331519894 | BF69: 2080 | BG69: =IF(AY68>'goal seek'!$E$24,AY69/AY68-1,#N/A) ->  | BH69: =IF(AZ68>'goal seek'!$E$23,AZ69/AZ68-1,#N/A) ->  | BI69: =IF(BA68>'goal seek'!$E$23,BA69/BA68-1,#N/A) ->  | BJ69: =IF(BB68>'goal seek'!$E$23,BB69/BB68-1,#N/A) ->  | BK69: =IF(BC68>'goal seek'!$E$23,BC69/BC68-1,#N/A) ->  | BL69: =IF(BD68>'goal seek'!$E$23,BD69/BD68-1,#N/A) ->  | BM69: =IF(BE68>'goal seek'!$E$23,BE69/BE68-1,#N/A) ->  | BO69: 2080 | BP69: =RM!I75 -> -0.03105945354 | BQ69: =RM!P75 -> -0.06839227898 | BR69: =RM!W75 -> -0.06839227898 | BS69: =RM!AD75 -> -0.06839227898 | BT69: =RM!AK75 -> -0.06839227898 | BU69: =RM!AQ75 -> -0.06839227898 | BV69: =FI!F72 -> -0.03105945354 | BX69: 2080 | BY69: =IF(BG69<>"#NV",RM!$I$10,#N/A) ->  | BZ69: =IF(BH69<>"#NV",RM!M75,#N/A) ->  | CA69: =IF(BI69<>"#NV",RM!T75,#N/A) ->  | CB69: =IF(BJ69<>"#NV",RM!AA75,#N/A) ->  | CC69: =IF(BK69<>"#NV",RM!AH75,#N/A) -> 
AX70: 2081 | AY70: =RM!E76 -> -0.4536560151 | AZ70: =RM!K76 -> -0.73 | BA70: =RM!R76 -> -0.73 | BB70: =RM!Y76 -> -0.73 | BC70: =RM!AF76 -> -0.73 | BD70: =RM!AM76 -> -0.73 | BE70: =FI!B73 -> -0.4536560151 | BF70: 2081 | BG70: =IF(AY69>'goal seek'!$E$24,AY70/AY69-1,#N/A) ->  | BH70: =IF(AZ69>'goal seek'!$E$23,AZ70/AZ69-1,#N/A) ->  | BI70: =IF(BA69>'goal seek'!$E$23,BA70/BA69-1,#N/A) ->  | BJ70: =IF(BB69>'goal seek'!$E$23,BB70/BB69-1,#N/A) ->  | BK70: =IF(BC69>'goal seek'!$E$23,BC70/BC69-1,#N/A) ->  | BL70: =IF(BD69>'goal seek'!$E$23,BD70/BD69-1,#N/A) ->  | BM70: =IF(BE69>'goal seek'!$E$23,BE70/BE69-1,#N/A) ->  | BO70: 2081 | BP70: =RM!I76 -> -0.04243512923 | BQ70: =RM!P76 -> -0.06828443425 | BR70: =RM!W76 -> -0.06828443425 | BS70: =RM!AD76 -> -0.06828443425 | BT70: =RM!AK76 -> -0.06828443425 | BU70: =RM!AQ76 -> -0.06828443425 | BV70: =FI!F73 -> -0.04243512923 | BX70: 2081 | BY70: =IF(BG70<>"#NV",RM!$I$10,#N/A) ->  | BZ70: =IF(BH70<>"#NV",RM!M76,#N/A) ->  | CA70: =IF(BI70<>"#NV",RM!T76,#N/A) ->  | CB70: =IF(BJ70<>"#NV",RM!AA76,#N/A) ->  | CC70: =IF(BK70<>"#NV",RM!AH76,#N/A) -> 
AX71: 2082 | AY71: =RM!E77 -> -0.5757921362 | AZ71: =RM!K77 -> -0.73 | BA71: =RM!R77 -> -0.73 | BB71: =RM!Y77 -> -0.73 | BC71: =RM!AF77 -> -0.73 | BD71: =RM!AM77 -> -0.73 | BE71: =FI!B74 -> -0.5757921362 | BF71: 2082 | BG71: =IF(AY70>'goal seek'!$E$24,AY71/AY70-1,#N/A) ->  | BH71: =IF(AZ70>'goal seek'!$E$23,AZ71/AZ70-1,#N/A) ->  | BI71: =IF(BA70>'goal seek'!$E$23,BA71/BA70-1,#N/A) ->  | BJ71: =IF(BB70>'goal seek'!$E$23,BB71/BB70-1,#N/A) ->  | BK71: =IF(BC70>'goal seek'!$E$23,BC71/BC70-1,#N/A) ->  | BL71: =IF(BD70>'goal seek'!$E$23,BD71/BD70-1,#N/A) ->  | BM71: =IF(BE70>'goal seek'!$E$23,BE71/BE70-1,#N/A) ->  | BO71: 2082 | BP71: =RM!I77 -> -0.05377895383 | BQ71: =RM!P77 -> -0.06818195982 | BR71: =RM!W77 -> -0.06818195982 | BS71: =RM!AD77 -> -0.06818195982 | BT71: =RM!AK77 -> -0.06818195982 | BU71: =RM!AQ77 -> -0.06818195982 | BV71: =FI!F74 -> -0.05377895383 | BX71: 2082 | BY71: =IF(BG71<>"#NV",RM!$I$10,#N/A) ->  | BZ71: =IF(BH71<>"#NV",RM!M77,#N/A) ->  | CA71: =IF(BI71<>"#NV",RM!T77,#N/A) ->  | CB71: =IF(BJ71<>"#NV",RM!AA77,#N/A) ->  | CC71: =IF(BK71<>"#NV",RM!AH77,#N/A) -> 
AX72: 2083 | AY72: =RM!E78 -> -0.6979282573 | AZ72: =RM!K78 -> -0.73 | BA72: =RM!R78 -> -0.73 | BB72: =RM!Y78 -> -0.73 | BC72: =RM!AF78 -> -0.73 | BD72: =RM!AM78 -> -0.73 | BE72: =FI!B75 -> -0.6979282573 | BF72: 2083 | BG72: =IF(AY71>'goal seek'!$E$24,AY72/AY71-1,#N/A) ->  | BH72: =IF(AZ71>'goal seek'!$E$23,AZ72/AZ71-1,#N/A) ->  | BI72: =IF(BA71>'goal seek'!$E$23,BA72/BA71-1,#N/A) ->  | BJ72: =IF(BB71>'goal seek'!$E$23,BB72/BB71-1,#N/A) ->  | BK72: =IF(BC71>'goal seek'!$E$23,BC72/BC71-1,#N/A) ->  | BL72: =IF(BD71>'goal seek'!$E$23,BD72/BD71-1,#N/A) ->  | BM72: =IF(BE71>'goal seek'!$E$23,BE72/BE71-1,#N/A) ->  | BO72: =AX72 -> 2083 | BP72: =RM!I78 -> -0.06509339986 | BQ72: =RM!P78 -> -0.06808462246 | BR72: =RM!W78 -> -0.06808462246 | BS72: =RM!AD78 -> -0.06808462246 | BT72: =RM!AK78 -> -0.06808462246 | BU72: =RM!AQ78 -> -0.06808462246 | BV72: =FI!F75 -> -0.06509339986 | BX72: 2083 | BY72: =IF(BG72<>"#NV",RM!$I$10,#N/A) ->  | BZ72: =IF(BH72<>"#NV",RM!M78,#N/A) ->  | CA72: =IF(BI72<>"#NV",RM!T78,#N/A) ->  | CB72: =IF(BJ72<>"#NV",RM!AA78,#N/A) ->  | CC72: =IF(BK72<>"#NV",RM!AH78,#N/A) -> 
AX73: 2084 | AY73: =RM!E79 -> -0.73 | AZ73: =RM!K79 -> -0.73 | BA73: =RM!R79 -> -0.73 | BB73: =RM!Y79 -> -0.73 | BC73: =RM!AF79 -> -0.73 | BD73: =RM!AM79 -> -0.73 | BE73: =FI!B76 -> -0.73 | BF73: 2084 | BG73: =IF(AY72>'goal seek'!$E$24,AY73/AY72-1,#N/A) ->  | BH73: =IF(AZ72>'goal seek'!$E$23,AZ73/AZ72-1,#N/A) ->  | BI73: =IF(BA72>'goal seek'!$E$23,BA73/BA72-1,#N/A) ->  | BJ73: =IF(BB72>'goal seek'!$E$23,BB73/BB72-1,#N/A) ->  | BK73: =IF(BC72>'goal seek'!$E$23,BC73/BC72-1,#N/A) ->  | BL73: =IF(BD72>'goal seek'!$E$23,BD73/BD72-1,#N/A) ->  | BM73: =IF(BE72>'goal seek'!$E$23,BE73/BE72-1,#N/A) ->  | BO73: 2084 | BP73: =RM!I79 -> -0.06799215452 | BQ73: =RM!P79 -> -0.06799215452 | BR73: =RM!W79 -> -0.06799215452 | BS73: =RM!AD79 -> -0.06799215452 | BT73: =RM!AK79 -> -0.06799215452 | BU73: =RM!AQ79 -> -0.06799215452 | BV73: =FI!F76 -> -0.06799215452 | BX73: 2084 | BY73: =IF(BG73<>"#NV",RM!$I$10,#N/A) ->  | BZ73: =IF(BH73<>"#NV",RM!M79,#N/A) ->  | CA73: =IF(BI73<>"#NV",RM!T79,#N/A) ->  | CB73: =IF(BJ73<>"#NV",RM!AA79,#N/A) ->  | CC73: =IF(BK73<>"#NV",RM!AH79,#N/A) -> 
AX74: =AX73+1 -> 2085 | AY74: =RM!E80 -> -0.73 | AZ74: =RM!K80 -> -0.73 | BA74: =RM!R80 -> -0.73 | BB74: =RM!Y80 -> -0.73 | BC74: =RM!AF80 -> -0.73 | BD74: =RM!AM80 -> -0.73 | BE74: =FI!B77 -> -0.73 | BF74: 2085 | BG74: =IF(AY73>'goal seek'!$E$24,AY74/AY73-1,#N/A) ->  | BH74: =IF(AZ73>'goal seek'!$E$23,AZ74/AZ73-1,#N/A) ->  | BI74: =IF(BA73>'goal seek'!$E$23,BA74/BA73-1,#N/A) ->  | BJ74: =IF(BB73>'goal seek'!$E$23,BB74/BB73-1,#N/A) ->  | BK74: =IF(BC73>'goal seek'!$E$23,BC74/BC73-1,#N/A) ->  | BL74: =IF(BD73>'goal seek'!$E$23,BD74/BD73-1,#N/A) ->  | BM74: =IF(BE73>'goal seek'!$E$23,BE74/BE73-1,#N/A) ->  | BO74: 2085 | BP74: =RM!I80 -> -0.06790434434 | BQ74: =RM!P80 -> -0.06790434434 | BR74: =RM!W80 -> -0.06790434434 | BS74: =RM!AD80 -> -0.06790434434 | BT74: =RM!AK80 -> -0.06790434434 | BU74: =RM!AQ80 -> -0.06790434434 | BV74: =FI!F77 -> -0.06790434434 | BX74: =BF74 -> 2085 | BY74: =IF(BG74<>"#NV",RM!$I$10,#N/A) ->  | BZ74: =IF(BH74<>"#NV",RM!M80,#N/A) ->  | CA74: =IF(BI74<>"#NV",RM!T80,#N/A) ->  | CB74: =IF(BJ74<>"#NV",RM!AA80,#N/A) ->  | CC74: =IF(BK74<>"#NV",RM!AH80,#N/A) -> 
AX75: 2086 | AY75: =RM!E81 -> -0.73 | AZ75: =RM!K81 -> -0.73 | BA75: =RM!R81 -> -0.73 | BB75: =RM!Y81 -> -0.73 | BC75: =RM!AF81 -> -0.73 | BD75: =RM!AM81 -> -0.73 | BE75: =FI!B78 -> -0.73 | BF75: 2086 | BG75: =IF(AY74>'goal seek'!$E$24,AY75/AY74-1,#N/A) ->  | BH75: =IF(AZ74>'goal seek'!$E$23,AZ75/AZ74-1,#N/A) ->  | BI75: =IF(BA74>'goal seek'!$E$23,BA75/BA74-1,#N/A) ->  | BJ75: =IF(BB74>'goal seek'!$E$23,BB75/BB74-1,#N/A) ->  | BK75: =IF(BC74>'goal seek'!$E$23,BC75/BC74-1,#N/A) ->  | BL75: =IF(BD74>'goal seek'!$E$23,BD75/BD74-1,#N/A) ->  | BM75: =IF(BE74>'goal seek'!$E$23,BE75/BE74-1,#N/A) ->  | BO75: 2086 | BP75: =RM!I81 -> -0.06782107921 | BQ75: =RM!P81 -> -0.06782107921 | BR75: =RM!W81 -> -0.06782107921 | BS75: =RM!AD81 -> -0.06782107921 | BT75: =RM!AK81 -> -0.06782107921 | BU75: =RM!AQ81 -> -0.06782107921 | BV75: =FI!F78 -> -0.06782107921 | BX75: 2086 | BY75: =IF(BG75<>"#NV",RM!$I$10,#N/A) ->  | BZ75: =IF(BH75<>"#NV",RM!M81,#N/A) ->  | CA75: =IF(BI75<>"#NV",RM!T81,#N/A) ->  | CB75: =IF(BJ75<>"#NV",RM!AA81,#N/A) ->  | CC75: =IF(BK75<>"#NV",RM!AH81,#N/A) -> 
AX76: 2087 | AY76: =RM!E82 -> -0.73 | AZ76: =RM!K82 -> -0.73 | BA76: =RM!R82 -> -0.73 | BB76: =RM!Y82 -> -0.73 | BC76: =RM!AF82 -> -0.73 | BD76: =RM!AM82 -> -0.73 | BE76: =FI!B79 -> -0.73 | BF76: 2087 | BG76: =IF(AY75>'goal seek'!$E$24,AY76/AY75-1,#N/A) ->  | BH76: =IF(AZ75>'goal seek'!$E$23,AZ76/AZ75-1,#N/A) ->  | BI76: =IF(BA75>'goal seek'!$E$23,BA76/BA75-1,#N/A) ->  | BJ76: =IF(BB75>'goal seek'!$E$23,BB76/BB75-1,#N/A) ->  | BK76: =IF(BC75>'goal seek'!$E$23,BC76/BC75-1,#N/A) ->  | BL76: =IF(BD75>'goal seek'!$E$23,BD76/BD75-1,#N/A) ->  | BM76: =IF(BE75>'goal seek'!$E$23,BE76/BE75-1,#N/A) ->  | BO76: 2087 | BP76: =RM!I82 -> -0.0677423196 | BQ76: =RM!P82 -> -0.0677423196 | BR76: =RM!W82 -> -0.0677423196 | BS76: =RM!AD82 -> -0.0677423196 | BT76: =RM!AK82 -> -0.0677423196 | BU76: =RM!AQ82 -> -0.0677423196 | BV76: =FI!F79 -> -0.0677423196 | BX76: 2087 | BY76: =IF(BG76<>"#NV",RM!$I$10,#N/A) ->  | BZ76: =IF(BH76<>"#NV",RM!M82,#N/A) ->  | CA76: =IF(BI76<>"#NV",RM!T82,#N/A) ->  | CB76: =IF(BJ76<>"#NV",RM!AA82,#N/A) ->  | CC76: =IF(BK76<>"#NV",RM!AH82,#N/A) -> 
AX77: 2088 | AY77: =RM!E83 -> -0.73 | AZ77: =RM!K83 -> -0.73 | BA77: =RM!R83 -> -0.73 | BB77: =RM!Y83 -> -0.73 | BC77: =RM!AF83 -> -0.73 | BD77: =RM!AM83 -> -0.73 | BE77: =FI!B80 -> -0.73 | BF77: 2088 | BG77: =IF(AY76>'goal seek'!$E$24,AY77/AY76-1,#N/A) ->  | BH77: =IF(AZ76>'goal seek'!$E$23,AZ77/AZ76-1,#N/A) ->  | BI77: =IF(BA76>'goal seek'!$E$23,BA77/BA76-1,#N/A) ->  | BJ77: =IF(BB76>'goal seek'!$E$23,BB77/BB76-1,#N/A) ->  | BK77: =IF(BC76>'goal seek'!$E$23,BC77/BC76-1,#N/A) ->  | BL77: =IF(BD76>'goal seek'!$E$23,BD77/BD76-1,#N/A) ->  | BM77: =IF(BE76>'goal seek'!$E$23,BE77/BE76-1,#N/A) ->  | BO77: 2088 | BP77: =RM!I83 -> -0.06766801537 | BQ77: =RM!P83 -> -0.06766801537 | BR77: =RM!W83 -> -0.06766801537 | BS77: =RM!AD83 -> -0.06766801537 | BT77: =RM!AK83 -> -0.06766801537 | BU77: =RM!AQ83 -> -0.06766801537 | BV77: =FI!F80 -> -0.06766801537 | BX77: 2088 | BY77: =IF(BG77<>"#NV",RM!$I$10,#N/A) ->  | BZ77: =IF(BH77<>"#NV",RM!M83,#N/A) ->  | CA77: =IF(BI77<>"#NV",RM!T83,#N/A) ->  | CB77: =IF(BJ77<>"#NV",RM!AA83,#N/A) ->  | CC77: =IF(BK77<>"#NV",RM!AH83,#N/A) -> 
AX78: 2089 | AY78: =RM!E84 -> -0.73 | AZ78: =RM!K84 -> -0.73 | BA78: =RM!R84 -> -0.73 | BB78: =RM!Y84 -> -0.73 | BC78: =RM!AF84 -> -0.73 | BD78: =RM!AM84 -> -0.73 | BE78: =FI!B81 -> -0.73 | BF78: 2089 | BG78: =IF(AY77>'goal seek'!$E$24,AY78/AY77-1,#N/A) ->  | BH78: =IF(AZ77>'goal seek'!$E$23,AZ78/AZ77-1,#N/A) ->  | BI78: =IF(BA77>'goal seek'!$E$23,BA78/BA77-1,#N/A) ->  | BJ78: =IF(BB77>'goal seek'!$E$23,BB78/BB77-1,#N/A) ->  | BK78: =IF(BC77>'goal seek'!$E$23,BC78/BC77-1,#N/A) ->  | BL78: =IF(BD77>'goal seek'!$E$23,BD78/BD77-1,#N/A) ->  | BM78: =IF(BE77>'goal seek'!$E$23,BE78/BE77-1,#N/A) ->  | BO78: 2089 | BP78: =RM!I84 -> -0.06759815036 | BQ78: =RM!P84 -> -0.06759815036 | BR78: =RM!W84 -> -0.06759815036 | BS78: =RM!AD84 -> -0.06759815036 | BT78: =RM!AK84 -> -0.06759815036 | BU78: =RM!AQ84 -> -0.06759815036 | BV78: =FI!F81 -> -0.06759815036 | BX78: 2089 | BY78: =IF(BG78<>"#NV",RM!$I$10,#N/A) ->  | BZ78: =IF(BH78<>"#NV",RM!M84,#N/A) ->  | CA78: =IF(BI78<>"#NV",RM!T84,#N/A) ->  | CB78: =IF(BJ78<>"#NV",RM!AA84,#N/A) ->  | CC78: =IF(BK78<>"#NV",RM!AH84,#N/A) -> 
AW79: 2090 | AX79: 2090 | AY79: =RM!E85 -> -0.73 | AZ79: =RM!K85 -> -0.73 | BA79: =RM!R85 -> -0.73 | BB79: =RM!Y85 -> -0.73 | BC79: =RM!AF85 -> -0.73 | BD79: =RM!AM85 -> -0.73 | BE79: =FI!B82 -> -0.73 | BF79: 2090 | BG79: =IF(AY78>'goal seek'!$E$24,AY79/AY78-1,#N/A) ->  | BH79: =IF(AZ78>'goal seek'!$E$23,AZ79/AZ78-1,#N/A) ->  | BI79: =IF(BA78>'goal seek'!$E$23,BA79/BA78-1,#N/A) ->  | BJ79: =IF(BB78>'goal seek'!$E$23,BB79/BB78-1,#N/A) ->  | BK79: =IF(BC78>'goal seek'!$E$23,BC79/BC78-1,#N/A) ->  | BL79: =IF(BD78>'goal seek'!$E$23,BD79/BD78-1,#N/A) ->  | BM79: =IF(BE78>'goal seek'!$E$23,BE79/BE78-1,#N/A) ->  | BO79: 2090 | BP79: =RM!I85 -> -0.06753271482 | BQ79: =RM!P85 -> -0.06753271482 | BR79: =RM!W85 -> -0.06753271482 | BS79: =RM!AD85 -> -0.06753271482 | BT79: =RM!AK85 -> -0.06753271482 | BU79: =RM!AQ85 -> -0.06753271482 | BV79: =FI!F82 -> -0.06753271482 | BX79: 2090 | BY79: =IF(BG79<>"#NV",RM!$I$10,#N/A) ->  | BZ79: =IF(BH79<>"#NV",RM!M85,#N/A) ->  | CA79: =IF(BI79<>"#NV",RM!T85,#N/A) ->  | CB79: =IF(BJ79<>"#NV",RM!AA85,#N/A) ->  | CC79: =IF(BK79<>"#NV",RM!AH85,#N/A) -> 
AX80: 2091 | AY80: =RM!E86 -> -0.73 | AZ80: =RM!K86 -> -0.73 | BA80: =RM!R86 -> -0.73 | BB80: =RM!Y86 -> -0.73 | BC80: =RM!AF86 -> -0.73 | BD80: =RM!AM86 -> -0.73 | BE80: =FI!B83 -> -0.73 | BF80: 2091 | BG80: =IF(AY79>'goal seek'!$E$24,AY80/AY79-1,#N/A) ->  | BH80: =IF(AZ79>'goal seek'!$E$23,AZ80/AZ79-1,#N/A) ->  | BI80: =IF(BA79>'goal seek'!$E$23,BA80/BA79-1,#N/A) ->  | BJ80: =IF(BB79>'goal seek'!$E$23,BB80/BB79-1,#N/A) ->  | BK80: =IF(BC79>'goal seek'!$E$23,BC80/BC79-1,#N/A) ->  | BL80: =IF(BD79>'goal seek'!$E$23,BD80/BD79-1,#N/A) ->  | BM80: =IF(BE79>'goal seek'!$E$23,BE80/BE79-1,#N/A) ->  | BO80: 2091 | BP80: =RM!I86 -> -0.06747170277 | BQ80: =RM!P86 -> -0.06747170277 | BR80: =RM!W86 -> -0.06747170277 | BS80: =RM!AD86 -> -0.06747170277 | BT80: =RM!AK86 -> -0.06747170277 | BU80: =RM!AQ86 -> -0.06747170277 | BV80: =FI!F83 -> -0.06747170277 | BX80: 2091 | BY80: =IF(BG80<>"#NV",RM!$I$10,#N/A) ->  | BZ80: =IF(BH80<>"#NV",RM!M86,#N/A) ->  | CA80: =IF(BI80<>"#NV",RM!T86,#N/A) ->  | CB80: =IF(BJ80<>"#NV",RM!AA86,#N/A) ->  | CC80: =IF(BK80<>"#NV",RM!AH86,#N/A) -> 
AX81: 2092 | AY81: =RM!E87 -> -0.73 | AZ81: =RM!K87 -> -0.73 | BA81: =RM!R87 -> -0.73 | BB81: =RM!Y87 -> -0.73 | BC81: =RM!AF87 -> -0.73 | BD81: =RM!AM87 -> -0.73 | BE81: =FI!B84 -> -0.73 | BF81: 2092 | BG81: =IF(AY80>'goal seek'!$E$24,AY81/AY80-1,#N/A) ->  | BH81: =IF(AZ80>'goal seek'!$E$23,AZ81/AZ80-1,#N/A) ->  | BI81: =IF(BA80>'goal seek'!$E$23,BA81/BA80-1,#N/A) ->  | BJ81: =IF(BB80>'goal seek'!$E$23,BB81/BB80-1,#N/A) ->  | BK81: =IF(BC80>'goal seek'!$E$23,BC81/BC80-1,#N/A) ->  | BL81: =IF(BD80>'goal seek'!$E$23,BD81/BD80-1,#N/A) ->  | BM81: =IF(BE80>'goal seek'!$E$23,BE81/BE80-1,#N/A) ->  | BO81: 2092 | BP81: =RM!I87 -> -0.06741511165 | BQ81: =RM!P87 -> -0.06741511165 | BR81: =RM!W87 -> -0.06741511165 | BS81: =RM!AD87 -> -0.06741511165 | BT81: =RM!AK87 -> -0.06741511165 | BU81: =RM!AQ87 -> -0.06741511165 | BV81: =FI!F84 -> -0.06741511165 | BX81: 2092 | BY81: =IF(BG81<>"#NV",RM!$I$10,#N/A) ->  | BZ81: =IF(BH81<>"#NV",RM!M87,#N/A) ->  | CA81: =IF(BI81<>"#NV",RM!T87,#N/A) ->  | CB81: =IF(BJ81<>"#NV",RM!AA87,#N/A) ->  | CC81: =IF(BK81<>"#NV",RM!AH87,#N/A) -> 
AX82: 2093 | AY82: =RM!E88 -> -0.73 | AZ82: =RM!K88 -> -0.73 | BA82: =RM!R88 -> -0.73 | BB82: =RM!Y88 -> -0.73 | BC82: =RM!AF88 -> -0.73 | BD82: =RM!AM88 -> -0.73 | BE82: =FI!B85 -> -0.73 | BF82: 2093 | BG82: =IF(AY81>'goal seek'!$E$24,AY82/AY81-1,#N/A) ->  | BH82: =IF(AZ81>'goal seek'!$E$23,AZ82/AZ81-1,#N/A) ->  | BI82: =IF(BA81>'goal seek'!$E$23,BA82/BA81-1,#N/A) ->  | BJ82: =IF(BB81>'goal seek'!$E$23,BB82/BB81-1,#N/A) ->  | BK82: =IF(BC81>'goal seek'!$E$23,BC82/BC81-1,#N/A) ->  | BL82: =IF(BD81>'goal seek'!$E$23,BD82/BD81-1,#N/A) ->  | BM82: =IF(BE81>'goal seek'!$E$23,BE82/BE81-1,#N/A) ->  | BO82: 2093 | BP82: =RM!I88 -> -0.06736295244 | BQ82: =RM!P88 -> -0.06736295244 | BR82: =RM!W88 -> -0.06736295244 | BS82: =RM!AD88 -> -0.06736295244 | BT82: =RM!AK88 -> -0.06736295244 | BU82: =RM!AQ88 -> -0.06736295244 | BV82: =FI!F85 -> -0.06736295244 | BX82: 2093 | BY82: =IF(BG82<>"#NV",RM!$I$10,#N/A) ->  | BZ82: =IF(BH82<>"#NV",RM!M88,#N/A) ->  | CA82: =IF(BI82<>"#NV",RM!T88,#N/A) ->  | CB82: =IF(BJ82<>"#NV",RM!AA88,#N/A) ->  | CC82: =IF(BK82<>"#NV",RM!AH88,#N/A) -> 
AX83: 2094 | AY83: =RM!E89 -> -0.73 | AZ83: =RM!K89 -> -0.73 | BA83: =RM!R89 -> -0.73 | BB83: =RM!Y89 -> -0.73 | BC83: =RM!AF89 -> -0.73 | BD83: =RM!AM89 -> -0.73 | BE83: =FI!B86 -> -0.73 | BF83: 2094 | BG83: =IF(AY82>'goal seek'!$E$24,AY83/AY82-1,#N/A) ->  | BH83: =IF(AZ82>'goal seek'!$E$23,AZ83/AZ82-1,#N/A) ->  | BI83: =IF(BA82>'goal seek'!$E$23,BA83/BA82-1,#N/A) ->  | BJ83: =IF(BB82>'goal seek'!$E$23,BB83/BB82-1,#N/A) ->  | BK83: =IF(BC82>'goal seek'!$E$23,BC83/BC82-1,#N/A) ->  | BL83: =IF(BD82>'goal seek'!$E$23,BD83/BD82-1,#N/A) ->  | BM83: =IF(BE82>'goal seek'!$E$23,BE83/BE82-1,#N/A) ->  | BO83: 2094 | BP83: =RM!I89 -> -0.06731524924 | BQ83: =RM!P89 -> -0.06731524924 | BR83: =RM!W89 -> -0.06731524924 | BS83: =RM!AD89 -> -0.06731524924 | BT83: =RM!AK89 -> -0.06731524924 | BU83: =RM!AQ89 -> -0.06731524924 | BV83: =FI!F86 -> -0.06731524924 | BX83: 2094 | BY83: =IF(BG83<>"#NV",RM!$I$10,#N/A) ->  | BZ83: =IF(BH83<>"#NV",RM!M89,#N/A) ->  | CA83: =IF(BI83<>"#NV",RM!T89,#N/A) ->  | CB83: =IF(BJ83<>"#NV",RM!AA89,#N/A) ->  | CC83: =IF(BK83<>"#NV",RM!AH89,#N/A) -> 
AX84: 2095 | AY84: =RM!E90 -> -0.73 | AZ84: =RM!K90 -> -0.73 | BA84: =RM!R90 -> -0.73 | BB84: =RM!Y90 -> -0.73 | BC84: =RM!AF90 -> -0.73 | BD84: =RM!AM90 -> -0.73 | BE84: =FI!B87 -> -0.73 | BF84: 2095 | BG84: =IF(AY83>'goal seek'!$E$24,AY84/AY83-1,#N/A) ->  | BH84: =IF(AZ83>'goal seek'!$E$23,AZ84/AZ83-1,#N/A) ->  | BI84: =IF(BA83>'goal seek'!$E$23,BA84/BA83-1,#N/A) ->  | BJ84: =IF(BB83>'goal seek'!$E$23,BB84/BB83-1,#N/A) ->  | BK84: =IF(BC83>'goal seek'!$E$23,BC84/BC83-1,#N/A) ->  | BL84: =IF(BD83>'goal seek'!$E$23,BD84/BD83-1,#N/A) ->  | BM84: =IF(BE83>'goal seek'!$E$23,BE84/BE83-1,#N/A) ->  | BO84: 2095 | BP84: =RM!I90 -> -0.06727205001 | BQ84: =RM!P90 -> -0.06727205001 | BR84: =RM!W90 -> -0.06727205001 | BS84: =RM!AD90 -> -0.06727205001 | BT84: =RM!AK90 -> -0.06727205001 | BU84: =RM!AQ90 -> -0.06727205001 | BV84: =FI!F87 -> -0.06727205001 | BX84: 2095 | BY84: =IF(BG84<>"#NV",RM!$I$10,#N/A) ->  | BZ84: =IF(BH84<>"#NV",RM!M90,#N/A) ->  | CA84: =IF(BI84<>"#NV",RM!T90,#N/A) ->  | CB84: =IF(BJ84<>"#NV",RM!AA90,#N/A) ->  | CC84: =IF(BK84<>"#NV",RM!AH90,#N/A) -> 
AX85: 2096 | AY85: =RM!E91 -> -0.73 | AZ85: =RM!K91 -> -0.73 | BA85: =RM!R91 -> -0.73 | BB85: =RM!Y91 -> -0.73 | BC85: =RM!AF91 -> -0.73 | BD85: =RM!AM91 -> -0.73 | BE85: =FI!B88 -> -0.73 | BF85: 2096 | BG85: =IF(AY84>'goal seek'!$E$24,AY85/AY84-1,#N/A) ->  | BH85: =IF(AZ84>'goal seek'!$E$23,AZ85/AZ84-1,#N/A) ->  | BI85: =IF(BA84>'goal seek'!$E$23,BA85/BA84-1,#N/A) ->  | BJ85: =IF(BB84>'goal seek'!$E$23,BB85/BB84-1,#N/A) ->  | BK85: =IF(BC84>'goal seek'!$E$23,BC85/BC84-1,#N/A) ->  | BL85: =IF(BD84>'goal seek'!$E$23,BD85/BD84-1,#N/A) ->  | BM85: =IF(BE84>'goal seek'!$E$23,BE85/BE84-1,#N/A) ->  | BO85: 2096 | BP85: =RM!I91 -> -0.06723342758 | BQ85: =RM!P91 -> -0.06723342758 | BR85: =RM!W91 -> -0.06723342758 | BS85: =RM!AD91 -> -0.06723342758 | BT85: =RM!AK91 -> -0.06723342758 | BU85: =RM!AQ91 -> -0.06723342758 | BV85: =FI!F88 -> -0.06723342758 | BX85: 2096 | BY85: =IF(BG85<>"#NV",RM!$I$10,#N/A) ->  | BZ85: =IF(BH85<>"#NV",RM!M91,#N/A) ->  | CA85: =IF(BI85<>"#NV",RM!T91,#N/A) ->  | CB85: =IF(BJ85<>"#NV",RM!AA91,#N/A) ->  | CC85: =IF(BK85<>"#NV",RM!AH91,#N/A) -> 
AX86: 2097 | AY86: =RM!E92 -> -0.73 | AZ86: =RM!K92 -> -0.73 | BA86: =RM!R92 -> -0.73 | BB86: =RM!Y92 -> -0.73 | BC86: =RM!AF92 -> -0.73 | BD86: =RM!AM92 -> -0.73 | BE86: =FI!B89 -> -0.73 | BF86: 2097 | BG86: =IF(AY85>'goal seek'!$E$24,AY86/AY85-1,#N/A) ->  | BH86: =IF(AZ85>'goal seek'!$E$23,AZ86/AZ85-1,#N/A) ->  | BI86: =IF(BA85>'goal seek'!$E$23,BA86/BA85-1,#N/A) ->  | BJ86: =IF(BB85>'goal seek'!$E$23,BB86/BB85-1,#N/A) ->  | BK86: =IF(BC85>'goal seek'!$E$23,BC86/BC85-1,#N/A) ->  | BL86: =IF(BD85>'goal seek'!$E$23,BD86/BD85-1,#N/A) ->  | BM86: =IF(BE85>'goal seek'!$E$23,BE86/BE85-1,#N/A) ->  | BO86: 2097 | BP86: =RM!I92 -> -0.06719947914 | BQ86: =RM!P92 -> -0.06719947914 | BR86: =RM!W92 -> -0.06719947914 | BS86: =RM!AD92 -> -0.06719947914 | BT86: =RM!AK92 -> -0.06719947914 | BU86: =RM!AQ92 -> -0.06719947914 | BV86: =FI!F89 -> -0.06719947914 | BX86: 2097 | BY86: =IF(BG86<>"#NV",RM!$I$10,#N/A) ->  | BZ86: =IF(BH86<>"#NV",RM!M92,#N/A) ->  | CA86: =IF(BI86<>"#NV",RM!T92,#N/A) ->  | CB86: =IF(BJ86<>"#NV",RM!AA92,#N/A) ->  | CC86: =IF(BK86<>"#NV",RM!AH92,#N/A) -> 
AX87: 2098 | AY87: =RM!E93 -> -0.73 | AZ87: =RM!K93 -> -0.73 | BA87: =RM!R93 -> -0.73 | BB87: =RM!Y93 -> -0.73 | BC87: =RM!AF93 -> -0.73 | BD87: =RM!AM93 -> -0.73 | BE87: =FI!B90 -> -0.73 | BF87: 2098 | BG87: =IF(AY86>'goal seek'!$E$24,AY87/AY86-1,#N/A) ->  | BH87: =IF(AZ86>'goal seek'!$E$23,AZ87/AZ86-1,#N/A) ->  | BI87: =IF(BA86>'goal seek'!$E$23,BA87/BA86-1,#N/A) ->  | BJ87: =IF(BB86>'goal seek'!$E$23,BB87/BB86-1,#N/A) ->  | BK87: =IF(BC86>'goal seek'!$E$23,BC87/BC86-1,#N/A) ->  | BL87: =IF(BD86>'goal seek'!$E$23,BD87/BD86-1,#N/A) ->  | BM87: =IF(BE86>'goal seek'!$E$23,BE87/BE86-1,#N/A) ->  | BO87: 2098 | BP87: =RM!I93 -> -0.06717032851 | BQ87: =RM!P93 -> -0.06717032851 | BR87: =RM!W93 -> -0.06717032851 | BS87: =RM!AD93 -> -0.06717032851 | BT87: =RM!AK93 -> -0.06717032851 | BU87: =RM!AQ93 -> -0.06717032851 | BV87: =FI!F90 -> -0.06717032851 | BX87: 2098 | BY87: =IF(BG87<>"#NV",RM!$I$10,#N/A) ->  | BZ87: =IF(BH87<>"#NV",RM!M93,#N/A) ->  | CA87: =IF(BI87<>"#NV",RM!T93,#N/A) ->  | CB87: =IF(BJ87<>"#NV",RM!AA93,#N/A) ->  | CC87: =IF(BK87<>"#NV",RM!AH93,#N/A) -> 
AX88: 2099 | AY88: =RM!E94 -> -0.73 | AZ88: =RM!K94 -> -0.73 | BA88: =RM!R94 -> -0.73 | BB88: =RM!Y94 -> -0.73 | BC88: =RM!AF94 -> -0.73 | BD88: =RM!AM94 -> -0.73 | BE88: =FI!B91 -> -0.73 | BF88: 2099 | BG88: =IF(AY87>'goal seek'!$E$24,AY88/AY87-1,#N/A) ->  | BH88: =IF(AZ87>'goal seek'!$E$23,AZ88/AZ87-1,#N/A) ->  | BI88: =IF(BA87>'goal seek'!$E$23,BA88/BA87-1,#N/A) ->  | BJ88: =IF(BB87>'goal seek'!$E$23,BB88/BB87-1,#N/A) ->  | BK88: =IF(BC87>'goal seek'!$E$23,BC88/BC87-1,#N/A) ->  | BL88: =IF(BD87>'goal seek'!$E$23,BD88/BD87-1,#N/A) ->  | BM88: =IF(BE87>'goal seek'!$E$23,BE88/BE87-1,#N/A) ->  | BO88: 2099 | BP88: =RM!I94 -> -0.06714612385 | BQ88: =RM!P94 -> -0.06714612385 | BR88: =RM!W94 -> -0.06714612385 | BS88: =RM!AD94 -> -0.06714612385 | BT88: =RM!AK94 -> -0.06714612385 | BU88: =RM!AQ94 -> -0.06714612385 | BV88: =FI!F91 -> -0.06714612385 | BX88: 2099 | BY88: =IF(BG88<>"#NV",RM!$I$10,#N/A) ->  | BZ88: =IF(BH88<>"#NV",RM!M94,#N/A) ->  | CA88: =IF(BI88<>"#NV",RM!T94,#N/A) ->  | CB88: =IF(BJ88<>"#NV",RM!AA94,#N/A) ->  | CC88: =IF(BK88<>"#NV",RM!AH94,#N/A) -> 
AW89: 2100 | AX89: 2100 | AY89: =RM!E95 -> -0.73 | AZ89: =RM!K95 -> -0.73 | BA89: =RM!R95 -> -0.73 | BB89: =RM!Y95 -> -0.73 | BC89: =RM!AF95 -> -0.73 | BD89: =RM!AM95 -> -0.73 | BE89: =FI!B92 -> -0.73 | BF89: 2100 | BG89: =IF(AY88>'goal seek'!$E$24,AY89/AY88-1,#N/A) ->  | BH89: =IF(AZ88>'goal seek'!$E$23,AZ89/AZ88-1,#N/A) ->  | BI89: =IF(BA88>'goal seek'!$E$23,BA89/BA88-1,#N/A) ->  | BJ89: =IF(BB88>'goal seek'!$E$23,BB89/BB88-1,#N/A) ->  | BK89: =IF(BC88>'goal seek'!$E$23,BC89/BC88-1,#N/A) ->  | BL89: =IF(BD88>'goal seek'!$E$23,BD89/BD88-1,#N/A) ->  | BM89: =IF(BE88>'goal seek'!$E$23,BE89/BE88-1,#N/A) ->  | BO89: 2100 | BP89: =RM!I95 -> -0.06712703973 | BQ89: =RM!P95 -> -0.06712703973 | BR89: =RM!W95 -> -0.06712703973 | BS89: =RM!AD95 -> -0.06712703973 | BT89: =RM!AK95 -> -0.06712703973 | BU89: =RM!AQ95 -> -0.06712703973 | BV89: =FI!F92 -> -0.06712703973 | BX89: 2100 | BY89: =IF(BG89<>"#NV",RM!$I$10,#N/A) ->  | BZ89: =IF(BH89<>"#NV",RM!M95,#N/A) ->  | CA89: =IF(BI89<>"#NV",RM!T95,#N/A) ->  | CB89: =IF(BJ89<>"#NV",RM!AA95,#N/A) ->  | CC89: =IF(BK89<>"#NV",RM!AH95,#N/A) -> 
AX91: sum | AY91: =AY7 -> RM-1 const | AZ91: =AZ7 -> RM-2 exp | BA91: RM-3 lin | BB91: RM-4 quadr | BC91: RM-5 rad | BD91: =BD7 -> RM-6 abs | BE91: FI | BG91: =AY91 -> RM-1 const | BH91: RM-2 exp | BI91: RM-3 lin | BJ91: RM-4 quadr | BK91: RM-5 rad | BL91: RM-6 abs | BM91: =BM8 -> FI
BF92: 2019 | BG92: =AY8/BG95-1 -> 0.6611327069 | BH92: =AZ8/BH95-1 -> 0.6611327069 | BI92: 0.6611327069 | BJ92: 0.6611327069 | BK92: 0.6611327069 | BL92: 0.6611327069 | BM92: 0.6611327069
AX93: 2030 | AY93: =SUM(AY9:AY19) -> 305.9948212 | AZ93: 379.7843305 | BA93: 354.4717609 | BB93: 375.3167996 | BC93: 337.082258 | BD93: 343.9384713 | BE93: 305.9948212 | BF93: 2030 | BG93: ='graphs global'!AY$19/'graphs global'!BG$95-1 -> -0.1337161919 | BH93: ='graphs global'!AZ$19/'graphs global'!BH$95-1 -> 0.3935476356 | BI93: ='graphs global'!BA$19/'graphs global'!BI$95-1 -> 0.1528175562 | BJ93: ='graphs global'!BB$19/'graphs global'!BJ$95-1 -> 0.3235756861 | BK93: ='graphs global'!BC$19/'graphs global'!BK$95-1 -> 0.03596738796 | BL93: ='graphs global'!BD$19/'graphs global'!BL$95-1 -> 0.1331581604 | BM93: ='graphs global'!BE$19/'graphs global'!BM95-1 -> -0.1337161919
AX94: 2050 | AY94: =SUM(AY9:AY39) -> 500.6601652 | AZ94: 570.9093795 | BA94: 560.497532 | BB94: 570.7640335 | BC94: 542.0158352 | BD94: 570.9390645 | BE94: 500.6601652 | BF94: 2050 | BG94: ='graphs global'!AY$39/'graphs global'!BG$95-1 -> -0.797083981 | BH94: ='graphs global'!AZ$39/'graphs global'!BH$95-1 -> -1.033050001 | BI94: ='graphs global'!BA$39/'graphs global'!BI$95-1 -> -0.9198873286 | BJ94: ='graphs global'!BB$39/'graphs global'!BJ$95-1 -> -1.033050001 | BK94: ='graphs global'!BC$39/'graphs global'!BK$95-1 -> -0.8600247306 | BL94: ='graphs global'!BD$39/'graphs global'!BL$95-1 -> -1.033050001 | BM94: ='graphs global'!BE$39/'graphs global'!BM95-1 -> -0.797083981
BF95: 1990 | BG95: ='data countries'!C225/1000 -> 22.08774492 | BH95: =BG95 -> 22.08774492 | BI95: =BH95 -> 22.08774492 | BJ95: =BI95 -> 22.08774492 | BK95: =BI95 -> 22.08774492 | BL95: =BJ95 -> 22.08774492 | BM95: =BK95 -> 22.08774492
AY97: =AY91 -> RM-1 const | AZ97: RM-2 exp | BA97: RM-3 lin | BB97: RM-4 quadr | BC97: RM-5 rad | BD97: RM-6 abs | BE97: FI | BG97: =BG91 -> RM-1 const | BH97: RM-2 exp | BI97: RM-3 lin | BJ97: RM-4 quadr | BK97: RM-5 rad | BL97: =BL91 -> RM-6 abs | BM97: FI
AX98: overshoot | AY98: =ROUND(dashboard!C39,0) -> 15 | AZ98: =ROUND(dashboard!D39,0) -> 42 | BA98: =ROUND(dashboard!E39,0) -> 31 | BB98: =ROUND(dashboard!F39,0) -> 38 | BC98: =ROUND(dashboard!G39,0) -> 25 | BD98: =ROUND(dashboard!H39,0) -> 38 | BE98: =ROUND(dashboard!I39,0) -> 15 | BF98: 2019 | BG98: =AY8/BG102-1 -> 0.1105452987 | BH98: =AZ8/BH102-1 -> 0.1105452987 | BI98: 0.1105452987 | BJ98: 0.1105452987 | BK98: 0.1105452987 | BL98: 0.1105452987 | BM98: 0.1105452987
AX99: year emission neutrality | AY99: ='goal seek'!C22 -> 2077 | AZ99: ='goal seek'!D22 -> 2043 | BA99: ='goal seek'!E22 -> 2056 | BB99: ='goal seek'!F22 -> 2048 | BC99: ='goal seek'!G22 -> 2063 | BD99: ='goal seek'!H22 -> 2049 | BE99: ='graphs country'!U59 -> 2077 | BF99: 2030 | BG99: ='graphs global'!AY$19/'graphs global'!BG$102-1 -> -0.4208485533 | BH99: ='graphs global'!AZ$19/'graphs global'!BH$102-1 -> -0.06834789973 | BI99: ='graphs global'!BA$19/'graphs global'!BI$102-1 -> -0.2292872737 | BJ99: ='graphs global'!BB$19/'graphs global'!BJ$102-1 -> -0.1151274371 | BK99: ='graphs global'!BC$19/'graphs global'!BK$102-1 -> -0.3074071039 | BL99: ='graphs global'!BD$19/'graphs global'!BL$102-1 -> -0.2424305039 | BM99: ='graphs global'!BE$19/'graphs global'!BM102-1 -> -0.4208485533
BF100: 2040 | BG100: =AY29/BG102-1 -> -0.7197018614 | BH100: -0.8032006569 | BI100: -0.7167904896 | BJ100: -0.7610726956 | BK100: -0.7106662624 | BL100: -0.6372158146 | BM100: -0.7197018614
B101: legend: | BF101: 2050 | BG101: ='graphs global'!AY$39/'graphs global'!BG$102-1 -> -0.8643411029 | BH101: ='graphs global'!AZ$39/'graphs global'!BH$102-1 -> -1.022095479 | BI101: ='graphs global'!BA$39/'graphs global'!BI$102-1 -> -0.9464409133 | BJ101: ='graphs global'!BB$39/'graphs global'!BJ$102-1 -> -1.022095479 | BK101: ='graphs global'!BC$39/'graphs global'!BK$102-1 -> -0.9064199527 | BL101: ='graphs global'!BD$39/'graphs global'!BL$102-1 -> -1.022095479 | BM101: ='graphs global'!BE$39/'graphs global'!BM102-1 -> -0.8643411029
B102: Gt CO2 (without LUC and ISA) | BF102: 2010 | BG102: ='data countries'!E225/1000 -> 33.03843215 | BH102: =BG102 -> 33.03843215 | BI102: =BH102 -> 33.03843215 | BJ102: 33.03843215 | BK102: 33.03843215 | BL102: 33.03843215 | BM102: 33.03843215
BG104: =BG97 -> RM-1 const | BH104: RM-2 exp | BI104: RM-3 lin | BJ104: RM-4 quadr | BK104: RM-5 rad | BL104: RM-6 abs | BM104: FI
BF105: 2025 | BG105: =AY14/BG109-1 -> -0.2503788462 | BH105: =AZ14/BH109-1 -> -0.03930406078 | BI105: -0.09578630713 | BJ105: -0.04261706366 | BK105: -0.147651346 | BL105: -0.1400961738 | BM105: -0.2503788462
BF106: 2030 | BG106: ='graphs global'!AY$19/BG109-1 -> -0.4784981329 | BH106: ='graphs global'!AZ$19/BH109-1 -> -0.1610859085 | BI106: ='graphs global'!BA$19/BI109-1 -> -0.3060051425 | BJ106: ='graphs global'!BB$19/BJ109-1 -> -0.2032089426 | BK106: ='graphs global'!BC$19/BK109-1 -> -0.3763488109 | BL106: ='graphs global'!BD$19/BL109-1 -> -0.3178400764 | BM106: ='graphs global'!BE$19/BM109-1 -> -0.4784981329
BF107: 2040 | BG107: =AY29/BG109-1 -> -0.7476031469 | BH107: -0.8227903505 | BI107: -0.7449815773 | BJ107: -0.7848558679 | BK107: -0.7394669646 | BL107: -0.6733278815 | BM107: -0.7476031469
BF108: 2050 | BG108: ='graphs global'!AY$39/BG109-1 -> -0.8778447874 | BH108: ='graphs global'!AZ$39/BH109-1 -> -1.019896063 | BI108: ='graphs global'!BA$39/BI109-1 -> -0.9517722629 | BJ108: ='graphs global'!BB$39/BJ109-1 -> -1.019896063 | BK108: ='graphs global'!BC$39/BK109-1 -> -0.915735047 | BL108: ='graphs global'!BD$39/BL109-1 -> -1.019896063 | BM108: ='graphs global'!BE$39/BM109-1 -> -0.8778447874
BF109: 2019 | BG109: ='data countries'!O225/1000 -> 36.6906755 | BH109: =BG109 -> 36.6906755 | BI109: =BH109 -> 36.6906755 | BJ109: =BI109 -> 36.6906755 | BK109: =BJ109 -> 36.6906755 | BL109: =BK109 -> 36.6906755 | BM109: =BL109 -> 36.6906755

Sheet graphs country
BE1: I | BF1: R | BG1: AA | BH1: AJ | BK1: AS
B2: EU27 | E2: → select a country | H2: global budget | I2: =CONCATENATE('base data'!B11," Gt") -> 550 Gt | K2: =IF(COUNTIF(O57:T57,"no")>0,"Please use the macro in the sheet 'goal seek' to determine the free parameters so that the global budget 2020 - 2100 is respected.","The global paths RM 1 - 6 keep the global budget 2020 - 2100.") -> The global paths RM 1 - 6 keep the global budget 2020 - 2100. | AN2: E_i_t | AO2: =country!F17 -> RF: RM-1 const | AP2: =country!O17 -> RF: RM-2 exp | AQ2: =country!X17 -> RF: RM-3 lin | AR2: =country!AG17 -> RF: RM-4 quadr | AS2: =country!AP17 -> RF: RM-5 rad | AT2: =country!AY17 -> RF: RM-6 abs | AU2: =country!BH17 -> RF: FI | AV2: per capita | AW2: =AO2 -> RF: RM-1 const | AX2: RF: RM-2 exp | AY2: RF: RM-3 lin | AZ2: RF: RM-4 quadr | BA2: RF: RM-5 rad | BB2: RF: RM-6 abs | BC2: =AU2 -> RF: FI | BD2: RR_i_t | BE2: =AO2 -> RF: RM-1 const | BF2: RF: RM-2 exp | BG2: RF: RM-3 lin | BH2: RF: RM-4 quadr | BI2: RF: RM-5 rad | BJ2: RF: RM-6 abs | BK2: =AU2 -> RF: FI
W3: global per capita emissions 2019: | AA3: =RM!I14 -> 4.756702825 | AB3: t | AM3: 2019 | AN3: 2019 | AO3: =country!F28 -> 2922.049472 | AP3: =country!O28 -> 2922.049472 | AQ3: =country!X28 -> 2922.049472 | AR3: =country!AG28 -> 2922.049472 | AS3: =country!AP28 -> 2922.049472 | AT3: =country!AY28 -> 2922.049472 | AU3: =country!BH28 -> 2922.049472 | AW3: =country!G28 -> 6.589765687 | AX3: =country!P28 -> 6.589765687 | AY3: =country!Y28 -> 6.589765687 | AZ3: =country!AH28 -> 6.589765687 | BA3: =country!AQ28 -> 6.589765687 | BB3: =country!AZ28 -> 6.589765687 | BC3: =country!BI28 -> 6.589765687
AN4: =AN3+1 -> 2020 | AO4: =country!F29 -> 2605.11913 | AP4: =country!O29 -> 2605.11913 | AQ4: =country!X29 -> 2605.11913 | AR4: =country!AG29 -> 2605.11913 | AS4: =country!AP29 -> 2605.11913 | AT4: =country!AY29 -> 2605.11913 | AU4: =country!BH29 -> 2605.11913 | AW4: =country!G29 -> 5.875028748 | AX4: =country!P29 -> 5.875028748 | AY4: =country!Y29 -> 5.875028748 | AZ4: =country!AH29 -> 5.875028748 | BA4: =country!AQ29 -> 5.875028748 | BB4: =country!AZ29 -> 5.875028748 | BC4: =country!BI29 -> 5.875028748 | BD4: =AN4 -> 2020 | BE4: =IF(AND(country!J29>'goal seek'!$E$24,BD4<=country!$M$18,AO4>0),country!I29,#N/A) -> -0.1084616619 | BF4: =IF(AND(country!S29>'goal seek'!$E$23,BD4<=country!$V$18,AP4>0),country!R29,#N/A) -> -0.1084616619 | BG4: =IF(AND(country!AB29>'goal seek'!$E$23,BD4<=country!$AE$18,AQ4),country!AA29,#N/A) -> -0.1084616619 | BH4: =IF(AND(country!AK29>'goal seek'!$E$23,BD4<=country!$AN$18,AR4>0),country!AJ29,#N/A) -> -0.1084616619 | BI4: =IF(AND(country!AT29>'goal seek'!$E$23,BD4<=country!$AW$18,AS4>0),country!AS29,#N/A) -> -0.1084616619 | BJ4: =IF(AND(BD4<=country!$BF$18,AT4>0),country!BB29,#N/A) -> -0.1084616619 | BK4: =IF(AU4>0,country!BK29,#N/A) -> -0.1084616619
AE5: scenario type | AF5: conver- gence level | AN5: =AN4+1 -> 2021 | AO5: =country!F30 -> 2774.926525 | AP5: =country!O30 -> 2774.926525 | AQ5: =country!X30 -> 2774.926525 | AR5: =country!AG30 -> 2774.926525 | AS5: =country!AP30 -> 2774.926525 | AT5: =country!AY30 -> 2774.926525 | AU5: =country!BH30 -> 2774.926525 | AW5: =country!G30 -> 6.257976045 | AX5: =country!P30 -> 6.257976045 | AY5: =country!Y30 -> 6.257976045 | AZ5: =country!AH30 -> 6.257976045 | BA5: =country!AQ30 -> 6.257976045 | BB5: =country!AZ30 -> 6.257976045 | BC5: =country!BI30 -> 6.257976045 | BD5: 2021 | BE5: =IF(AND(country!J30>'goal seek'!$E$24,BD5<=country!$M$18,AO5>0),country!I30,#N/A) -> 0.06518219957 | BF5: =IF(AND(country!S30>'goal seek'!$E$23,BD5<=country!$V$18,AP5>0),country!R30,#N/A) -> 0.06518219957 | BG5: =IF(AND(country!AB30>'goal seek'!$E$23,BD5<=country!$AE$18,AQ5),country!AA30,#N/A) -> 0.06518219957 | BH5: =IF(AND(country!AK30>'goal seek'!$E$23,BD5<=country!$AN$18,AR5>0),country!AJ30,#N/A) -> 0.06518219957 | BI5: =IF(AND(country!AT30>'goal seek'!$E$23,BD5<=country!$AW$18,AS5>0),country!AS30,#N/A) -> 0.06518219957 | BJ5: =IF(AND(BD5<=country!$BF$18,AT5>0),country!BB30,#N/A) -> 0.06518219957 | BK5: =IF(AU5>0,country!BK30,#N/A) -> 0.06518219957
AN6: 2022 | AO6: =country!F31 -> 2716.690151 | AP6: =country!O31 -> 2905.592706 | AQ6: =country!X31 -> 2877.872049 | AR6: =country!AG31 -> 2907.459279 | AS6: =country!AP31 -> 2837.733492 | AT6: =country!AY31 -> 2820.838643 | AU6: =country!BH31 -> 2716.690151 | AW6: =country!G31 -> 6.126642175 | AX6: =country!P31 -> 6.552652613 | AY6: =country!Y31 -> 6.49013737 | AZ6: =country!AH31 -> 6.556862085 | BA6: =country!AQ31 -> 6.399617449 | BB6: =country!AZ31 -> 6.36151642 | BC6: =country!BI31 -> 6.126642175 | BD6: 2022 | BE6: =IF(AND(country!J31>'goal seek'!$E$24,BD6<=country!$M$18,AO6>0),country!I31,#N/A) -> -0.02098663667 | BF6: =IF(AND(country!S31>'goal seek'!$E$23,BD6<=country!$V$18,AP6>0),country!R31,#N/A) -> 0.04708815854 | BG6: =IF(AND(country!AB31>'goal seek'!$E$23,BD6<=country!$AE$18,AQ6),country!AA31,#N/A) -> 0.03709846811 | BH6: =IF(AND(country!AK31>'goal seek'!$E$23,BD6<=country!$AN$18,AR6>0),country!AJ31,#N/A) -> 0.0477608156 | BI6: =IF(AND(country!AT31>'goal seek'!$E$23,BD6<=country!$AW$18,AS6>0),country!AS31,#N/A) -> 0.02263374024 | BJ6: =IF(AND(BD6<=country!$BF$18,AT6>0),country!BB31,#N/A) -> 0.01654534535 | BK6: =IF(AU6>0,country!BK31,#N/A) -> -0.02098663667
AN7: 2023 | AO7: =country!F32 -> 2519.815142 | AP7: =country!O32 -> 2877.827892 | AQ7: =country!X32 -> 2810.789093 | AR7: =country!AG32 -> 2879.513161 | AS7: =country!AP32 -> 2728.47636 | AT7: =country!AY32 -> 2713.276921 | AU7: =country!BH32 -> 2519.815142 | AW7: =country!G32 -> 5.68265237 | AX7: =country!P32 -> 6.490037788 | AY7: =country!Y32 -> 6.338852814 | AZ7: =country!AH32 -> 6.493838383 | BA7: =country!AQ32 -> 6.153222273 | BB7: =country!AZ32 -> 6.118944708 | BC7: =country!BI32 -> 5.68265237 | BD7: 2023 | BE7: =IF(AND(country!J32>'goal seek'!$E$24,BD7<=country!$M$18,AO7>0),country!I32,#N/A) -> -0.07246870189 | BF7: =IF(AND(country!S32>'goal seek'!$E$23,BD7<=country!$V$18,AP7>0),country!R32,#N/A) -> -0.00955564548 | BG7: =IF(AND(country!AB32>'goal seek'!$E$23,BD7<=country!$AE$18,AQ7),country!AA32,#N/A) -> -0.0233099158 | BH7: =IF(AND(country!AK32>'goal seek'!$E$23,BD7<=country!$AN$18,AR7>0),country!AJ32,#N/A) -> -0.009611869306 | BI7: =IF(AND(country!AT32>'goal seek'!$E$23,BD7<=country!$AW$18,AS7>0),country!AS32,#N/A) -> -0.03850154761 | BJ7: =IF(AND(BD7<=country!$BF$18,AT7>0),country!BB32,#N/A) -> -0.03813111466 | BK7: =IF(AU7>0,country!BK32,#N/A) -> -0.07246870189
AE8: base data | AF8: ='base data'!M47 -> 0.5 | AN8: 2024 | AO8: =country!F33 -> 2336.721444 | AP8: =country!O33 -> 2844.083868 | AQ8: =country!X33 -> 2728.222763 | AR8: =country!AG33 -> 2841.95946 | AS8: =country!AP33 -> 2606.602204 | AT8: =country!AY33 -> 2605.7152 | AU8: =country!BH33 -> 2336.721444 | AW8: =country!G33 -> 5.269741986 | AX8: =country!P33 -> 6.41393873 | AY8: =country!Y33 -> 6.152650365 | AZ8: =country!AH33 -> 6.409147794 | BA8: =country!AQ33 -> 5.878373356 | BB8: =country!AZ33 -> 5.876372996 | BC8: =country!BI33 -> 5.269741986 | BD8: 2024 | BE8: =IF(AND(country!J33>'goal seek'!$E$24,BD8<=country!$M$18,AO8>0),country!I33,#N/A) -> -0.07266155967 | BF8: =IF(AND(country!S33>'goal seek'!$E$23,BD8<=country!$V$18,AP8>0),country!R33,#N/A) -> -0.01172551843 | BG8: =IF(AND(country!AB33>'goal seek'!$E$23,BD8<=country!$AE$18,AQ8),country!AA33,#N/A) -> -0.02937478669 | BH8: =IF(AND(country!AK33>'goal seek'!$E$23,BD8<=country!$AN$18,AR8>0),country!AJ33,#N/A) -> -0.01304168421 | BI8: =IF(AND(country!AT33>'goal seek'!$E$23,BD8<=country!$AW$18,AS8>0),country!AS33,#N/A) -> -0.04466747742 | BJ8: =IF(AND(BD8<=country!$BF$18,AT8>0),country!BB33,#N/A) -> -0.03964273639 | BK8: =IF(AU8>0,country!BK33,#N/A) -> -0.07266155967
AE9: RM-1 | AF9: =country!M20 -> 0.5030051727 | AG9: Depending on the global path the smallest value is sought which is greater than or the same as the convergence level set. This value then constitutes the convergence year of the global path. The convergence level in the case of the concrete global path will generally be somewhat higher than the value set. | AN9: 2025 | AO9: =country!F34 -> 2166.44436 | AP9: =country!O34 -> 2803.159591 | AQ9: =country!X34 -> 2631.48053 | AR9: =country!AG34 -> 2792.350322 | AS9: =country!AP34 -> 2476.179658 | AT9: =country!AY34 -> 2498.153478 | AU9: =country!BH34 -> 2166.44436 | AW9: =country!G34 -> 4.885735454 | AX9: =country!P34 -> 6.321646866 | AY9: =country!Y34 -> 5.934478614 | AZ9: =country!AH34 -> 6.297269952 | BA9: =country!AQ34 -> 5.584246227 | BB9: =country!AZ34 -> 5.633801284 | BC9: =country!BI34 -> 4.885735454 | BD9: 2025 | BE9: =IF(AND(country!J34>'goal seek'!$E$24,BD9<=country!$M$18,AO9>0),country!I34,#N/A) -> -0.07287008227 | BF9: =IF(AND(country!S34>'goal seek'!$E$23,BD9<=country!$V$18,AP9>0),country!R34,#N/A) -> -0.01438926505 | BG9: =IF(AND(country!AB34>'goal seek'!$E$23,BD9<=country!$AE$18,AQ9),country!AA34,#N/A) -> -0.03545979981 | BH9: =IF(AND(country!AK34>'goal seek'!$E$23,BD9<=country!$AN$18,AR9>0),country!AJ34,#N/A) -> -0.01745596224 | BI9: =IF(AND(country!AT34>'goal seek'!$E$23,BD9<=country!$AW$18,AS9>0),country!AS34,#N/A) -> -0.05003546237 | BJ9: =IF(AND(BD9<=country!$BF$18,AT9>0),country!BB34,#N/A) -> -0.04127915505 | BK9: =IF(AU9>0,country!BK34,#N/A) -> -0.07287008227
AE10: RM-2 | AF10: =country!V20 -> 0.5357545406 | AN10: 2026 | AO10: =country!F35 -> 2008.086723 | AP10: =country!O35 -> 2753.656029 | AQ10: =country!X35 -> 2522.087764 | AR10: =country!AG35 -> 2728.519177 | AS10: =country!AP35 -> 2340.304216 | AT10: =country!AY35 -> 2390.591756 | AU10: =country!BH35 -> 2008.086723 | AW10: =country!G35 -> 4.528609495 | AX10: =country!P35 -> 6.210007114 | AY10: =country!Y35 -> 5.687777556 | AZ10: =country!AH35 -> 6.153318832 | BA10: =country!AQ35 -> 5.277821805 | BB10: =country!AZ35 -> 5.391229572 | BC10: =country!BI35 -> 4.528609495 | BD10: 2026 | BE10: =IF(AND(country!J35>'goal seek'!$E$24,BD10<=country!$M$18,AO10>0),country!I35,#N/A) -> -0.07309563967 | BF10: =IF(AND(country!S35>'goal seek'!$E$23,BD10<=country!$V$18,AP10>0),country!R35,#N/A) -> -0.01765991575 | BG10: =IF(AND(country!AB35>'goal seek'!$E$23,BD10<=country!$AE$18,AQ10),country!AA35,#N/A) -> -0.04157080584 | BH10: =IF(AND(country!AK35>'goal seek'!$E$23,BD10<=country!$AN$18,AR10>0),country!AJ35,#N/A) -> -0.02285928991 | BI10: =IF(AND(country!AT35>'goal seek'!$E$23,BD10<=country!$AW$18,AS10>0),country!AS35,#N/A) -> -0.0548730142 | BJ10: =IF(AND(BD10<=country!$BF$18,AT10>0),country!BB35,#N/A) -> -0.0430564906 | BK10: =IF(AU10>0,country!BK35,#N/A) -> -0.07309563967
AE11: RM-3 | AF11: =country!AE20 -> 0.5753182242 | AN11: 2027 | AO11: =country!F36 -> 1860.81417 | AP11: =country!O36 -> 2693.965789 | AQ11: =country!X36 -> 2401.747371 | AR11: =country!AG36 -> 2648.686779 | AS11: =country!AP36 -> 2201.451717 | AT11: =country!AY36 -> 2283.030034 | AU11: =country!BH36 -> 1860.81417 | AW11: =country!G36 -> 4.196482462 | AX11: =country!P36 -> 6.075394507 | AY11: =country!Y36 -> 5.416387561 | AZ11: =country!AH36 -> 5.973281909 | BA11: =country!AQ36 -> 4.964683562 | BB11: =country!AZ36 -> 5.14865786 | BC11: =country!BI36 -> 4.196482462 | BD11: 2027 | BE11: =IF(AND(country!J36>'goal seek'!$E$24,BD11<=country!$M$18,AO11>0),country!I36,#N/A) -> -0.07333973776 | BF11: =IF(AND(country!S36>'goal seek'!$E$23,BD11<=country!$V$18,AP11>0),country!R36,#N/A) -> -0.02167672348 | BG11: =IF(AND(country!AB36>'goal seek'!$E$23,BD11<=country!$AE$18,AQ11),country!AA36,#N/A) -> -0.04771459369 | BH11: =IF(AND(country!AK36>'goal seek'!$E$23,BD11<=country!$AN$18,AR11>0),country!AJ36,#N/A) -> -0.02925850724 | BI11: =IF(AND(country!AT36>'goal seek'!$E$23,BD11<=country!$AW$18,AS11>0),country!AS36,#N/A) -> -0.05933096153 | BJ11: =IF(AND(BD11<=country!$BF$18,AT11>0),country!BB36,#N/A) -> -0.04499376419 | BK11: =IF(AU11>0,country!BK36,#N/A) -> -0.07333973776
AE12: RM-4 | AF12: =country!AN20 -> 0.6195416925 | AN12: 2028 | AO12: =country!F37 -> 1723.85074 | AP12: =country!O37 -> 2622.275422 | AQ12: =country!X37 -> 2272.295178 | AR12: =country!AG37 -> 2551.576629 | AS12: =country!AP37 -> 2061.647557 | AT12: =country!AY37 -> 2175.468313 | AU12: =country!BH37 -> 1723.85074 | AW12: =country!G37 -> 3.887604423 | AX12: =country!P37 -> 5.91371938 | AY12: =country!Y37 -> 5.124448761 | AZ12: =country!AH37 -> 5.754280438 | BA12: =country!AQ37 -> 4.649399148 | BB12: =country!AZ37 -> 4.906086148 | BC12: =country!BI37 -> 3.887604423 | BD12: 2028 | BE12: =IF(AND(country!J37>'goal seek'!$E$24,BD12<=country!$M$18,AO12>0),country!I37,#N/A) -> -0.07360403444 | BF12: =IF(AND(country!S37>'goal seek'!$E$23,BD12<=country!$V$18,AP12>0),country!R37,#N/A) -> -0.02661146152 | BG12: =IF(AND(country!AB37>'goal seek'!$E$23,BD12<=country!$AE$18,AQ12),country!AA37,#N/A) -> -0.05389917121 | BH12: =IF(AND(country!AK37>'goal seek'!$E$23,BD12<=country!$AN$18,AR12>0),country!AJ37,#N/A) -> -0.03666350834 | BI12: =IF(AND(country!AT37>'goal seek'!$E$23,BD12<=country!$AW$18,AS12>0),country!AS37,#N/A) -> -0.06350544007 | BJ12: =IF(AND(BD12<=country!$BF$18,AT12>0),country!BB37,#N/A) -> -0.04711358157 | BK12: =IF(AU12>0,country!BK37,#N/A) -> -0.07360403444
AE13: RM-5 | AF13: =country!AW20 -> 0.511910993 | AN13: 2029 | AO13: =country!F38 -> 1596.474791 | AP13: =country!O38 -> 2536.588967 | AQ13: =country!X38 -> 2135.652714 | AR13: =country!AG38 -> 2436.53031 | AS13: =country!AP38 -> 1922.561995 | AT13: =country!AY38 -> 2067.906591 | AU13: =country!BH38 -> 1596.474791 | AW13: =country!G38 -> 3.60034794 | AX13: =country!P38 -> 5.720480469 | AY13: =country!Y38 -> 4.816294558 | AZ13: =country!AH38 -> 5.494829564 | BA13: =country!AQ38 -> 4.335735307 | BB13: =country!AZ38 -> 4.663514436 | BC13: =country!BI38 -> 3.60034794 | BD13: 2029 | BE13: =IF(AND(country!J38>'goal seek'!$E$24,BD13<=country!$M$18,AO13>0),country!I38,#N/A) -> -0.07389035815 | BF13: =IF(AND(country!S38>'goal seek'!$E$23,BD13<=country!$V$18,AP13>0),country!R38,#N/A) -> -0.03267637484 | BG13: =IF(AND(country!AB38>'goal seek'!$E$23,BD13<=country!$AE$18,AQ13),country!AA38,#N/A) -> -0.06013411719 | BH13: =IF(AND(country!AK38>'goal seek'!$E$23,BD13<=country!$AN$18,AR13>0),country!AJ38,#N/A) -> -0.04508832618 | BI13: =IF(AND(country!AT38>'goal seek'!$E$23,BD13<=country!$AW$18,AS13>0),country!AS38,#N/A) -> -0.06746330675 | BJ13: =IF(AND(BD13<=country!$BF$18,AT13>0),country!BB38,#N/A) -> -0.04944301929 | BK13: =IF(AU13>0,country!BK38,#N/A) -> -0.07389035815
AE14: RM-6 | AF14: =country!BF20 -> 0.5397953311 | AM14: 2030 | AN14: 2030 | AO14: =country!F39 -> 1478.015198 | AP14: =country!O39 -> 2434.784692 | AQ14: =country!X39 -> 1993.779105 | AR14: =country!AG39 -> 2303.611109 | AS14: =country!AP39 -> 1785.571011 | AT14: =country!AY39 -> 1960.344869 | AU14: =country!BH39 -> 1478.015198 | AW14: =country!G39 -> 3.333199498 | AX14: =country!P39 -> 5.490892872 | AY14: =country!Y39 -> 4.496343151 | AZ14: =country!AH39 -> 5.195072016 | BA14: =country!AQ39 -> 4.026795128 | BB14: =country!AZ39 -> 4.420942723 | BC14: =country!BI39 -> 3.333199498 | BD14: 2030 | BE14: =IF(AND(country!J39>'goal seek'!$E$24,BD14<=country!$M$18,AO14>0),country!I39,#N/A) -> -0.0742007291 | BF14: =IF(AND(country!S39>'goal seek'!$E$23,BD14<=country!$V$18,AP14>0),country!R39,#N/A) -> -0.04013432057 | BG14: =IF(AND(country!AB39>'goal seek'!$E$23,BD14<=country!$AE$18,AQ14),country!AA39,#N/A) -> -0.06643102972 | BH14: =IF(AND(country!AK39>'goal seek'!$E$23,BD14<=country!$AN$18,AR14>0),country!AJ39,#N/A) -> -0.05455265631 | BI14: =IF(AND(country!AT39>'goal seek'!$E$23,BD14<=country!$AW$18,AS14>0),country!AS39,#N/A) -> -0.07125439109 | BJ14: =IF(AND(BD14<=country!$BF$18,AT14>0),country!BB39,#N/A) -> -0.05201478743 | BK14: =IF(AU14>0,country!BK39,#N/A) -> -0.0742007291
AN15: 2031 | AO15: =country!F40 -> 1367.847812 | AP15: =country!O40 -> 2314.720869 | AQ15: =country!X40 -> 1848.623802 | AR15: =country!AG40 -> 2153.68275 | AS15: =country!AP40 -> 1651.799376 | AT15: =country!AY40 -> 1852.783147 | AU15: =country!BH40 -> 1367.847812 | AW15: =country!G40 -> 3.084751527 | AX15: =country!P40 -> 5.220126592 | AY15: =country!Y40 -> 4.168990914 | AZ15: =country!AH40 -> 4.856955647 | BA15: =country!AQ40 -> 3.725115181 | BB15: =country!AZ40 -> 4.178371011 | BC15: =country!BI40 -> 3.084751527 | BD15: 2031 | BE15: =IF(AND(country!J40>'goal seek'!$E$24,BD15<=country!$M$18,AO15>0),country!I40,#N/A) -> -0.07453738376 | BF15: =IF(AND(country!S40>'goal seek'!$E$23,BD15<=country!$V$18,AP15>0),country!R40,#N/A) -> -0.0493118854 | BG15: =IF(AND(country!AB40>'goal seek'!$E$23,BD15<=country!$AE$18,AQ15),country!AA40,#N/A) -> -0.07280410474 | BH15: =IF(AND(country!AK40>'goal seek'!$E$23,BD15<=country!$AN$18,AR15>0),country!AJ40,#N/A) -> -0.06508405814 | BI15: =IF(AND(country!AT40>'goal seek'!$E$23,BD15<=country!$AW$18,AS15>0),country!AS40,#N/A) -> -0.07491812647 | BJ15: =IF(AND(BD15<=country!$BF$18,AT15>0),country!BB40,#N/A) -> -0.0548687751 | BK15: =IF(AU15>0,country!BK40,#N/A) -> -0.07453738376
AN16: 2032 | AO16: =country!F41 -> 1265.392176 | AP16: =country!O41 -> 2174.410129 | AQ16: =country!X41 -> 1702.081744 | AR16: =country!AG41 -> 1988.449604 | AS16: =country!AP41 -> 1522.15379 | AT16: =country!AY41 -> 1745.221426 | AU16: =country!BH41 -> 1265.392176 | AW16: =country!G41 -> 2.853694991 | AX16: =country!P41 -> 4.903699748 | AY16: =country!Y41 -> 3.838511285 | AZ16: =country!AH41 -> 4.484324133 | BA16: =country!AQ41 -> 3.432740242 | BB16: =country!AZ41 -> 3.935799299 | BC16: =country!BI41 -> 2.853694991 | BD16: 2032 | BE16: =IF(AND(country!J41>'goal seek'!$E$24,BD16<=country!$M$18,AO16>0),country!I41,#N/A) -> -0.07490280327 | BF16: =IF(AND(country!S41>'goal seek'!$E$23,BD16<=country!$V$18,AP16>0),country!R41,#N/A) -> -0.06061669942 | BG16: =IF(AND(country!AB41>'goal seek'!$E$23,BD16<=country!$AE$18,AQ16),country!AA41,#N/A) -> -0.07927089208 | BH16: =IF(AND(country!AK41>'goal seek'!$E$23,BD16<=country!$AN$18,AR16>0),country!AJ41,#N/A) -> -0.07672120986 | BI16: =IF(AND(country!AT41>'goal seek'!$E$23,BD16<=country!$AW$18,AS16>0),country!AS41,#N/A) -> -0.07848748966 | BJ16: =IF(AND(BD16<=country!$BF$18,AT16>0),country!BB41,#N/A) -> -0.05805413434 | BK16: =IF(AU16>0,country!BK41,#N/A) -> -0.07490280327
AN17: 2033 | AO17: =country!F42 -> 1170.108466 | AP17: =country!O42 -> 2012.284039 | AQ17: =country!X42 -> 1555.952417 | AR17: =country!AG42 -> 1810.445929 | AS17: =country!AP42 -> 1397.350045 | AT17: =country!AY42 -> 1637.659704 | AU17: =country!BH42 -> 1170.108466 | AW17: =country!G42 -> 2.638812482 | AX17: =country!P42 -> 4.538075223 | AY17: =country!Y42 -> 3.508962441 | AZ17: =country!AH42 -> 4.0828927 | BA17: =country!AQ42 -> 3.151284557 | BB17: =country!AZ42 -> 3.693227587 | BC17: =country!BI42 -> 2.638812482 | BD17: 2033 | BE17: =IF(AND(country!J42>'goal seek'!$E$24,BD17<=country!$M$18,AO17>0),country!I42,#N/A) -> -0.0752997464 | BF17: =IF(AND(country!S42>'goal seek'!$E$23,BD17<=country!$V$18,AP17>0),country!R42,#N/A) -> -0.07456095252 | BG17: =IF(AND(country!AB42>'goal seek'!$E$23,BD17<=country!$AE$18,AQ17),country!AA42,#N/A) -> -0.08585329543 | BH17: =IF(AND(country!AK42>'goal seek'!$E$23,BD17<=country!$AN$18,AR17>0),country!AJ42,#N/A) -> -0.08951882637 | BI17: =IF(AND(country!AT42>'goal seek'!$E$23,BD17<=country!$AW$18,AS17>0),country!AS42,#N/A) -> -0.0819915476 | BJ17: =IF(AND(BD17<=country!$BF$18,AT17>0),country!BB42,#N/A) -> -0.06163213456 | BK17: =IF(AU17>0,country!BK42,#N/A) -> -0.0752997464
AN18: 2034 | AO18: =country!F43 -> 1081.494645 | AP18: =country!O43 -> 1827.567133 | AQ18: =country!X43 -> 1411.904036 | AR18: =country!AG43 -> 1622.964739 | AS18: =country!AP43 -> 1277.936351 | AT18: =country!AY43 -> 1530.097982 | AU18: =country!BH43 -> 1081.494645 | AW18: =country!G43 -> 2.438971813 | AX18: =country!P43 -> 4.121504204 | AY18: =country!Y43 -> 3.184106517 | AZ18: =country!AH43 -> 3.660087704 | BA18: =country!AQ43 -> 2.881984441 | BB18: =country!AZ43 -> 3.450655875 | BC18: =country!BI43 -> 2.438971813 | BD18: 2034 | BE18: =IF(AND(country!J43>'goal seek'!$E$24,BD18<=country!$M$18,AO18>0),country!I43,#N/A) -> -0.07573128808 | BF18: =IF(AND(country!S43>'goal seek'!$E$23,BD18<=country!$V$18,AP18>0),country!R43,#N/A) -> -0.09179464837 | BG18: =IF(AND(country!AB43>'goal seek'!$E$23,BD18<=country!$AE$18,AQ18),country!AA43,#N/A) -> -0.09257891174 | BH18: =IF(AND(country!AK43>'goal seek'!$E$23,BD18<=country!$AN$18,AR18>0),country!AJ43,#N/A) -> -0.1035552552 | BI18: =IF(AND(country!AT43>'goal seek'!$E$23,BD18<=country!$AW$18,AS18>0),country!AS43,#N/A) -> -0.08545725117 | BJ18: =IF(AND(BD18<=country!$BF$18,AT18>0),country!BB43,#N/A) -> -0.0656801419 | BK18: =IF(AU18>0,country!BK43,#N/A) -> -0.07573128808
AN19: 2035 | AO19: =country!F44 -> 999.0838178 | AP19: =country!O44 -> 1620.768209 | AQ19: =country!X44 -> 1271.4438 | AR19: =country!AG44 -> 1429.922018 | AS19: =country!AP44 -> 1164.313979 | AT19: =country!AY44 -> 1422.53626 | AU19: =country!BH44 -> 999.0838178 | AW19: =country!G44 -> 2.253120052 | AX19: =country!P44 -> 3.655134121 | AY19: =country!Y44 -> 2.867342529 | AZ19: =country!AH44 -> 3.224740421 | BA19: =country!AQ44 -> 2.625744834 | BB19: =country!AZ44 -> 3.208084163 | BC19: =country!BI44 -> 2.253120052 | BD19: 2035 | BE19: =IF(AND(country!J44>'goal seek'!$E$24,BD19<=country!$M$18,AO19>0),country!I44,#N/A) -> -0.07620086456 | BF19: =IF(AND(country!S44>'goal seek'!$E$23,BD19<=country!$V$18,AP19>0),country!R44,#N/A) -> -0.1131553093 | BG19: =IF(AND(country!AB44>'goal seek'!$E$23,BD19<=country!$AE$18,AQ19),country!AA44,#N/A) -> -0.099482849 | BH19: =IF(AND(country!AK44>'goal seek'!$E$23,BD19<=country!$AN$18,AR19>0),country!AJ44,#N/A) -> -0.1189444948 | BI19: =IF(AND(country!AT44>'goal seek'!$E$23,BD19<=country!$AW$18,AS19>0),country!AS44,#N/A) -> -0.08891082261 | BJ19: =IF(AND(BD19<=country!$BF$18,AT19>0),country!BB44,#N/A) -> -0.07029727703 | BK19: =IF(AU19>0,country!BK44,#N/A) -> -0.07620086456
AN20: 2036 | AO20: =country!F45 -> 922.4417737 | AP20: =country!O45 -> 1394.269167 | AQ20: =country!X45 -> 1135.894884 | AR20: =country!AG45 -> 1235.658904 | AS20: =country!AP45 -> 1056.755883 | AT20: =country!AY45 -> 1314.974539 | AU20: =country!BH45 -> 922.4417737 | AW20: =country!G45 -> 2.080277971 | AX20: =country!P45 -> 3.144336605 | AY20: =country!Y45 -> 2.561654484 | AZ20: =country!AH45 -> 2.786640925 | BA20: =country!AQ45 -> 2.383181298 | BB20: =country!AZ45 -> 2.965512451 | BC20: =country!BI45 -> 2.080277971 | BD20: 2036 | BE20: =IF(AND(country!J45>'goal seek'!$E$24,BD20<=country!$M$18,AO20>0),country!I45,#N/A) -> -0.07671232651 | BF20: =IF(AND(country!S45>'goal seek'!$E$23,BD20<=country!$V$18,AP20>0),country!R45,#N/A) -> -0.1397479544 | BG20: =IF(AND(country!AB45>'goal seek'!$E$23,BD20<=country!$AE$18,AQ20),country!AA45,#N/A) -> -0.1066102296 | BH20: =IF(AND(country!AK45>'goal seek'!$E$23,BD20<=country!$AN$18,AR20>0),country!AJ45,#N/A) -> -0.1358557399 | BI20: =IF(AND(country!AT45>'goal seek'!$E$23,BD20<=country!$AW$18,AS20>0),country!AS45,#N/A) -> -0.0923789443 | BJ20: =IF(AND(BD20<=country!$BF$18,AT20>0),country!BB45,#N/A) -> -0.07561263972 | BK20: =IF(AU20>0,country!BK45,#N/A) -> -0.07671232651
AN21: 2037 | AO21: =country!F46 -> 851.164696 | AP21: =country!O46 -> 1152.94013 | AQ21: =country!X46 -> 1006.380498 | AR21: =country!AG46 -> 1044.692502 | AS21: =country!AP46 -> 955.4236769 | AT21: =country!AY46 -> 1207.412817 | AU21: =country!BH46 -> 851.164696 | AW21: =country!G46 -> 1.919534888 | AX21: =country!P46 -> 2.600094687 | AY21: =country!Y46 -> 2.269575425 | AZ21: =country!AH46 -> 2.355976128 | BA21: =country!AQ46 -> 2.154658305 | BB21: =country!AZ46 -> 2.722940739 | BC21: =country!BI46 -> 1.919534888 | BD21: 2037 | BE21: =IF(AND(country!J46>'goal seek'!$E$24,BD21<=country!$M$18,AO21>0),country!I46,#N/A) -> -0.07727000199 | BF21: =IF(AND(country!S46>'goal seek'!$E$23,BD21<=country!$V$18,AP21>0),country!R46,#N/A) -> -0.1730864045 | BG21: =IF(AND(country!AB46>'goal seek'!$E$23,BD21<=country!$AE$18,AQ21),country!AA46,#N/A) -> -0.1140196933 | BH21: =IF(AND(country!AK46>'goal seek'!$E$23,BD21<=country!$AN$18,AR21>0),country!AJ46,#N/A) -> -0.1545462112 | BI21: =IF(AND(country!AT46>'goal seek'!$E$23,BD21<=country!$AW$18,AS21>0),country!AS46,#N/A) -> -0.09588989033 | BJ21: =IF(AND(BD21<=country!$BF$18,AT21>0),country!BB46,#N/A) -> -0.0817975699 | BK21: =IF(AU21>0,country!BK46,#N/A) -> -0.07727000199
AN22: 2038 | AO22: =country!F47 -> 784.8770354 | AP22: =country!O47 -> 904.6280992 | AQ22: =country!X47 -> 883.8150385 | AR22: =country!AG47 -> 861.4341344 | AS22: =country!AP47 -> 860.3831796 | AT22: =country!AY47 -> 1099.851095 | AU22: =country!BH47 -> 784.8770354 | AW22: =country!G47 -> 1.77004387 | AX22: =country!P47 -> 2.040104818 | AY22: =country!Y47 -> 1.99316749 | AZ22: =country!AH47 -> 1.942694384 | BA22: =country!AQ47 -> 1.940324285 | BB22: =country!AZ47 -> 2.480369027 | BC22: =country!BI47 -> 1.77004387 | BD22: 2038 | BE22: =IF(AND(country!J47>'goal seek'!$E$24,BD22<=country!$M$18,AO22>0),country!I47,#N/A) -> -0.07787877121 | BF22: =IF(AND(country!S47>'goal seek'!$E$23,BD22<=country!$V$18,AP22>0),country!R47,#N/A) -> -0.2153728754 | BG22: =IF(AND(country!AB47>'goal seek'!$E$23,BD22<=country!$AE$18,AQ22),country!AA47,#N/A) -> -0.1217883891 | BH22: =IF(AND(country!AK47>'goal seek'!$E$23,BD22<=country!$AN$18,AR22>0),country!AJ47,#N/A) -> -0.1754184769 | BI22: =IF(AND(country!AT47>'goal seek'!$E$23,BD22<=country!$AW$18,AS22>0),country!AS47,#N/A) -> -0.09947471428 | BJ22: =IF(AND(BD22<=country!$BF$18,AT22>0),country!BB47,#N/A) -> -0.08908446244 | BK22: =IF(AU22>0,country!BK47,#N/A) -> -0.07787877121
AN23: 2039 | AO23: =country!F48 -> 723.2295312 | AP23: =country!O48 -> 660.2608026 | AQ23: =country!X48 -> 768.9020816 | AR23: =country!AG48 -> 689.9007054 | AS23: =country!AP48 -> 771.6186495 | AT23: =country!AY48 -> 992.2893734 | AU23: =country!BH48 -> 723.2295312 | AW23: =country!G48 -> 1.631017268 | AX23: =country!P48 -> 1.48901106 | AY23: =country!Y48 -> 1.734017374 | AZ23: =country!AH48 -> 1.55585456 | BA23: =country!AQ48 -> 1.740143741 | BB23: =country!AZ48 -> 2.237797315 | BC23: =country!BI48 -> 1.631017268 | BD23: 2039 | BE23: =IF(AND(country!J48>'goal seek'!$E$24,BD23<=country!$M$18,AO23>0),country!I48,#N/A) -> -0.07854415594 | BF23: =IF(AND(country!S48>'goal seek'!$E$23,BD23<=country!$V$18,AP23>0),country!R48,#N/A) -> -0.2701301196 | BG23: =IF(AND(country!AB48>'goal seek'!$E$23,BD23<=country!$AE$18,AQ23),country!AA48,#N/A) -> -0.1300192369 | BH23: =IF(AND(country!AK48>'goal seek'!$E$23,BD23<=country!$AN$18,AR23>0),country!AJ48,#N/A) -> -0.1991254144 | BI23: =IF(AND(country!AT48>'goal seek'!$E$23,BD23<=country!$AW$18,AS23>0),country!AS48,#N/A) -> -0.1031686024 | BJ23: =IF(AND(BD23<=country!$BF$18,AT23>0),country!BB48,#N/A) -> -0.09779662194 | BK23: =IF(AU23>0,country!BK48,#N/A) -> -0.07854415594
AM24: 2040 | AN24: 2040 | AO24: =country!F49 -> 665.8973709 | AP24: =country!O49 -> 433.2112937 | AQ24: =country!X49 -> 662.1386852 | AR24: =country!AG49 -> 533.4489893 | AS24: =country!AP49 -> 689.0457958 | AT24: =country!AY49 -> 884.7276517 | AU24: =country!BH49 -> 665.8973709 | AW24: =country!G49 -> 1.501722571 | AX24: =country!P49 -> 0.9769721374 | AY24: =country!Y49 -> 1.493246035 | AZ24: =country!AH49 -> 1.203026807 | BA24: =country!AQ49 -> 1.553926579 | BB24: =country!AZ49 -> 1.995225603 | BC24: =country!BI49 -> 1.501722571 | BD24: 2040 | BE24: =IF(AND(country!J49>'goal seek'!$E$24,BD24<=country!$M$18,AO24>0),country!I49,#N/A) -> -0.07927242705 | BF24: =IF(AND(country!S49>'goal seek'!$E$23,BD24<=country!$V$18,AP24>0),country!R49,#N/A) -> -0.3438785219 | BG24: =IF(AND(country!AB49>'goal seek'!$E$23,BD24<=country!$AE$18,AQ24),country!AA49,#N/A) -> -0.1388517458 | BH24: =IF(AND(country!AK49>'goal seek'!$E$23,BD24<=country!$AN$18,AR24>0),country!AJ49,#N/A) -> -0.2267742516 | BI24: =IF(AND(country!AT49>'goal seek'!$E$23,BD24<=country!$AW$18,AS24>0),country!AS49,#N/A) -> -0.1070125168 | BJ24: =IF(AND(BD24<=country!$BF$18,AT24>0),country!BB49,#N/A) -> -0.1083975347 | BK24: =IF(AU24>0,country!BK49,#N/A) -> -0.07927242705
AN25: 2041 | AO25: =country!F50 -> 612.5784793 | AP25: =country!O50 -> 237.5655444 | AQ25: =country!X50 -> 563.8252727 | AR25: =country!AG50 -> 394.5628193 | AS25: =country!AP50 -> 612.5236152 | AT25: =country!AY50 -> 777.16593 | AU25: =country!BH50 -> 612.5784793 | AW25: =country!G50 -> 1.381478541 | AX25: =country!P50 -> 0.5357545406 | AY25: =country!Y50 -> 1.271530982 | AZ25: =country!AH50 -> 0.8898126307 | BA25: =country!AQ50 -> 1.381354813 | BB25: =country!AZ50 -> 1.752653891 | BC25: =country!BI50 -> 1.381478541 | BD25: 2041 | BE25: =IF(AND(country!J50>'goal seek'!$E$24,BD25<=country!$M$18,AO25>0),country!I50,#N/A) -> -0.08007073456 | BF25: =IF(AND(country!S50>'goal seek'!$E$23,BD25<=country!$V$18,AP25>0),country!R50,#N/A) -> -0.4516173798 | BG25: =IF(AND(country!AB50>'goal seek'!$E$23,BD25<=country!$AE$18,AQ25),country!AA50,#N/A) -> -0.1484785811 | BH25: =IF(AND(country!AK50>'goal seek'!$E$23,BD25<=country!$AN$18,AR25>0),country!AJ50,#N/A) -> -0.2603551094 | BI25: =IF(AND(country!AT50>'goal seek'!$E$23,BD25<=country!$AW$18,AS25>0),country!AS50,#N/A) -> -0.1110552899 | BJ25: =IF(AND(BD25<=country!$BF$18,AT25>0),country!BB50,#N/A) -> -0.1215760822 | BK25: =IF(AU25>0,country!BK50,#N/A) -> -0.08007073456
AN26: 2042 | AO26: =country!F51 -> 562.9919262 | AP26: =country!O51 -> 131.2032079 | AQ26: =country!X51 -> 474.080207 | AR26: =country!AG51 -> 274.7186413 | AS26: =country!AP51 -> 541.865099 | AT26: =country!AY51 -> 669.6042082 | AU26: =country!BH51 -> 562.9919262 | AW26: =country!G51 -> 1.269651631 | AX26: =country!P51 -> 0.2958876656 | AY26: =country!Y51 -> 1.069139147 | AZ26: =country!AH51 -> 0.6195416925 | BA26: =country!AQ51 -> 1.222006701 | BB26: =country!AZ51 -> 1.510082179 | BC26: =country!BI51 -> 1.269651631 | BD26: 2042 | BE26: =IF(AND(country!J51>'goal seek'!$E$24,BD26<=country!$M$18,AO26>0),country!I51,#N/A) -> -0.08094726588 | BF26: =IF(AND(country!S51>'goal seek'!$E$23,BD26<=country!$V$18,AP26>0),country!R51,#N/A) ->  | BG26: =IF(AND(country!AB51>'goal seek'!$E$23,BD26<=country!$AE$18,AQ26),country!AA51,#N/A) -> -0.1591717683 | BH26: =IF(AND(country!AK51>'goal seek'!$E$23,BD26<=country!$AN$18,AR26>0),country!AJ51,#N/A) -> -0.3037391568 | BI26: =IF(AND(country!AT51>'goal seek'!$E$23,BD26<=country!$AW$18,AS26>0),country!AS51,#N/A) -> -0.1153563952 | BJ26: =IF(AND(BD26<=country!$BF$18,AT26>0),country!BB51,#N/A) -> -0.1384025182 | BK26: =IF(AU26>0,country!BK51,#N/A) -> -0.08094726588
B27: =CONCATENATE("Reference values for the country: ",B2) -> Reference values for the country: EU27 | AN27: =AN26+1 -> 2043 | AO27: =country!F52 -> 516.876447 | AP27: =country!O52 -> 59.14595398 | AQ27: =country!X52 -> 392.8580585 | AR27: =country!AG52 -> 205.092105 | AS27: =country!AP52 -> 476.8468531 | AT27: =country!AY52 -> 562.0424865 | AU27: =country!BH52 -> 516.876447 | AW27: =country!G52 -> 1.165652638 | AX27: =country!P52 -> 0.13338514 | AY27: =country!Y52 -> 0.8859680776 | AZ27: =country!AH52 -> 0.4625208877 | BA27: =country!AQ52 -> 1.075378449 | BB27: =country!AZ52 -> 1.267510467 | BC27: =country!BI52 -> 1.165652638 | BD27: 2043 | BE27: =IF(AND(country!J52>'goal seek'!$E$24,BD27<=country!$M$18,AO27>0),country!I52,#N/A) -> -0.0819114398 | BF27: =IF(AND(country!S52>'goal seek'!$E$23,BD27<=country!$V$18,AP27>0),country!R52,#N/A) ->  | BG27: =IF(AND(country!AB52>'goal seek'!$E$23,BD27<=country!$AE$18,AQ27),country!AA52,#N/A) -> -0.1713257532 | BH27: =IF(AND(country!AK52>'goal seek'!$E$23,BD27<=country!$AN$18,AR27>0),country!AJ52,#N/A) ->  | BI27: =IF(AND(country!AT52>'goal seek'!$E$23,BD27<=country!$AW$18,AS27>0),country!AS52,#N/A) -> -0.1199897281 | BJ27: =IF(AND(BD27<=country!$BF$18,AT27>0),country!BB52,#N/A) -> -0.1606347756 | BK27: =IF(AU27>0,country!BK52,#N/A) -> -0.0819114398
AN28: 2044 | AO28: =country!F53 -> 473.9890652 | AP28: =country!O53 -> -17.87084584 | AQ28: =country!X53 -> 319.9705247 | AR28: =country!AG53 -> 148.5850406 | AS28: =country!AP53 -> 417.2176745 | AT28: =country!AY53 -> 454.4807647 | AU28: =country!BH53 -> 473.9890652 | AW28: =country!G53 -> 1.068933606 | AX28: =country!P53 -> -0.04030208517 | AY28: =country!Y53 -> 0.7215931162 | AZ28: =country!AH53 -> 0.3350869351 | BA28: =country!AQ53 -> 0.9409035479 | BB28: =country!AZ53 -> 1.024938755 | BC28: =country!BI53 -> 1.068933606 | BD28: 2044 | BE28: =IF(AND(country!J53>'goal seek'!$E$24,BD28<=country!$M$18,AO28>0),country!I53,#N/A) -> -0.0829741459 | BF28: =IF(AND(country!S53>'goal seek'!$E$23,BD28<=country!$V$18,AP28>0),country!R53,#N/A) ->  | BG28: =IF(AND(country!AB53>'goal seek'!$E$23,BD28<=country!$AE$18,AQ28),country!AA53,#N/A) -> -0.1855314717 | BH28: =IF(AND(country!AK53>'goal seek'!$E$23,BD28<=country!$AN$18,AR28>0),country!AJ53,#N/A) ->  | BI28: =IF(AND(country!AT53>'goal seek'!$E$23,BD28<=country!$AW$18,AS28>0),country!AS53,#N/A) -> -0.1250489086 | BJ28: =IF(AND(BD28<=country!$BF$18,AT28>0),country!BB53,#N/A) -> -0.1913764961 | BK28: =IF(AU28>0,country!BK53,#N/A) -> -0.0829741459
AN29: 2045 | AO29: =country!F54 -> 434.1038133 | AP29: =country!O54 -> -58.13728109 | AQ29: =country!X54 -> 255.1089665 | AR29: =country!AG54 -> 104.2274358 | AS29: =country!AP54 -> 362.7061317 | AT29: =country!AY54 -> 346.919043 | AU29: =country!BH54 -> 434.1038133 | AW29: =country!G54 -> 0.9789849351 | AX29: =country!P54 -> -0.1311103948 | AY29: =country!Y54 -> 0.5753182242 | AZ29: =country!AH54 -> 0.2350522764 | BA29: =country!AQ54 -> 0.8179698679 | BB29: =country!AZ54 -> 0.7823670431 | BC29: =country!BI54 -> 0.9789849351 | BD29: 2045 | BE29: =IF(AND(country!J54>'goal seek'!$E$24,BD29<=country!$M$18,AO29>0),country!I54,#N/A) -> -0.08414804246 | BF29: =IF(AND(country!S54>'goal seek'!$E$23,BD29<=country!$V$18,AP29>0),country!R54,#N/A) ->  | BG29: =IF(AND(country!AB54>'goal seek'!$E$23,BD29<=country!$AE$18,AQ29),country!AA54,#N/A) -> -0.2027110414 | BH29: =IF(AND(country!AK54>'goal seek'!$E$23,BD29<=country!$AN$18,AR29>0),country!AJ54,#N/A) ->  | BI29: =IF(AND(country!AT54>'goal seek'!$E$23,BD29<=country!$AW$18,AS29>0),country!AS54,#N/A) -> -0.1306549223 | BJ29: =IF(AND(BD29<=country!$BF$18,AT29>0),country!BB54,#N/A) -> -0.2366694701 | BK29: =IF(AU29>0,country!BK54,#N/A) -> -0.08414804246
AN30: 2046 | AO30: =country!F55 -> 397.010541 | AP30: =country!O55 -> -58.13728109 | AQ30: =country!X55 -> 215.2728652 | AR30: =country!AG55 -> 70.61556997 | AS30: =country!AP55 -> 313.0272006 | AT30: =country!AY55 -> 239.3573213 | AU30: =country!BH55 -> 397.010541 | AW30: =country!G55 -> 0.8953326989 | AX30: =country!P55 -> -0.1311103948 | AY30: =country!Y55 -> 0.4854803979 | AZ30: =country!AH55 -> 0.1592512599 | BA30: =country!AQ55 -> 0.7059346273 | BB30: =country!AZ55 -> 0.5397953311 | BC30: =country!BI55 -> 0.8953326989 | BD30: 2046 | BE30: =IF(AND(country!J55>'goal seek'!$E$24,BD30<=country!$M$18,AO30>0),country!I55,#N/A) -> -0.08544792999 | BF30: =IF(AND(country!S55>'goal seek'!$E$23,BD30<=country!$V$18,AP30>0),country!R55,#N/A) ->  | BG30: =IF(AND(country!AB55>'goal seek'!$E$23,BD30<=country!$AE$18,AQ30),country!AA55,#N/A) ->  | BH30: =IF(AND(country!AK55>'goal seek'!$E$23,BD30<=country!$AN$18,AR30>0),country!AJ55,#N/A) ->  | BI30: =IF(AND(country!AT55>'goal seek'!$E$23,BD30<=country!$AW$18,AS30>0),country!AS55,#N/A) -> -0.1369674422 | BJ30: =IF(AND(BD30<=country!$BF$18,AT30>0),country!BB55,#N/A) -> -0.3100484794 | BK30: =IF(AU30>0,country!BK55,#N/A) -> -0.08544792999
AN31: 2047 | AO31: =country!F56 -> 362.5138091 | AP31: =country!O56 -> -58.13728109 | AQ31: =country!X56 -> 180.4057941 | AR31: =country!AG56 -> 37.00370411 | AS31: =country!AP56 -> 267.8880138 | AT31: =country!AY56 -> 164.3096652 | AU31: =country!BH56 -> 362.5138091 | AW31: =country!G56 -> 0.8175361446 | AX31: =country!P56 -> -0.1311103948 | AY31: =country!Y56 -> 0.4068486598 | AZ31: =country!AH56 -> 0.08345024337 | BA31: =country!AQ56 -> 0.6041373556 | BB31: =country!AZ56 -> 0.3705488918 | BC31: =country!BI56 -> 0.8175361446 | BD31: 2047 | BE31: =IF(AND(country!J56>'goal seek'!$E$24,BD31<=country!$M$18,AO31>0),country!I56,#N/A) -> -0.0868912242 | BF31: =IF(AND(country!S56>'goal seek'!$E$23,BD31<=country!$V$18,AP31>0),country!R56,#N/A) ->  | BG31: =IF(AND(country!AB56>'goal seek'!$E$23,BD31<=country!$AE$18,AQ31),country!AA56,#N/A) ->  | BH31: =IF(AND(country!AK56>'goal seek'!$E$23,BD31<=country!$AN$18,AR31>0),country!AJ56,#N/A) ->  | BI31: =IF(AND(country!AT56>'goal seek'!$E$23,BD31<=country!$AW$18,AS31>0),country!AS56,#N/A) -> -0.1442021227 | BJ31: =IF(AND(BD31<=country!$BF$18,AT31>0),country!BB56,#N/A) ->  | BK31: =IF(AU31>0,country!BK56,#N/A) -> -0.0868912242
AN32: 2048 | AO32: =country!F57 -> 330.4318589 | AP32: =country!O57 -> -58.13728109 | AQ32: =country!X57 -> 150.1372283 | AR32: =country!AG57 -> 3.391838247 | AS32: =country!AP57 -> 226.9927822 | AT32: =country!AY57 -> 89.26200916 | AU32: =country!BH57 -> 330.4318589 | AW32: =country!G57 -> 0.7451853728 | AX32: =country!P57 -> -0.1311103948 | AY32: =country!Y57 -> 0.3385874074 | AZ32: =country!AH57 -> 0.007649226854 | BA32: =country!AQ57 -> 0.511910993 | BB32: =country!AZ57 -> 0.2013024525 | BC32: =country!BI57 -> 0.7451853728 | BD32: 2048 | BE32: =IF(AND(country!J57>'goal seek'!$E$24,BD32<=country!$M$18,AO32>0),country!I57,#N/A) -> -0.08849856038 | BF32: =IF(AND(country!S57>'goal seek'!$E$23,BD32<=country!$V$18,AP32>0),country!R57,#N/A) ->  | BG32: =IF(AND(country!AB57>'goal seek'!$E$23,BD32<=country!$AE$18,AQ32),country!AA57,#N/A) ->  | BH32: =IF(AND(country!AK57>'goal seek'!$E$23,BD32<=country!$AN$18,AR32>0),country!AJ57,#N/A) ->  | BI32: =IF(AND(country!AT57>'goal seek'!$E$23,BD32<=country!$AW$18,AS32>0),country!AS57,#N/A) -> -0.1526579374 | BJ32: =IF(AND(BD32<=country!$BF$18,AT32>0),country!BB57,#N/A) ->  | BK32: =IF(AU32>0,country!BK57,#N/A) -> -0.08849856038
AN33: 2049 | AO33: =country!F58 -> 300.5956549 | AP33: =country!O58 -> -58.13728109 | AQ33: =country!X58 -> 124.0743002 | AR33: =country!AG58 -> -41.82827897 | AS33: =country!AP58 -> 201.1638053 | AT33: =country!AY58 -> 14.21435311 | AU33: =country!BH58 -> 300.5956549 | AW33: =country!G58 -> 0.6778991769 | AX33: =country!P58 -> -0.1311103948 | AY33: =country!Y58 -> 0.2798106514 | AZ33: =country!AH58 -> -0.09433055808 | BA33: =country!AQ58 -> 0.4536618404 | BB33: =country!AZ58 -> 0.03205601318 | BC33: =country!BI58 -> 0.6778991769 | BD33: 2049 | BE33: =IF(AND(country!J58>'goal seek'!$E$24,BD33<=country!$M$18,AO33>0),country!I58,#N/A) -> -0.09029457411 | BF33: =IF(AND(country!S58>'goal seek'!$E$23,BD33<=country!$V$18,AP33>0),country!R58,#N/A) ->  | BG33: =IF(AND(country!AB58>'goal seek'!$E$23,BD33<=country!$AE$18,AQ33),country!AA58,#N/A) ->  | BH33: =IF(AND(country!AK58>'goal seek'!$E$23,BD33<=country!$AN$18,AR33>0),country!AJ58,#N/A) ->  | BI33: =IF(AND(country!AT58>'goal seek'!$E$23,BD33<=country!$AW$18,AS33>0),country!AS58,#N/A) ->  | BJ33: =IF(AND(BD33<=country!$BF$18,AT33>0),country!BB58,#N/A) ->  | BK33: =IF(AU33>0,country!BK58,#N/A) -> -0.09029457411
AM34: 2050 | AN34: 2050 | AO34: =country!F59 -> 272.8479943 | AP34: =country!O59 -> -58.13728109 | AQ34: =country!X59 -> 101.8144243 | AR34: =country!AG59 -> -58.13728109 | AS34: =country!AP59 -> 177.8932249 | AT34: =country!AY59 -> -58.13728109 | AU34: =country!BH59 -> 272.8479943 | AW34: =country!G59 -> 0.6153230352 | AX34: =country!P59 -> -0.1311103948 | AY34: =country!Y59 -> 0.2296104861 | AZ34: =country!AH59 -> -0.1311103948 | BA34: =country!AQ59 -> 0.4011823484 | BB34: =country!AZ59 -> -0.1311103948 | BC34: =country!BI59 -> 0.6153230352 | BD34: 2050 | BE34: =IF(AND(country!J59>'goal seek'!$E$24,BD34<=country!$M$18,AO34>0),country!I59,#N/A) -> -0.09230892125 | BF34: =IF(AND(country!S59>'goal seek'!$E$23,BD34<=country!$V$18,AP34>0),country!R59,#N/A) ->  | BG34: =IF(AND(country!AB59>'goal seek'!$E$23,BD34<=country!$AE$18,AQ34),country!AA59,#N/A) ->  | BH34: =IF(AND(country!AK59>'goal seek'!$E$23,BD34<=country!$AN$18,AR34>0),country!AJ59,#N/A) ->  | BI34: =IF(AND(country!AT59>'goal seek'!$E$23,BD34<=country!$AW$18,AS34>0),country!AS59,#N/A) ->  | BJ34: =IF(AND(BD34<=country!$BF$18,AT34>0),country!BB59,#N/A) ->  | BK34: =IF(AU34>0,country!BK59,#N/A) -> -0.09230892125
AN35: 2051 | AO35: =country!F60 -> 247.0426783 | AP35: =country!O60 -> -58.13728109 | AQ35: =country!X60 -> 82.9562329 | AR35: =country!AG60 -> -58.13728109 | AS35: =country!AP60 -> 156.9836459 | AT35: =country!AY60 -> -58.13728109 | AU35: =country!BH60 -> 247.0426783 | AW35: =country!G60 -> 0.5571272424 | AX35: =country!P60 -> -0.1311103948 | AY35: =country!Y60 -> 0.1870817528 | AZ35: =country!AH60 -> -0.1311103948 | BA35: =country!AQ60 -> 0.3540273541 | BB35: =country!AZ60 -> -0.1311103948 | BC35: =country!BI60 -> 0.5571272424 | BD35: 2051 | BE35: =IF(AND(country!J60>'goal seek'!$E$24,BD35<=country!$M$18,AO35>0),country!I60,#N/A) -> -0.09457762751 | BF35: =IF(AND(country!S60>'goal seek'!$E$23,BD35<=country!$V$18,AP35>0),country!R60,#N/A) ->  | BG35: =IF(AND(country!AB60>'goal seek'!$E$23,BD35<=country!$AE$18,AQ35),country!AA60,#N/A) ->  | BH35: =IF(AND(country!AK60>'goal seek'!$E$23,BD35<=country!$AN$18,AR35>0),country!AJ60,#N/A) ->  | BI35: =IF(AND(country!AT60>'goal seek'!$E$23,BD35<=country!$AW$18,AS35>0),country!AS60,#N/A) ->  | BJ35: =IF(AND(BD35<=country!$BF$18,AT35>0),country!BB60,#N/A) ->  | BK35: =IF(AU35>0,country!BK60,#N/A) -> -0.09457762751
AN36: 2052 | AO36: =country!F61 -> 223.0437423 | AP36: =country!O61 -> -58.13728109 | AQ36: =country!X61 -> 67.10870528 | AR36: =country!AG61 -> -58.13728109 | AS36: =country!AP61 -> 138.2444936 | AT36: =country!AY61 -> -58.13728109 | AU36: =country!BH61 -> 223.0437423 | AW36: =country!G61 -> 0.5030051727 | AX36: =country!P61 -> -0.1311103948 | AY36: =country!Y61 -> 0.151342627 | AZ36: =country!AH61 -> -0.1311103948 | BA36: =country!AQ61 -> 0.3117670762 | BB36: =country!AZ61 -> -0.1311103948 | BC36: =country!BI61 -> 0.5030051727 | BD36: =AN36 -> 2052 | BE36: =IF(AND(country!J61>'goal seek'!$E$24,BD36<=country!$M$18,AO36>0),country!I61,#N/A) -> -0.09714489895 | BF36: =IF(AND(country!S61>'goal seek'!$E$23,BD36<=country!$V$18,AP36>0),country!R61,#N/A) ->  | BG36: =IF(AND(country!AB61>'goal seek'!$E$23,BD36<=country!$AE$18,AQ36),country!AA61,#N/A) ->  | BH36: =IF(AND(country!AK61>'goal seek'!$E$23,BD36<=country!$AN$18,AR36>0),country!AJ61,#N/A) ->  | BI36: =IF(AND(country!AT61>'goal seek'!$E$23,BD36<=country!$AW$18,AS36>0),country!AS61,#N/A) ->  | BJ36: =IF(AND(BD36<=country!$BF$18,AT36>0),country!BB61,#N/A) ->  | BK36: =IF(AU36>0,country!BK61,#N/A) -> -0.09714489895
AN37: 2053 | AO37: =country!F62 -> 207.4306126 | AP37: =country!O62 -> -58.13728109 | AQ37: =country!X62 -> 51.26117767 | AR37: =country!AG62 -> -58.13728109 | AS37: =country!AP62 -> 121.4932277 | AT37: =country!AY62 -> -58.13728109 | AU37: =country!BH62 -> 207.4306126 | AW37: =country!G62 -> 0.4677946579 | AX37: =country!P62 -> -0.1311103948 | AY37: =country!Y62 -> 0.1156035012 | AZ37: =country!AH62 -> -0.1311103948 | BA37: =country!AQ62 -> 0.2739898522 | BB37: =country!AZ62 -> -0.1311103948 | BC37: =country!BI62 -> 0.4677946579 | BD37: 2053 | BE37: =IF(AND(country!J62>'goal seek'!$E$24,BD37<=country!$M$18,AO37>0),country!I62,#N/A) ->  | BF37: =IF(AND(country!S62>'goal seek'!$E$23,BD37<=country!$V$18,AP37>0),country!R62,#N/A) ->  | BG37: =IF(AND(country!AB62>'goal seek'!$E$23,BD37<=country!$AE$18,AQ37),country!AA62,#N/A) ->  | BH37: =IF(AND(country!AK62>'goal seek'!$E$23,BD37<=country!$AN$18,AR37>0),country!AJ62,#N/A) ->  | BI37: =IF(AND(country!AT62>'goal seek'!$E$23,BD37<=country!$AW$18,AS37>0),country!AS62,#N/A) ->  | BJ37: =IF(AND(BD37<=country!$BF$18,AT37>0),country!BB62,#N/A) ->  | BK37: =IF(AU37>0,country!BK62,#N/A) -> -0.07000030352
AN38: 2054 | AO38: =country!F63 -> 192.9104068 | AP38: =country!O63 -> -58.13728109 | AQ38: =country!X63 -> 35.41365005 | AR38: =country!AG63 -> -58.13728109 | AS38: =country!AP63 -> 106.5562407 | AT38: =country!AY63 -> -58.13728109 | AU38: =country!BH63 -> 192.9104068 | AW38: =country!G63 -> 0.4350488899 | AX38: =country!P63 -> -0.1311103948 | AY38: =country!Y63 -> 0.07986437537 | AZ38: =country!AH63 -> -0.1311103948 | BA38: =country!AQ63 -> 0.2403041651 | BB38: =country!AZ63 -> -0.1311103948 | BC38: =country!BI63 -> 0.4350488899 | BD38: 2054 | BE38: =IF(AND(country!J63>'goal seek'!$E$24,BD38<=country!$M$18,AO38>0),country!I63,#N/A) ->  | BF38: =IF(AND(country!S63>'goal seek'!$E$23,BD38<=country!$V$18,AP38>0),country!R63,#N/A) ->  | BG38: =IF(AND(country!AB63>'goal seek'!$E$23,BD38<=country!$AE$18,AQ38),country!AA63,#N/A) ->  | BH38: =IF(AND(country!AK63>'goal seek'!$E$23,BD38<=country!$AN$18,AR38>0),country!AJ63,#N/A) ->  | BI38: =IF(AND(country!AT63>'goal seek'!$E$23,BD38<=country!$AW$18,AS38>0),country!AS63,#N/A) ->  | BJ38: =IF(AND(BD38<=country!$BF$18,AT38>0),country!BB63,#N/A) ->  | BK38: =IF(AU38>0,country!BK63,#N/A) -> -0.07000030352
AN39: 2055 | AO39: =country!F64 -> 179.4066197 | AP39: =country!O64 -> -58.13728109 | AQ39: =country!X64 -> 19.56612243 | AR39: =country!AG64 -> -58.13728109 | AS39: =country!AP64 -> 93.26948247 | AT39: =country!AY64 -> -58.13728109 | AU39: =country!BH64 -> 179.4066197 | AW39: =country!G64 -> 0.4045953356 | AX39: =country!P64 -> -0.1311103948 | AY39: =country!Y64 -> 0.04412524956 | AZ39: =country!AH64 -> -0.1311103948 | BA39: =country!AQ64 -> 0.2103400511 | BB39: =country!AZ64 -> -0.1311103948 | BC39: =country!BI64 -> 0.4045953356 | BD39: 2055 | BE39: =IF(AND(country!J64>'goal seek'!$E$24,BD39<=country!$M$18,AO39>0),country!I64,#N/A) ->  | BF39: =IF(AND(country!S64>'goal seek'!$E$23,BD39<=country!$V$18,AP39>0),country!R64,#N/A) ->  | BG39: =IF(AND(country!AB64>'goal seek'!$E$23,BD39<=country!$AE$18,AQ39),country!AA64,#N/A) ->  | BH39: =IF(AND(country!AK64>'goal seek'!$E$23,BD39<=country!$AN$18,AR39>0),country!AJ64,#N/A) ->  | BI39: =IF(AND(country!AT64>'goal seek'!$E$23,BD39<=country!$AW$18,AS39>0),country!AS64,#N/A) ->  | BJ39: =IF(AND(BD39<=country!$BF$18,AT39>0),country!BB64,#N/A) ->  | BK39: =IF(AU39>0,country!BK64,#N/A) -> -0.07000030352
AN40: 2056 | AO40: =country!F65 -> 166.8481019 | AP40: =country!O65 -> -58.13728109 | AQ40: =country!X65 -> 3.718594807 | AR40: =country!AG65 -> -58.13728109 | AS40: =country!AP65 -> 81.47884623 | AT40: =country!AY65 -> -58.13728109 | AU40: =country!BH65 -> 166.8481019 | AW40: =country!G65 -> 0.3762735393 | AX40: =country!P65 -> -0.1311103948 | AY40: =country!Y65 -> 0.008386123743 | AZ40: =country!AH65 -> -0.1311103948 | BA40: =country!AQ65 -> 0.1837499708 | BB40: =country!AZ65 -> -0.1311103948 | BC40: =country!BI65 -> 0.3762735393 | BD40: 2056 | BE40: =IF(AND(country!J65>'goal seek'!$E$24,BD40<=country!$M$18,AO40>0),country!I65,#N/A) ->  | BF40: =IF(AND(country!S65>'goal seek'!$E$23,BD40<=country!$V$18,AP40>0),country!R65,#N/A) ->  | BG40: =IF(AND(country!AB65>'goal seek'!$E$23,BD40<=country!$AE$18,AQ40),country!AA65,#N/A) ->  | BH40: =IF(AND(country!AK65>'goal seek'!$E$23,BD40<=country!$AN$18,AR40>0),country!AJ65,#N/A) ->  | BI40: =IF(AND(country!AT65>'goal seek'!$E$23,BD40<=country!$AW$18,AS40>0),country!AS65,#N/A) ->  | BJ40: =IF(AND(BD40<=country!$BF$18,AT40>0),country!BB65,#N/A) ->  | BK40: =IF(AU40>0,country!BK65,#N/A) -> -0.07000030352
AN41: 2057 | AO41: =country!F66 -> 155.1686841 | AP41: =country!O66 -> -58.13728109 | AQ41: =country!X66 -> -16.78795241 | AR41: =country!AG66 -> -58.13728109 | AS41: =country!AP66 -> 71.04035346 | AT41: =country!AY66 -> -58.13728109 | AU41: =country!BH66 -> 155.1686841 | AW41: =country!G66 -> 0.3499342773 | AX41: =country!P66 -> -0.1311103948 | AY41: =country!Y66 -> -0.03785995883 | AZ41: =country!AH66 -> -0.1311103948 | BA41: =country!AQ66 -> 0.1602092258 | BB41: =country!AZ66 -> -0.1311103948 | BC41: =country!BI66 -> 0.3499342773 | BD41: 2057 | BE41: =IF(AND(country!J66>'goal seek'!$E$24,BD41<=country!$M$18,AO41>0),country!I66,#N/A) ->  | BF41: =IF(AND(country!S66>'goal seek'!$E$23,BD41<=country!$V$18,AP41>0),country!R66,#N/A) ->  | BG41: =IF(AND(country!AB66>'goal seek'!$E$23,BD41<=country!$AE$18,AQ41),country!AA66,#N/A) ->  | BH41: =IF(AND(country!AK66>'goal seek'!$E$23,BD41<=country!$AN$18,AR41>0),country!AJ66,#N/A) ->  | BI41: =IF(AND(country!AT66>'goal seek'!$E$23,BD41<=country!$AW$18,AS41>0),country!AS66,#N/A) ->  | BJ41: =IF(AND(BD41<=country!$BF$18,AT41>0),country!BB66,#N/A) ->  | BK41: =IF(AU41>0,country!BK66,#N/A) -> -0.07000030352
AN42: 2058 | AO42: =country!F67 -> 144.3068292 | AP42: =country!O67 -> -58.13728109 | AQ42: =country!X67 -> -38.72290279 | AR42: =country!AG67 -> -58.13728109 | AS42: =country!AP67 -> 60.60186069 | AT42: =country!AY67 -> -58.13728109 | AU42: =country!BH67 -> 144.3068292 | AW42: =country!G67 -> 0.3254387717 | AX42: =country!P67 -> -0.1311103948 | AY42: =country!Y67 -> -0.08732735653 | AZ42: =country!AH67 -> -0.1311103948 | BA42: =country!AQ67 -> 0.1366684808 | BB42: =country!AZ67 -> -0.1311103948 | BC42: =country!BI67 -> 0.3254387717 | BD42: 2058 | BE42: =IF(AND(country!J67>'goal seek'!$E$24,BD42<=country!$M$18,AO42>0),country!I67,#N/A) ->  | BF42: =IF(AND(country!S67>'goal seek'!$E$23,BD42<=country!$V$18,AP42>0),country!R67,#N/A) ->  | BG42: =IF(AND(country!AB67>'goal seek'!$E$23,BD42<=country!$AE$18,AQ42),country!AA67,#N/A) ->  | BH42: =IF(AND(country!AK67>'goal seek'!$E$23,BD42<=country!$AN$18,AR42>0),country!AJ67,#N/A) ->  | BI42: =IF(AND(country!AT67>'goal seek'!$E$23,BD42<=country!$AW$18,AS42>0),country!AS67,#N/A) ->  | BJ42: =IF(AND(BD42<=country!$BF$18,AT42>0),country!BB67,#N/A) ->  | BK42: =IF(AU42>0,country!BK67,#N/A) -> -0.07000030352
AN43: 2059 | AO43: =country!F68 -> 134.2053073 | AP43: =country!O68 -> -58.13728109 | AQ43: =country!X68 -> -58.13728109 | AR43: =country!AG68 -> -58.13728109 | AS43: =country!AP68 -> 50.16336791 | AT43: =country!AY68 -> -58.13728109 | AU43: =country!BH68 -> 134.2053073 | AW43: =country!G68 -> 0.3026579589 | AX43: =country!P68 -> -0.1311103948 | AY43: =country!Y68 -> -0.1311103948 | AZ43: =country!AH68 -> -0.1311103948 | BA43: =country!AQ68 -> 0.1131277358 | BB43: =country!AZ68 -> -0.1311103948 | BC43: =country!BI68 -> 0.3026579589 | BD43: 2059 | BE43: =IF(AND(country!J68>'goal seek'!$E$24,BD43<=country!$M$18,AO43>0),country!I68,#N/A) ->  | BF43: =IF(AND(country!S68>'goal seek'!$E$23,BD43<=country!$V$18,AP43>0),country!R68,#N/A) ->  | BG43: =IF(AND(country!AB68>'goal seek'!$E$23,BD43<=country!$AE$18,AQ43),country!AA68,#N/A) ->  | BH43: =IF(AND(country!AK68>'goal seek'!$E$23,BD43<=country!$AN$18,AR43>0),country!AJ68,#N/A) ->  | BI43: =IF(AND(country!AT68>'goal seek'!$E$23,BD43<=country!$AW$18,AS43>0),country!AS68,#N/A) ->  | BJ43: =IF(AND(BD43<=country!$BF$18,AT43>0),country!BB68,#N/A) ->  | BK43: =IF(AU43>0,country!BK68,#N/A) -> -0.07000030352
AM44: 2060 | AN44: 2060 | AO44: =country!F69 -> 124.8108951 | AP44: =country!O69 -> -58.13728109 | AQ44: =country!X69 -> -58.13728109 | AR44: =country!AG69 -> -58.13728109 | AS44: =country!AP69 -> 39.72487514 | AT44: =country!AY69 -> -58.13728109 | AU44: =country!BH69 -> 124.8108951 | AW44: =country!G69 -> 0.2814718099 | AX44: =country!P69 -> -0.1311103948 | AY44: =country!Y69 -> -0.1311103948 | AZ44: =country!AH69 -> -0.1311103948 | BA44: =country!AQ69 -> 0.08958699076 | BB44: =country!AZ69 -> -0.1311103948 | BC44: =country!BI69 -> 0.2814718099 | BD44: 2060 | BE44: =IF(AND(country!J69>'goal seek'!$E$24,BD44<=country!$M$18,AO44>0),country!I69,#N/A) ->  | BF44: =IF(AND(country!S69>'goal seek'!$E$23,BD44<=country!$V$18,AP44>0),country!R69,#N/A) ->  | BG44: =IF(AND(country!AB69>'goal seek'!$E$23,BD44<=country!$AE$18,AQ44),country!AA69,#N/A) ->  | BH44: =IF(AND(country!AK69>'goal seek'!$E$23,BD44<=country!$AN$18,AR44>0),country!AJ69,#N/A) ->  | BI44: =IF(AND(country!AT69>'goal seek'!$E$23,BD44<=country!$AW$18,AS44>0),country!AS69,#N/A) ->  | BJ44: =IF(AND(BD44<=country!$BF$18,AT44>0),country!BB69,#N/A) ->  | BK44: =IF(AU44>0,country!BK69,#N/A) -> -0.07000030352
AN45: 2061 | AO45: =country!F70 -> 116.0740945 | AP45: =country!O70 -> -58.13728109 | AQ45: =country!X70 -> -58.13728109 | AR45: =country!AG70 -> -58.13728109 | AS45: =country!AP70 -> 29.28638236 | AT45: =country!AY70 -> -58.13728109 | AU45: =country!BH70 -> 116.0740945 | AW45: =country!G70 -> 0.2617686978 | AX45: =country!P70 -> -0.1311103948 | AY45: =country!Y70 -> -0.1311103948 | AZ45: =country!AH70 -> -0.1311103948 | BA45: =country!AQ70 -> 0.06604624577 | BB45: =country!AZ70 -> -0.1311103948 | BC45: =country!BI70 -> 0.2617686978 | BD45: 2061 | BE45: =IF(AND(country!J70>'goal seek'!$E$24,BD45<=country!$M$18,AO45>0),country!I70,#N/A) ->  | BF45: =IF(AND(country!S70>'goal seek'!$E$23,BD45<=country!$V$18,AP45>0),country!R70,#N/A) ->  | BG45: =IF(AND(country!AB70>'goal seek'!$E$23,BD45<=country!$AE$18,AQ45),country!AA70,#N/A) ->  | BH45: =IF(AND(country!AK70>'goal seek'!$E$23,BD45<=country!$AN$18,AR45>0),country!AJ70,#N/A) ->  | BI45: =IF(AND(country!AT70>'goal seek'!$E$23,BD45<=country!$AW$18,AS45>0),country!AS70,#N/A) ->  | BJ45: =IF(AND(BD45<=country!$BF$18,AT45>0),country!BB70,#N/A) ->  | BK45: =IF(AU45>0,country!BK70,#N/A) -> -0.07000030352
AN46: 2062 | AO46: =country!F71 -> 107.9488727 | AP46: =country!O71 -> -58.13728109 | AQ46: =country!X71 -> -58.13728109 | AR46: =country!AG71 -> -58.13728109 | AS46: =country!AP71 -> 18.84788959 | AT46: =country!AY71 -> -58.13728109 | AU46: =country!BH71 -> 107.9488727 | AW46: =country!G71 -> 0.2434448095 | AX46: =country!P71 -> -0.1311103948 | AY46: =country!Y71 -> -0.1311103948 | AZ46: =country!AH71 -> -0.1311103948 | BA46: =country!AQ71 -> 0.04250550077 | BB46: =country!AZ71 -> -0.1311103948 | BC46: =country!BI71 -> 0.2434448095 | BD46: 2062 | BE46: =IF(AND(country!J71>'goal seek'!$E$24,BD46<=country!$M$18,AO46>0),country!I71,#N/A) ->  | BF46: =IF(AND(country!S71>'goal seek'!$E$23,BD46<=country!$V$18,AP46>0),country!R71,#N/A) ->  | BG46: =IF(AND(country!AB71>'goal seek'!$E$23,BD46<=country!$AE$18,AQ46),country!AA71,#N/A) ->  | BH46: =IF(AND(country!AK71>'goal seek'!$E$23,BD46<=country!$AN$18,AR46>0),country!AJ71,#N/A) ->  | BI46: =IF(AND(country!AT71>'goal seek'!$E$23,BD46<=country!$AW$18,AS46>0),country!AS71,#N/A) ->  | BJ46: =IF(AND(BD46<=country!$BF$18,AT46>0),country!BB71,#N/A) ->  | BK46: =IF(AU46>0,country!BK71,#N/A) -> -0.07000030352
AN47: 2063 | AO47: =country!F72 -> 100.3924188 | AP47: =country!O72 -> -58.13728109 | AQ47: =country!X72 -> -58.13728109 | AR47: =country!AG72 -> -58.13728109 | AS47: =country!AP72 -> 8.409396817 | AT47: =country!AY72 -> -58.13728109 | AU47: =country!BH72 -> 100.3924188 | AW47: =country!G72 -> 0.2264035989 | AX47: =country!P72 -> -0.1311103948 | AY47: =country!Y72 -> -0.1311103948 | AZ47: =country!AH72 -> -0.1311103948 | BA47: =country!AQ72 -> 0.01896475577 | BB47: =country!AZ72 -> -0.1311103948 | BC47: =country!BI72 -> 0.2264035989 | BD47: 2063 | BE47: =IF(AND(country!J72>'goal seek'!$E$24,BD47<=country!$M$18,AO47>0),country!I72,#N/A) ->  | BF47: =IF(AND(country!S72>'goal seek'!$E$23,BD47<=country!$V$18,AP47>0),country!R72,#N/A) ->  | BG47: =IF(AND(country!AB72>'goal seek'!$E$23,BD47<=country!$AE$18,AQ47),country!AA72,#N/A) ->  | BH47: =IF(AND(country!AK72>'goal seek'!$E$23,BD47<=country!$AN$18,AR47>0),country!AJ72,#N/A) ->  | BI47: =IF(AND(country!AT72>'goal seek'!$E$23,BD47<=country!$AW$18,AS47>0),country!AS72,#N/A) ->  | BJ47: =IF(AND(BD47<=country!$BF$18,AT47>0),country!BB72,#N/A) ->  | BK47: =IF(AU47>0,country!BK72,#N/A) -> -0.07000030352
AN48: 2064 | AO48: =country!F73 -> 93.36491904 | AP48: =country!O73 -> -58.13728109 | AQ48: =country!X73 -> -58.13728109 | AR48: =country!AG73 -> -58.13728109 | AS48: =country!AP73 -> -2.808521317 | AT48: =country!AY73 -> -58.13728109 | AU48: =country!BH73 -> 93.36491904 | AW48: =country!G73 -> 0.2105552783 | AX48: =country!P73 -> -0.1311103948 | AY48: =country!Y73 -> -0.1311103948 | AZ48: =country!AH73 -> -0.1311103948 | BA48: =country!AQ73 -> -0.006333738555 | BB48: =country!AZ73 -> -0.1311103948 | BC48: =country!BI73 -> 0.2105552783 | BD48: 2064 | BE48: =IF(AND(country!J73>'goal seek'!$E$24,BD48<=country!$M$18,AO48>0),country!I73,#N/A) ->  | BF48: =IF(AND(country!S73>'goal seek'!$E$23,BD48<=country!$V$18,AP48>0),country!R73,#N/A) ->  | BG48: =IF(AND(country!AB73>'goal seek'!$E$23,BD48<=country!$AE$18,AQ48),country!AA73,#N/A) ->  | BH48: =IF(AND(country!AK73>'goal seek'!$E$23,BD48<=country!$AN$18,AR48>0),country!AJ73,#N/A) ->  | BI48: =IF(AND(country!AT73>'goal seek'!$E$23,BD48<=country!$AW$18,AS48>0),country!AS73,#N/A) ->  | BJ48: =IF(AND(BD48<=country!$BF$18,AT48>0),country!BB73,#N/A) ->  | BK48: =IF(AU48>0,country!BK73,#N/A) -> -0.07000030352
AN49: 2065 | AO49: =country!F74 -> 86.33741925 | AP49: =country!O74 -> -58.13728109 | AQ49: =country!X74 -> -58.13728109 | AR49: =country!AG74 -> -58.13728109 | AS49: =country!AP74 -> -17.25669434 | AT49: =country!AY74 -> -58.13728109 | AU49: =country!BH74 -> 86.33741925 | AW49: =country!G74 -> 0.1947069576 | AX49: =country!P74 -> -0.1311103948 | AY49: =country!Y74 -> -0.1311103948 | AZ49: =country!AH74 -> -0.1311103948 | BA49: =country!AQ74 -> -0.03891705918 | BB49: =country!AZ74 -> -0.1311103948 | BC49: =country!BI74 -> 0.1947069576 | BD49: 2065 | BE49: =IF(AND(country!J74>'goal seek'!$E$24,BD49<=country!$M$18,AO49>0),country!I74,#N/A) ->  | BF49: =IF(AND(country!S74>'goal seek'!$E$23,BD49<=country!$V$18,AP49>0),country!R74,#N/A) ->  | BG49: =IF(AND(country!AB74>'goal seek'!$E$23,BD49<=country!$AE$18,AQ49),country!AA74,#N/A) ->  | BH49: =IF(AND(country!AK74>'goal seek'!$E$23,BD49<=country!$AN$18,AR49>0),country!AJ74,#N/A) ->  | BI49: =IF(AND(country!AT74>'goal seek'!$E$23,BD49<=country!$AW$18,AS49>0),country!AS74,#N/A) ->  | BJ49: =IF(AND(BD49<=country!$BF$18,AT49>0),country!BB74,#N/A) ->  | BK49: =IF(AU49>0,country!BK74,#N/A) -> -0.07526916813
AN50: 2066 | AO50: =country!F75 -> 79.30991946 | AP50: =country!O75 -> -58.13728109 | AQ50: =country!X75 -> -58.13728109 | AR50: =country!AG75 -> -58.13728109 | AS50: =country!AP75 -> -31.70486736 | AT50: =country!AY75 -> -58.13728109 | AU50: =country!BH75 -> 79.30991946 | AW50: =country!G75 -> 0.178858637 | AX50: =country!P75 -> -0.1311103948 | AY50: =country!Y75 -> -0.1311103948 | AZ50: =country!AH75 -> -0.1311103948 | BA50: =country!AQ75 -> -0.0715003798 | BB50: =country!AZ75 -> -0.1311103948 | BC50: =country!BI75 -> 0.178858637 | BD50: 2066 | BE50: =IF(AND(country!J75>'goal seek'!$E$24,BD50<=country!$M$18,AO50>0),country!I75,#N/A) ->  | BF50: =IF(AND(country!S75>'goal seek'!$E$23,BD50<=country!$V$18,AP50>0),country!R75,#N/A) ->  | BG50: =IF(AND(country!AB75>'goal seek'!$E$23,BD50<=country!$AE$18,AQ50),country!AA75,#N/A) ->  | BH50: =IF(AND(country!AK75>'goal seek'!$E$23,BD50<=country!$AN$18,AR50>0),country!AJ75,#N/A) ->  | BI50: =IF(AND(country!AT75>'goal seek'!$E$23,BD50<=country!$AW$18,AS50>0),country!AS75,#N/A) ->  | BJ50: =IF(AND(BD50<=country!$BF$18,AT50>0),country!BB75,#N/A) ->  | BK50: =IF(AU50>0,country!BK75,#N/A) -> -0.08139575922
AN51: 2067 | AO51: =country!F76 -> 72.28241967 | AP51: =country!O76 -> -58.13728109 | AQ51: =country!X76 -> -58.13728109 | AR51: =country!AG76 -> -58.13728109 | AS51: =country!AP76 -> -46.15304039 | AT51: =country!AY76 -> -58.13728109 | AU51: =country!BH76 -> 72.28241967 | AW51: =country!G76 -> 0.1630103164 | AX51: =country!P76 -> -0.1311103948 | AY51: =country!Y76 -> -0.1311103948 | AZ51: =country!AH76 -> -0.1311103948 | BA51: =country!AQ76 -> -0.1040837004 | BB51: =country!AZ76 -> -0.1311103948 | BC51: =country!BI76 -> 0.1630103164 | BD51: 2067 | BE51: =IF(AND(country!J76>'goal seek'!$E$24,BD51<=country!$M$18,AO51>0),country!I76,#N/A) ->  | BF51: =IF(AND(country!S76>'goal seek'!$E$23,BD51<=country!$V$18,AP51>0),country!R76,#N/A) ->  | BG51: =IF(AND(country!AB76>'goal seek'!$E$23,BD51<=country!$AE$18,AQ51),country!AA76,#N/A) ->  | BH51: =IF(AND(country!AK76>'goal seek'!$E$23,BD51<=country!$AN$18,AR51>0),country!AJ76,#N/A) ->  | BI51: =IF(AND(country!AT76>'goal seek'!$E$23,BD51<=country!$AW$18,AS51>0),country!AS76,#N/A) ->  | BJ51: =IF(AND(BD51<=country!$BF$18,AT51>0),country!BB76,#N/A) ->  | BK51: =IF(AU51>0,country!BK76,#N/A) -> -0.08860808127
AN52: 2068 | AO52: =country!F77 -> 65.25491988 | AP52: =country!O77 -> -58.13728109 | AQ52: =country!X77 -> -58.13728109 | AR52: =country!AG77 -> -58.13728109 | AS52: =country!AP77 -> -58.13728109 | AT52: =country!AY77 -> -58.13728109 | AU52: =country!BH77 -> 65.25491988 | AW52: =country!G77 -> 0.1471619957 | AX52: =country!P77 -> -0.1311103948 | AY52: =country!Y77 -> -0.1311103948 | AZ52: =country!AH77 -> -0.1311103948 | BA52: =country!AQ77 -> -0.1311103948 | BB52: =country!AZ77 -> -0.1311103948 | BC52: =country!BI77 -> 0.1471619957 | BD52: 2068 | BE52: =IF(AND(country!J77>'goal seek'!$E$24,BD52<=country!$M$18,AO52>0),country!I77,#N/A) ->  | BF52: =IF(AND(country!S77>'goal seek'!$E$23,BD52<=country!$V$18,AP52>0),country!R77,#N/A) ->  | BG52: =IF(AND(country!AB77>'goal seek'!$E$23,BD52<=country!$AE$18,AQ52),country!AA77,#N/A) ->  | BH52: =IF(AND(country!AK77>'goal seek'!$E$23,BD52<=country!$AN$18,AR52>0),country!AJ77,#N/A) ->  | BI52: =IF(AND(country!AT77>'goal seek'!$E$23,BD52<=country!$AW$18,AS52>0),country!AS77,#N/A) ->  | BJ52: =IF(AND(BD52<=country!$BF$18,AT52>0),country!BB77,#N/A) ->  | BK52: =IF(AU52>0,country!BK77,#N/A) -> -0.09722280771
AN53: =AN52+1 -> 2069 | AO53: =country!F78 -> 58.2274201 | AP53: =country!O78 -> -58.13728109 | AQ53: =country!X78 -> -58.13728109 | AR53: =country!AG78 -> -58.13728109 | AS53: =country!AP78 -> -58.13728109 | AT53: =country!AY78 -> -58.13728109 | AU53: =country!BH78 -> 58.2274201 | AW53: =country!G78 -> 0.1313136751 | AX53: =country!P78 -> -0.1311103948 | AY53: =country!Y78 -> -0.1311103948 | AZ53: =country!AH78 -> -0.1311103948 | BA53: =country!AQ78 -> -0.1311103948 | BB53: =country!AZ78 -> -0.1311103948 | BC53: =country!BI78 -> 0.1313136751 | BD53: 2069 | BE53: =IF(AND(country!J78>'goal seek'!$E$24,BD53<=country!$M$18,AO53>0),country!I78,#N/A) ->  | BF53: =IF(AND(country!S78>'goal seek'!$E$23,BD53<=country!$V$18,AP53>0),country!R78,#N/A) ->  | BG53: =IF(AND(country!AB78>'goal seek'!$E$23,BD53<=country!$AE$18,AQ53),country!AA78,#N/A) ->  | BH53: =IF(AND(country!AK78>'goal seek'!$E$23,BD53<=country!$AN$18,AR53>0),country!AJ78,#N/A) ->  | BI53: =IF(AND(country!AT78>'goal seek'!$E$23,BD53<=country!$AW$18,AS53>0),country!AS78,#N/A) ->  | BJ53: =IF(AND(BD53<=country!$BF$18,AT53>0),country!BB78,#N/A) ->  | BK53: =IF(AU53>0,country!BK78,#N/A) -> -0.1076930261
AM54: 2070 | AN54: 2070 | AO54: =country!F79 -> 51.19992031 | AP54: =country!O79 -> -58.13728109 | AQ54: =country!X79 -> -58.13728109 | AR54: =country!AG79 -> -58.13728109 | AS54: =country!AP79 -> -58.13728109 | AT54: =country!AY79 -> -58.13728109 | AU54: =country!BH79 -> 51.19992031 | AW54: =country!G79 -> 0.1154653544 | AX54: =country!P79 -> -0.1311103948 | AY54: =country!Y79 -> -0.1311103948 | AZ54: =country!AH79 -> -0.1311103948 | BA54: =country!AQ79 -> -0.1311103948 | BB54: =country!AZ79 -> -0.1311103948 | BC54: =country!BI79 -> 0.1154653544 | BD54: 2070 | BE54: =IF(AND(country!J79>'goal seek'!$E$24,BD54<=country!$M$18,AO54>0),country!I79,#N/A) ->  | BF54: =IF(AND(country!S79>'goal seek'!$E$23,BD54<=country!$V$18,AP54>0),country!R79,#N/A) ->  | BG54: =IF(AND(country!AB79>'goal seek'!$E$23,BD54<=country!$AE$18,AQ54),country!AA79,#N/A) ->  | BH54: =IF(AND(country!AK79>'goal seek'!$E$23,BD54<=country!$AN$18,AR54>0),country!AJ79,#N/A) ->  | BI54: =IF(AND(country!AT79>'goal seek'!$E$23,BD54<=country!$AW$18,AS54>0),country!AS79,#N/A) ->  | BJ54: =IF(AND(BD54<=country!$BF$18,AT54>0),country!BB79,#N/A) ->  | BK54: =IF(AU54>0,country!BK79,#N/A) -> -0.1206905574
AN55: 2071 | AO55: =country!F80 -> 44.17242052 | AP55: =country!O80 -> -58.13728109 | AQ55: =country!X80 -> -58.13728109 | AR55: =country!AG80 -> -58.13728109 | AS55: =country!AP80 -> -58.13728109 | AT55: =country!AY80 -> -58.13728109 | AU55: =country!BH80 -> 44.17242052 | AW55: =country!G80 -> 0.09961703379 | AX55: =country!P80 -> -0.1311103948 | AY55: =country!Y80 -> -0.1311103948 | AZ55: =country!AH80 -> -0.1311103948 | BA55: =country!AQ80 -> -0.1311103948 | BB55: =country!AZ80 -> -0.1311103948 | BC55: =country!BI80 -> 0.09961703379 | BD55: 2071 | BE55: =IF(AND(country!J80>'goal seek'!$E$24,BD55<=country!$M$18,AO55>0),country!I80,#N/A) ->  | BF55: =IF(AND(country!S80>'goal seek'!$E$23,BD55<=country!$V$18,AP55>0),country!R80,#N/A) ->  | BG55: =IF(AND(country!AB80>'goal seek'!$E$23,BD55<=country!$AE$18,AQ55),country!AA80,#N/A) ->  | BH55: =IF(AND(country!AK80>'goal seek'!$E$23,BD55<=country!$AN$18,AR55>0),country!AJ80,#N/A) ->  | BI55: =IF(AND(country!AT80>'goal seek'!$E$23,BD55<=country!$AW$18,AS55>0),country!AS80,#N/A) ->  | BJ55: =IF(AND(BD55<=country!$BF$18,AT55>0),country!BB80,#N/A) ->  | BK55: =IF(AU55>0,country!BK80,#N/A) -> -0.1372560689
B56: selected country: | C56: =B2 -> EU27 | F56: Global framework data: | N56: scenario: | O56: ='goal seek'!C5 -> RM-1 const | P56: ='goal seek'!D5 -> RM-2 exp | Q56: ='goal seek'!E5 -> RM-3 lin | R56: ='goal seek'!F5 -> RM-4 quadr | S56: ='goal seek'!G5 -> RM-5 rad | T56: ='goal seek'!H5 -> RM-6 abs | U56: =FI!A2 -> FI | W56: per capita emissions 2019 | AC56: A mathematical description of the RM Scenario Types is published on Zenodo: | AE56: Zenodo | AN56: =AN55+1 -> 2072 | AO56: =country!F81 -> 37.14492073 | AP56: =country!O81 -> -58.13728109 | AQ56: =country!X81 -> -58.13728109 | AR56: =country!AG81 -> -58.13728109 | AS56: =country!AP81 -> -58.13728109 | AT56: =country!AY81 -> -58.13728109 | AU56: =country!BH81 -> 37.14492073 | AW56: =country!G81 -> 0.08376871315 | AX56: =country!P81 -> -0.1311103948 | AY56: =country!Y81 -> -0.1311103948 | AZ56: =country!AH81 -> -0.1311103948 | BA56: =country!AQ81 -> -0.1311103948 | BB56: =country!AZ81 -> -0.1311103948 | BC56: =country!BI81 -> 0.08376871315 | BD56: 2072 | BE56: =IF(AND(country!J81>'goal seek'!$E$24,BD56<=country!$M$18,AO56>0),country!I81,#N/A) ->  | BF56: =IF(AND(country!S81>'goal seek'!$E$23,BD56<=country!$V$18,AP56>0),country!R81,#N/A) ->  | BG56: =IF(AND(country!AB81>'goal seek'!$E$23,BD56<=country!$AE$18,AQ56),country!AA81,#N/A) ->  | BH56: =IF(AND(country!AK81>'goal seek'!$E$23,BD56<=country!$AN$18,AR56>0),country!AJ81,#N/A) ->  | BI56: =IF(AND(country!AT81>'goal seek'!$E$23,BD56<=country!$AW$18,AS56>0),country!AS81,#N/A) ->  | BJ56: =IF(AND(BD56<=country!$BF$18,AT56>0),country!BB81,#N/A) ->  | BK56: =IF(AU56>0,country!BK81,#N/A) -> -0.1590924769
F57: Total budget 2020 - 2100 | H57: ='base data'!B11 -> 550 | I57: Gt | K57: =dashboard!B18 -> Is the budget 2020 - 2100 complied with? | N57: ='base data'!L36 -> 533.5 | O57: ='graphs global'!J5 -> yes | P57: =IF($AD$2="yes",IF(#REF!-#REF!=0,"yes","no"),'graphs global'!K5) -> yes | Q57: =IF($AD$2="yes",IF(#REF!-#REF!=0,"yes","no"),'graphs global'!L5) -> yes | R57: =IF($AD$2="yes",IF(#REF!-#REF!=0,"yes","no"),'graphs global'!M5) -> yes | S57: =dashboard!G18 -> yes | T57: =dashboard!H18 -> yes | U57: =IF(FI!F5=FI!F4,"yes","no") -> yes | W57: global | Z57: =AA3 -> 4.756702825 | AA57: =AB3 -> t | AN57: 2073 | AO57: =country!F82 -> 30.11742094 | AP57: =country!O82 -> -58.13728109 | AQ57: =country!X82 -> -58.13728109 | AR57: =country!AG82 -> -58.13728109 | AS57: =country!AP82 -> -58.13728109 | AT57: =country!AY82 -> -58.13728109 | AU57: =country!BH82 -> 30.11742094 | AW57: =country!G82 -> 0.0679203925 | AX57: =country!P82 -> -0.1311103948 | AY57: =country!Y82 -> -0.1311103948 | AZ57: =country!AH82 -> -0.1311103948 | BA57: =country!AQ82 -> -0.1311103948 | BB57: =country!AZ82 -> -0.1311103948 | BC57: =country!BI82 -> 0.0679203925 | BD57: 2073 | BE57: =IF(AND(country!J82>'goal seek'!$E$24,BD57<=country!$M$18,AO57>0),country!I82,#N/A) ->  | BF57: =IF(AND(country!S82>'goal seek'!$E$23,BD57<=country!$V$18,AP57>0),country!R82,#N/A) ->  | BG57: =IF(AND(country!AB82>'goal seek'!$E$23,BD57<=country!$AE$18,AQ57),country!AA82,#N/A) ->  | BH57: =IF(AND(country!AK82>'goal seek'!$E$23,BD57<=country!$AN$18,AR57>0),country!AJ82,#N/A) ->  | BI57: =IF(AND(country!AT82>'goal seek'!$E$23,BD57<=country!$AW$18,AS57>0),country!AS82,#N/A) ->  | BJ57: =IF(AND(BD57<=country!$BF$18,AT57>0),country!BB82,#N/A) ->  | BK57: =IF(AU57>0,country!BK82,#N/A) -> -0.1891914063
B58: =navi!B39 -> data status | C58: =navi!C40 -> 2022-09-01 | F58: LUC budget 2020 - 2100 | H58: ='base data'!K24 -> 0 | I58: Gt | K58: convergence year: | O58: =country!M18 -> 2052 | P58: =country!V18 -> 2041 | Q58: =country!AE18 -> 2045 | R58: =country!AN18 -> 2042 | S58: =country!AW18 -> 2048 | T58: =country!BF18 -> 2046 | U58: =country!BO18 -> 2052 | W58: =B2 -> EU27 | Z58: =AW3 -> 6.589765687 | AA58: t | AN58: 2074 | AO58: =country!F83 -> 23.08992115 | AP58: =country!O83 -> -58.13728109 | AQ58: =country!X83 -> -58.13728109 | AR58: =country!AG83 -> -58.13728109 | AS58: =country!AP83 -> -58.13728109 | AT58: =country!AY83 -> -58.13728109 | AU58: =country!BH83 -> 23.08992115 | AW58: =country!G83 -> 0.05207207186 | AX58: =country!P83 -> -0.1311103948 | AY58: =country!Y83 -> -0.1311103948 | AZ58: =country!AH83 -> -0.1311103948 | BA58: =country!AQ83 -> -0.1311103948 | BB58: =country!AZ83 -> -0.1311103948 | BC58: =country!BI83 -> 0.05207207186 | BD58: 2074 | BE58: =IF(AND(country!J83>'goal seek'!$E$24,BD58<=country!$M$18,AO58>0),country!I83,#N/A) ->  | BF58: =IF(AND(country!S83>'goal seek'!$E$23,BD58<=country!$V$18,AP58>0),country!R83,#N/A) ->  | BG58: =IF(AND(country!AB83>'goal seek'!$E$23,BD58<=country!$AE$18,AQ58),country!AA83,#N/A) ->  | BH58: =IF(AND(country!AK83>'goal seek'!$E$23,BD58<=country!$AN$18,AR58>0),country!AJ83,#N/A) ->  | BI58: =IF(AND(country!AT83>'goal seek'!$E$23,BD58<=country!$AW$18,AS58>0),country!AS83,#N/A) ->  | BJ58: =IF(AND(BD58<=country!$BF$18,AT58>0),country!BB83,#N/A) ->  | BK58: =IF(AU58>0,country!BK83,#N/A) -> -0.2333367058
F59: ISA budget 2020 - 2100 | H59: =-'base data'!M25 -> 16.5 | I59: Gt | K59: year of emission neutrality | O59: ='goal seek'!C22 -> 2077 | P59: ='goal seek'!D22 -> 2043 | Q59: ='goal seek'!E22 -> 2056 | R59: ='goal seek'!F22 -> 2048 | S59: ='goal seek'!G22 -> 2063 | T59: ='goal seek'!H22 -> 2049 | U59: =INDEX(FI!A12:A92,MATCH(_xlfn.AGGREGATE(15,6,(FI!B12:B92)/(FI!B12:B92>0),1),FI!B12:B92,0)) -> 2077 | AN59: 2075 | AO59: =country!F84 -> 16.06242136 | AP59: =country!O84 -> -58.13728109 | AQ59: =country!X84 -> -58.13728109 | AR59: =country!AG84 -> -58.13728109 | AS59: =country!AP84 -> -58.13728109 | AT59: =country!AY84 -> -58.13728109 | AU59: =country!BH84 -> 16.06242136 | AW59: =country!G84 -> 0.03622375122 | AX59: =country!P84 -> -0.1311103948 | AY59: =country!Y84 -> -0.1311103948 | AZ59: =country!AH84 -> -0.1311103948 | BA59: =country!AQ84 -> -0.1311103948 | BB59: =country!AZ84 -> -0.1311103948 | BC59: =country!BI84 -> 0.03622375122 | BD59: 2075 | BE59: =IF(AND(country!J84>'goal seek'!$E$24,BD59<=country!$M$18,AO59>0),country!I84,#N/A) ->  | BF59: =IF(AND(country!S84>'goal seek'!$E$23,BD59<=country!$V$18,AP59>0),country!R84,#N/A) ->  | BG59: =IF(AND(country!AB84>'goal seek'!$E$23,BD59<=country!$AE$18,AQ59),country!AA84,#N/A) ->  | BH59: =IF(AND(country!AK84>'goal seek'!$E$23,BD59<=country!$AN$18,AR59>0),country!AJ84,#N/A) ->  | BI59: =IF(AND(country!AT84>'goal seek'!$E$23,BD59<=country!$AW$18,AS59>0),country!AS84,#N/A) ->  | BJ59: =IF(AND(BD59<=country!$BF$18,AT59>0),country!BB84,#N/A) ->  | BK59: =IF(AU59>0,country!BK84,#N/A) -> -0.3043535638
B60: Countries starting with per capita emissions close to the convergence level have a significant kink in their emission paths after the convergence year. This kink should be avoided in practice based on the resulting budget for that country. | F60: E_min | H60: ='base data'!M42 -> -0.73 | I60: Gt | AC60: DOI | AE60: 10.5281/zenodo.4540475 | AN60: =AN59+1 -> 2076 | AO60: =country!F85 -> 9.034921572 | AP60: =country!O85 -> -58.13728109 | AQ60: =country!X85 -> -58.13728109 | AR60: =country!AG85 -> -58.13728109 | AS60: =country!AP85 -> -58.13728109 | AT60: =country!AY85 -> -58.13728109 | AU60: =country!BH85 -> 9.034921572 | AW60: =country!G85 -> 0.02037543057 | AX60: =country!P85 -> -0.1311103948 | AY60: =country!Y85 -> -0.1311103948 | AZ60: =country!AH85 -> -0.1311103948 | BA60: =country!AQ85 -> -0.1311103948 | BB60: =country!AZ85 -> -0.1311103948 | BC60: =country!BI85 -> 0.02037543057 | BD60: 2076 | BE60: =IF(AND(country!J85>'goal seek'!$E$24,BD60<=country!$M$18,AO60>0),country!I85,#N/A) ->  | BF60: =IF(AND(country!S85>'goal seek'!$E$23,BD60<=country!$V$18,AP60>0),country!R85,#N/A) ->  | BG60: =IF(AND(country!AB85>'goal seek'!$E$23,BD60<=country!$AE$18,AQ60),country!AA85,#N/A) ->  | BH60: =IF(AND(country!AK85>'goal seek'!$E$23,BD60<=country!$AN$18,AR60>0),country!AJ85,#N/A) ->  | BI60: =IF(AND(country!AT85>'goal seek'!$E$23,BD60<=country!$AW$18,AS60>0),country!AS85,#N/A) ->  | BJ60: =IF(AND(BD60<=country!$BF$18,AT60>0),country!BB85,#N/A) ->  | BK60: =IF(AU60>0,country!BK85,#N/A) -> -0.4375118565
F61: convergence level | H61: ='base data'!M47 -> 0.5 | I61: t | AN61: =AN60+1 -> 2077 | AO61: =country!F86 -> 2.007421783 | AP61: =country!O86 -> -58.13728109 | AQ61: =country!X86 -> -58.13728109 | AR61: =country!AG86 -> -58.13728109 | AS61: =country!AP86 -> -58.13728109 | AT61: =country!AY86 -> -58.13728109 | AU61: =country!BH86 -> 2.007421783 | AW61: =country!G86 -> 0.004527109931 | AX61: =country!P86 -> -0.1311103948 | AY61: =country!Y86 -> -0.1311103948 | AZ61: =country!AH86 -> -0.1311103948 | BA61: =country!AQ86 -> -0.1311103948 | BB61: =country!AZ86 -> -0.1311103948 | BC61: =country!BI86 -> 0.004527109931 | BD61: 2077 | BE61: =IF(AND(country!J86>'goal seek'!$E$24,BD61<=country!$M$18,AO61>0),country!I86,#N/A) ->  | BF61: =IF(AND(country!S86>'goal seek'!$E$23,BD61<=country!$V$18,AP61>0),country!R86,#N/A) ->  | BG61: =IF(AND(country!AB86>'goal seek'!$E$23,BD61<=country!$AE$18,AQ61),country!AA86,#N/A) ->  | BH61: =IF(AND(country!AK86>'goal seek'!$E$23,BD61<=country!$AN$18,AR61>0),country!AJ86,#N/A) ->  | BI61: =IF(AND(country!AT86>'goal seek'!$E$23,BD61<=country!$AW$18,AS61>0),country!AS86,#N/A) ->  | BJ61: =IF(AND(BD61<=country!$BF$18,AT61>0),country!BB86,#N/A) ->  | BK61: =IF(AU61>0,country!BK86,#N/A) -> -0.7778152508
F62: Shares of the country in 2019: | AN62: 2078 | AO62: =country!F87 -> -6.948412687 | AP62: =country!O87 -> -58.13728109 | AQ62: =country!X87 -> -58.13728109 | AR62: =country!AG87 -> -58.13728109 | AS62: =country!AP87 -> -58.13728109 | AT62: =country!AY87 -> -58.13728109 | AU62: =country!BH87 -> -6.948412687 | AW62: =country!G87 -> -0.0156699645 | AX62: =country!P87 -> -0.1311103948 | AY62: =country!Y87 -> -0.1311103948 | AZ62: =country!AH87 -> -0.1311103948 | BA62: =country!AQ87 -> -0.1311103948 | BB62: =country!AZ87 -> -0.1311103948 | BC62: =country!BI87 -> -0.0156699645 | BD62: 2078 | BE62: =IF(AND(country!J87>'goal seek'!$E$24,BD62<=country!$M$18,AO62>0),country!I87,#N/A) ->  | BF62: =IF(AND(country!S87>'goal seek'!$E$23,BD62<=country!$V$18,AP62>0),country!R87,#N/A) ->  | BG62: =IF(AND(country!AB87>'goal seek'!$E$23,BD62<=country!$AE$18,AQ62),country!AA87,#N/A) ->  | BH62: =IF(AND(country!AK87>'goal seek'!$E$23,BD62<=country!$AN$18,AR62>0),country!AJ87,#N/A) ->  | BI62: =IF(AND(country!AT87>'goal seek'!$E$23,BD62<=country!$AW$18,AS62>0),country!AS87,#N/A) ->  | BJ62: =IF(AND(BD62<=country!$BF$18,AT62>0),country!BB87,#N/A) ->  | BK62: =IF(AU62>0,country!BK87,#N/A) -> 
F63: in global | G63: emissions | H63: population | AN63: 2079 | AO63: =country!F88 -> -16.67534694 | AP63: =country!O88 -> -58.13728109 | AQ63: =country!X88 -> -58.13728109 | AR63: =country!AG88 -> -58.13728109 | AS63: =country!AP88 -> -58.13728109 | AT63: =country!AY88 -> -58.13728109 | AU63: =country!BH88 -> -16.67534694 | AW63: =country!G88 -> -0.03760601253 | AX63: =country!P88 -> -0.1311103948 | AY63: =country!Y88 -> -0.1311103948 | AZ63: =country!AH88 -> -0.1311103948 | BA63: =country!AQ88 -> -0.1311103948 | BB63: =country!AZ88 -> -0.1311103948 | BC63: =country!BI88 -> -0.03760601253 | BD63: 2079 | BE63: =IF(AND(country!J88>'goal seek'!$E$24,BD63<=country!$M$18,AO63>0),country!I88,#N/A) ->  | BF63: =IF(AND(country!S88>'goal seek'!$E$23,BD63<=country!$V$18,AP63>0),country!R88,#N/A) ->  | BG63: =IF(AND(country!AB88>'goal seek'!$E$23,BD63<=country!$AE$18,AQ63),country!AA88,#N/A) ->  | BH63: =IF(AND(country!AK88>'goal seek'!$E$23,BD63<=country!$AN$18,AR63>0),country!AJ88,#N/A) ->  | BI63: =IF(AND(country!AT88>'goal seek'!$E$23,BD63<=country!$AW$18,AS63>0),country!AS88,#N/A) ->  | BJ63: =IF(AND(BD63<=country!$BF$18,AT63>0),country!BB88,#N/A) ->  | BK63: =IF(AU63>0,country!BK88,#N/A) -> 
G64: =country!AP28/1000/country!AT28 -> 0.07964011108 | H64: =country!D28/1000/country!E28 -> 0.05753825917 | AM64: 2080 | AN64: 2080 | AO64: =country!F89 -> -26.40228119 | AP64: =country!O89 -> -58.13728109 | AQ64: =country!X89 -> -58.13728109 | AR64: =country!AG89 -> -58.13728109 | AS64: =country!AP89 -> -58.13728109 | AT64: =country!AY89 -> -58.13728109 | AU64: =country!BH89 -> -26.40228119 | AW64: =country!G89 -> -0.05954206055 | AX64: =country!P89 -> -0.1311103948 | AY64: =country!Y89 -> -0.1311103948 | AZ64: =country!AH89 -> -0.1311103948 | BA64: =country!AQ89 -> -0.1311103948 | BB64: =country!AZ89 -> -0.1311103948 | BC64: =country!BI89 -> -0.05954206055 | BD64: 2080 | BE64: =IF(AND(country!J89>'goal seek'!$E$24,BD64<=country!$M$18,AO64>0),country!I89,#N/A) ->  | BF64: =IF(AND(country!S89>'goal seek'!$E$23,BD64<=country!$V$18,AP64>0),country!R89,#N/A) ->  | BG64: =IF(AND(country!AB89>'goal seek'!$E$23,BD64<=country!$AE$18,AQ64),country!AA89,#N/A) ->  | BH64: =IF(AND(country!AK89>'goal seek'!$E$23,BD64<=country!$AN$18,AR64>0),country!AJ89,#N/A) ->  | BI64: =IF(AND(country!AT89>'goal seek'!$E$23,BD64<=country!$AW$18,AS64>0),country!AS89,#N/A) ->  | BJ64: =IF(AND(BD64<=country!$BF$18,AT64>0),country!BB89,#N/A) ->  | BK64: =IF(AU64>0,country!BK89,#N/A) -> 
AN65: 2081 | AO65: =country!F90 -> -36.12921544 | AP65: =country!O90 -> -58.13728109 | AQ65: =country!X90 -> -58.13728109 | AR65: =country!AG90 -> -58.13728109 | AS65: =country!AP90 -> -58.13728109 | AT65: =country!AY90 -> -58.13728109 | AU65: =country!BH90 -> -36.12921544 | AW65: =country!G90 -> -0.08147810857 | AX65: =country!P90 -> -0.1311103948 | AY65: =country!Y90 -> -0.1311103948 | AZ65: =country!AH90 -> -0.1311103948 | BA65: =country!AQ90 -> -0.1311103948 | BB65: =country!AZ90 -> -0.1311103948 | BC65: =country!BI90 -> -0.08147810857 | BD65: 2081 | BE65: =IF(AND(country!J90>'goal seek'!$E$24,BD65<=country!$M$18,AO65>0),country!I90,#N/A) ->  | BF65: =IF(AND(country!S90>'goal seek'!$E$23,BD65<=country!$V$18,AP65>0),country!R90,#N/A) ->  | BG65: =IF(AND(country!AB90>'goal seek'!$E$23,BD65<=country!$AE$18,AQ65),country!AA90,#N/A) ->  | BH65: =IF(AND(country!AK90>'goal seek'!$E$23,BD65<=country!$AN$18,AR65>0),country!AJ90,#N/A) ->  | BI65: =IF(AND(country!AT90>'goal seek'!$E$23,BD65<=country!$AW$18,AS65>0),country!AS90,#N/A) ->  | BJ65: =IF(AND(BD65<=country!$BF$18,AT65>0),country!BB90,#N/A) ->  | BK65: =IF(AU65>0,country!BK90,#N/A) -> 
AN66: 2082 | AO66: =country!F91 -> -45.85614969 | AP66: =country!O91 -> -58.13728109 | AQ66: =country!X91 -> -58.13728109 | AR66: =country!AG91 -> -58.13728109 | AS66: =country!AP91 -> -58.13728109 | AT66: =country!AY91 -> -58.13728109 | AU66: =country!BH91 -> -45.85614969 | AW66: =country!G91 -> -0.1034141566 | AX66: =country!P91 -> -0.1311103948 | AY66: =country!Y91 -> -0.1311103948 | AZ66: =country!AH91 -> -0.1311103948 | BA66: =country!AQ91 -> -0.1311103948 | BB66: =country!AZ91 -> -0.1311103948 | BC66: =country!BI91 -> -0.1034141566 | BD66: 2082 | BE66: =IF(AND(country!J91>'goal seek'!$E$24,BD66<=country!$M$18,AO66>0),country!I91,#N/A) ->  | BF66: =IF(AND(country!S91>'goal seek'!$E$23,BD66<=country!$V$18,AP66>0),country!R91,#N/A) ->  | BG66: =IF(AND(country!AB91>'goal seek'!$E$23,BD66<=country!$AE$18,AQ66),country!AA91,#N/A) ->  | BH66: =IF(AND(country!AK91>'goal seek'!$E$23,BD66<=country!$AN$18,AR66>0),country!AJ91,#N/A) ->  | BI66: =IF(AND(country!AT91>'goal seek'!$E$23,BD66<=country!$AW$18,AS66>0),country!AS91,#N/A) ->  | BJ66: =IF(AND(BD66<=country!$BF$18,AT66>0),country!BB91,#N/A) ->  | BK66: =IF(AU66>0,country!BK91,#N/A) -> 
